{"text_format":"1","workbook":"xlsx","n_sheets":18,"sheets":["Form Instructions","Project Information","Checklist & Acknowledgement","Terms and Conditions","Technical Requirements","NC Lighting Incentives","Lighting Control Incentives","Input Instructions","Input - Building Method","Input - Space Method","Input - Lighting Controls","Lighting Controls Summary","Building Type LPD","Space-by-Space LPD","Wattage Table","AEG Import","Validation","Version Tracking"],"not_rendered":{"charts":0,"images":5,"macros":1,"external_links":25,"defined_names":798,"comments":0,"pivot_tables":0},"unopened":[],"bounds":{"document_bytes":16777216,"sheet_cells":100000,"rows_first":2000,"rows_last":500,"rows_between":2000,"halvings":0,"cell_chars":16384,"cell_head_chars":4096},"cells_cut":0,"cells_raw":0,"read":"whole","date_system":"1900"}

{"sheet":"Form Instructions","index":0,"n_rows":21,"n_cols":18,"rows_kept":21,"cut":false,"hidden":false,"merged":[[20,0,20,8],[18,10,18,18],[20,10,20,18],[17,0,18,8],[0,0,1,18],[14,10,16,18],[16,0,16,8],[12,10,12,18],[12,0,14,8],[9,17,9,18],[10,3,10,15],[2,5,2,15],[3,5,3,15]]}
[]
[]
[null,null,null,null,null,"New Construction Lighting Application - Electronic Version"]
[null,null,null,null,null,"Dominion Energy South Carolina, Inc."]
[]
[]
[]
[]
[]
[null,null,null,null,null,null,null,null,null,null,null,null,null,null,null,null,null,{"$f":"\"Version #\" & 'Version Tracking'!C4","v":"Version #10.1"}]
[null,null,null,"*If an error occurs when using buttons above, manually navigate to appropriate tab"]
["Application and Instructions",null,null,null,null,null,null,null,null,null,"Participation Instructions "]
["The EnergyWise for Your Business Program is designed to help non-residential customers install high efficiency technologies in new buildings. The program provides customers with incentive and technical assistance that will facilitate the installation of premium efficient equipment. EnergyWise for Your Business incentive payments are capped per Customer Federal tax ID number at $100,000 for each program year (December 1–November 30.) Details of the program, including incentive levels and technical requirements, are subject to change without prior notice. \n\nEligible Participants\nEnergyWise for Your Business is open to all non-residential electric customers within our service territory, except for industrial and certain large retail customers that have elected to opt out of the Demand Side Management (DSM) programs by notifying us in writing using the Opt-Out form.",null,null,null,null,null,null,null,null,null,"Please review the program Terms and Conditions tab and the Technical Requirements tab for all program rules and requirements.  Tabs colored Blue should be filled in by applicant."]
[null,null,null,null,null,null,null,null,null,null,"Step 1"]
[null,null,null,null,null,null,null,null,null,null,"Review program materials to confirm your proposed equipment meets program requirements. Visit the program website at www.DominionEnergySC.com/ForYourBusiness or contact us at SCEnergyExperts@DominionEnergySC.com or 877-784-7234 with any questions about eligibility.\n\nStep 2\n→  Complete the blue Project Information tab.  Please indicate the mailing address for all correspondence under the Customer Contact Information including incentive checks if applicable.  Please indicate if the incentive payment should be made payable to the customer of record or a third party, such as the installation contractor. All incentive payments require authorization from the customer of record. IRS Form W-9 must be completed for the party receiving the incentive payment from us. This form is available at www.irs.gov. Regardless of who is receiving the incentive payment, the customer’s Federal tax ID number must be provided on this tab. \n\n→  Complete the applicable blue Input tab(s). Refer to the black Input Instructions tab for additional information.\n\n→ Complete the blue Checklist and Acknowledgement tab.  Provide customer signature and verify that all required information and documentation are included for submission to us.  Incomplete applications will not be accepted and will be returned to the customer for completion.\n\n→ Complete application packages must be submitted by email to Dominion Energy South Carolina."]
["Eligible Equipment"]
["Eligible incentives for performance-based new construction lighting and lighting controls are listed on the NC Lighting Incentives and Lighting Control Incentives tabs. These measures are subject to the associated technical eligibility criteria (refer to the Technical Requirements tab). All equipment must be new; used or refurbished equipment is not eligible. This application is applicable to new construction or major renovation projects only. Lighting retrofit projects are not eligible through this application.\n\nPre-Approval Requirements\nAll new construction lighting projects require pre-approval from us prior to ordering, purchasing or installing any equipment. After the application has been pre-approved by us, the customer will be notified in writing, assigned a "]
["project identification number, and given any specific instructions. The customer\nmay then purchase and install the pre-approved equipment.\n\nQuestions\nIf you have questions about the program, email SCEnergyExperts@DominionEnergySC.com, visit www.DominionEnergySC.com/ForYourBusiness or call 877-784-7234.",null,null,null,null,null,null,null,null,null,"Email:","SCEnergyExperts@DominionEnergySC.com"]
[null,null,null,null,null,null,null,null,null,null,"Step 3\nApplications will be processed and we will notify the customer in writing\nwhen the review is complete and funds have been reserved. Upon receipt\nof program pre-approval, customers may then purchase and install their energy efficient equipment. We will notify customers if an inspection of the facility is necessary prior to pre-approval.\n\nAny changes in the proposed equipment, quantities, or operating conditions\nmust be approved by us prior to implementing."]
[null,null,null,null,null,null,null,null,null,null,"Step 4"]
[null,null,null,null,null,null,null,null,null,null,"Upon project completion, please return the signed customer acknowledgment\nat bottom of the pre-approval letter along with proof of purchase. We\nwill notify customers if an inspection of the facility is necessary prior to final\npayment processing."]

{"sheet":"Project Information","index":1,"n_rows":41,"n_cols":15,"rows_kept":41,"cut":false,"hidden":false,"merged":[[30,0,30,2],[30,3,30,6],[30,8,30,9],[30,11,30,14],[28,0,28,2],[28,3,28,6],[28,8,28,9],[28,11,28,14],[29,0,29,2],[29,3,29,9],[29,11,29,14],[26,0,26,2],[26,3,26,14],[24,0,24,14],[27,0,27,2],[27,3,27,14],[0,0,0,14],[1,0,1,14],[2,0,2,2],[2,3,2,9],[2,10,2,12],[2,13,2,14],[3,0,3,2],[3,3,3,9],[3,10,3,12],[3,13,3,14],[4,0,4,2],[4,3,4,9],[4,10,4,12],[4,13,4,14],[7,0,7,9],[9,0,9,14],[10,0,10,2],[10,3,10,14],[5,0,5,2],[5,3,5,6],[5,8,5,9],[5,11,5,14],[6,0,6,12],[11,0,11,14],[12,0,12,2],[12,3,12,6],[12,8,12,9],[12,11,12,14],[13,0,13,2],[13,3,13,9],[13,11,13,14],[14,0,14,2],[14,3,14,6],[14,8,14,9],[14,11,14,14],[15,0,15,14],[32,0,32,14],[33,0,33,14],[34,0,34,2],[34,3,34,9],[17,0,17,2],[17,3,17,14],[18,0,18,2],[18,3,18,14],[19,0,19,2],[19,3,19,6],[19,8,19,9],[19,11,19,14],[22,0,22,14],[23,0,23,14],[25,0,25,14],[35,0,35,3],[36,0,36,9],[37,0,37,2],[37,3,37,9],[37,11,37,14],[31,0,31,14],[40,0,40,9],[8,11,8,13],[39,1,39,14],[20,0,20,2],[21,0,21,2],[21,3,21,6],[21,8,21,9],[21,11,21,14],[38,0,38,5],[38,6,38,9],[38,10,38,12],[38,13,38,14],[20,3,20,9],[20,11,20,14],[16,0,16,14]]}
["Fill in Light Blue and Orange Cells Only!"]
["PROJECT INFORMATION"]
["Application Date    ",null,null,null,null,null,null,null,null,null,"Expected Completion Date"]
["Company Name    ",null,null,null,null,null,null,null,null,null,"Electric Account # "]
["Street Address (of the facility) ",null,null,null,null,null,null,null,null,null,"Customer Federal Tax ID "]
["City   ",null,null,null,null,null,null,"State   ","SC",null,"Zip  "]
["Building Type (select one)"]
[]
[null,null,null,null,null,null,null,null,null,null,null,"Please indicate \"other\" type:"]
["CUSTOMER CONTACT INFORMATION"]
["Mailing Address"]
["(where all correspondence will be mailed, including incentive check if payment is to the customer)"]
["City   ",null,null,null,null,null,null,"State   ",null,null,"Zip  "]
["Contact Person     ",null,null,null,null,null,null,null,null,null,"Title"]
["Telephone No.       ",null,null,null,null,null,null,"Fax No.",null,null,"Email "]
[]
["CONTRACTOR INFORMATION"]
["Company Name  "]
["Mailing Address   "]
["City   ",null,null,null,null,null,null,"State   ",null,null,"Zip  "]
["Contact Person     ",null,null,null,null,null,null,null,null,null,"Title"]
["Telephone No.       ",null,null,null,null,null,null,"Fax No.",null,null,"Email "]
[]
["Please indicate if the Customer or Contractor should be primary point of contact for this project.  If another party should be primary point of contact, please indicate below:"]
["                   Customer                                          Contractor                                                 Other (fill out below)"]
["PRIMARY POINT OF CONTACT (IF APPLICABLE)"]
["Company Name  "]
["Street Address   "]
["City   ",null,null,null,null,null,null,"State   ",null,null,"Zip  "]
["Contact Person     ",null,null,null,null,null,null,null,null,null,"Title"]
["Telephone No.       ",null,null,null,null,null,null,"Fax No.",null,null,"Email "]
[]
["PAYMENT INFORMATION"]
["Payment to: "]
["Federal Tax ID # (of recipient)"]
["Tax Status of Recipient (select one)"]
[]
["Customer Name",null,null,null,null,null,null,null,null,null,"Title"]
["Customer Signature (if payment to contractor, Customer must type his/her name in the orange box to the right and check the box below)    ",null,null,null,null,null,null,null,null,null,"Date (XX/XX/XXXX)"]
[null,"I understand and intend that my electronic, PDF or facsimile signature be accepted and have the same force and effect as an original signature."]
["Dominion Energy South Carolina, Inc. New Construction Lighting Application - Electronic Version",null,null,null,null,null,null,null,null,null,null,null,null,"Version",{"$f":"'Version Tracking'!C4","v":10.1}]

{"sheet":"Checklist & Acknowledgement","index":2,"n_rows":16,"n_cols":15,"rows_kept":16,"cut":false,"hidden":false,"merged":[[0,0,0,14],[1,0,1,14],[2,0,2,14],[3,0,3,14],[4,0,4,14],[5,0,5,14],[6,0,6,14],[7,0,7,14],[8,0,8,14],[9,0,9,14],[15,0,15,9],[14,1,14,14],[10,0,10,14],[11,0,11,14],[12,0,13,2],[12,3,13,7],[12,8,12,9],[12,10,12,14],[13,8,13,12],[13,13,13,14]]}
["Fill in Light Blue and Orange Cells Only!"]
["APPLICATION CHECKLIST"]
["For faster application processing, please include the following items with your application:"]
["     Complete application (Project Information tab and customer acknowledgment below)."]
["     Electric account number must be provided before payment of any incentive."]
["     IRS Form W-9 completed for payment recipient (available at www.irs.gov). If payment is to a contractor, customer's W-9 must also be provided."]
["     Required documentation listed on the Technical Requirements tab."]
["     Complete Input Tab(s) - Building OR Space Method tab - refer to Input Instructions tab first."]
["     Customer signature and proof of purchase (contractor receipts), at time of project completion."]
["Applications submitted for processing will be processed in the order in which they are received. Applicants will be notified as to their pre-approval status and/or any pre-inspection requirements within 10 business days from receipt of complete application. Applicants will be notified if post-installation inspections are required."]
[]
["CUSTOMER ACKNOWLEDGMENT"]
["Authorized Representative  ",null,null,null,null,null,null,null,"Title"]
[null,null,null,null,null,null,null,null,"Date (XX/XX/XXXX)"]
[null,"By checking this box and typing my name, I hereby certify that all statements made on this application are correct to the best of my knowledge and that I have read and agree to the Terms and Conditions. Furthermore, I understand and intend that my electronic, PDF or facsimile signature be accepted and have the same force and effect as an original signature.\n\nNote: Upon completion of project, customer of record must sign and return the written pre-approval letter and provide invoices for all energy efficiency measures."]
[{"$f":"'Project Information'!A41:J41","v":"Dominion Energy South Carolina, Inc. New Construction Lighting Application - Electronic Version"},null,null,null,null,null,null,null,null,null,null,null,null,"Version",{"$f":"'Project Information'!O41","v":10.1}]

{"sheet":"Terms and Conditions","index":3,"n_rows":6,"n_cols":2,"rows_kept":6,"cut":false,"hidden":false,"merged":[[0,0,0,1],[1,0,1,1],[2,0,4,0],[2,1,4,1]]}
["Dominion Energy South Carolina, Inc."]
["TERMS AND CONDITIONS"]
["1.  Eligibility: EnergyWise For Your Business Program (“Program”) incentives are available to Dominion Energy South Carolina non-residential electric customers for the purchase and installation of qualifying energy conservation measures (ECMs) in our service territory, subject to these Terms and Conditions (T&Cs). The process of purchasing and installing ECMs for an eligible Customer pursuant to the Program is referred to herein as a “Project.” Industrial customers and specific large retail customers who have elected to opt out of Demand Side Management programs, by notifying us in writing using the Dominion Energy South Carolina Opt-Out form, are not eligible to participate. Dominion Energy South Carolina and our program implementer (“Implementer”) (together, “We”) reserve the right to deny any application that may result in exceeding our Program budget. Program incentives are limited, offered on a first-come/first-served basis, and are subject to Project and Customer eligibility and funds availability. For each Program year (December 1–November 30), Program incentive payments are capped per Customer Federal tax ID number at $100,000.\n2.  Authorization, Program Changes, Suspension, or Cancellation: We may change the program requirements, incentives or T&Cs, including suspending acceptance of applications or terminating the program, at any time and without notice. In the event of a program change, pre-approved applications will be processed to completion under the T&Cs in effect at time of pre-approval. Submission of a completed application does not entitle Customer to program participation. For all projects, entitlement to programparticipation and our obligation to pay incentives may occur only after we have granted written authorization, which we may grant or not at its sole discretion.\n3.  Project Approval: Pre-approval is required for all projects. We reserve the right to inspect any project prior to pre-approval. For all projects, no project-related ECMs may be ordered or installed prior to the date of our pre-approval. Violation of this prohibition will disqualify the ECM for incentives. Projects must be completed by the date listed on the pre-approval notification letter (within 180 calendar days for retrofit projects or one year for new construction projects).\n4.  Creditworthiness: An incentive payment is conditioned upon and subject to Customer maintaining its financial creditworthiness and keeping its account in good standing. At any time prior to an issuance of an incentive check, we may request financial information to support its financial due diligence procedures. Customer agrees to assist in this reasonable financial review.  If We believe in good faith that the Customer’s account is not in good standing, or if creditworthiness of participant has been diminished, we may reject approval of an incentive payment.  \n5.  Proof of Purchase: Prior to our verification of the ECM installation, Customer must provide copies of all invoices or other appropriate documentation that clearly verifies the costs of purchasing and installing the ECMs, including all material, labor, and equipment discounts. Invoices must indicate a verifiable breakout of all ECMs purchased for installation under the ECM incentives application, including model numbers and quantity.\n6.  Project Verification: We (or our Evaluator) may conduct an inspection of Customer’s facility to verify pre- and post-installation conditions or verify documentation prior to incentive payment at any time after receipt of an application. No warranty is expressed or implied by this verification. We are not obligated to pay any incentive until it has performed a satisfactory post-installation inspection. Should we determine that ECMs were not installed in accordance with the approved application, or if an unapproved ECM was installed, or if the installation was not consistent with generally accepted engineering/construction practices, changes may be required before payment is issued. Notwithstanding anything to the contrary, should we determine at any point before payment of the incentive that there has been significant deviation in the type, amount, cost or performance of the ECMs underlying this incentive commitment that were set forth in the Program application and pre-approved, we retain the right to revoke this commitment or reduce the final incentive amount accordingly. We reserve this right despite a satisfactory post-installation inspection. Customer agrees to provide prompt notice to us of any significant deviation in the type, amount, cost or performance of the ECMs underlying this incentive commitment that were set forth in the Program application and pre-approved by Dominion Energy South Carolina.","7.  Customer Tax Obligation: Customer or Customer’s designated contractor is responsible for declaring and paying any and all applicable federal, state, and local taxes that may be owed on any incentive payment. Neither Dominion Energy South Carolina, Inc. nor any of its subsidiaries shall be liable for any federal, state, and local taxes that may be owed on or as a result of any incentive payment. The party receiving the incentive payment (Customer or Contractor) must complete IRS Form W-9 and submit it to us with the incentive application materials. If payment is to a contractor, customer's W-9 must also be provided.\n8.  Compliance: Customer is responsible for obtaining any and all necessary licenses and permits related to the installation of ECMs. Customer also agrees to comply with all federal, state, and local laws, codes, and regulations related to the installation and disposal of all equipment.\n9.  Removal of Equipment: Customer agrees to remove and dispose of the equipment being replaced by the ECMs in accordance with all legal requirements. Customer agrees not to re-install any of this equipment in our service territory or transfer it to any other party for such installation.\n10.  Replacement of Failed Equipment: Customers who install ECMs are expected to replace any of the ECMs that fail with similar or superior energy savings equipment at Customer’s expense.\n11.  Evaluation Follow-up Visits: With advance notice, we reserve the right to make or to have its contractor(s) make follow-up visits to Customer facilities during the 36 months following completion of the project to provide us with an opportunity to review the operation of the ECMs for program evaluation purposes. Customer agrees to cooperate with this effort.\n12.  Contractor Selection: Customer may select any contractor to perform the work contemplated by the application, even after the application is pre-approved by us. However, we reserve the right, in its sole discretion, to prohibit specific contractors from program participation.\n13.  No Warranties: Dominion Energy South Carolina, Inc. does not endorse, guarantee, or warrant any particular manufacturer or product and we provide no warranties, express or implied, for any products or services, and herein specifically disclaims any such guarantees or warranties. We are not liable or responsible for any act or omission of any contractor hired by Customer. Customer’s reliance on warranties is limited to any warranties that may arise from, or be provided by contractors, vendors, etc. Customer acknowledges that neither Dominion Energy South Carolina, Inc. nor any of its consultants are responsible for ensuring that the design, engineering, and construction of the facility or installation of the ECMs are proper or comply with any particular laws (including patent laws), codes, regulations, or industry standards. We make no representations of any kind regarding the results to be achieved by the ECMs or the adequacy or safety of such measures.\n14.  Assumption of Risk and Limitation of Liability: Customer assumes and acknowledges all risks arising from its participation in the Program including but not limited to exposure to the novel coronavirus (“COVID-19”), and releases and discharges Dominion Energy, Inc., Dominion Energy South Carolina, its Implementer, Evaluator, and their respective officers, directors, employees and agents from any liability related thereto. Our sole obligation is limited to paying the properly qualified rebates specified herein. Neither Dominion Energy South Carolina, Inc., any of its subsidiaries, nor its Implementer or Evaluator shall be liable to Customer or any other party for any special, indirect, consequential, or incidental damages, regardless of the theory of recovery, caused by or arising from any activities associated with this Program.\n15.  Obligations between the Parties: Customer acknowledges that any contractor selected by Customer is not an agent, contractor, or subcontractor of Dominion Energy South Carolina, Inc. and is an independent contractor engaged by Customer, and that we do not manage or control the contractor’s performance. We shall have no obligation to maintain, remove, or perform any work whatsoever on the ECMs installed. We shall have no liability for a contractor’s failure to perform, for failure of the energy savings measures to function, for any damage to Customer’s premises caused by the contractor, or for any and all damages to property or injuries to persons caused by or associated with the energy savings measures.\n16.  Miscellaneous: These T&Cs and this application, of which these T&Cs are an integral part, constitute the entire agreement between the parties and supersede all other communications, representations, and understandings."]
[]
[]
[null,{"$f":"\"Version #\" & 'Version Tracking'!C4","v":"Version #10.1"}]

{"sheet":"Technical Requirements","index":4,"n_rows":20,"n_cols":15,"rows_kept":20,"cut":false,"hidden":false,"merged":[[19,14,19,15],[18,0,18,14],[15,0,15,14],[16,0,16,14],[0,0,0,14],[1,0,1,14],[2,0,2,14],[4,0,4,14],[5,0,5,14],[3,0,3,14],[6,0,6,14],[12,0,12,14],[17,0,17,14],[7,0,7,14],[9,0,9,14],[13,0,13,14],[14,0,14,14],[10,0,10,14],[11,0,11,14],[8,0,8,2]]}
[]
["NEW CONSTRUCTION LIGHTING ELIGIBILITY AND TECHNICAL REQUIREMENTS"]
["Incentives for new construction lighting are available for reducing the lighting power density (LPD) (watts per square foot) from the baseline lighting design that complies with the American Society of Heating, Refrigerating and Air-Conditioning Engineers/Illuminating Engineering Society of North America (ASHRAE/IESNA) 90.1–2007 Interior Lighting Power Allowance. Wattage reduction may be calculated on a space-by-space or building-area basis. To qualify for new construction lighting incentives, projects must have an installed LPD that is at least 15 percent less than what the code requires.\n\nIncentives are also available for qualifying lighting controls, including occupancy controls and daylight dimming controls."]
["Project Requirements"]
["§ Must be a new construction project or, on a case-by-case basis, an extensive/substantial major renovation project that consists of the installation of new fixtures throughout the building or renovated spaces.  Major renovation projects are eligible and classified as:\n       → Removal of the entire existing lighting system and wiring, and\n       → Redesign of the entire existing lighting system, and\n       → Significant change to the actual function of the building through significant renovation, i.e., projects where a licensed professional architect or engineer has prepared \n            and certified building plans for the change of use and reconstruction of an existing or vacant space.\n\n"]
["§ Must provide maintained lighting levels in accordance with IESNA recommendations."]
["§    Must provide high-quality lighting achieving appropriate levels of glare control, color rendering, lighting uniformity, and other lighting quality parameters."]
["§ High-performance and reduced-wattage T8 lamps must be specified if T8 systems are being installed. A current list of qualifying products is available at the Consortium for   Energy Efficiency website. Visit:"]
["http://www.cee1.org"]
["§ In order to receive incentives, the new construction project as a whole must have at least 70% of fixtures installed on either the ENERGY STAR® or Design Lights Consortium qualified products list. Visit:"]
["http://www.designlights.org/QPL"]
["http://www.energystar.gov/products/certified-products/detail/light-bulbs"]
["Required Supporting Documentation"]
["§ Signed Lighting Compliance Certificate (COMcheck or equivalent) run under current code conditions."]
["§     Electrical or reflected ceiling plan showing lighting layouts."]
["§ Lighting fixture schedule including manufacturer model number and rated wattage."]
["§     Manufacturer’s specification sheets for all equipment specified."]
["§     Supporting calculations demonstrating building/space area and installed lighting wattage."]
["We reserve the right to require submission of site-specific photometric reports and/or point-by-point lighting calculations for each significant space type."]
[null,null,null,null,null,null,null,null,null,null,null,null,null,null,{"$f":"\"Version #\" & 'Version Tracking'!C4","v":"Version #10.1"}]

{"sheet":"NC Lighting Incentives","index":5,"n_rows":10,"n_cols":15,"rows_kept":10,"cut":false,"hidden":false,"merged":[[9,14,9,15],[5,0,5,14],[8,0,8,14],[6,0,6,14],[7,0,7,14],[0,0,0,14],[1,0,1,14],[2,0,2,14],[3,0,3,14],[4,0,4,14]]}
[]
["NEW CONSTRUCTION LIGHTING INCENTIVES AND CALCULATION INSTRUCTIONS"]
["Projects must have an installed LPD that is at least 15 percent less than ASHRAE/IESNA 90.1–2007 Interior Lighting Power Allowance baseline LPDs to qualify for\nnew construction lighting incentives. Projects meeting these criteria are eligible for incentives of $.40 per watt reduced, up to $30 per fixture, from the code baseline.\nASHRAE/IESNA LPD reference tables are provided on the LPD tabs."]
["Step 1: Select Calculation Method"]
["BUILDING AREA METHOD: To be used for projects involving the entire building or projects involving a single, independent, and separate occupancy in a multioccupancy\nbuilding. All lighting in the building or separate occupancy must be included in the calculations.\nSPACE-BY-SPACE METHOD: To be used for projects involving a portion of a building or as an alternative to the building area method for those buildings involving\nmultiple space types."]
["Step 2: Determine Building or Space Type Information"]
["Determine square footage of building or space types being considered for this application. Total lighting wattage for the building or space type also\nmust be determined."]
["Step 3: Complete Applicable Input Tab(s)"]
["The new construction lighting Input tabs must be completed to calculate the incentives using the methods described in Step 1. To be considered for an incentive,\nthe tabs must be completed and submitted with all applications - please refer to the Input Instructions tab for further details."]
[null,null,null,null,null,null,null,null,null,null,null,null,null,null,{"$f":"\"Version #\" & 'Version Tracking'!C4","v":"Version #10.1"}]

{"sheet":"Lighting Control Incentives","index":6,"n_rows":17,"n_cols":6,"rows_kept":17,"cut":false,"hidden":false,"merged":[[16,5,16,6],[12,1,13,1],[12,2,13,2],[12,3,13,3],[12,4,13,4],[5,5,6,5],[7,1,9,1],[7,2,9,2],[7,3,9,3],[7,4,9,4],[0,0,0,5],[4,0,4,5],[5,0,15,0],[5,2,6,2],[5,4,6,4],[14,1,15,1],[14,2,15,2],[14,3,15,3],[14,4,15,4],[1,0,1,5],[2,0,2,5],[3,0,3,5],[10,1,11,1],[10,2,11,2],[10,3,11,3],[10,4,11,4]]}
[]
["LIGHTING CONTROLS ELIGIBILITY AND TECHNICAL REQUIREMENTS"]
["Incentives also are available for new construction projects involving the installation of qualifying lighting controls. Lighting control installations required by applicable state and local energy codes are not eligible for incentives.\n\nApplicants must claim controls incentives using the Input-Lighting Controls tab. The following table describes available new construction lighting controls incentives."]
[]
["LIGHTING CONTROL MEASURES AND INCENTIVES"]
["Lighting Controls","Measure","Proposed Measure","Minimum Watts","Incentive/ Unit","Technical Requirements"]
[null,"Code",null,"Controlled"]
[null,"80A","Occupancy Control: Wall Switch Replacement",40,"$15/Control","§ Installation of hardwired or wireless passive infrared or dual technology wall switch replacement occupancy or vacancy controls."]
[null,null,null,null,null,"§ Installations must comply with manufacturer’s guidelines on coverage and maximum controlled watts."]
[null,null,null,null,null,"§ Residential-grade controls or those with manual-on capability are not eligible for incentives."]
[null,"80B","Occupancy Control:\nRemote Ceiling/Wall Mount",119,"$35/Control","§ Installation of hardwired or wireless; passive infrared, ultrasonic, or dual technology; remote-mounted wall or ceiling occupancy controls."]
[null,null,null,null,null,"§ Installations must comply with manufacturer’s guidelines on coverage and maximum controlled watts."]
[null,"80C","Occupancy Control:\nFixture Mounted/High Bay",40,"$15/Control","§ Installation of hardwired, passive infrared, or dual technology, fixture-mounted occupancy controls in high bay applications."]
[null,null,null,null,null,"§ Installations must comply with manufacturer’s guidelines on coverage and maximum controlled watts."]
[null,"80E","Daylight Control/Harvesting (On/Off)",119,"$35/Control","§ Installation of hardwired daylight harvesting (on/ off) system consisting of photocell or other control apparatus, wired to standard ballasts."]
[null,null,null,null,null,"§ System designed to control lighting on/off in response to ambient lighting conditions."]
[null,null,null,null,null,{"$f":"\"Version #\" & 'Version Tracking'!C4","v":"Version #10.1"}]

{"sheet":"Input Instructions","index":7,"n_rows":52,"n_cols":7,"rows_kept":52,"cut":false,"hidden":false,"merged":[[27,2,27,6],[1,1,1,7],[2,1,2,7],[3,1,3,7],[4,1,4,7],[5,1,5,7],[15,2,15,6],[26,3,26,6],[14,2,14,6],[12,3,12,6],[7,5,7,6]]}
[]
[]
[]
[null,"New Construction Lighting Worksheet"]
[null,"Dominion Energy South Carolina, Inc."]
[]
[null,null,null,"Copyright © 2015 ICF Resources, LLC, All Rights Reserved. Do not copy, distribute or quote without ICF’s written permission."]
[null,null,null,null,null,{"$f":"\"Version #\" & 'Version Tracking'!C4","v":"Version #10.1"}]
[]
[]
[]
[]
[null,null,null,"                                                                  *If an error occurs when using buttons above, manually navigate to appropriate tab"]
[null,null,"Instructions"]
[null,null,"1. Read the Form Instructions tab for detailed information on participation for this program."]
[null,null,"2. The applicable inventory input worksheet is required for all New Construction Lighting projects and must be completed.  Application packages must be submitted by email."]
[null,null,null,"Email Address:"]
[null,null,null,"SCEnergyExperts@DominionEnergySC.com"]
[]
[]
[]
[null,null,"3. Select appropriate inventory input tab:"]
[null,null,null,"- For a New Construction Project being evaluated on a building type method select the Building Method tab."]
[null,null,null,"- For a New Construction Project being evaluated on a space-by-space method select the Space Method tab."]
[null,null,null,"- For a New Construction Project that is having lighting controls installed, select the Lighting Controls tab."]
[null,null,"4. Enter required project information at the top of the appropriate worksheet."]
[null,null,null,"- The \"Building Type LPD\" and \"Space-by-Space LPD\" tabs display information pertaining to baseline Lighting Power Densities based on building type and space type respectively."]
[null,null,"5. Enter the required project information in the shaded areas only. A description of this information is provided below in the Inputs section.  The Orange Building Type LPD tab, Space-by-Space LPD tab, and Wattage Table tab are reference tabs for additional information related to the Input tabs.                                 "]
[null,null,null,"- All other information will be populated automatically."]
[]
[null,null,"Inputs"]
[null,null,"Building Method Fields",null,"Unit","Input Range","Description"]
[null,null,"1.","Building AC / Heat Type","n/a","(Building AC / Heat Type)","Enter the appropriate Building AC / Heat Type"]
[null,null,"2.","Building Type","n/a","(Building Type LPD)","Enter the appropriate building classification from ASHRAE 90.1 descriptions"]
[null,null,"3.","Lighted Area for Building","Square Feet","any","Enter the square footage of all lit space in the building"]
[null,null,"4.","Est. Annual Hours of Operation","Hours","8760 maximum","Enter the average annual operating hours for all lighting in the building"]
[null,null,"5.","Installed Wattage","Watts","any","Enter the total rated watts of all installed fixtures"]
[]
[null,null,"Space Method Fields",null,"Unit","Input Range","Description"]
[null,null,"1.","Building AC / Heat Type","n/a","(Building AC / Heat Type)","Enter the appropriate Building AC / Heat Type"]
[null,null,"2.","Overall Building and Individual Space Types","n/a","(Space-by-Space LPD)","In the first cell, enter the overall building type for schedule assumptions. For each row, enter the appropriate space type classification from ASHRAE 90.1 descriptions"]
[null,null,"3.","Lighted Area for Space Type","Square Feet","any","Enter the square footage of all lit space for that space type"]
[null,null,"4.","Est. Annual Hours of Operation",null,"8760 maximum","Enter the average annual operating hours for all lighting in that space type"]
[null,null,5,"Installed Wattage","Watts","any","Enter the total rated watts of all installed fixtures"]
[]
[null,null,"Lighting Controls Fields",null,"Unit","Input Range","Description"]
[null,null,"1.","Controls Included","Control Type","(see Lighting Controls Summary tab)","Select the type of controls being installed"]
[null,null,"2.","Quantity of Controls","Whole Number","any","Enter the quantity of controls for that type and location being installed"]
[null,null,"3.","Device Category","Device Category","Type of Fixture","Select the type of device the control is being installed on"]
[null,null,"4.","Device Code","Device Code","Type of Device","Select the device code that control is being installed on"]
[null,null,"5.","Annual Operating Hours","Whole Number","Max of 8760","Enter the annual operating hours before the control is installed"]
[null,null,"6.","Quantity of Devices","Whole Number","any","Enter the quantity of devices being controlled by line item"]

{"sheet":"Input - Building Method","index":8,"n_rows":22,"n_cols":17,"rows_kept":22,"cut":false,"hidden":false,"merged":[[15,1,16,1],[18,14,18,15],[12,3,12,4],[11,3,11,4],[13,3,13,4],[16,3,16,4],[1,1,1,15],[2,1,2,15],[5,1,5,15],[8,1,8,6],[10,3,10,4],[3,1,3,10],[4,1,4,10],[8,14,8,16]]}
[]
[]
[]
[null,"Building Method"]
[null,{"$f":"\"Version # \"&'Version Tracking'!C4","v":"Version # 10.1"}]
[null," "]
[null,"Copyright © 2015 ICF Resources, LLC, All Rights Reserved. Do not copy, distribute or quote without ICF’s written permission."]
[]
[null,"Required General Project Information",null,null,null,null,null,"Administrative Use Only",null,null,null,null,null,null,"Summary Table"]
[null,null,null,null,null,null,null,null,null,null,null,null,null,null,"Total kWh ","Total Summer Coincident Peak (kW)","Total Incentive"]
[null,null,"Project Name",null,null,"Prepared By",null,"Project ID",null,null,null,null,null,null,{"$f":"SUM(O22:O22)","v":0},{"$f":"SUM(P22:P22)","v":0},{"$f":"SUM(Q22:Q22)","v":0}]
[null,null,"Project Address",null,null,"Contact Person",null,"Data Input By"]
[null,null,"City",null,null,"Phone",null,"Input Date"]
[null,null,"ZIP",null,null,"Email"]
[]
[null,"Input Cells"]
[null,null,"Data input allowed in shaded cells only.","* Building HVAC type is required",null,null,null,null,"*If print button malfunctions, "]
[null,null,null,null,null,null,null,null,"select printer settings manually from print menu"]
[null,"Building AC / Heat Type *",null,null,null,null,null,null,null,null,null,null,null,null,"Savings",null,"Incentive"]
[null,"Line Item","Building Type (See Building Type Tab)"," Lighted Building Area (Sq. Ft)","Est. Annual Hours of Operation","Installed Wattage (W)","Total Number \nof Luminaires","Base Lighting Power Density (W/Sq. Ft.)","Installed Lighting Power Density","Lighting Power Allowance (W)","LPD Percentage Reduction","Power Reduction from Baseline (W)","Qualify for Program?","Incentive","Total kWh Saved","Summer Coincident Peak kW Saved","Incentive"]
[null,"Ex.","Dining: Bar Lounge/Leisure",45000,6000,42300,458,{"$f":"IF(C21=\"\",\"\",INDEX(BaseBuildingLPD,MATCH(C21,BuildingType),0))","v":1.3},{"$f":"IF(D21=\"\",\"\",F21/D21)","v":0.94},{"$f":"IF(H21=\"\",\"\",H21*D21)","v":58500},{"$f":"IF(C21=\"\",\"\",(H21-I21)/H21)","v":0.27692307692307699},{"$f":"IF(ISERROR(J21-F21),\"\",J21-F21)","v":16200},{"$f":"IF(C21=\"\",\"\",IF(K21>=0.15,\"Yes\",\"No\"))","v":"Yes"},{"$f":"IFERROR(IF(M21=\"NO\",\"\",IF((30*G21)<((J21-F21)*0.4),(30*G21),(J21-F21)*0.4)),\"\")","v":6480},{"$f":"IF(M21=\"Yes\",(J21-F21)/1000*E21,0)","v":97200},{"$f":"IF(M21=\"Yes\",L21*0.001*0.747,0)","v":12.1014},{"$f":"IF(M21=\"Yes\",N21,0)","v":6480}]
[null,1,null,null,null,null,null,{"$f":"IF(C22=\"\",\"\",INDEX(BaseBuildingLPD,MATCH(C22,BuildingType),0))","v":""},{"$f":"IF(D22=\"\",\"\",F22/D22)","v":""},{"$f":"IF(H22=\"\",\"\",H22*D22)","v":""},{"$f":"IF(C22=\"\",\"\",(H22-I22)/H22)","v":""},{"$f":"IF(ISERROR(J22-F22),\"\",J22-F22)","v":""},{"$f":"IF(C22=\"\",\"\",IF(K22>=0.15,\"Yes\",\"No\"))","v":""},{"$f":"IFERROR(IF(M22=\"NO\",\"\",IF((30*G22)<((J22-F22)*0.4),(30*G22),(J22-F22)*0.4)),\"\")","v":""},{"$f":"IF(M22=\"Yes\",((J22-F22)/1000)*E22*VLOOKUP(C19,Validation!D19:F27,3,0))","v":false},{"$f":"IF(M22=\"Yes\",L22*0.001*0.747*VLOOKUP(C19,Validation!D19:F27,2,0))","v":false},{"$f":"IF(M22=\"Yes\",N22,0)","v":0}]

{"sheet":"Input - Space Method","index":9,"n_rows":47,"n_cols":20,"rows_kept":47,"cut":false,"hidden":false,"merged":[[10,3,10,4],[1,1,1,18],[2,1,2,18],[3,1,3,18],[4,1,4,18],[5,1,5,18],[8,1,8,7],[8,17,8,19],[18,13,18,14],[11,3,11,4],[12,3,12,4],[13,3,13,4],[15,1,16,1],[18,3,18,12],[16,3,16,4]]}
[]
[]
[]
[null,"Space Method"]
[null,{"$f":"\"Version # \"&'Version Tracking'!C4","v":"Version # 10.1"}]
[null," "]
[null,"Copyright © 2015 ICF Resources, LLC, All Rights Reserved. Do not copy, distribute or quote without ICF’s written permission."]
[]
[null,"Required General Project Information",null,null,null,null,null,null,"Administrative Use Only",null,null,null,null,null,null,null,null,"Summary Table"]
[null,null,null,null,null,null,null,null,null,null,null,null,null,null,null,null,null,"Total kWh ","Total Summer Coincident Peak (kW)","Total Incentive"]
[null,null,"Project Name",null,null,null,"Prepared By",null,"Project ID",null,null,null,null,null,null,null,null,{"$f":"N21","v":{"$error":"#VALUE!"}},{"$f":"O21","v":{"$error":"#VALUE!"}},{"$f":"P21","v":""}]
[null,null,"Project Address",null,null,null,"Contact Person",null,"Data Input By"]
[null,null,"City",null,null,null,"Phone",null,"Input Date"]
[null,null,"ZIP",null,null,null,"Email"]
[]
[null,"Input Cells"]
[null,null,"Data input allowed in shaded cells only.","* Building HVAC type is required"]
[null,null,null,null,null,null,null,null,"*If print button malfunctions, select printer settings manually from print menu"]
[null,"Building AC / Heat Type",null,null,null,null,null,null,null,null,null,null,null,"Savings"]
[null,"Line Item","Business Type & Individual Space Types (see Space -by-Space Tab)","Lighted Area for Space Type (Sq. Ft.)","Est. Annual Hours of Operation","Installed Wattage (W)","Total Number \nof Luminaires","Base Lighting Power Density (W/Sq. Ft.)","Installed Lighting Power Density (W/Sq. Ft.)","Lighting Power Allowance (W)","Wattage Reduction (W)","LPD Percentage Reduction","Qualify For Program?","Total kWh Saved","Summer Coincident Peak kW Saved","Incentive"]
[null,"Whole Bldng",null,{"$f":"SUM(D23:D47)","v":0},{"$f":"IF(E23=\"\",\"\",SUMPRODUCT(E23:E47,D23:D47)/D21)","v":""},{"$f":"SUM(F23:F47)","v":0},{"$f":"SUM(G23:G47)","v":0},{"$f":"IF(H23=\"\",\"\",SUMPRODUCT(H23:H47,D23:D47)/D21)","v":""},{"$f":"IF(I23=\"\",\"\",SUMPRODUCT(I23:I47,D23:D47)/D21)","v":""},{"$f":"IF(H21=\"\",\"\",H21*D21)","v":""},{"$f":"IF(J21=\"\",\"\",J21-F21)","v":""},{"$f":"IF(I21=\"\",\"\",(H21-I21)/H21)","v":""},{"$f":"IF(L21=\"\",\"\",IF(L21>=0.15,\"Yes\",\"No\"))","v":""},{"$f":"K21/1000*E21*VLOOKUP(C19,Validation!D19:F27,3,0)","v":{"$error":"#VALUE!"}},{"$f":"(K21*1*0.747)/1000*VLOOKUP(C19,Validation!D19:F27,2,0)","v":{"$error":"#VALUE!"}},{"$f":"IF(OR(M21=\"NO\",M21=\"\"),\"\",IF((G21*30)<(K21*0.4),(G21*30),(K21*0.4)))","v":""}]
[null,"Ex.","Atrium-First Three Floors",4000,5000,2000,12,{"$f":"IF(C22=\"\",\"\",INDEX(BaseSpaceLPD,MATCH(C22,SpaceType,0)))","v":0.6},{"$f":"IF(F22=\"\",\"\",F22/D22)","v":0.5},{"$f":"IF(D22=\"\",\"\",H22*D22)","v":2400},{"$f":"IF(F22=\"\",\"\",J22-F22)","v":400},{"$f":"IF(I22=\"\",\"\",(H22-I22)/I22)","v":0.19999999999999996}]
[null,1,null,null,null,null,null,"",{"$f":"IF(F23=\"\",\"\",F23/D23)","v":""},{"$f":"IF(D23=\"\",\"\",H23*D23)","v":""},{"$f":"IF(F23=\"\",\"\",J23-F23)","v":""},{"$f":"IF(I23=\"\",\"\",(H23-I23)/I23)","v":""}]
[null,2,null,null,null,null,null,"","","","",""]
[null,3,null,null,null,null,null,"","","","",""]
[null,4,null,null,null,null,null,"","","","",""]
[null,5,null,null,null,null,null,"","","","",""]
[null,6,null,null,null,null,null,"","","","",""]
[null,7,null,null,null,null,null,"","","","",""]
[null,8,null,null,null,null,null,"","","","",""]
[null,9,null,null,null,null,null,"","","","",""]
[null,10,null,null,null,null,null,"","","","",""]
[null,11,null,null,null,null,null,"","","","",""]
[null,12,null,null,null,null,null,"","","","",""]
[null,13,null,null,null,null,null,"","","","",""]
[null,14,null,null,null,null,null,"","","","",""]
[null,15,null,null,null,null,null,"","","","",""]
[null,16,null,null,null,null,null,"","","","",""]
[null,17,null,null,null,null,null,"","","","",""]
[null,18,null,null,null,null,null,"","","","",""]
[null,19,null,null,null,null,null,"","","","",""]
[null,20,null,null,null,null,null,"","","","",""]
[null,21,null,null,null,null,null,"","","","",""]
[null,22,null,null,null,null,null,"","","","",""]
[null,23,null,null,null,null,null,"","","","",""]
[null,24,null,null,null,null,null,"","","","",""]
[null,25,null,null,null,null,null,"","","","",""]

{"sheet":"Input - Lighting Controls","index":10,"n_rows":221,"n_cols":18,"rows_kept":221,"cut":false,"hidden":false,"merged":[[3,1,3,11],[4,1,4,11],[9,1,9,6],[15,1,16,1],[1,1,1,17],[2,1,2,17],[5,1,5,17],[8,1,8,6],[8,12,8,14],[10,3,10,4],[18,3,18,11],[18,12,18,13],[11,3,11,4],[12,3,12,4],[13,3,13,4]]}
[]
[]
[]
[null,"Lighting Controls Only"]
[null,{"$f":"\"Version # \"&'Version Tracking'!C4","v":"Version # 10.1"}]
[null," "]
[null,"Copyright © 2015 ICF Resources, LLC, All Rights Reserved. Do not copy, distribute or quote without ICF’s written permission."]
[]
[null,"Required General Project Information",null,null,null,null,null,"Administrative Use Only",null,null,null,null,"Summary Table"]
[null,"Input information on the Input-Building Method or Input-Space Method worksheets.",null,null,null,null,null,null,null,null,null,null,"Total kWh ","Total Summer Coincident Peak (kW)","Total Incentive"]
[null,null,"Project Name",{"$f":"IF('Input - Building Method'!D11:E11>0,'Input - Building Method'!D11:E11,IF('Input - Space Method'!D11:E11>0,'Input - Space Method'!D11:E11,\"\"))","v":""},null,"Prepared By",{"$f":"IF('Input - Building Method'!G11>0,'Input - Building Method'!G11,IF('Input - Space Method'!H11>0,'Input - Space Method'!H11,\"\"))","v":""},"Project ID",null,null,null,null,{"$f":"SUM(M22:M221)","v":0},{"$f":"SUM(N22:N221)","v":0},{"$f":"SUM(O22:O221)","v":0}]
[null,null,"Project Address",{"$f":"IF('Input - Building Method'!D12:E12>0,'Input - Building Method'!D12:E12,IF('Input - Space Method'!D12:E12>0,'Input - Space Method'!D12:E12,\"\"))","v":""},null,"Contact Person",{"$f":"IF('Input - Building Method'!G12>0,'Input - Building Method'!G12,IF('Input - Space Method'!H12>0,'Input - Space Method'!H12,\"\"))","v":""},"Data Input By"]
[null,null,"City",{"$f":"IF('Input - Building Method'!D13:E13>0,'Input - Building Method'!D13:E13,IF('Input - Space Method'!D13:E13>0,'Input - Space Method'!D13:E13,\"\"))","v":""},null,"Phone",{"$f":"IF('Input - Building Method'!G13>0,'Input - Building Method'!G13,IF('Input - Space Method'!H13>0,'Input - Space Method'!H13,\"\"))","v":""},"Input Date"]
[null,null,"ZIP",{"$f":"IF('Input - Building Method'!D14:E14>0,'Input - Building Method'!D14:E14,IF('Input - Space Method'!D14:E14>0,'Input - Space Method'!D14:E14,\"\"))","v":""},null,"Email",{"$f":"IF('Input - Building Method'!G14>0,'Input - Building Method'!G14,IF('Input - Space Method'!H14>0,'Input - Space Method'!H14,\"\"))","v":""}]
[]
[null,"Input Cells"]
[null,null,"Data input allowed in shaded cells only.",null,null,null,null,null,null,null,"*If print button malfunctions, "]
[null,null,null,null,null,null,null,null,null,null,"select printer settings manually from print menu"]
[null,null,null,"Controls Installed",null,null,null,null,null,null,null,null,"Savings",null,"Incentive",null,"Total Wattage","Qualification"]
[null,"Line Item","Location","Controls Included","Control Type","Quantity of Controls ","Device Category of Controlled Fixtures","Device Code of Controlled Fixtures","Device Description","Annual Operating Hours w/o Control Installed","Hours Reduced by Controls","Quantity of Devices Controlled","Total kWh Saved","Summer Coincident Peak kW Saved","Control Incentive","Control Count",null,"Controls Qualify?"]
[null,"Ex.","Stockroom","80A",{"$f":"IF(D21=\"\",\"\",IF(D21=\"None\",\"None\",INDEX('Lighting Controls Summary'!$D$19:$D$22,MATCH(D21,'Lighting Controls Summary'!$C$19:$C$22,0),1)))","v":"Occupancy Control: Wall Switch Replacement"},1,"4’ HPT8 Retrofit: 1-2 Lamps","2F32SSE",{"$f":"IF(H21=\"\",\"\",VLOOKUP(H21,'Wattage Table'!$D:$E,2,0))","v":" 2L4' T8/ELIG  "},5000,{"$f":"IF(OR(D21=\"\",J21=\"\"),0,J21*0.25)","v":1250},1,{"$f":"IF(OR(H21=\"\",R21=\"No\"),0,(((VLOOKUP(H21,'Wattage Table'!$D:$F,3,0)*J21)-(VLOOKUP(H21,'Wattage Table'!$D:$F,3,0)*(J21-K21)))*L21)/1000)","v":68.75},{"$f":"IF(OR(H21=\"\",R21=\"No\"),0,(VLOOKUP(H21,'Wattage Table'!$D:$F,3,0)*L21)/1000*0.25)","v":1.375E-2},{"$f":"IF(OR(D21=\"None\",M21<=0,N21<=0,D21=\"\",H21=\"\",R21=\"No\"),0,IF(OR(D21=\"80B\",D21=\"80E\"),F21*35,IF(OR(D21=\"80A\",D21=\"80C\"),F21*15,0)))","v":15},{"$f":"IF(O21<=0,0,F21)","v":1},{"$f":"IF(ISERROR(IF(H21=\"-\",\"-\",INDEX('Wattage Table'!$F$23:$F$451,MATCH(H21,'Wattage Table'!$D$23:$D$451,0)))*$L21),\" \",IF(H21=\"-\",\"-\",INDEX('Wattage Table'!$F$23:$F$451,MATCH(H21,'Wattage Table'!$D$23:$D$451,0)))*$L21)","v":55},{"$f":"IF(D21=\"\",\"\",IF(OR(D21=\"None\",D21=\"\",H21=\"\"),\"No\",IF(VLOOKUP(H21,'Wattage Table'!$D:$F,3,0)*L21/F21<=VLOOKUP(D21,Validation!$O$7:$Q$9,3,0),\"No\",\"Yes\")))","v":"Yes"}]
[null,1,null,null,{"$f":"IF(D22=\"\",\"\",IF(D22=\"None\",\"None\",INDEX('Lighting Controls Summary'!$D$19:$D$22,MATCH(D22,'Lighting Controls Summary'!$C$19:$C$22,0),1)))","v":""},null,null,null,{"$f":"IF(H22=\"\",\"\",VLOOKUP(H22,'Wattage Table'!$D:$E,2,0))","v":""},null,{"$f":"IF(OR(D22=\"\",J22=\"\"),0,J22*0.25)","v":0},null,{"$f":"IF(OR(H22=\"\",R22=\"No\"),0,(((VLOOKUP(H22,'Wattage Table'!$D:$F,3,0)*J22)-(VLOOKUP(H22,'Wattage Table'!$D:$F,3,0)*(J22-K22)))*L22)/1000)","v":0},{"$f":"IF(OR(H22=\"\",R22=\"No\"),0,(VLOOKUP(H22,'Wattage Table'!$D:$F,3,0)*L22)/1000*0.25)","v":0},{"$f":"IF(OR(D22=\"None\",M22<=0,N22<=0,D22=\"\",H22=\"\",R22=\"No\"),0,IF(OR(D22=\"80B\",D22=\"80E\"),F22*35,IF(OR(D22=\"80A\",D22=\"80C\"),F22*15,0)))","v":0},{"$f":"IF(O22<=0,0,F22)","v":0},{"$f":"IF(ISERROR(IF(H22=\"-\",\"-\",INDEX('Wattage Table'!$F$23:$F$451,MATCH(H22,'Wattage Table'!$D$23:$D$451,0)))*$L22),\" \",IF(H22=\"-\",\"-\",INDEX('Wattage Table'!$F$23:$F$451,MATCH(H22,'Wattage Table'!$D$23:$D$451,0)))*$L22)","v":" "},{"$f":"IF(D22=\"\",\"\",IF(OR(D22=\"None\",D22=\"\",H22=\"\"),\"No\",IF(VLOOKUP(H22,'Wattage Table'!$D:$F,3,0)*L22/F22<=VLOOKUP(D22,Validation!$O$7:$Q$9,3,0),\"No\",\"Yes\")))","v":""}]
[null,2,null,null,{"$f":"IF(D23=\"\",\"\",IF(D23=\"None\",\"None\",INDEX('Lighting Controls Summary'!$D$19:$D$22,MATCH(D23,'Lighting Controls Summary'!$C$19:$C$22,0),1)))","v":""},null,null,null,{"$f":"IF(H23=\"\",\"\",VLOOKUP(H23,'Wattage Table'!$D:$E,2,0))","v":""},null,0,null,{"$f":"IF(OR(H23=\"\",R23=\"No\"),0,(((VLOOKUP(H23,'Wattage Table'!$D:$F,3,0)*J23)-(VLOOKUP(H23,'Wattage Table'!$D:$F,3,0)*(J23-K23)))*L23)/1000)","v":0},{"$f":"IF(OR(H23=\"\",R23=\"No\"),0,(VLOOKUP(H23,'Wattage Table'!$D:$F,3,0)*L23)/1000*0.25)","v":0},{"$f":"IF(OR(D23=\"None\",M23<=0,N23<=0,D23=\"\",H23=\"\",R23=\"No\"),0,IF(OR(D23=\"80B\",D23=\"80E\"),F23*35,IF(OR(D23=\"80A\",D23=\"80C\"),F23*15,0)))","v":0},0,{"$f":"IF(ISERROR(IF(H23=\"-\",\"-\",INDEX('Wattage Table'!$F$23:$F$451,MATCH(H23,'Wattage Table'!$D$23:$D$451,0)))*$L23),\" \",IF(H23=\"-\",\"-\",INDEX('Wattage Table'!$F$23:$F$451,MATCH(H23,'Wattage Table'!$D$23:$D$451,0)))*$L23)","v":" "},{"$f":"IF(D23=\"\",\"\",IF(OR(D23=\"None\",D23=\"\",H23=\"\"),\"No\",IF(VLOOKUP(H23,'Wattage Table'!$D:$F,3,0)*L23/F23<=VLOOKUP(D23,Validation!$O$7:$Q$9,3,0),\"No\",\"Yes\")))","v":""}]
[null,3,null,null,{"$f":"IF(D24=\"\",\"\",IF(D24=\"None\",\"None\",INDEX('Lighting Controls Summary'!$D$19:$D$22,MATCH(D24,'Lighting Controls Summary'!$C$19:$C$22,0),1)))","v":""},null,null,null,{"$f":"IF(H24=\"\",\"\",VLOOKUP(H24,'Wattage Table'!$D:$E,2,0))","v":""},null,0,null,{"$f":"IF(OR(H24=\"\",R24=\"No\"),0,(((VLOOKUP(H24,'Wattage Table'!$D:$F,3,0)*J24)-(VLOOKUP(H24,'Wattage Table'!$D:$F,3,0)*(J24-K24)))*L24)/1000)","v":0},{"$f":"IF(OR(H24=\"\",R24=\"No\"),0,(VLOOKUP(H24,'Wattage Table'!$D:$F,3,0)*L24)/1000*0.25)","v":0},0,0,{"$f":"IF(ISERROR(IF(H24=\"-\",\"-\",INDEX('Wattage Table'!$F$23:$F$451,MATCH(H24,'Wattage Table'!$D$23:$D$451,0)))*$L24),\" \",IF(H24=\"-\",\"-\",INDEX('Wattage Table'!$F$23:$F$451,MATCH(H24,'Wattage Table'!$D$23:$D$451,0)))*$L24)","v":" "},{"$f":"IF(D24=\"\",\"\",IF(OR(D24=\"None\",D24=\"\",H24=\"\"),\"No\",IF(VLOOKUP(H24,'Wattage Table'!$D:$F,3,0)*L24/F24<=VLOOKUP(D24,Validation!$O$7:$Q$9,3,0),\"No\",\"Yes\")))","v":""}]
[null,4,null,null,{"$f":"IF(D25=\"\",\"\",IF(D25=\"None\",\"None\",INDEX('Lighting Controls Summary'!$D$19:$D$22,MATCH(D25,'Lighting Controls Summary'!$C$19:$C$22,0),1)))","v":""},null,null,null,{"$f":"IF(H25=\"\",\"\",VLOOKUP(H25,'Wattage Table'!$D:$E,2,0))","v":""},null,0,null,{"$f":"IF(OR(H25=\"\",R25=\"No\"),0,(((VLOOKUP(H25,'Wattage Table'!$D:$F,3,0)*J25)-(VLOOKUP(H25,'Wattage Table'!$D:$F,3,0)*(J25-K25)))*L25)/1000)","v":0},{"$f":"IF(OR(H25=\"\",R25=\"No\"),0,(VLOOKUP(H25,'Wattage Table'!$D:$F,3,0)*L25)/1000*0.25)","v":0},0,0,{"$f":"IF(ISERROR(IF(H25=\"-\",\"-\",INDEX('Wattage Table'!$F$23:$F$451,MATCH(H25,'Wattage Table'!$D$23:$D$451,0)))*$L25),\" \",IF(H25=\"-\",\"-\",INDEX('Wattage Table'!$F$23:$F$451,MATCH(H25,'Wattage Table'!$D$23:$D$451,0)))*$L25)","v":" "},{"$f":"IF(D25=\"\",\"\",IF(OR(D25=\"None\",D25=\"\",H25=\"\"),\"No\",IF(VLOOKUP(H25,'Wattage Table'!$D:$F,3,0)*L25/F25<=VLOOKUP(D25,Validation!$O$7:$Q$9,3,0),\"No\",\"Yes\")))","v":""}]
[null,5,null,null,{"$f":"IF(D26=\"\",\"\",IF(D26=\"None\",\"None\",INDEX('Lighting Controls Summary'!$D$19:$D$22,MATCH(D26,'Lighting Controls Summary'!$C$19:$C$22,0),1)))","v":""},null,null,null,{"$f":"IF(H26=\"\",\"\",VLOOKUP(H26,'Wattage Table'!$D:$E,2,0))","v":""},null,0,null,{"$f":"IF(OR(H26=\"\",R26=\"No\"),0,(((VLOOKUP(H26,'Wattage Table'!$D:$F,3,0)*J26)-(VLOOKUP(H26,'Wattage Table'!$D:$F,3,0)*(J26-K26)))*L26)/1000)","v":0},{"$f":"IF(OR(H26=\"\",R26=\"No\"),0,(VLOOKUP(H26,'Wattage Table'!$D:$F,3,0)*L26)/1000*0.25)","v":0},0,0,{"$f":"IF(ISERROR(IF(H26=\"-\",\"-\",INDEX('Wattage Table'!$F$23:$F$451,MATCH(H26,'Wattage Table'!$D$23:$D$451,0)))*$L26),\" \",IF(H26=\"-\",\"-\",INDEX('Wattage Table'!$F$23:$F$451,MATCH(H26,'Wattage Table'!$D$23:$D$451,0)))*$L26)","v":" "},{"$f":"IF(D26=\"\",\"\",IF(OR(D26=\"None\",D26=\"\",H26=\"\"),\"No\",IF(VLOOKUP(H26,'Wattage Table'!$D:$F,3,0)*L26/F26<=VLOOKUP(D26,Validation!$O$7:$Q$9,3,0),\"No\",\"Yes\")))","v":""}]
[null,6,null,null,{"$f":"IF(D27=\"\",\"\",IF(D27=\"None\",\"None\",INDEX('Lighting Controls Summary'!$D$19:$D$22,MATCH(D27,'Lighting Controls Summary'!$C$19:$C$22,0),1)))","v":""},null,null,null,{"$f":"IF(H27=\"\",\"\",VLOOKUP(H27,'Wattage Table'!$D:$E,2,0))","v":""},null,0,null,{"$f":"IF(OR(H27=\"\",R27=\"No\"),0,(((VLOOKUP(H27,'Wattage Table'!$D:$F,3,0)*J27)-(VLOOKUP(H27,'Wattage Table'!$D:$F,3,0)*(J27-K27)))*L27)/1000)","v":0},{"$f":"IF(OR(H27=\"\",R27=\"No\"),0,(VLOOKUP(H27,'Wattage Table'!$D:$F,3,0)*L27)/1000*0.25)","v":0},0,0,{"$f":"IF(ISERROR(IF(H27=\"-\",\"-\",INDEX('Wattage Table'!$F$23:$F$451,MATCH(H27,'Wattage Table'!$D$23:$D$451,0)))*$L27),\" \",IF(H27=\"-\",\"-\",INDEX('Wattage Table'!$F$23:$F$451,MATCH(H27,'Wattage Table'!$D$23:$D$451,0)))*$L27)","v":" "},{"$f":"IF(D27=\"\",\"\",IF(OR(D27=\"None\",D27=\"\",H27=\"\"),\"No\",IF(VLOOKUP(H27,'Wattage Table'!$D:$F,3,0)*L27/F27<=VLOOKUP(D27,Validation!$O$7:$Q$9,3,0),\"No\",\"Yes\")))","v":""}]
[null,7,null,null,{"$f":"IF(D28=\"\",\"\",IF(D28=\"None\",\"None\",INDEX('Lighting Controls Summary'!$D$19:$D$22,MATCH(D28,'Lighting Controls Summary'!$C$19:$C$22,0),1)))","v":""},null,null,null,{"$f":"IF(H28=\"\",\"\",VLOOKUP(H28,'Wattage Table'!$D:$E,2,0))","v":""},null,0,null,{"$f":"IF(OR(H28=\"\",R28=\"No\"),0,(((VLOOKUP(H28,'Wattage Table'!$D:$F,3,0)*J28)-(VLOOKUP(H28,'Wattage Table'!$D:$F,3,0)*(J28-K28)))*L28)/1000)","v":0},{"$f":"IF(OR(H28=\"\",R28=\"No\"),0,(VLOOKUP(H28,'Wattage Table'!$D:$F,3,0)*L28)/1000*0.25)","v":0},0,0,{"$f":"IF(ISERROR(IF(H28=\"-\",\"-\",INDEX('Wattage Table'!$F$23:$F$451,MATCH(H28,'Wattage Table'!$D$23:$D$451,0)))*$L28),\" \",IF(H28=\"-\",\"-\",INDEX('Wattage Table'!$F$23:$F$451,MATCH(H28,'Wattage Table'!$D$23:$D$451,0)))*$L28)","v":" "},{"$f":"IF(D28=\"\",\"\",IF(OR(D28=\"None\",D28=\"\",H28=\"\"),\"No\",IF(VLOOKUP(H28,'Wattage Table'!$D:$F,3,0)*L28/F28<=VLOOKUP(D28,Validation!$O$7:$Q$9,3,0),\"No\",\"Yes\")))","v":""}]
[null,8,null,null,{"$f":"IF(D29=\"\",\"\",IF(D29=\"None\",\"None\",INDEX('Lighting Controls Summary'!$D$19:$D$22,MATCH(D29,'Lighting Controls Summary'!$C$19:$C$22,0),1)))","v":""},null,null,null,{"$f":"IF(H29=\"\",\"\",VLOOKUP(H29,'Wattage Table'!$D:$E,2,0))","v":""},null,0,null,{"$f":"IF(OR(H29=\"\",R29=\"No\"),0,(((VLOOKUP(H29,'Wattage Table'!$D:$F,3,0)*J29)-(VLOOKUP(H29,'Wattage Table'!$D:$F,3,0)*(J29-K29)))*L29)/1000)","v":0},{"$f":"IF(OR(H29=\"\",R29=\"No\"),0,(VLOOKUP(H29,'Wattage Table'!$D:$F,3,0)*L29)/1000*0.25)","v":0},0,0,{"$f":"IF(ISERROR(IF(H29=\"-\",\"-\",INDEX('Wattage Table'!$F$23:$F$451,MATCH(H29,'Wattage Table'!$D$23:$D$451,0)))*$L29),\" \",IF(H29=\"-\",\"-\",INDEX('Wattage Table'!$F$23:$F$451,MATCH(H29,'Wattage Table'!$D$23:$D$451,0)))*$L29)","v":" "},{"$f":"IF(D29=\"\",\"\",IF(OR(D29=\"None\",D29=\"\",H29=\"\"),\"No\",IF(VLOOKUP(H29,'Wattage Table'!$D:$F,3,0)*L29/F29<=VLOOKUP(D29,Validation!$O$7:$Q$9,3,0),\"No\",\"Yes\")))","v":""}]
[null,9,null,null,{"$f":"IF(D30=\"\",\"\",IF(D30=\"None\",\"None\",INDEX('Lighting Controls Summary'!$D$19:$D$22,MATCH(D30,'Lighting Controls Summary'!$C$19:$C$22,0),1)))","v":""},null,null,null,{"$f":"IF(H30=\"\",\"\",VLOOKUP(H30,'Wattage Table'!$D:$E,2,0))","v":""},null,0,null,{"$f":"IF(OR(H30=\"\",R30=\"No\"),0,(((VLOOKUP(H30,'Wattage Table'!$D:$F,3,0)*J30)-(VLOOKUP(H30,'Wattage Table'!$D:$F,3,0)*(J30-K30)))*L30)/1000)","v":0},{"$f":"IF(OR(H30=\"\",R30=\"No\"),0,(VLOOKUP(H30,'Wattage Table'!$D:$F,3,0)*L30)/1000*0.25)","v":0},0,0,{"$f":"IF(ISERROR(IF(H30=\"-\",\"-\",INDEX('Wattage Table'!$F$23:$F$451,MATCH(H30,'Wattage Table'!$D$23:$D$451,0)))*$L30),\" \",IF(H30=\"-\",\"-\",INDEX('Wattage Table'!$F$23:$F$451,MATCH(H30,'Wattage Table'!$D$23:$D$451,0)))*$L30)","v":" "},{"$f":"IF(D30=\"\",\"\",IF(OR(D30=\"None\",D30=\"\",H30=\"\"),\"No\",IF(VLOOKUP(H30,'Wattage Table'!$D:$F,3,0)*L30/F30<=VLOOKUP(D30,Validation!$O$7:$Q$9,3,0),\"No\",\"Yes\")))","v":""}]
[null,10,null,null,{"$f":"IF(D31=\"\",\"\",IF(D31=\"None\",\"None\",INDEX('Lighting Controls Summary'!$D$19:$D$22,MATCH(D31,'Lighting Controls Summary'!$C$19:$C$22,0),1)))","v":""},null,null,null,{"$f":"IF(H31=\"\",\"\",VLOOKUP(H31,'Wattage Table'!$D:$E,2,0))","v":""},null,0,null,{"$f":"IF(OR(H31=\"\",R31=\"No\"),0,(((VLOOKUP(H31,'Wattage Table'!$D:$F,3,0)*J31)-(VLOOKUP(H31,'Wattage Table'!$D:$F,3,0)*(J31-K31)))*L31)/1000)","v":0},{"$f":"IF(OR(H31=\"\",R31=\"No\"),0,(VLOOKUP(H31,'Wattage Table'!$D:$F,3,0)*L31)/1000*0.25)","v":0},0,0,{"$f":"IF(ISERROR(IF(H31=\"-\",\"-\",INDEX('Wattage Table'!$F$23:$F$451,MATCH(H31,'Wattage Table'!$D$23:$D$451,0)))*$L31),\" \",IF(H31=\"-\",\"-\",INDEX('Wattage Table'!$F$23:$F$451,MATCH(H31,'Wattage Table'!$D$23:$D$451,0)))*$L31)","v":" "},{"$f":"IF(D31=\"\",\"\",IF(OR(D31=\"None\",D31=\"\",H31=\"\"),\"No\",IF(VLOOKUP(H31,'Wattage Table'!$D:$F,3,0)*L31/F31<=VLOOKUP(D31,Validation!$O$7:$Q$9,3,0),\"No\",\"Yes\")))","v":""}]
[null,11,null,null,{"$f":"IF(D32=\"\",\"\",IF(D32=\"None\",\"None\",INDEX('Lighting Controls Summary'!$D$19:$D$22,MATCH(D32,'Lighting Controls Summary'!$C$19:$C$22,0),1)))","v":""},null,null,null,{"$f":"IF(H32=\"\",\"\",VLOOKUP(H32,'Wattage Table'!$D:$E,2,0))","v":""},null,0,null,{"$f":"IF(OR(H32=\"\",R32=\"No\"),0,(((VLOOKUP(H32,'Wattage Table'!$D:$F,3,0)*J32)-(VLOOKUP(H32,'Wattage Table'!$D:$F,3,0)*(J32-K32)))*L32)/1000)","v":0},{"$f":"IF(OR(H32=\"\",R32=\"No\"),0,(VLOOKUP(H32,'Wattage Table'!$D:$F,3,0)*L32)/1000*0.25)","v":0},0,0,{"$f":"IF(ISERROR(IF(H32=\"-\",\"-\",INDEX('Wattage Table'!$F$23:$F$451,MATCH(H32,'Wattage Table'!$D$23:$D$451,0)))*$L32),\" \",IF(H32=\"-\",\"-\",INDEX('Wattage Table'!$F$23:$F$451,MATCH(H32,'Wattage Table'!$D$23:$D$451,0)))*$L32)","v":" "},{"$f":"IF(D32=\"\",\"\",IF(OR(D32=\"None\",D32=\"\",H32=\"\"),\"No\",IF(VLOOKUP(H32,'Wattage Table'!$D:$F,3,0)*L32/F32<=VLOOKUP(D32,Validation!$O$7:$Q$9,3,0),\"No\",\"Yes\")))","v":""}]
[null,12,null,null,{"$f":"IF(D33=\"\",\"\",IF(D33=\"None\",\"None\",INDEX('Lighting Controls Summary'!$D$19:$D$22,MATCH(D33,'Lighting Controls Summary'!$C$19:$C$22,0),1)))","v":""},null,null,null,{"$f":"IF(H33=\"\",\"\",VLOOKUP(H33,'Wattage Table'!$D:$E,2,0))","v":""},null,0,null,{"$f":"IF(OR(H33=\"\",R33=\"No\"),0,(((VLOOKUP(H33,'Wattage Table'!$D:$F,3,0)*J33)-(VLOOKUP(H33,'Wattage Table'!$D:$F,3,0)*(J33-K33)))*L33)/1000)","v":0},{"$f":"IF(OR(H33=\"\",R33=\"No\"),0,(VLOOKUP(H33,'Wattage Table'!$D:$F,3,0)*L33)/1000*0.25)","v":0},0,0,{"$f":"IF(ISERROR(IF(H33=\"-\",\"-\",INDEX('Wattage Table'!$F$23:$F$451,MATCH(H33,'Wattage Table'!$D$23:$D$451,0)))*$L33),\" \",IF(H33=\"-\",\"-\",INDEX('Wattage Table'!$F$23:$F$451,MATCH(H33,'Wattage Table'!$D$23:$D$451,0)))*$L33)","v":" "},{"$f":"IF(D33=\"\",\"\",IF(OR(D33=\"None\",D33=\"\",H33=\"\"),\"No\",IF(VLOOKUP(H33,'Wattage Table'!$D:$F,3,0)*L33/F33<=VLOOKUP(D33,Validation!$O$7:$Q$9,3,0),\"No\",\"Yes\")))","v":""}]
[null,13,null,null,{"$f":"IF(D34=\"\",\"\",IF(D34=\"None\",\"None\",INDEX('Lighting Controls Summary'!$D$19:$D$22,MATCH(D34,'Lighting Controls Summary'!$C$19:$C$22,0),1)))","v":""},null,null,null,{"$f":"IF(H34=\"\",\"\",VLOOKUP(H34,'Wattage Table'!$D:$E,2,0))","v":""},null,0,null,{"$f":"IF(OR(H34=\"\",R34=\"No\"),0,(((VLOOKUP(H34,'Wattage Table'!$D:$F,3,0)*J34)-(VLOOKUP(H34,'Wattage Table'!$D:$F,3,0)*(J34-K34)))*L34)/1000)","v":0},{"$f":"IF(OR(H34=\"\",R34=\"No\"),0,(VLOOKUP(H34,'Wattage Table'!$D:$F,3,0)*L34)/1000*0.25)","v":0},0,0,{"$f":"IF(ISERROR(IF(H34=\"-\",\"-\",INDEX('Wattage Table'!$F$23:$F$451,MATCH(H34,'Wattage Table'!$D$23:$D$451,0)))*$L34),\" \",IF(H34=\"-\",\"-\",INDEX('Wattage Table'!$F$23:$F$451,MATCH(H34,'Wattage Table'!$D$23:$D$451,0)))*$L34)","v":" "},{"$f":"IF(D34=\"\",\"\",IF(OR(D34=\"None\",D34=\"\",H34=\"\"),\"No\",IF(VLOOKUP(H34,'Wattage Table'!$D:$F,3,0)*L34/F34<=VLOOKUP(D34,Validation!$O$7:$Q$9,3,0),\"No\",\"Yes\")))","v":""}]
[null,14,null,null,{"$f":"IF(D35=\"\",\"\",IF(D35=\"None\",\"None\",INDEX('Lighting Controls Summary'!$D$19:$D$22,MATCH(D35,'Lighting Controls Summary'!$C$19:$C$22,0),1)))","v":""},null,null,null,{"$f":"IF(H35=\"\",\"\",VLOOKUP(H35,'Wattage Table'!$D:$E,2,0))","v":""},null,0,null,{"$f":"IF(OR(H35=\"\",R35=\"No\"),0,(((VLOOKUP(H35,'Wattage Table'!$D:$F,3,0)*J35)-(VLOOKUP(H35,'Wattage Table'!$D:$F,3,0)*(J35-K35)))*L35)/1000)","v":0},{"$f":"IF(OR(H35=\"\",R35=\"No\"),0,(VLOOKUP(H35,'Wattage Table'!$D:$F,3,0)*L35)/1000*0.25)","v":0},0,0,{"$f":"IF(ISERROR(IF(H35=\"-\",\"-\",INDEX('Wattage Table'!$F$23:$F$451,MATCH(H35,'Wattage Table'!$D$23:$D$451,0)))*$L35),\" \",IF(H35=\"-\",\"-\",INDEX('Wattage Table'!$F$23:$F$451,MATCH(H35,'Wattage Table'!$D$23:$D$451,0)))*$L35)","v":" "},{"$f":"IF(D35=\"\",\"\",IF(OR(D35=\"None\",D35=\"\",H35=\"\"),\"No\",IF(VLOOKUP(H35,'Wattage Table'!$D:$F,3,0)*L35/F35<=VLOOKUP(D35,Validation!$O$7:$Q$9,3,0),\"No\",\"Yes\")))","v":""}]
[null,15,null,null,{"$f":"IF(D36=\"\",\"\",IF(D36=\"None\",\"None\",INDEX('Lighting Controls Summary'!$D$19:$D$22,MATCH(D36,'Lighting Controls Summary'!$C$19:$C$22,0),1)))","v":""},null,null,null,{"$f":"IF(H36=\"\",\"\",VLOOKUP(H36,'Wattage Table'!$D:$E,2,0))","v":""},null,0,null,{"$f":"IF(OR(H36=\"\",R36=\"No\"),0,(((VLOOKUP(H36,'Wattage Table'!$D:$F,3,0)*J36)-(VLOOKUP(H36,'Wattage Table'!$D:$F,3,0)*(J36-K36)))*L36)/1000)","v":0},{"$f":"IF(OR(H36=\"\",R36=\"No\"),0,(VLOOKUP(H36,'Wattage Table'!$D:$F,3,0)*L36)/1000*0.25)","v":0},0,0,{"$f":"IF(ISERROR(IF(H36=\"-\",\"-\",INDEX('Wattage Table'!$F$23:$F$451,MATCH(H36,'Wattage Table'!$D$23:$D$451,0)))*$L36),\" \",IF(H36=\"-\",\"-\",INDEX('Wattage Table'!$F$23:$F$451,MATCH(H36,'Wattage Table'!$D$23:$D$451,0)))*$L36)","v":" "},{"$f":"IF(D36=\"\",\"\",IF(OR(D36=\"None\",D36=\"\",H36=\"\"),\"No\",IF(VLOOKUP(H36,'Wattage Table'!$D:$F,3,0)*L36/F36<=VLOOKUP(D36,Validation!$O$7:$Q$9,3,0),\"No\",\"Yes\")))","v":""}]
[null,16,null,null,{"$f":"IF(D37=\"\",\"\",IF(D37=\"None\",\"None\",INDEX('Lighting Controls Summary'!$D$19:$D$22,MATCH(D37,'Lighting Controls Summary'!$C$19:$C$22,0),1)))","v":""},null,null,null,{"$f":"IF(H37=\"\",\"\",VLOOKUP(H37,'Wattage Table'!$D:$E,2,0))","v":""},null,0,null,{"$f":"IF(OR(H37=\"\",R37=\"No\"),0,(((VLOOKUP(H37,'Wattage Table'!$D:$F,3,0)*J37)-(VLOOKUP(H37,'Wattage Table'!$D:$F,3,0)*(J37-K37)))*L37)/1000)","v":0},{"$f":"IF(OR(H37=\"\",R37=\"No\"),0,(VLOOKUP(H37,'Wattage Table'!$D:$F,3,0)*L37)/1000*0.25)","v":0},0,0,{"$f":"IF(ISERROR(IF(H37=\"-\",\"-\",INDEX('Wattage Table'!$F$23:$F$451,MATCH(H37,'Wattage Table'!$D$23:$D$451,0)))*$L37),\" \",IF(H37=\"-\",\"-\",INDEX('Wattage Table'!$F$23:$F$451,MATCH(H37,'Wattage Table'!$D$23:$D$451,0)))*$L37)","v":" "},{"$f":"IF(D37=\"\",\"\",IF(OR(D37=\"None\",D37=\"\",H37=\"\"),\"No\",IF(VLOOKUP(H37,'Wattage Table'!$D:$F,3,0)*L37/F37<=VLOOKUP(D37,Validation!$O$7:$Q$9,3,0),\"No\",\"Yes\")))","v":""}]
[null,17,null,null,{"$f":"IF(D38=\"\",\"\",IF(D38=\"None\",\"None\",INDEX('Lighting Controls Summary'!$D$19:$D$22,MATCH(D38,'Lighting Controls Summary'!$C$19:$C$22,0),1)))","v":""},null,null,null,{"$f":"IF(H38=\"\",\"\",VLOOKUP(H38,'Wattage Table'!$D:$E,2,0))","v":""},null,0,null,{"$f":"IF(OR(H38=\"\",R38=\"No\"),0,(((VLOOKUP(H38,'Wattage Table'!$D:$F,3,0)*J38)-(VLOOKUP(H38,'Wattage Table'!$D:$F,3,0)*(J38-K38)))*L38)/1000)","v":0},{"$f":"IF(OR(H38=\"\",R38=\"No\"),0,(VLOOKUP(H38,'Wattage Table'!$D:$F,3,0)*L38)/1000*0.25)","v":0},0,0,{"$f":"IF(ISERROR(IF(H38=\"-\",\"-\",INDEX('Wattage Table'!$F$23:$F$451,MATCH(H38,'Wattage Table'!$D$23:$D$451,0)))*$L38),\" \",IF(H38=\"-\",\"-\",INDEX('Wattage Table'!$F$23:$F$451,MATCH(H38,'Wattage Table'!$D$23:$D$451,0)))*$L38)","v":" "},{"$f":"IF(D38=\"\",\"\",IF(OR(D38=\"None\",D38=\"\",H38=\"\"),\"No\",IF(VLOOKUP(H38,'Wattage Table'!$D:$F,3,0)*L38/F38<=VLOOKUP(D38,Validation!$O$7:$Q$9,3,0),\"No\",\"Yes\")))","v":""}]
[null,18,null,null,{"$f":"IF(D39=\"\",\"\",IF(D39=\"None\",\"None\",INDEX('Lighting Controls Summary'!$D$19:$D$22,MATCH(D39,'Lighting Controls Summary'!$C$19:$C$22,0),1)))","v":""},null,null,null,{"$f":"IF(H39=\"\",\"\",VLOOKUP(H39,'Wattage Table'!$D:$E,2,0))","v":""},null,0,null,{"$f":"IF(OR(H39=\"\",R39=\"No\"),0,(((VLOOKUP(H39,'Wattage Table'!$D:$F,3,0)*J39)-(VLOOKUP(H39,'Wattage Table'!$D:$F,3,0)*(J39-K39)))*L39)/1000)","v":0},{"$f":"IF(OR(H39=\"\",R39=\"No\"),0,(VLOOKUP(H39,'Wattage Table'!$D:$F,3,0)*L39)/1000*0.25)","v":0},0,0,{"$f":"IF(ISERROR(IF(H39=\"-\",\"-\",INDEX('Wattage Table'!$F$23:$F$451,MATCH(H39,'Wattage Table'!$D$23:$D$451,0)))*$L39),\" \",IF(H39=\"-\",\"-\",INDEX('Wattage Table'!$F$23:$F$451,MATCH(H39,'Wattage Table'!$D$23:$D$451,0)))*$L39)","v":" "},{"$f":"IF(D39=\"\",\"\",IF(OR(D39=\"None\",D39=\"\",H39=\"\"),\"No\",IF(VLOOKUP(H39,'Wattage Table'!$D:$F,3,0)*L39/F39<=VLOOKUP(D39,Validation!$O$7:$Q$9,3,0),\"No\",\"Yes\")))","v":""}]
[null,19,null,null,{"$f":"IF(D40=\"\",\"\",IF(D40=\"None\",\"None\",INDEX('Lighting Controls Summary'!$D$19:$D$22,MATCH(D40,'Lighting Controls Summary'!$C$19:$C$22,0),1)))","v":""},null,null,null,{"$f":"IF(H40=\"\",\"\",VLOOKUP(H40,'Wattage Table'!$D:$E,2,0))","v":""},null,0,null,{"$f":"IF(OR(H40=\"\",R40=\"No\"),0,(((VLOOKUP(H40,'Wattage Table'!$D:$F,3,0)*J40)-(VLOOKUP(H40,'Wattage Table'!$D:$F,3,0)*(J40-K40)))*L40)/1000)","v":0},{"$f":"IF(OR(H40=\"\",R40=\"No\"),0,(VLOOKUP(H40,'Wattage Table'!$D:$F,3,0)*L40)/1000*0.25)","v":0},0,0,{"$f":"IF(ISERROR(IF(H40=\"-\",\"-\",INDEX('Wattage Table'!$F$23:$F$451,MATCH(H40,'Wattage Table'!$D$23:$D$451,0)))*$L40),\" \",IF(H40=\"-\",\"-\",INDEX('Wattage Table'!$F$23:$F$451,MATCH(H40,'Wattage Table'!$D$23:$D$451,0)))*$L40)","v":" "},{"$f":"IF(D40=\"\",\"\",IF(OR(D40=\"None\",D40=\"\",H40=\"\"),\"No\",IF(VLOOKUP(H40,'Wattage Table'!$D:$F,3,0)*L40/F40<=VLOOKUP(D40,Validation!$O$7:$Q$9,3,0),\"No\",\"Yes\")))","v":""}]
[null,20,null,null,{"$f":"IF(D41=\"\",\"\",IF(D41=\"None\",\"None\",INDEX('Lighting Controls Summary'!$D$19:$D$22,MATCH(D41,'Lighting Controls Summary'!$C$19:$C$22,0),1)))","v":""},null,null,null,{"$f":"IF(H41=\"\",\"\",VLOOKUP(H41,'Wattage Table'!$D:$E,2,0))","v":""},null,0,null,{"$f":"IF(OR(H41=\"\",R41=\"No\"),0,(((VLOOKUP(H41,'Wattage Table'!$D:$F,3,0)*J41)-(VLOOKUP(H41,'Wattage Table'!$D:$F,3,0)*(J41-K41)))*L41)/1000)","v":0},{"$f":"IF(OR(H41=\"\",R41=\"No\"),0,(VLOOKUP(H41,'Wattage Table'!$D:$F,3,0)*L41)/1000*0.25)","v":0},0,0,{"$f":"IF(ISERROR(IF(H41=\"-\",\"-\",INDEX('Wattage Table'!$F$23:$F$451,MATCH(H41,'Wattage Table'!$D$23:$D$451,0)))*$L41),\" \",IF(H41=\"-\",\"-\",INDEX('Wattage Table'!$F$23:$F$451,MATCH(H41,'Wattage Table'!$D$23:$D$451,0)))*$L41)","v":" "},{"$f":"IF(D41=\"\",\"\",IF(OR(D41=\"None\",D41=\"\",H41=\"\"),\"No\",IF(VLOOKUP(H41,'Wattage Table'!$D:$F,3,0)*L41/F41<=VLOOKUP(D41,Validation!$O$7:$Q$9,3,0),\"No\",\"Yes\")))","v":""}]
[null,21,null,null,{"$f":"IF(D42=\"\",\"\",IF(D42=\"None\",\"None\",INDEX('Lighting Controls Summary'!$D$19:$D$22,MATCH(D42,'Lighting Controls Summary'!$C$19:$C$22,0),1)))","v":""},null,null,null,{"$f":"IF(H42=\"\",\"\",VLOOKUP(H42,'Wattage Table'!$D:$E,2,0))","v":""},null,0,null,{"$f":"IF(OR(H42=\"\",R42=\"No\"),0,(((VLOOKUP(H42,'Wattage Table'!$D:$F,3,0)*J42)-(VLOOKUP(H42,'Wattage Table'!$D:$F,3,0)*(J42-K42)))*L42)/1000)","v":0},{"$f":"IF(OR(H42=\"\",R42=\"No\"),0,(VLOOKUP(H42,'Wattage Table'!$D:$F,3,0)*L42)/1000*0.25)","v":0},0,0,{"$f":"IF(ISERROR(IF(H42=\"-\",\"-\",INDEX('Wattage Table'!$F$23:$F$451,MATCH(H42,'Wattage Table'!$D$23:$D$451,0)))*$L42),\" \",IF(H42=\"-\",\"-\",INDEX('Wattage Table'!$F$23:$F$451,MATCH(H42,'Wattage Table'!$D$23:$D$451,0)))*$L42)","v":" "},{"$f":"IF(D42=\"\",\"\",IF(OR(D42=\"None\",D42=\"\",H42=\"\"),\"No\",IF(VLOOKUP(H42,'Wattage Table'!$D:$F,3,0)*L42/F42<=VLOOKUP(D42,Validation!$O$7:$Q$9,3,0),\"No\",\"Yes\")))","v":""}]
[null,22,null,null,{"$f":"IF(D43=\"\",\"\",IF(D43=\"None\",\"None\",INDEX('Lighting Controls Summary'!$D$19:$D$22,MATCH(D43,'Lighting Controls Summary'!$C$19:$C$22,0),1)))","v":""},null,null,null,{"$f":"IF(H43=\"\",\"\",VLOOKUP(H43,'Wattage Table'!$D:$E,2,0))","v":""},null,0,null,{"$f":"IF(OR(H43=\"\",R43=\"No\"),0,(((VLOOKUP(H43,'Wattage Table'!$D:$F,3,0)*J43)-(VLOOKUP(H43,'Wattage Table'!$D:$F,3,0)*(J43-K43)))*L43)/1000)","v":0},{"$f":"IF(OR(H43=\"\",R43=\"No\"),0,(VLOOKUP(H43,'Wattage Table'!$D:$F,3,0)*L43)/1000*0.25)","v":0},0,0,{"$f":"IF(ISERROR(IF(H43=\"-\",\"-\",INDEX('Wattage Table'!$F$23:$F$451,MATCH(H43,'Wattage Table'!$D$23:$D$451,0)))*$L43),\" \",IF(H43=\"-\",\"-\",INDEX('Wattage Table'!$F$23:$F$451,MATCH(H43,'Wattage Table'!$D$23:$D$451,0)))*$L43)","v":" "},{"$f":"IF(D43=\"\",\"\",IF(OR(D43=\"None\",D43=\"\",H43=\"\"),\"No\",IF(VLOOKUP(H43,'Wattage Table'!$D:$F,3,0)*L43/F43<=VLOOKUP(D43,Validation!$O$7:$Q$9,3,0),\"No\",\"Yes\")))","v":""}]
[null,23,null,null,{"$f":"IF(D44=\"\",\"\",IF(D44=\"None\",\"None\",INDEX('Lighting Controls Summary'!$D$19:$D$22,MATCH(D44,'Lighting Controls Summary'!$C$19:$C$22,0),1)))","v":""},null,null,null,{"$f":"IF(H44=\"\",\"\",VLOOKUP(H44,'Wattage Table'!$D:$E,2,0))","v":""},null,0,null,{"$f":"IF(OR(H44=\"\",R44=\"No\"),0,(((VLOOKUP(H44,'Wattage Table'!$D:$F,3,0)*J44)-(VLOOKUP(H44,'Wattage Table'!$D:$F,3,0)*(J44-K44)))*L44)/1000)","v":0},{"$f":"IF(OR(H44=\"\",R44=\"No\"),0,(VLOOKUP(H44,'Wattage Table'!$D:$F,3,0)*L44)/1000*0.25)","v":0},0,0,{"$f":"IF(ISERROR(IF(H44=\"-\",\"-\",INDEX('Wattage Table'!$F$23:$F$451,MATCH(H44,'Wattage Table'!$D$23:$D$451,0)))*$L44),\" \",IF(H44=\"-\",\"-\",INDEX('Wattage Table'!$F$23:$F$451,MATCH(H44,'Wattage Table'!$D$23:$D$451,0)))*$L44)","v":" "},{"$f":"IF(D44=\"\",\"\",IF(OR(D44=\"None\",D44=\"\",H44=\"\"),\"No\",IF(VLOOKUP(H44,'Wattage Table'!$D:$F,3,0)*L44/F44<=VLOOKUP(D44,Validation!$O$7:$Q$9,3,0),\"No\",\"Yes\")))","v":""}]
[null,24,null,null,{"$f":"IF(D45=\"\",\"\",IF(D45=\"None\",\"None\",INDEX('Lighting Controls Summary'!$D$19:$D$22,MATCH(D45,'Lighting Controls Summary'!$C$19:$C$22,0),1)))","v":""},null,null,null,{"$f":"IF(H45=\"\",\"\",VLOOKUP(H45,'Wattage Table'!$D:$E,2,0))","v":""},null,0,null,{"$f":"IF(OR(H45=\"\",R45=\"No\"),0,(((VLOOKUP(H45,'Wattage Table'!$D:$F,3,0)*J45)-(VLOOKUP(H45,'Wattage Table'!$D:$F,3,0)*(J45-K45)))*L45)/1000)","v":0},{"$f":"IF(OR(H45=\"\",R45=\"No\"),0,(VLOOKUP(H45,'Wattage Table'!$D:$F,3,0)*L45)/1000*0.25)","v":0},0,0,{"$f":"IF(ISERROR(IF(H45=\"-\",\"-\",INDEX('Wattage Table'!$F$23:$F$451,MATCH(H45,'Wattage Table'!$D$23:$D$451,0)))*$L45),\" \",IF(H45=\"-\",\"-\",INDEX('Wattage Table'!$F$23:$F$451,MATCH(H45,'Wattage Table'!$D$23:$D$451,0)))*$L45)","v":" "},{"$f":"IF(D45=\"\",\"\",IF(OR(D45=\"None\",D45=\"\",H45=\"\"),\"No\",IF(VLOOKUP(H45,'Wattage Table'!$D:$F,3,0)*L45/F45<=VLOOKUP(D45,Validation!$O$7:$Q$9,3,0),\"No\",\"Yes\")))","v":""}]
[null,25,null,null,{"$f":"IF(D46=\"\",\"\",IF(D46=\"None\",\"None\",INDEX('Lighting Controls Summary'!$D$19:$D$22,MATCH(D46,'Lighting Controls Summary'!$C$19:$C$22,0),1)))","v":""},null,null,null,{"$f":"IF(H46=\"\",\"\",VLOOKUP(H46,'Wattage Table'!$D:$E,2,0))","v":""},null,0,null,{"$f":"IF(OR(H46=\"\",R46=\"No\"),0,(((VLOOKUP(H46,'Wattage Table'!$D:$F,3,0)*J46)-(VLOOKUP(H46,'Wattage Table'!$D:$F,3,0)*(J46-K46)))*L46)/1000)","v":0},{"$f":"IF(OR(H46=\"\",R46=\"No\"),0,(VLOOKUP(H46,'Wattage Table'!$D:$F,3,0)*L46)/1000*0.25)","v":0},0,0,{"$f":"IF(ISERROR(IF(H46=\"-\",\"-\",INDEX('Wattage Table'!$F$23:$F$451,MATCH(H46,'Wattage Table'!$D$23:$D$451,0)))*$L46),\" \",IF(H46=\"-\",\"-\",INDEX('Wattage Table'!$F$23:$F$451,MATCH(H46,'Wattage Table'!$D$23:$D$451,0)))*$L46)","v":" "},{"$f":"IF(D46=\"\",\"\",IF(OR(D46=\"None\",D46=\"\",H46=\"\"),\"No\",IF(VLOOKUP(H46,'Wattage Table'!$D:$F,3,0)*L46/F46<=VLOOKUP(D46,Validation!$O$7:$Q$9,3,0),\"No\",\"Yes\")))","v":""}]
[null,26,null,null,{"$f":"IF(D47=\"\",\"\",IF(D47=\"None\",\"None\",INDEX('Lighting Controls Summary'!$D$19:$D$22,MATCH(D47,'Lighting Controls Summary'!$C$19:$C$22,0),1)))","v":""},null,null,null,{"$f":"IF(H47=\"\",\"\",VLOOKUP(H47,'Wattage Table'!$D:$E,2,0))","v":""},null,0,null,{"$f":"IF(OR(H47=\"\",R47=\"No\"),0,(((VLOOKUP(H47,'Wattage Table'!$D:$F,3,0)*J47)-(VLOOKUP(H47,'Wattage Table'!$D:$F,3,0)*(J47-K47)))*L47)/1000)","v":0},{"$f":"IF(OR(H47=\"\",R47=\"No\"),0,(VLOOKUP(H47,'Wattage Table'!$D:$F,3,0)*L47)/1000*0.25)","v":0},0,0,{"$f":"IF(ISERROR(IF(H47=\"-\",\"-\",INDEX('Wattage Table'!$F$23:$F$451,MATCH(H47,'Wattage Table'!$D$23:$D$451,0)))*$L47),\" \",IF(H47=\"-\",\"-\",INDEX('Wattage Table'!$F$23:$F$451,MATCH(H47,'Wattage Table'!$D$23:$D$451,0)))*$L47)","v":" "},{"$f":"IF(D47=\"\",\"\",IF(OR(D47=\"None\",D47=\"\",H47=\"\"),\"No\",IF(VLOOKUP(H47,'Wattage Table'!$D:$F,3,0)*L47/F47<=VLOOKUP(D47,Validation!$O$7:$Q$9,3,0),\"No\",\"Yes\")))","v":""}]
[null,27,null,null,{"$f":"IF(D48=\"\",\"\",IF(D48=\"None\",\"None\",INDEX('Lighting Controls Summary'!$D$19:$D$22,MATCH(D48,'Lighting Controls Summary'!$C$19:$C$22,0),1)))","v":""},null,null,null,{"$f":"IF(H48=\"\",\"\",VLOOKUP(H48,'Wattage Table'!$D:$E,2,0))","v":""},null,0,null,{"$f":"IF(OR(H48=\"\",R48=\"No\"),0,(((VLOOKUP(H48,'Wattage Table'!$D:$F,3,0)*J48)-(VLOOKUP(H48,'Wattage Table'!$D:$F,3,0)*(J48-K48)))*L48)/1000)","v":0},{"$f":"IF(OR(H48=\"\",R48=\"No\"),0,(VLOOKUP(H48,'Wattage Table'!$D:$F,3,0)*L48)/1000*0.25)","v":0},0,0,{"$f":"IF(ISERROR(IF(H48=\"-\",\"-\",INDEX('Wattage Table'!$F$23:$F$451,MATCH(H48,'Wattage Table'!$D$23:$D$451,0)))*$L48),\" \",IF(H48=\"-\",\"-\",INDEX('Wattage Table'!$F$23:$F$451,MATCH(H48,'Wattage Table'!$D$23:$D$451,0)))*$L48)","v":" "},{"$f":"IF(D48=\"\",\"\",IF(OR(D48=\"None\",D48=\"\",H48=\"\"),\"No\",IF(VLOOKUP(H48,'Wattage Table'!$D:$F,3,0)*L48/F48<=VLOOKUP(D48,Validation!$O$7:$Q$9,3,0),\"No\",\"Yes\")))","v":""}]
[null,28,null,null,{"$f":"IF(D49=\"\",\"\",IF(D49=\"None\",\"None\",INDEX('Lighting Controls Summary'!$D$19:$D$22,MATCH(D49,'Lighting Controls Summary'!$C$19:$C$22,0),1)))","v":""},null,null,null,{"$f":"IF(H49=\"\",\"\",VLOOKUP(H49,'Wattage Table'!$D:$E,2,0))","v":""},null,0,null,{"$f":"IF(OR(H49=\"\",R49=\"No\"),0,(((VLOOKUP(H49,'Wattage Table'!$D:$F,3,0)*J49)-(VLOOKUP(H49,'Wattage Table'!$D:$F,3,0)*(J49-K49)))*L49)/1000)","v":0},{"$f":"IF(OR(H49=\"\",R49=\"No\"),0,(VLOOKUP(H49,'Wattage Table'!$D:$F,3,0)*L49)/1000*0.25)","v":0},0,0,{"$f":"IF(ISERROR(IF(H49=\"-\",\"-\",INDEX('Wattage Table'!$F$23:$F$451,MATCH(H49,'Wattage Table'!$D$23:$D$451,0)))*$L49),\" \",IF(H49=\"-\",\"-\",INDEX('Wattage Table'!$F$23:$F$451,MATCH(H49,'Wattage Table'!$D$23:$D$451,0)))*$L49)","v":" "},{"$f":"IF(D49=\"\",\"\",IF(OR(D49=\"None\",D49=\"\",H49=\"\"),\"No\",IF(VLOOKUP(H49,'Wattage Table'!$D:$F,3,0)*L49/F49<=VLOOKUP(D49,Validation!$O$7:$Q$9,3,0),\"No\",\"Yes\")))","v":""}]
[null,29,null,null,{"$f":"IF(D50=\"\",\"\",IF(D50=\"None\",\"None\",INDEX('Lighting Controls Summary'!$D$19:$D$22,MATCH(D50,'Lighting Controls Summary'!$C$19:$C$22,0),1)))","v":""},null,null,null,{"$f":"IF(H50=\"\",\"\",VLOOKUP(H50,'Wattage Table'!$D:$E,2,0))","v":""},null,0,null,{"$f":"IF(OR(H50=\"\",R50=\"No\"),0,(((VLOOKUP(H50,'Wattage Table'!$D:$F,3,0)*J50)-(VLOOKUP(H50,'Wattage Table'!$D:$F,3,0)*(J50-K50)))*L50)/1000)","v":0},{"$f":"IF(OR(H50=\"\",R50=\"No\"),0,(VLOOKUP(H50,'Wattage Table'!$D:$F,3,0)*L50)/1000*0.25)","v":0},0,0,{"$f":"IF(ISERROR(IF(H50=\"-\",\"-\",INDEX('Wattage Table'!$F$23:$F$451,MATCH(H50,'Wattage Table'!$D$23:$D$451,0)))*$L50),\" \",IF(H50=\"-\",\"-\",INDEX('Wattage Table'!$F$23:$F$451,MATCH(H50,'Wattage Table'!$D$23:$D$451,0)))*$L50)","v":" "},{"$f":"IF(D50=\"\",\"\",IF(OR(D50=\"None\",D50=\"\",H50=\"\"),\"No\",IF(VLOOKUP(H50,'Wattage Table'!$D:$F,3,0)*L50/F50<=VLOOKUP(D50,Validation!$O$7:$Q$9,3,0),\"No\",\"Yes\")))","v":""}]
[null,30,null,null,{"$f":"IF(D51=\"\",\"\",IF(D51=\"None\",\"None\",INDEX('Lighting Controls Summary'!$D$19:$D$22,MATCH(D51,'Lighting Controls Summary'!$C$19:$C$22,0),1)))","v":""},null,null,null,{"$f":"IF(H51=\"\",\"\",VLOOKUP(H51,'Wattage Table'!$D:$E,2,0))","v":""},null,0,null,{"$f":"IF(OR(H51=\"\",R51=\"No\"),0,(((VLOOKUP(H51,'Wattage Table'!$D:$F,3,0)*J51)-(VLOOKUP(H51,'Wattage Table'!$D:$F,3,0)*(J51-K51)))*L51)/1000)","v":0},{"$f":"IF(OR(H51=\"\",R51=\"No\"),0,(VLOOKUP(H51,'Wattage Table'!$D:$F,3,0)*L51)/1000*0.25)","v":0},0,0,{"$f":"IF(ISERROR(IF(H51=\"-\",\"-\",INDEX('Wattage Table'!$F$23:$F$451,MATCH(H51,'Wattage Table'!$D$23:$D$451,0)))*$L51),\" \",IF(H51=\"-\",\"-\",INDEX('Wattage Table'!$F$23:$F$451,MATCH(H51,'Wattage Table'!$D$23:$D$451,0)))*$L51)","v":" "},{"$f":"IF(D51=\"\",\"\",IF(OR(D51=\"None\",D51=\"\",H51=\"\"),\"No\",IF(VLOOKUP(H51,'Wattage Table'!$D:$F,3,0)*L51/F51<=VLOOKUP(D51,Validation!$O$7:$Q$9,3,0),\"No\",\"Yes\")))","v":""}]
[null,31,null,null,{"$f":"IF(D52=\"\",\"\",IF(D52=\"None\",\"None\",INDEX('Lighting Controls Summary'!$D$19:$D$22,MATCH(D52,'Lighting Controls Summary'!$C$19:$C$22,0),1)))","v":""},null,null,null,{"$f":"IF(H52=\"\",\"\",VLOOKUP(H52,'Wattage Table'!$D:$E,2,0))","v":""},null,0,null,{"$f":"IF(OR(H52=\"\",R52=\"No\"),0,(((VLOOKUP(H52,'Wattage Table'!$D:$F,3,0)*J52)-(VLOOKUP(H52,'Wattage Table'!$D:$F,3,0)*(J52-K52)))*L52)/1000)","v":0},{"$f":"IF(OR(H52=\"\",R52=\"No\"),0,(VLOOKUP(H52,'Wattage Table'!$D:$F,3,0)*L52)/1000*0.25)","v":0},0,0,{"$f":"IF(ISERROR(IF(H52=\"-\",\"-\",INDEX('Wattage Table'!$F$23:$F$451,MATCH(H52,'Wattage Table'!$D$23:$D$451,0)))*$L52),\" \",IF(H52=\"-\",\"-\",INDEX('Wattage Table'!$F$23:$F$451,MATCH(H52,'Wattage Table'!$D$23:$D$451,0)))*$L52)","v":" "},{"$f":"IF(D52=\"\",\"\",IF(OR(D52=\"None\",D52=\"\",H52=\"\"),\"No\",IF(VLOOKUP(H52,'Wattage Table'!$D:$F,3,0)*L52/F52<=VLOOKUP(D52,Validation!$O$7:$Q$9,3,0),\"No\",\"Yes\")))","v":""}]
[null,32,null,null,{"$f":"IF(D53=\"\",\"\",IF(D53=\"None\",\"None\",INDEX('Lighting Controls Summary'!$D$19:$D$22,MATCH(D53,'Lighting Controls Summary'!$C$19:$C$22,0),1)))","v":""},null,null,null,{"$f":"IF(H53=\"\",\"\",VLOOKUP(H53,'Wattage Table'!$D:$E,2,0))","v":""},null,0,null,{"$f":"IF(OR(H53=\"\",R53=\"No\"),0,(((VLOOKUP(H53,'Wattage Table'!$D:$F,3,0)*J53)-(VLOOKUP(H53,'Wattage Table'!$D:$F,3,0)*(J53-K53)))*L53)/1000)","v":0},{"$f":"IF(OR(H53=\"\",R53=\"No\"),0,(VLOOKUP(H53,'Wattage Table'!$D:$F,3,0)*L53)/1000*0.25)","v":0},0,0,{"$f":"IF(ISERROR(IF(H53=\"-\",\"-\",INDEX('Wattage Table'!$F$23:$F$451,MATCH(H53,'Wattage Table'!$D$23:$D$451,0)))*$L53),\" \",IF(H53=\"-\",\"-\",INDEX('Wattage Table'!$F$23:$F$451,MATCH(H53,'Wattage Table'!$D$23:$D$451,0)))*$L53)","v":" "},{"$f":"IF(D53=\"\",\"\",IF(OR(D53=\"None\",D53=\"\",H53=\"\"),\"No\",IF(VLOOKUP(H53,'Wattage Table'!$D:$F,3,0)*L53/F53<=VLOOKUP(D53,Validation!$O$7:$Q$9,3,0),\"No\",\"Yes\")))","v":""}]
[null,33,null,null,{"$f":"IF(D54=\"\",\"\",IF(D54=\"None\",\"None\",INDEX('Lighting Controls Summary'!$D$19:$D$22,MATCH(D54,'Lighting Controls Summary'!$C$19:$C$22,0),1)))","v":""},null,null,null,{"$f":"IF(H54=\"\",\"\",VLOOKUP(H54,'Wattage Table'!$D:$E,2,0))","v":""},null,0,null,{"$f":"IF(OR(H54=\"\",R54=\"No\"),0,(((VLOOKUP(H54,'Wattage Table'!$D:$F,3,0)*J54)-(VLOOKUP(H54,'Wattage Table'!$D:$F,3,0)*(J54-K54)))*L54)/1000)","v":0},{"$f":"IF(OR(H54=\"\",R54=\"No\"),0,(VLOOKUP(H54,'Wattage Table'!$D:$F,3,0)*L54)/1000*0.25)","v":0},0,0,{"$f":"IF(ISERROR(IF(H54=\"-\",\"-\",INDEX('Wattage Table'!$F$23:$F$451,MATCH(H54,'Wattage Table'!$D$23:$D$451,0)))*$L54),\" \",IF(H54=\"-\",\"-\",INDEX('Wattage Table'!$F$23:$F$451,MATCH(H54,'Wattage Table'!$D$23:$D$451,0)))*$L54)","v":" "},{"$f":"IF(D54=\"\",\"\",IF(OR(D54=\"None\",D54=\"\",H54=\"\"),\"No\",IF(VLOOKUP(H54,'Wattage Table'!$D:$F,3,0)*L54/F54<=VLOOKUP(D54,Validation!$O$7:$Q$9,3,0),\"No\",\"Yes\")))","v":""}]
[null,34,null,null,{"$f":"IF(D55=\"\",\"\",IF(D55=\"None\",\"None\",INDEX('Lighting Controls Summary'!$D$19:$D$22,MATCH(D55,'Lighting Controls Summary'!$C$19:$C$22,0),1)))","v":""},null,null,null,{"$f":"IF(H55=\"\",\"\",VLOOKUP(H55,'Wattage Table'!$D:$E,2,0))","v":""},null,0,null,{"$f":"IF(OR(H55=\"\",R55=\"No\"),0,(((VLOOKUP(H55,'Wattage Table'!$D:$F,3,0)*J55)-(VLOOKUP(H55,'Wattage Table'!$D:$F,3,0)*(J55-K55)))*L55)/1000)","v":0},{"$f":"IF(OR(H55=\"\",R55=\"No\"),0,(VLOOKUP(H55,'Wattage Table'!$D:$F,3,0)*L55)/1000*0.25)","v":0},0,0,{"$f":"IF(ISERROR(IF(H55=\"-\",\"-\",INDEX('Wattage Table'!$F$23:$F$451,MATCH(H55,'Wattage Table'!$D$23:$D$451,0)))*$L55),\" \",IF(H55=\"-\",\"-\",INDEX('Wattage Table'!$F$23:$F$451,MATCH(H55,'Wattage Table'!$D$23:$D$451,0)))*$L55)","v":" "},{"$f":"IF(D55=\"\",\"\",IF(OR(D55=\"None\",D55=\"\",H55=\"\"),\"No\",IF(VLOOKUP(H55,'Wattage Table'!$D:$F,3,0)*L55/F55<=VLOOKUP(D55,Validation!$O$7:$Q$9,3,0),\"No\",\"Yes\")))","v":""}]
[null,35,null,null,{"$f":"IF(D56=\"\",\"\",IF(D56=\"None\",\"None\",INDEX('Lighting Controls Summary'!$D$19:$D$22,MATCH(D56,'Lighting Controls Summary'!$C$19:$C$22,0),1)))","v":""},null,null,null,{"$f":"IF(H56=\"\",\"\",VLOOKUP(H56,'Wattage Table'!$D:$E,2,0))","v":""},null,0,null,{"$f":"IF(OR(H56=\"\",R56=\"No\"),0,(((VLOOKUP(H56,'Wattage Table'!$D:$F,3,0)*J56)-(VLOOKUP(H56,'Wattage Table'!$D:$F,3,0)*(J56-K56)))*L56)/1000)","v":0},{"$f":"IF(OR(H56=\"\",R56=\"No\"),0,(VLOOKUP(H56,'Wattage Table'!$D:$F,3,0)*L56)/1000*0.25)","v":0},0,0,{"$f":"IF(ISERROR(IF(H56=\"-\",\"-\",INDEX('Wattage Table'!$F$23:$F$451,MATCH(H56,'Wattage Table'!$D$23:$D$451,0)))*$L56),\" \",IF(H56=\"-\",\"-\",INDEX('Wattage Table'!$F$23:$F$451,MATCH(H56,'Wattage Table'!$D$23:$D$451,0)))*$L56)","v":" "},{"$f":"IF(D56=\"\",\"\",IF(OR(D56=\"None\",D56=\"\",H56=\"\"),\"No\",IF(VLOOKUP(H56,'Wattage Table'!$D:$F,3,0)*L56/F56<=VLOOKUP(D56,Validation!$O$7:$Q$9,3,0),\"No\",\"Yes\")))","v":""}]
[null,36,null,null,{"$f":"IF(D57=\"\",\"\",IF(D57=\"None\",\"None\",INDEX('Lighting Controls Summary'!$D$19:$D$22,MATCH(D57,'Lighting Controls Summary'!$C$19:$C$22,0),1)))","v":""},null,null,null,{"$f":"IF(H57=\"\",\"\",VLOOKUP(H57,'Wattage Table'!$D:$E,2,0))","v":""},null,0,null,{"$f":"IF(OR(H57=\"\",R57=\"No\"),0,(((VLOOKUP(H57,'Wattage Table'!$D:$F,3,0)*J57)-(VLOOKUP(H57,'Wattage Table'!$D:$F,3,0)*(J57-K57)))*L57)/1000)","v":0},{"$f":"IF(OR(H57=\"\",R57=\"No\"),0,(VLOOKUP(H57,'Wattage Table'!$D:$F,3,0)*L57)/1000*0.25)","v":0},0,0,{"$f":"IF(ISERROR(IF(H57=\"-\",\"-\",INDEX('Wattage Table'!$F$23:$F$451,MATCH(H57,'Wattage Table'!$D$23:$D$451,0)))*$L57),\" \",IF(H57=\"-\",\"-\",INDEX('Wattage Table'!$F$23:$F$451,MATCH(H57,'Wattage Table'!$D$23:$D$451,0)))*$L57)","v":" "},{"$f":"IF(D57=\"\",\"\",IF(OR(D57=\"None\",D57=\"\",H57=\"\"),\"No\",IF(VLOOKUP(H57,'Wattage Table'!$D:$F,3,0)*L57/F57<=VLOOKUP(D57,Validation!$O$7:$Q$9,3,0),\"No\",\"Yes\")))","v":""}]
[null,37,null,null,{"$f":"IF(D58=\"\",\"\",IF(D58=\"None\",\"None\",INDEX('Lighting Controls Summary'!$D$19:$D$22,MATCH(D58,'Lighting Controls Summary'!$C$19:$C$22,0),1)))","v":""},null,null,null,{"$f":"IF(H58=\"\",\"\",VLOOKUP(H58,'Wattage Table'!$D:$E,2,0))","v":""},null,0,null,{"$f":"IF(OR(H58=\"\",R58=\"No\"),0,(((VLOOKUP(H58,'Wattage Table'!$D:$F,3,0)*J58)-(VLOOKUP(H58,'Wattage Table'!$D:$F,3,0)*(J58-K58)))*L58)/1000)","v":0},{"$f":"IF(OR(H58=\"\",R58=\"No\"),0,(VLOOKUP(H58,'Wattage Table'!$D:$F,3,0)*L58)/1000*0.25)","v":0},0,0,{"$f":"IF(ISERROR(IF(H58=\"-\",\"-\",INDEX('Wattage Table'!$F$23:$F$451,MATCH(H58,'Wattage Table'!$D$23:$D$451,0)))*$L58),\" \",IF(H58=\"-\",\"-\",INDEX('Wattage Table'!$F$23:$F$451,MATCH(H58,'Wattage Table'!$D$23:$D$451,0)))*$L58)","v":" "},{"$f":"IF(D58=\"\",\"\",IF(OR(D58=\"None\",D58=\"\",H58=\"\"),\"No\",IF(VLOOKUP(H58,'Wattage Table'!$D:$F,3,0)*L58/F58<=VLOOKUP(D58,Validation!$O$7:$Q$9,3,0),\"No\",\"Yes\")))","v":""}]
[null,38,null,null,{"$f":"IF(D59=\"\",\"\",IF(D59=\"None\",\"None\",INDEX('Lighting Controls Summary'!$D$19:$D$22,MATCH(D59,'Lighting Controls Summary'!$C$19:$C$22,0),1)))","v":""},null,null,null,{"$f":"IF(H59=\"\",\"\",VLOOKUP(H59,'Wattage Table'!$D:$E,2,0))","v":""},null,0,null,{"$f":"IF(OR(H59=\"\",R59=\"No\"),0,(((VLOOKUP(H59,'Wattage Table'!$D:$F,3,0)*J59)-(VLOOKUP(H59,'Wattage Table'!$D:$F,3,0)*(J59-K59)))*L59)/1000)","v":0},{"$f":"IF(OR(H59=\"\",R59=\"No\"),0,(VLOOKUP(H59,'Wattage Table'!$D:$F,3,0)*L59)/1000*0.25)","v":0},0,0,{"$f":"IF(ISERROR(IF(H59=\"-\",\"-\",INDEX('Wattage Table'!$F$23:$F$451,MATCH(H59,'Wattage Table'!$D$23:$D$451,0)))*$L59),\" \",IF(H59=\"-\",\"-\",INDEX('Wattage Table'!$F$23:$F$451,MATCH(H59,'Wattage Table'!$D$23:$D$451,0)))*$L59)","v":" "},{"$f":"IF(D59=\"\",\"\",IF(OR(D59=\"None\",D59=\"\",H59=\"\"),\"No\",IF(VLOOKUP(H59,'Wattage Table'!$D:$F,3,0)*L59/F59<=VLOOKUP(D59,Validation!$O$7:$Q$9,3,0),\"No\",\"Yes\")))","v":""}]
[null,39,null,null,{"$f":"IF(D60=\"\",\"\",IF(D60=\"None\",\"None\",INDEX('Lighting Controls Summary'!$D$19:$D$22,MATCH(D60,'Lighting Controls Summary'!$C$19:$C$22,0),1)))","v":""},null,null,null,{"$f":"IF(H60=\"\",\"\",VLOOKUP(H60,'Wattage Table'!$D:$E,2,0))","v":""},null,0,null,{"$f":"IF(OR(H60=\"\",R60=\"No\"),0,(((VLOOKUP(H60,'Wattage Table'!$D:$F,3,0)*J60)-(VLOOKUP(H60,'Wattage Table'!$D:$F,3,0)*(J60-K60)))*L60)/1000)","v":0},{"$f":"IF(OR(H60=\"\",R60=\"No\"),0,(VLOOKUP(H60,'Wattage Table'!$D:$F,3,0)*L60)/1000*0.25)","v":0},0,0,{"$f":"IF(ISERROR(IF(H60=\"-\",\"-\",INDEX('Wattage Table'!$F$23:$F$451,MATCH(H60,'Wattage Table'!$D$23:$D$451,0)))*$L60),\" \",IF(H60=\"-\",\"-\",INDEX('Wattage Table'!$F$23:$F$451,MATCH(H60,'Wattage Table'!$D$23:$D$451,0)))*$L60)","v":" "},{"$f":"IF(D60=\"\",\"\",IF(OR(D60=\"None\",D60=\"\",H60=\"\"),\"No\",IF(VLOOKUP(H60,'Wattage Table'!$D:$F,3,0)*L60/F60<=VLOOKUP(D60,Validation!$O$7:$Q$9,3,0),\"No\",\"Yes\")))","v":""}]
[null,40,null,null,{"$f":"IF(D61=\"\",\"\",IF(D61=\"None\",\"None\",INDEX('Lighting Controls Summary'!$D$19:$D$22,MATCH(D61,'Lighting Controls Summary'!$C$19:$C$22,0),1)))","v":""},null,null,null,{"$f":"IF(H61=\"\",\"\",VLOOKUP(H61,'Wattage Table'!$D:$E,2,0))","v":""},null,0,null,{"$f":"IF(OR(H61=\"\",R61=\"No\"),0,(((VLOOKUP(H61,'Wattage Table'!$D:$F,3,0)*J61)-(VLOOKUP(H61,'Wattage Table'!$D:$F,3,0)*(J61-K61)))*L61)/1000)","v":0},{"$f":"IF(OR(H61=\"\",R61=\"No\"),0,(VLOOKUP(H61,'Wattage Table'!$D:$F,3,0)*L61)/1000*0.25)","v":0},0,0,{"$f":"IF(ISERROR(IF(H61=\"-\",\"-\",INDEX('Wattage Table'!$F$23:$F$451,MATCH(H61,'Wattage Table'!$D$23:$D$451,0)))*$L61),\" \",IF(H61=\"-\",\"-\",INDEX('Wattage Table'!$F$23:$F$451,MATCH(H61,'Wattage Table'!$D$23:$D$451,0)))*$L61)","v":" "},{"$f":"IF(D61=\"\",\"\",IF(OR(D61=\"None\",D61=\"\",H61=\"\"),\"No\",IF(VLOOKUP(H61,'Wattage Table'!$D:$F,3,0)*L61/F61<=VLOOKUP(D61,Validation!$O$7:$Q$9,3,0),\"No\",\"Yes\")))","v":""}]
[null,41,null,null,{"$f":"IF(D62=\"\",\"\",IF(D62=\"None\",\"None\",INDEX('Lighting Controls Summary'!$D$19:$D$22,MATCH(D62,'Lighting Controls Summary'!$C$19:$C$22,0),1)))","v":""},null,null,null,{"$f":"IF(H62=\"\",\"\",VLOOKUP(H62,'Wattage Table'!$D:$E,2,0))","v":""},null,0,null,{"$f":"IF(OR(H62=\"\",R62=\"No\"),0,(((VLOOKUP(H62,'Wattage Table'!$D:$F,3,0)*J62)-(VLOOKUP(H62,'Wattage Table'!$D:$F,3,0)*(J62-K62)))*L62)/1000)","v":0},{"$f":"IF(OR(H62=\"\",R62=\"No\"),0,(VLOOKUP(H62,'Wattage Table'!$D:$F,3,0)*L62)/1000*0.25)","v":0},0,0,{"$f":"IF(ISERROR(IF(H62=\"-\",\"-\",INDEX('Wattage Table'!$F$23:$F$451,MATCH(H62,'Wattage Table'!$D$23:$D$451,0)))*$L62),\" \",IF(H62=\"-\",\"-\",INDEX('Wattage Table'!$F$23:$F$451,MATCH(H62,'Wattage Table'!$D$23:$D$451,0)))*$L62)","v":" "},{"$f":"IF(D62=\"\",\"\",IF(OR(D62=\"None\",D62=\"\",H62=\"\"),\"No\",IF(VLOOKUP(H62,'Wattage Table'!$D:$F,3,0)*L62/F62<=VLOOKUP(D62,Validation!$O$7:$Q$9,3,0),\"No\",\"Yes\")))","v":""}]
[null,42,null,null,{"$f":"IF(D63=\"\",\"\",IF(D63=\"None\",\"None\",INDEX('Lighting Controls Summary'!$D$19:$D$22,MATCH(D63,'Lighting Controls Summary'!$C$19:$C$22,0),1)))","v":""},null,null,null,{"$f":"IF(H63=\"\",\"\",VLOOKUP(H63,'Wattage Table'!$D:$E,2,0))","v":""},null,0,null,{"$f":"IF(OR(H63=\"\",R63=\"No\"),0,(((VLOOKUP(H63,'Wattage Table'!$D:$F,3,0)*J63)-(VLOOKUP(H63,'Wattage Table'!$D:$F,3,0)*(J63-K63)))*L63)/1000)","v":0},{"$f":"IF(OR(H63=\"\",R63=\"No\"),0,(VLOOKUP(H63,'Wattage Table'!$D:$F,3,0)*L63)/1000*0.25)","v":0},0,0,{"$f":"IF(ISERROR(IF(H63=\"-\",\"-\",INDEX('Wattage Table'!$F$23:$F$451,MATCH(H63,'Wattage Table'!$D$23:$D$451,0)))*$L63),\" \",IF(H63=\"-\",\"-\",INDEX('Wattage Table'!$F$23:$F$451,MATCH(H63,'Wattage Table'!$D$23:$D$451,0)))*$L63)","v":" "},{"$f":"IF(D63=\"\",\"\",IF(OR(D63=\"None\",D63=\"\",H63=\"\"),\"No\",IF(VLOOKUP(H63,'Wattage Table'!$D:$F,3,0)*L63/F63<=VLOOKUP(D63,Validation!$O$7:$Q$9,3,0),\"No\",\"Yes\")))","v":""}]
[null,43,null,null,{"$f":"IF(D64=\"\",\"\",IF(D64=\"None\",\"None\",INDEX('Lighting Controls Summary'!$D$19:$D$22,MATCH(D64,'Lighting Controls Summary'!$C$19:$C$22,0),1)))","v":""},null,null,null,{"$f":"IF(H64=\"\",\"\",VLOOKUP(H64,'Wattage Table'!$D:$E,2,0))","v":""},null,0,null,{"$f":"IF(OR(H64=\"\",R64=\"No\"),0,(((VLOOKUP(H64,'Wattage Table'!$D:$F,3,0)*J64)-(VLOOKUP(H64,'Wattage Table'!$D:$F,3,0)*(J64-K64)))*L64)/1000)","v":0},{"$f":"IF(OR(H64=\"\",R64=\"No\"),0,(VLOOKUP(H64,'Wattage Table'!$D:$F,3,0)*L64)/1000*0.25)","v":0},0,0,{"$f":"IF(ISERROR(IF(H64=\"-\",\"-\",INDEX('Wattage Table'!$F$23:$F$451,MATCH(H64,'Wattage Table'!$D$23:$D$451,0)))*$L64),\" \",IF(H64=\"-\",\"-\",INDEX('Wattage Table'!$F$23:$F$451,MATCH(H64,'Wattage Table'!$D$23:$D$451,0)))*$L64)","v":" "},{"$f":"IF(D64=\"\",\"\",IF(OR(D64=\"None\",D64=\"\",H64=\"\"),\"No\",IF(VLOOKUP(H64,'Wattage Table'!$D:$F,3,0)*L64/F64<=VLOOKUP(D64,Validation!$O$7:$Q$9,3,0),\"No\",\"Yes\")))","v":""}]
[null,44,null,null,{"$f":"IF(D65=\"\",\"\",IF(D65=\"None\",\"None\",INDEX('Lighting Controls Summary'!$D$19:$D$22,MATCH(D65,'Lighting Controls Summary'!$C$19:$C$22,0),1)))","v":""},null,null,null,{"$f":"IF(H65=\"\",\"\",VLOOKUP(H65,'Wattage Table'!$D:$E,2,0))","v":""},null,0,null,{"$f":"IF(OR(H65=\"\",R65=\"No\"),0,(((VLOOKUP(H65,'Wattage Table'!$D:$F,3,0)*J65)-(VLOOKUP(H65,'Wattage Table'!$D:$F,3,0)*(J65-K65)))*L65)/1000)","v":0},{"$f":"IF(OR(H65=\"\",R65=\"No\"),0,(VLOOKUP(H65,'Wattage Table'!$D:$F,3,0)*L65)/1000*0.25)","v":0},0,0,{"$f":"IF(ISERROR(IF(H65=\"-\",\"-\",INDEX('Wattage Table'!$F$23:$F$451,MATCH(H65,'Wattage Table'!$D$23:$D$451,0)))*$L65),\" \",IF(H65=\"-\",\"-\",INDEX('Wattage Table'!$F$23:$F$451,MATCH(H65,'Wattage Table'!$D$23:$D$451,0)))*$L65)","v":" "},{"$f":"IF(D65=\"\",\"\",IF(OR(D65=\"None\",D65=\"\",H65=\"\"),\"No\",IF(VLOOKUP(H65,'Wattage Table'!$D:$F,3,0)*L65/F65<=VLOOKUP(D65,Validation!$O$7:$Q$9,3,0),\"No\",\"Yes\")))","v":""}]
[null,45,null,null,{"$f":"IF(D66=\"\",\"\",IF(D66=\"None\",\"None\",INDEX('Lighting Controls Summary'!$D$19:$D$22,MATCH(D66,'Lighting Controls Summary'!$C$19:$C$22,0),1)))","v":""},null,null,null,{"$f":"IF(H66=\"\",\"\",VLOOKUP(H66,'Wattage Table'!$D:$E,2,0))","v":""},null,0,null,{"$f":"IF(OR(H66=\"\",R66=\"No\"),0,(((VLOOKUP(H66,'Wattage Table'!$D:$F,3,0)*J66)-(VLOOKUP(H66,'Wattage Table'!$D:$F,3,0)*(J66-K66)))*L66)/1000)","v":0},{"$f":"IF(OR(H66=\"\",R66=\"No\"),0,(VLOOKUP(H66,'Wattage Table'!$D:$F,3,0)*L66)/1000*0.25)","v":0},0,0,{"$f":"IF(ISERROR(IF(H66=\"-\",\"-\",INDEX('Wattage Table'!$F$23:$F$451,MATCH(H66,'Wattage Table'!$D$23:$D$451,0)))*$L66),\" \",IF(H66=\"-\",\"-\",INDEX('Wattage Table'!$F$23:$F$451,MATCH(H66,'Wattage Table'!$D$23:$D$451,0)))*$L66)","v":" "},{"$f":"IF(D66=\"\",\"\",IF(OR(D66=\"None\",D66=\"\",H66=\"\"),\"No\",IF(VLOOKUP(H66,'Wattage Table'!$D:$F,3,0)*L66/F66<=VLOOKUP(D66,Validation!$O$7:$Q$9,3,0),\"No\",\"Yes\")))","v":""}]
[null,46,null,null,{"$f":"IF(D67=\"\",\"\",IF(D67=\"None\",\"None\",INDEX('Lighting Controls Summary'!$D$19:$D$22,MATCH(D67,'Lighting Controls Summary'!$C$19:$C$22,0),1)))","v":""},null,null,null,{"$f":"IF(H67=\"\",\"\",VLOOKUP(H67,'Wattage Table'!$D:$E,2,0))","v":""},null,0,null,{"$f":"IF(OR(H67=\"\",R67=\"No\"),0,(((VLOOKUP(H67,'Wattage Table'!$D:$F,3,0)*J67)-(VLOOKUP(H67,'Wattage Table'!$D:$F,3,0)*(J67-K67)))*L67)/1000)","v":0},{"$f":"IF(OR(H67=\"\",R67=\"No\"),0,(VLOOKUP(H67,'Wattage Table'!$D:$F,3,0)*L67)/1000*0.25)","v":0},0,0,{"$f":"IF(ISERROR(IF(H67=\"-\",\"-\",INDEX('Wattage Table'!$F$23:$F$451,MATCH(H67,'Wattage Table'!$D$23:$D$451,0)))*$L67),\" \",IF(H67=\"-\",\"-\",INDEX('Wattage Table'!$F$23:$F$451,MATCH(H67,'Wattage Table'!$D$23:$D$451,0)))*$L67)","v":" "},{"$f":"IF(D67=\"\",\"\",IF(OR(D67=\"None\",D67=\"\",H67=\"\"),\"No\",IF(VLOOKUP(H67,'Wattage Table'!$D:$F,3,0)*L67/F67<=VLOOKUP(D67,Validation!$O$7:$Q$9,3,0),\"No\",\"Yes\")))","v":""}]
[null,47,null,null,{"$f":"IF(D68=\"\",\"\",IF(D68=\"None\",\"None\",INDEX('Lighting Controls Summary'!$D$19:$D$22,MATCH(D68,'Lighting Controls Summary'!$C$19:$C$22,0),1)))","v":""},null,null,null,{"$f":"IF(H68=\"\",\"\",VLOOKUP(H68,'Wattage Table'!$D:$E,2,0))","v":""},null,0,null,{"$f":"IF(OR(H68=\"\",R68=\"No\"),0,(((VLOOKUP(H68,'Wattage Table'!$D:$F,3,0)*J68)-(VLOOKUP(H68,'Wattage Table'!$D:$F,3,0)*(J68-K68)))*L68)/1000)","v":0},{"$f":"IF(OR(H68=\"\",R68=\"No\"),0,(VLOOKUP(H68,'Wattage Table'!$D:$F,3,0)*L68)/1000*0.25)","v":0},0,0,{"$f":"IF(ISERROR(IF(H68=\"-\",\"-\",INDEX('Wattage Table'!$F$23:$F$451,MATCH(H68,'Wattage Table'!$D$23:$D$451,0)))*$L68),\" \",IF(H68=\"-\",\"-\",INDEX('Wattage Table'!$F$23:$F$451,MATCH(H68,'Wattage Table'!$D$23:$D$451,0)))*$L68)","v":" "},{"$f":"IF(D68=\"\",\"\",IF(OR(D68=\"None\",D68=\"\",H68=\"\"),\"No\",IF(VLOOKUP(H68,'Wattage Table'!$D:$F,3,0)*L68/F68<=VLOOKUP(D68,Validation!$O$7:$Q$9,3,0),\"No\",\"Yes\")))","v":""}]
[null,48,null,null,{"$f":"IF(D69=\"\",\"\",IF(D69=\"None\",\"None\",INDEX('Lighting Controls Summary'!$D$19:$D$22,MATCH(D69,'Lighting Controls Summary'!$C$19:$C$22,0),1)))","v":""},null,null,null,{"$f":"IF(H69=\"\",\"\",VLOOKUP(H69,'Wattage Table'!$D:$E,2,0))","v":""},null,0,null,{"$f":"IF(OR(H69=\"\",R69=\"No\"),0,(((VLOOKUP(H69,'Wattage Table'!$D:$F,3,0)*J69)-(VLOOKUP(H69,'Wattage Table'!$D:$F,3,0)*(J69-K69)))*L69)/1000)","v":0},{"$f":"IF(OR(H69=\"\",R69=\"No\"),0,(VLOOKUP(H69,'Wattage Table'!$D:$F,3,0)*L69)/1000*0.25)","v":0},0,0,{"$f":"IF(ISERROR(IF(H69=\"-\",\"-\",INDEX('Wattage Table'!$F$23:$F$451,MATCH(H69,'Wattage Table'!$D$23:$D$451,0)))*$L69),\" \",IF(H69=\"-\",\"-\",INDEX('Wattage Table'!$F$23:$F$451,MATCH(H69,'Wattage Table'!$D$23:$D$451,0)))*$L69)","v":" "},{"$f":"IF(D69=\"\",\"\",IF(OR(D69=\"None\",D69=\"\",H69=\"\"),\"No\",IF(VLOOKUP(H69,'Wattage Table'!$D:$F,3,0)*L69/F69<=VLOOKUP(D69,Validation!$O$7:$Q$9,3,0),\"No\",\"Yes\")))","v":""}]
[null,49,null,null,{"$f":"IF(D70=\"\",\"\",IF(D70=\"None\",\"None\",INDEX('Lighting Controls Summary'!$D$19:$D$22,MATCH(D70,'Lighting Controls Summary'!$C$19:$C$22,0),1)))","v":""},null,null,null,{"$f":"IF(H70=\"\",\"\",VLOOKUP(H70,'Wattage Table'!$D:$E,2,0))","v":""},null,0,null,{"$f":"IF(OR(H70=\"\",R70=\"No\"),0,(((VLOOKUP(H70,'Wattage Table'!$D:$F,3,0)*J70)-(VLOOKUP(H70,'Wattage Table'!$D:$F,3,0)*(J70-K70)))*L70)/1000)","v":0},{"$f":"IF(OR(H70=\"\",R70=\"No\"),0,(VLOOKUP(H70,'Wattage Table'!$D:$F,3,0)*L70)/1000*0.25)","v":0},0,0,{"$f":"IF(ISERROR(IF(H70=\"-\",\"-\",INDEX('Wattage Table'!$F$23:$F$451,MATCH(H70,'Wattage Table'!$D$23:$D$451,0)))*$L70),\" \",IF(H70=\"-\",\"-\",INDEX('Wattage Table'!$F$23:$F$451,MATCH(H70,'Wattage Table'!$D$23:$D$451,0)))*$L70)","v":" "},{"$f":"IF(D70=\"\",\"\",IF(OR(D70=\"None\",D70=\"\",H70=\"\"),\"No\",IF(VLOOKUP(H70,'Wattage Table'!$D:$F,3,0)*L70/F70<=VLOOKUP(D70,Validation!$O$7:$Q$9,3,0),\"No\",\"Yes\")))","v":""}]
[null,50,null,null,{"$f":"IF(D71=\"\",\"\",IF(D71=\"None\",\"None\",INDEX('Lighting Controls Summary'!$D$19:$D$22,MATCH(D71,'Lighting Controls Summary'!$C$19:$C$22,0),1)))","v":""},null,null,null,{"$f":"IF(H71=\"\",\"\",VLOOKUP(H71,'Wattage Table'!$D:$E,2,0))","v":""},null,0,null,{"$f":"IF(OR(H71=\"\",R71=\"No\"),0,(((VLOOKUP(H71,'Wattage Table'!$D:$F,3,0)*J71)-(VLOOKUP(H71,'Wattage Table'!$D:$F,3,0)*(J71-K71)))*L71)/1000)","v":0},{"$f":"IF(OR(H71=\"\",R71=\"No\"),0,(VLOOKUP(H71,'Wattage Table'!$D:$F,3,0)*L71)/1000*0.25)","v":0},0,0,{"$f":"IF(ISERROR(IF(H71=\"-\",\"-\",INDEX('Wattage Table'!$F$23:$F$451,MATCH(H71,'Wattage Table'!$D$23:$D$451,0)))*$L71),\" \",IF(H71=\"-\",\"-\",INDEX('Wattage Table'!$F$23:$F$451,MATCH(H71,'Wattage Table'!$D$23:$D$451,0)))*$L71)","v":" "},{"$f":"IF(D71=\"\",\"\",IF(OR(D71=\"None\",D71=\"\",H71=\"\"),\"No\",IF(VLOOKUP(H71,'Wattage Table'!$D:$F,3,0)*L71/F71<=VLOOKUP(D71,Validation!$O$7:$Q$9,3,0),\"No\",\"Yes\")))","v":""}]
[null,51,null,null,{"$f":"IF(D72=\"\",\"\",IF(D72=\"None\",\"None\",INDEX('Lighting Controls Summary'!$D$19:$D$22,MATCH(D72,'Lighting Controls Summary'!$C$19:$C$22,0),1)))","v":""},null,null,null,{"$f":"IF(H72=\"\",\"\",VLOOKUP(H72,'Wattage Table'!$D:$E,2,0))","v":""},null,0,null,{"$f":"IF(OR(H72=\"\",R72=\"No\"),0,(((VLOOKUP(H72,'Wattage Table'!$D:$F,3,0)*J72)-(VLOOKUP(H72,'Wattage Table'!$D:$F,3,0)*(J72-K72)))*L72)/1000)","v":0},{"$f":"IF(OR(H72=\"\",R72=\"No\"),0,(VLOOKUP(H72,'Wattage Table'!$D:$F,3,0)*L72)/1000*0.25)","v":0},0,0,{"$f":"IF(ISERROR(IF(H72=\"-\",\"-\",INDEX('Wattage Table'!$F$23:$F$451,MATCH(H72,'Wattage Table'!$D$23:$D$451,0)))*$L72),\" \",IF(H72=\"-\",\"-\",INDEX('Wattage Table'!$F$23:$F$451,MATCH(H72,'Wattage Table'!$D$23:$D$451,0)))*$L72)","v":" "},{"$f":"IF(D72=\"\",\"\",IF(OR(D72=\"None\",D72=\"\",H72=\"\"),\"No\",IF(VLOOKUP(H72,'Wattage Table'!$D:$F,3,0)*L72/F72<=VLOOKUP(D72,Validation!$O$7:$Q$9,3,0),\"No\",\"Yes\")))","v":""}]
[null,52,null,null,{"$f":"IF(D73=\"\",\"\",IF(D73=\"None\",\"None\",INDEX('Lighting Controls Summary'!$D$19:$D$22,MATCH(D73,'Lighting Controls Summary'!$C$19:$C$22,0),1)))","v":""},null,null,null,{"$f":"IF(H73=\"\",\"\",VLOOKUP(H73,'Wattage Table'!$D:$E,2,0))","v":""},null,0,null,{"$f":"IF(OR(H73=\"\",R73=\"No\"),0,(((VLOOKUP(H73,'Wattage Table'!$D:$F,3,0)*J73)-(VLOOKUP(H73,'Wattage Table'!$D:$F,3,0)*(J73-K73)))*L73)/1000)","v":0},{"$f":"IF(OR(H73=\"\",R73=\"No\"),0,(VLOOKUP(H73,'Wattage Table'!$D:$F,3,0)*L73)/1000*0.25)","v":0},0,0,{"$f":"IF(ISERROR(IF(H73=\"-\",\"-\",INDEX('Wattage Table'!$F$23:$F$451,MATCH(H73,'Wattage Table'!$D$23:$D$451,0)))*$L73),\" \",IF(H73=\"-\",\"-\",INDEX('Wattage Table'!$F$23:$F$451,MATCH(H73,'Wattage Table'!$D$23:$D$451,0)))*$L73)","v":" "},{"$f":"IF(D73=\"\",\"\",IF(OR(D73=\"None\",D73=\"\",H73=\"\"),\"No\",IF(VLOOKUP(H73,'Wattage Table'!$D:$F,3,0)*L73/F73<=VLOOKUP(D73,Validation!$O$7:$Q$9,3,0),\"No\",\"Yes\")))","v":""}]
[null,53,null,null,{"$f":"IF(D74=\"\",\"\",IF(D74=\"None\",\"None\",INDEX('Lighting Controls Summary'!$D$19:$D$22,MATCH(D74,'Lighting Controls Summary'!$C$19:$C$22,0),1)))","v":""},null,null,null,{"$f":"IF(H74=\"\",\"\",VLOOKUP(H74,'Wattage Table'!$D:$E,2,0))","v":""},null,0,null,{"$f":"IF(OR(H74=\"\",R74=\"No\"),0,(((VLOOKUP(H74,'Wattage Table'!$D:$F,3,0)*J74)-(VLOOKUP(H74,'Wattage Table'!$D:$F,3,0)*(J74-K74)))*L74)/1000)","v":0},{"$f":"IF(OR(H74=\"\",R74=\"No\"),0,(VLOOKUP(H74,'Wattage Table'!$D:$F,3,0)*L74)/1000*0.25)","v":0},0,0,{"$f":"IF(ISERROR(IF(H74=\"-\",\"-\",INDEX('Wattage Table'!$F$23:$F$451,MATCH(H74,'Wattage Table'!$D$23:$D$451,0)))*$L74),\" \",IF(H74=\"-\",\"-\",INDEX('Wattage Table'!$F$23:$F$451,MATCH(H74,'Wattage Table'!$D$23:$D$451,0)))*$L74)","v":" "},{"$f":"IF(D74=\"\",\"\",IF(OR(D74=\"None\",D74=\"\",H74=\"\"),\"No\",IF(VLOOKUP(H74,'Wattage Table'!$D:$F,3,0)*L74/F74<=VLOOKUP(D74,Validation!$O$7:$Q$9,3,0),\"No\",\"Yes\")))","v":""}]
[null,54,null,null,{"$f":"IF(D75=\"\",\"\",IF(D75=\"None\",\"None\",INDEX('Lighting Controls Summary'!$D$19:$D$22,MATCH(D75,'Lighting Controls Summary'!$C$19:$C$22,0),1)))","v":""},null,null,null,{"$f":"IF(H75=\"\",\"\",VLOOKUP(H75,'Wattage Table'!$D:$E,2,0))","v":""},null,0,null,{"$f":"IF(OR(H75=\"\",R75=\"No\"),0,(((VLOOKUP(H75,'Wattage Table'!$D:$F,3,0)*J75)-(VLOOKUP(H75,'Wattage Table'!$D:$F,3,0)*(J75-K75)))*L75)/1000)","v":0},{"$f":"IF(OR(H75=\"\",R75=\"No\"),0,(VLOOKUP(H75,'Wattage Table'!$D:$F,3,0)*L75)/1000*0.25)","v":0},0,0,{"$f":"IF(ISERROR(IF(H75=\"-\",\"-\",INDEX('Wattage Table'!$F$23:$F$451,MATCH(H75,'Wattage Table'!$D$23:$D$451,0)))*$L75),\" \",IF(H75=\"-\",\"-\",INDEX('Wattage Table'!$F$23:$F$451,MATCH(H75,'Wattage Table'!$D$23:$D$451,0)))*$L75)","v":" "},{"$f":"IF(D75=\"\",\"\",IF(OR(D75=\"None\",D75=\"\",H75=\"\"),\"No\",IF(VLOOKUP(H75,'Wattage Table'!$D:$F,3,0)*L75/F75<=VLOOKUP(D75,Validation!$O$7:$Q$9,3,0),\"No\",\"Yes\")))","v":""}]
[null,55,null,null,{"$f":"IF(D76=\"\",\"\",IF(D76=\"None\",\"None\",INDEX('Lighting Controls Summary'!$D$19:$D$22,MATCH(D76,'Lighting Controls Summary'!$C$19:$C$22,0),1)))","v":""},null,null,null,{"$f":"IF(H76=\"\",\"\",VLOOKUP(H76,'Wattage Table'!$D:$E,2,0))","v":""},null,0,null,{"$f":"IF(OR(H76=\"\",R76=\"No\"),0,(((VLOOKUP(H76,'Wattage Table'!$D:$F,3,0)*J76)-(VLOOKUP(H76,'Wattage Table'!$D:$F,3,0)*(J76-K76)))*L76)/1000)","v":0},{"$f":"IF(OR(H76=\"\",R76=\"No\"),0,(VLOOKUP(H76,'Wattage Table'!$D:$F,3,0)*L76)/1000*0.25)","v":0},0,0,{"$f":"IF(ISERROR(IF(H76=\"-\",\"-\",INDEX('Wattage Table'!$F$23:$F$451,MATCH(H76,'Wattage Table'!$D$23:$D$451,0)))*$L76),\" \",IF(H76=\"-\",\"-\",INDEX('Wattage Table'!$F$23:$F$451,MATCH(H76,'Wattage Table'!$D$23:$D$451,0)))*$L76)","v":" "},{"$f":"IF(D76=\"\",\"\",IF(OR(D76=\"None\",D76=\"\",H76=\"\"),\"No\",IF(VLOOKUP(H76,'Wattage Table'!$D:$F,3,0)*L76/F76<=VLOOKUP(D76,Validation!$O$7:$Q$9,3,0),\"No\",\"Yes\")))","v":""}]
[null,56,null,null,{"$f":"IF(D77=\"\",\"\",IF(D77=\"None\",\"None\",INDEX('Lighting Controls Summary'!$D$19:$D$22,MATCH(D77,'Lighting Controls Summary'!$C$19:$C$22,0),1)))","v":""},null,null,null,{"$f":"IF(H77=\"\",\"\",VLOOKUP(H77,'Wattage Table'!$D:$E,2,0))","v":""},null,0,null,{"$f":"IF(OR(H77=\"\",R77=\"No\"),0,(((VLOOKUP(H77,'Wattage Table'!$D:$F,3,0)*J77)-(VLOOKUP(H77,'Wattage Table'!$D:$F,3,0)*(J77-K77)))*L77)/1000)","v":0},{"$f":"IF(OR(H77=\"\",R77=\"No\"),0,(VLOOKUP(H77,'Wattage Table'!$D:$F,3,0)*L77)/1000*0.25)","v":0},0,0,{"$f":"IF(ISERROR(IF(H77=\"-\",\"-\",INDEX('Wattage Table'!$F$23:$F$451,MATCH(H77,'Wattage Table'!$D$23:$D$451,0)))*$L77),\" \",IF(H77=\"-\",\"-\",INDEX('Wattage Table'!$F$23:$F$451,MATCH(H77,'Wattage Table'!$D$23:$D$451,0)))*$L77)","v":" "},{"$f":"IF(D77=\"\",\"\",IF(OR(D77=\"None\",D77=\"\",H77=\"\"),\"No\",IF(VLOOKUP(H77,'Wattage Table'!$D:$F,3,0)*L77/F77<=VLOOKUP(D77,Validation!$O$7:$Q$9,3,0),\"No\",\"Yes\")))","v":""}]
[null,57,null,null,{"$f":"IF(D78=\"\",\"\",IF(D78=\"None\",\"None\",INDEX('Lighting Controls Summary'!$D$19:$D$22,MATCH(D78,'Lighting Controls Summary'!$C$19:$C$22,0),1)))","v":""},null,null,null,{"$f":"IF(H78=\"\",\"\",VLOOKUP(H78,'Wattage Table'!$D:$E,2,0))","v":""},null,0,null,{"$f":"IF(OR(H78=\"\",R78=\"No\"),0,(((VLOOKUP(H78,'Wattage Table'!$D:$F,3,0)*J78)-(VLOOKUP(H78,'Wattage Table'!$D:$F,3,0)*(J78-K78)))*L78)/1000)","v":0},{"$f":"IF(OR(H78=\"\",R78=\"No\"),0,(VLOOKUP(H78,'Wattage Table'!$D:$F,3,0)*L78)/1000*0.25)","v":0},0,0,{"$f":"IF(ISERROR(IF(H78=\"-\",\"-\",INDEX('Wattage Table'!$F$23:$F$451,MATCH(H78,'Wattage Table'!$D$23:$D$451,0)))*$L78),\" \",IF(H78=\"-\",\"-\",INDEX('Wattage Table'!$F$23:$F$451,MATCH(H78,'Wattage Table'!$D$23:$D$451,0)))*$L78)","v":" "},{"$f":"IF(D78=\"\",\"\",IF(OR(D78=\"None\",D78=\"\",H78=\"\"),\"No\",IF(VLOOKUP(H78,'Wattage Table'!$D:$F,3,0)*L78/F78<=VLOOKUP(D78,Validation!$O$7:$Q$9,3,0),\"No\",\"Yes\")))","v":""}]
[null,58,null,null,{"$f":"IF(D79=\"\",\"\",IF(D79=\"None\",\"None\",INDEX('Lighting Controls Summary'!$D$19:$D$22,MATCH(D79,'Lighting Controls Summary'!$C$19:$C$22,0),1)))","v":""},null,null,null,{"$f":"IF(H79=\"\",\"\",VLOOKUP(H79,'Wattage Table'!$D:$E,2,0))","v":""},null,0,null,{"$f":"IF(OR(H79=\"\",R79=\"No\"),0,(((VLOOKUP(H79,'Wattage Table'!$D:$F,3,0)*J79)-(VLOOKUP(H79,'Wattage Table'!$D:$F,3,0)*(J79-K79)))*L79)/1000)","v":0},{"$f":"IF(OR(H79=\"\",R79=\"No\"),0,(VLOOKUP(H79,'Wattage Table'!$D:$F,3,0)*L79)/1000*0.25)","v":0},0,0,{"$f":"IF(ISERROR(IF(H79=\"-\",\"-\",INDEX('Wattage Table'!$F$23:$F$451,MATCH(H79,'Wattage Table'!$D$23:$D$451,0)))*$L79),\" \",IF(H79=\"-\",\"-\",INDEX('Wattage Table'!$F$23:$F$451,MATCH(H79,'Wattage Table'!$D$23:$D$451,0)))*$L79)","v":" "},{"$f":"IF(D79=\"\",\"\",IF(OR(D79=\"None\",D79=\"\",H79=\"\"),\"No\",IF(VLOOKUP(H79,'Wattage Table'!$D:$F,3,0)*L79/F79<=VLOOKUP(D79,Validation!$O$7:$Q$9,3,0),\"No\",\"Yes\")))","v":""}]
[null,59,null,null,{"$f":"IF(D80=\"\",\"\",IF(D80=\"None\",\"None\",INDEX('Lighting Controls Summary'!$D$19:$D$22,MATCH(D80,'Lighting Controls Summary'!$C$19:$C$22,0),1)))","v":""},null,null,null,{"$f":"IF(H80=\"\",\"\",VLOOKUP(H80,'Wattage Table'!$D:$E,2,0))","v":""},null,0,null,{"$f":"IF(OR(H80=\"\",R80=\"No\"),0,(((VLOOKUP(H80,'Wattage Table'!$D:$F,3,0)*J80)-(VLOOKUP(H80,'Wattage Table'!$D:$F,3,0)*(J80-K80)))*L80)/1000)","v":0},{"$f":"IF(OR(H80=\"\",R80=\"No\"),0,(VLOOKUP(H80,'Wattage Table'!$D:$F,3,0)*L80)/1000*0.25)","v":0},0,0,{"$f":"IF(ISERROR(IF(H80=\"-\",\"-\",INDEX('Wattage Table'!$F$23:$F$451,MATCH(H80,'Wattage Table'!$D$23:$D$451,0)))*$L80),\" \",IF(H80=\"-\",\"-\",INDEX('Wattage Table'!$F$23:$F$451,MATCH(H80,'Wattage Table'!$D$23:$D$451,0)))*$L80)","v":" "},{"$f":"IF(D80=\"\",\"\",IF(OR(D80=\"None\",D80=\"\",H80=\"\"),\"No\",IF(VLOOKUP(H80,'Wattage Table'!$D:$F,3,0)*L80/F80<=VLOOKUP(D80,Validation!$O$7:$Q$9,3,0),\"No\",\"Yes\")))","v":""}]
[null,60,null,null,{"$f":"IF(D81=\"\",\"\",IF(D81=\"None\",\"None\",INDEX('Lighting Controls Summary'!$D$19:$D$22,MATCH(D81,'Lighting Controls Summary'!$C$19:$C$22,0),1)))","v":""},null,null,null,{"$f":"IF(H81=\"\",\"\",VLOOKUP(H81,'Wattage Table'!$D:$E,2,0))","v":""},null,0,null,{"$f":"IF(OR(H81=\"\",R81=\"No\"),0,(((VLOOKUP(H81,'Wattage Table'!$D:$F,3,0)*J81)-(VLOOKUP(H81,'Wattage Table'!$D:$F,3,0)*(J81-K81)))*L81)/1000)","v":0},{"$f":"IF(OR(H81=\"\",R81=\"No\"),0,(VLOOKUP(H81,'Wattage Table'!$D:$F,3,0)*L81)/1000*0.25)","v":0},0,0,{"$f":"IF(ISERROR(IF(H81=\"-\",\"-\",INDEX('Wattage Table'!$F$23:$F$451,MATCH(H81,'Wattage Table'!$D$23:$D$451,0)))*$L81),\" \",IF(H81=\"-\",\"-\",INDEX('Wattage Table'!$F$23:$F$451,MATCH(H81,'Wattage Table'!$D$23:$D$451,0)))*$L81)","v":" "},{"$f":"IF(D81=\"\",\"\",IF(OR(D81=\"None\",D81=\"\",H81=\"\"),\"No\",IF(VLOOKUP(H81,'Wattage Table'!$D:$F,3,0)*L81/F81<=VLOOKUP(D81,Validation!$O$7:$Q$9,3,0),\"No\",\"Yes\")))","v":""}]
[null,61,null,null,{"$f":"IF(D82=\"\",\"\",IF(D82=\"None\",\"None\",INDEX('Lighting Controls Summary'!$D$19:$D$22,MATCH(D82,'Lighting Controls Summary'!$C$19:$C$22,0),1)))","v":""},null,null,null,{"$f":"IF(H82=\"\",\"\",VLOOKUP(H82,'Wattage Table'!$D:$E,2,0))","v":""},null,0,null,{"$f":"IF(OR(H82=\"\",R82=\"No\"),0,(((VLOOKUP(H82,'Wattage Table'!$D:$F,3,0)*J82)-(VLOOKUP(H82,'Wattage Table'!$D:$F,3,0)*(J82-K82)))*L82)/1000)","v":0},{"$f":"IF(OR(H82=\"\",R82=\"No\"),0,(VLOOKUP(H82,'Wattage Table'!$D:$F,3,0)*L82)/1000*0.25)","v":0},0,0,{"$f":"IF(ISERROR(IF(H82=\"-\",\"-\",INDEX('Wattage Table'!$F$23:$F$451,MATCH(H82,'Wattage Table'!$D$23:$D$451,0)))*$L82),\" \",IF(H82=\"-\",\"-\",INDEX('Wattage Table'!$F$23:$F$451,MATCH(H82,'Wattage Table'!$D$23:$D$451,0)))*$L82)","v":" "},{"$f":"IF(D82=\"\",\"\",IF(OR(D82=\"None\",D82=\"\",H82=\"\"),\"No\",IF(VLOOKUP(H82,'Wattage Table'!$D:$F,3,0)*L82/F82<=VLOOKUP(D82,Validation!$O$7:$Q$9,3,0),\"No\",\"Yes\")))","v":""}]
[null,62,null,null,{"$f":"IF(D83=\"\",\"\",IF(D83=\"None\",\"None\",INDEX('Lighting Controls Summary'!$D$19:$D$22,MATCH(D83,'Lighting Controls Summary'!$C$19:$C$22,0),1)))","v":""},null,null,null,{"$f":"IF(H83=\"\",\"\",VLOOKUP(H83,'Wattage Table'!$D:$E,2,0))","v":""},null,0,null,{"$f":"IF(OR(H83=\"\",R83=\"No\"),0,(((VLOOKUP(H83,'Wattage Table'!$D:$F,3,0)*J83)-(VLOOKUP(H83,'Wattage Table'!$D:$F,3,0)*(J83-K83)))*L83)/1000)","v":0},{"$f":"IF(OR(H83=\"\",R83=\"No\"),0,(VLOOKUP(H83,'Wattage Table'!$D:$F,3,0)*L83)/1000*0.25)","v":0},0,0,{"$f":"IF(ISERROR(IF(H83=\"-\",\"-\",INDEX('Wattage Table'!$F$23:$F$451,MATCH(H83,'Wattage Table'!$D$23:$D$451,0)))*$L83),\" \",IF(H83=\"-\",\"-\",INDEX('Wattage Table'!$F$23:$F$451,MATCH(H83,'Wattage Table'!$D$23:$D$451,0)))*$L83)","v":" "},{"$f":"IF(D83=\"\",\"\",IF(OR(D83=\"None\",D83=\"\",H83=\"\"),\"No\",IF(VLOOKUP(H83,'Wattage Table'!$D:$F,3,0)*L83/F83<=VLOOKUP(D83,Validation!$O$7:$Q$9,3,0),\"No\",\"Yes\")))","v":""}]
[null,63,null,null,{"$f":"IF(D84=\"\",\"\",IF(D84=\"None\",\"None\",INDEX('Lighting Controls Summary'!$D$19:$D$22,MATCH(D84,'Lighting Controls Summary'!$C$19:$C$22,0),1)))","v":""},null,null,null,{"$f":"IF(H84=\"\",\"\",VLOOKUP(H84,'Wattage Table'!$D:$E,2,0))","v":""},null,0,null,{"$f":"IF(OR(H84=\"\",R84=\"No\"),0,(((VLOOKUP(H84,'Wattage Table'!$D:$F,3,0)*J84)-(VLOOKUP(H84,'Wattage Table'!$D:$F,3,0)*(J84-K84)))*L84)/1000)","v":0},{"$f":"IF(OR(H84=\"\",R84=\"No\"),0,(VLOOKUP(H84,'Wattage Table'!$D:$F,3,0)*L84)/1000*0.25)","v":0},0,0,{"$f":"IF(ISERROR(IF(H84=\"-\",\"-\",INDEX('Wattage Table'!$F$23:$F$451,MATCH(H84,'Wattage Table'!$D$23:$D$451,0)))*$L84),\" \",IF(H84=\"-\",\"-\",INDEX('Wattage Table'!$F$23:$F$451,MATCH(H84,'Wattage Table'!$D$23:$D$451,0)))*$L84)","v":" "},{"$f":"IF(D84=\"\",\"\",IF(OR(D84=\"None\",D84=\"\",H84=\"\"),\"No\",IF(VLOOKUP(H84,'Wattage Table'!$D:$F,3,0)*L84/F84<=VLOOKUP(D84,Validation!$O$7:$Q$9,3,0),\"No\",\"Yes\")))","v":""}]
[null,64,null,null,{"$f":"IF(D85=\"\",\"\",IF(D85=\"None\",\"None\",INDEX('Lighting Controls Summary'!$D$19:$D$22,MATCH(D85,'Lighting Controls Summary'!$C$19:$C$22,0),1)))","v":""},null,null,null,{"$f":"IF(H85=\"\",\"\",VLOOKUP(H85,'Wattage Table'!$D:$E,2,0))","v":""},null,0,null,{"$f":"IF(OR(H85=\"\",R85=\"No\"),0,(((VLOOKUP(H85,'Wattage Table'!$D:$F,3,0)*J85)-(VLOOKUP(H85,'Wattage Table'!$D:$F,3,0)*(J85-K85)))*L85)/1000)","v":0},{"$f":"IF(OR(H85=\"\",R85=\"No\"),0,(VLOOKUP(H85,'Wattage Table'!$D:$F,3,0)*L85)/1000*0.25)","v":0},0,0,{"$f":"IF(ISERROR(IF(H85=\"-\",\"-\",INDEX('Wattage Table'!$F$23:$F$451,MATCH(H85,'Wattage Table'!$D$23:$D$451,0)))*$L85),\" \",IF(H85=\"-\",\"-\",INDEX('Wattage Table'!$F$23:$F$451,MATCH(H85,'Wattage Table'!$D$23:$D$451,0)))*$L85)","v":" "},{"$f":"IF(D85=\"\",\"\",IF(OR(D85=\"None\",D85=\"\",H85=\"\"),\"No\",IF(VLOOKUP(H85,'Wattage Table'!$D:$F,3,0)*L85/F85<=VLOOKUP(D85,Validation!$O$7:$Q$9,3,0),\"No\",\"Yes\")))","v":""}]
[null,65,null,null,{"$f":"IF(D86=\"\",\"\",IF(D86=\"None\",\"None\",INDEX('Lighting Controls Summary'!$D$19:$D$22,MATCH(D86,'Lighting Controls Summary'!$C$19:$C$22,0),1)))","v":""},null,null,null,{"$f":"IF(H86=\"\",\"\",VLOOKUP(H86,'Wattage Table'!$D:$E,2,0))","v":""},null,{"$f":"IF(OR(D86=\"\",J86=\"\"),0,J86*0.25)","v":0},null,{"$f":"IF(OR(H86=\"\",R86=\"No\"),0,(((VLOOKUP(H86,'Wattage Table'!$D:$F,3,0)*J86)-(VLOOKUP(H86,'Wattage Table'!$D:$F,3,0)*(J86-K86)))*L86)/1000)","v":0},{"$f":"IF(OR(H86=\"\",R86=\"No\"),0,(VLOOKUP(H86,'Wattage Table'!$D:$F,3,0)*L86)/1000*0.25)","v":0},0,{"$f":"IF(O86<=0,0,F86)","v":0},{"$f":"IF(ISERROR(IF(H86=\"-\",\"-\",INDEX('Wattage Table'!$F$23:$F$451,MATCH(H86,'Wattage Table'!$D$23:$D$451,0)))*$L86),\" \",IF(H86=\"-\",\"-\",INDEX('Wattage Table'!$F$23:$F$451,MATCH(H86,'Wattage Table'!$D$23:$D$451,0)))*$L86)","v":" "},{"$f":"IF(D86=\"\",\"\",IF(OR(D86=\"None\",D86=\"\",H86=\"\"),\"No\",IF(VLOOKUP(H86,'Wattage Table'!$D:$F,3,0)*L86/F86<=VLOOKUP(D86,Validation!$O$7:$Q$9,3,0),\"No\",\"Yes\")))","v":""}]
[null,66,null,null,{"$f":"IF(D87=\"\",\"\",IF(D87=\"None\",\"None\",INDEX('Lighting Controls Summary'!$D$19:$D$22,MATCH(D87,'Lighting Controls Summary'!$C$19:$C$22,0),1)))","v":""},null,null,null,{"$f":"IF(H87=\"\",\"\",VLOOKUP(H87,'Wattage Table'!$D:$E,2,0))","v":""},null,0,null,{"$f":"IF(OR(H87=\"\",R87=\"No\"),0,(((VLOOKUP(H87,'Wattage Table'!$D:$F,3,0)*J87)-(VLOOKUP(H87,'Wattage Table'!$D:$F,3,0)*(J87-K87)))*L87)/1000)","v":0},{"$f":"IF(OR(H87=\"\",R87=\"No\"),0,(VLOOKUP(H87,'Wattage Table'!$D:$F,3,0)*L87)/1000*0.25)","v":0},{"$f":"IF(OR(D87=\"None\",M87<=0,N87<=0,D87=\"\",H87=\"\",R87=\"No\"),0,IF(OR(D87=\"80B\",D87=\"80E\"),F87*35,IF(OR(D87=\"80A\",D87=\"80C\"),F87*15,0)))","v":0},0,{"$f":"IF(ISERROR(IF(H87=\"-\",\"-\",INDEX('Wattage Table'!$F$23:$F$451,MATCH(H87,'Wattage Table'!$D$23:$D$451,0)))*$L87),\" \",IF(H87=\"-\",\"-\",INDEX('Wattage Table'!$F$23:$F$451,MATCH(H87,'Wattage Table'!$D$23:$D$451,0)))*$L87)","v":" "},{"$f":"IF(D87=\"\",\"\",IF(OR(D87=\"None\",D87=\"\",H87=\"\"),\"No\",IF(VLOOKUP(H87,'Wattage Table'!$D:$F,3,0)*L87/F87<=VLOOKUP(D87,Validation!$O$7:$Q$9,3,0),\"No\",\"Yes\")))","v":""}]
[null,67,null,null,{"$f":"IF(D88=\"\",\"\",IF(D88=\"None\",\"None\",INDEX('Lighting Controls Summary'!$D$19:$D$22,MATCH(D88,'Lighting Controls Summary'!$C$19:$C$22,0),1)))","v":""},null,null,null,{"$f":"IF(H88=\"\",\"\",VLOOKUP(H88,'Wattage Table'!$D:$E,2,0))","v":""},null,0,null,{"$f":"IF(OR(H88=\"\",R88=\"No\"),0,(((VLOOKUP(H88,'Wattage Table'!$D:$F,3,0)*J88)-(VLOOKUP(H88,'Wattage Table'!$D:$F,3,0)*(J88-K88)))*L88)/1000)","v":0},{"$f":"IF(OR(H88=\"\",R88=\"No\"),0,(VLOOKUP(H88,'Wattage Table'!$D:$F,3,0)*L88)/1000*0.25)","v":0},0,0,{"$f":"IF(ISERROR(IF(H88=\"-\",\"-\",INDEX('Wattage Table'!$F$23:$F$451,MATCH(H88,'Wattage Table'!$D$23:$D$451,0)))*$L88),\" \",IF(H88=\"-\",\"-\",INDEX('Wattage Table'!$F$23:$F$451,MATCH(H88,'Wattage Table'!$D$23:$D$451,0)))*$L88)","v":" "},{"$f":"IF(D88=\"\",\"\",IF(OR(D88=\"None\",D88=\"\",H88=\"\"),\"No\",IF(VLOOKUP(H88,'Wattage Table'!$D:$F,3,0)*L88/F88<=VLOOKUP(D88,Validation!$O$7:$Q$9,3,0),\"No\",\"Yes\")))","v":""}]
[null,68,null,null,{"$f":"IF(D89=\"\",\"\",IF(D89=\"None\",\"None\",INDEX('Lighting Controls Summary'!$D$19:$D$22,MATCH(D89,'Lighting Controls Summary'!$C$19:$C$22,0),1)))","v":""},null,null,null,{"$f":"IF(H89=\"\",\"\",VLOOKUP(H89,'Wattage Table'!$D:$E,2,0))","v":""},null,0,null,{"$f":"IF(OR(H89=\"\",R89=\"No\"),0,(((VLOOKUP(H89,'Wattage Table'!$D:$F,3,0)*J89)-(VLOOKUP(H89,'Wattage Table'!$D:$F,3,0)*(J89-K89)))*L89)/1000)","v":0},{"$f":"IF(OR(H89=\"\",R89=\"No\"),0,(VLOOKUP(H89,'Wattage Table'!$D:$F,3,0)*L89)/1000*0.25)","v":0},0,0,{"$f":"IF(ISERROR(IF(H89=\"-\",\"-\",INDEX('Wattage Table'!$F$23:$F$451,MATCH(H89,'Wattage Table'!$D$23:$D$451,0)))*$L89),\" \",IF(H89=\"-\",\"-\",INDEX('Wattage Table'!$F$23:$F$451,MATCH(H89,'Wattage Table'!$D$23:$D$451,0)))*$L89)","v":" "},{"$f":"IF(D89=\"\",\"\",IF(OR(D89=\"None\",D89=\"\",H89=\"\"),\"No\",IF(VLOOKUP(H89,'Wattage Table'!$D:$F,3,0)*L89/F89<=VLOOKUP(D89,Validation!$O$7:$Q$9,3,0),\"No\",\"Yes\")))","v":""}]
[null,69,null,null,{"$f":"IF(D90=\"\",\"\",IF(D90=\"None\",\"None\",INDEX('Lighting Controls Summary'!$D$19:$D$22,MATCH(D90,'Lighting Controls Summary'!$C$19:$C$22,0),1)))","v":""},null,null,null,{"$f":"IF(H90=\"\",\"\",VLOOKUP(H90,'Wattage Table'!$D:$E,2,0))","v":""},null,0,null,{"$f":"IF(OR(H90=\"\",R90=\"No\"),0,(((VLOOKUP(H90,'Wattage Table'!$D:$F,3,0)*J90)-(VLOOKUP(H90,'Wattage Table'!$D:$F,3,0)*(J90-K90)))*L90)/1000)","v":0},{"$f":"IF(OR(H90=\"\",R90=\"No\"),0,(VLOOKUP(H90,'Wattage Table'!$D:$F,3,0)*L90)/1000*0.25)","v":0},0,0,{"$f":"IF(ISERROR(IF(H90=\"-\",\"-\",INDEX('Wattage Table'!$F$23:$F$451,MATCH(H90,'Wattage Table'!$D$23:$D$451,0)))*$L90),\" \",IF(H90=\"-\",\"-\",INDEX('Wattage Table'!$F$23:$F$451,MATCH(H90,'Wattage Table'!$D$23:$D$451,0)))*$L90)","v":" "},{"$f":"IF(D90=\"\",\"\",IF(OR(D90=\"None\",D90=\"\",H90=\"\"),\"No\",IF(VLOOKUP(H90,'Wattage Table'!$D:$F,3,0)*L90/F90<=VLOOKUP(D90,Validation!$O$7:$Q$9,3,0),\"No\",\"Yes\")))","v":""}]
[null,70,null,null,{"$f":"IF(D91=\"\",\"\",IF(D91=\"None\",\"None\",INDEX('Lighting Controls Summary'!$D$19:$D$22,MATCH(D91,'Lighting Controls Summary'!$C$19:$C$22,0),1)))","v":""},null,null,null,{"$f":"IF(H91=\"\",\"\",VLOOKUP(H91,'Wattage Table'!$D:$E,2,0))","v":""},null,0,null,{"$f":"IF(OR(H91=\"\",R91=\"No\"),0,(((VLOOKUP(H91,'Wattage Table'!$D:$F,3,0)*J91)-(VLOOKUP(H91,'Wattage Table'!$D:$F,3,0)*(J91-K91)))*L91)/1000)","v":0},{"$f":"IF(OR(H91=\"\",R91=\"No\"),0,(VLOOKUP(H91,'Wattage Table'!$D:$F,3,0)*L91)/1000*0.25)","v":0},0,0,{"$f":"IF(ISERROR(IF(H91=\"-\",\"-\",INDEX('Wattage Table'!$F$23:$F$451,MATCH(H91,'Wattage Table'!$D$23:$D$451,0)))*$L91),\" \",IF(H91=\"-\",\"-\",INDEX('Wattage Table'!$F$23:$F$451,MATCH(H91,'Wattage Table'!$D$23:$D$451,0)))*$L91)","v":" "},{"$f":"IF(D91=\"\",\"\",IF(OR(D91=\"None\",D91=\"\",H91=\"\"),\"No\",IF(VLOOKUP(H91,'Wattage Table'!$D:$F,3,0)*L91/F91<=VLOOKUP(D91,Validation!$O$7:$Q$9,3,0),\"No\",\"Yes\")))","v":""}]
[null,71,null,null,{"$f":"IF(D92=\"\",\"\",IF(D92=\"None\",\"None\",INDEX('Lighting Controls Summary'!$D$19:$D$22,MATCH(D92,'Lighting Controls Summary'!$C$19:$C$22,0),1)))","v":""},null,null,null,{"$f":"IF(H92=\"\",\"\",VLOOKUP(H92,'Wattage Table'!$D:$E,2,0))","v":""},null,0,null,{"$f":"IF(OR(H92=\"\",R92=\"No\"),0,(((VLOOKUP(H92,'Wattage Table'!$D:$F,3,0)*J92)-(VLOOKUP(H92,'Wattage Table'!$D:$F,3,0)*(J92-K92)))*L92)/1000)","v":0},{"$f":"IF(OR(H92=\"\",R92=\"No\"),0,(VLOOKUP(H92,'Wattage Table'!$D:$F,3,0)*L92)/1000*0.25)","v":0},0,0,{"$f":"IF(ISERROR(IF(H92=\"-\",\"-\",INDEX('Wattage Table'!$F$23:$F$451,MATCH(H92,'Wattage Table'!$D$23:$D$451,0)))*$L92),\" \",IF(H92=\"-\",\"-\",INDEX('Wattage Table'!$F$23:$F$451,MATCH(H92,'Wattage Table'!$D$23:$D$451,0)))*$L92)","v":" "},{"$f":"IF(D92=\"\",\"\",IF(OR(D92=\"None\",D92=\"\",H92=\"\"),\"No\",IF(VLOOKUP(H92,'Wattage Table'!$D:$F,3,0)*L92/F92<=VLOOKUP(D92,Validation!$O$7:$Q$9,3,0),\"No\",\"Yes\")))","v":""}]
[null,72,null,null,{"$f":"IF(D93=\"\",\"\",IF(D93=\"None\",\"None\",INDEX('Lighting Controls Summary'!$D$19:$D$22,MATCH(D93,'Lighting Controls Summary'!$C$19:$C$22,0),1)))","v":""},null,null,null,{"$f":"IF(H93=\"\",\"\",VLOOKUP(H93,'Wattage Table'!$D:$E,2,0))","v":""},null,0,null,{"$f":"IF(OR(H93=\"\",R93=\"No\"),0,(((VLOOKUP(H93,'Wattage Table'!$D:$F,3,0)*J93)-(VLOOKUP(H93,'Wattage Table'!$D:$F,3,0)*(J93-K93)))*L93)/1000)","v":0},{"$f":"IF(OR(H93=\"\",R93=\"No\"),0,(VLOOKUP(H93,'Wattage Table'!$D:$F,3,0)*L93)/1000*0.25)","v":0},0,0,{"$f":"IF(ISERROR(IF(H93=\"-\",\"-\",INDEX('Wattage Table'!$F$23:$F$451,MATCH(H93,'Wattage Table'!$D$23:$D$451,0)))*$L93),\" \",IF(H93=\"-\",\"-\",INDEX('Wattage Table'!$F$23:$F$451,MATCH(H93,'Wattage Table'!$D$23:$D$451,0)))*$L93)","v":" "},{"$f":"IF(D93=\"\",\"\",IF(OR(D93=\"None\",D93=\"\",H93=\"\"),\"No\",IF(VLOOKUP(H93,'Wattage Table'!$D:$F,3,0)*L93/F93<=VLOOKUP(D93,Validation!$O$7:$Q$9,3,0),\"No\",\"Yes\")))","v":""}]
[null,73,null,null,{"$f":"IF(D94=\"\",\"\",IF(D94=\"None\",\"None\",INDEX('Lighting Controls Summary'!$D$19:$D$22,MATCH(D94,'Lighting Controls Summary'!$C$19:$C$22,0),1)))","v":""},null,null,null,{"$f":"IF(H94=\"\",\"\",VLOOKUP(H94,'Wattage Table'!$D:$E,2,0))","v":""},null,0,null,{"$f":"IF(OR(H94=\"\",R94=\"No\"),0,(((VLOOKUP(H94,'Wattage Table'!$D:$F,3,0)*J94)-(VLOOKUP(H94,'Wattage Table'!$D:$F,3,0)*(J94-K94)))*L94)/1000)","v":0},{"$f":"IF(OR(H94=\"\",R94=\"No\"),0,(VLOOKUP(H94,'Wattage Table'!$D:$F,3,0)*L94)/1000*0.25)","v":0},0,0,{"$f":"IF(ISERROR(IF(H94=\"-\",\"-\",INDEX('Wattage Table'!$F$23:$F$451,MATCH(H94,'Wattage Table'!$D$23:$D$451,0)))*$L94),\" \",IF(H94=\"-\",\"-\",INDEX('Wattage Table'!$F$23:$F$451,MATCH(H94,'Wattage Table'!$D$23:$D$451,0)))*$L94)","v":" "},{"$f":"IF(D94=\"\",\"\",IF(OR(D94=\"None\",D94=\"\",H94=\"\"),\"No\",IF(VLOOKUP(H94,'Wattage Table'!$D:$F,3,0)*L94/F94<=VLOOKUP(D94,Validation!$O$7:$Q$9,3,0),\"No\",\"Yes\")))","v":""}]
[null,74,null,null,{"$f":"IF(D95=\"\",\"\",IF(D95=\"None\",\"None\",INDEX('Lighting Controls Summary'!$D$19:$D$22,MATCH(D95,'Lighting Controls Summary'!$C$19:$C$22,0),1)))","v":""},null,null,null,{"$f":"IF(H95=\"\",\"\",VLOOKUP(H95,'Wattage Table'!$D:$E,2,0))","v":""},null,0,null,{"$f":"IF(OR(H95=\"\",R95=\"No\"),0,(((VLOOKUP(H95,'Wattage Table'!$D:$F,3,0)*J95)-(VLOOKUP(H95,'Wattage Table'!$D:$F,3,0)*(J95-K95)))*L95)/1000)","v":0},{"$f":"IF(OR(H95=\"\",R95=\"No\"),0,(VLOOKUP(H95,'Wattage Table'!$D:$F,3,0)*L95)/1000*0.25)","v":0},0,0,{"$f":"IF(ISERROR(IF(H95=\"-\",\"-\",INDEX('Wattage Table'!$F$23:$F$451,MATCH(H95,'Wattage Table'!$D$23:$D$451,0)))*$L95),\" \",IF(H95=\"-\",\"-\",INDEX('Wattage Table'!$F$23:$F$451,MATCH(H95,'Wattage Table'!$D$23:$D$451,0)))*$L95)","v":" "},{"$f":"IF(D95=\"\",\"\",IF(OR(D95=\"None\",D95=\"\",H95=\"\"),\"No\",IF(VLOOKUP(H95,'Wattage Table'!$D:$F,3,0)*L95/F95<=VLOOKUP(D95,Validation!$O$7:$Q$9,3,0),\"No\",\"Yes\")))","v":""}]
[null,75,null,null,{"$f":"IF(D96=\"\",\"\",IF(D96=\"None\",\"None\",INDEX('Lighting Controls Summary'!$D$19:$D$22,MATCH(D96,'Lighting Controls Summary'!$C$19:$C$22,0),1)))","v":""},null,null,null,{"$f":"IF(H96=\"\",\"\",VLOOKUP(H96,'Wattage Table'!$D:$E,2,0))","v":""},null,0,null,{"$f":"IF(OR(H96=\"\",R96=\"No\"),0,(((VLOOKUP(H96,'Wattage Table'!$D:$F,3,0)*J96)-(VLOOKUP(H96,'Wattage Table'!$D:$F,3,0)*(J96-K96)))*L96)/1000)","v":0},{"$f":"IF(OR(H96=\"\",R96=\"No\"),0,(VLOOKUP(H96,'Wattage Table'!$D:$F,3,0)*L96)/1000*0.25)","v":0},0,0,{"$f":"IF(ISERROR(IF(H96=\"-\",\"-\",INDEX('Wattage Table'!$F$23:$F$451,MATCH(H96,'Wattage Table'!$D$23:$D$451,0)))*$L96),\" \",IF(H96=\"-\",\"-\",INDEX('Wattage Table'!$F$23:$F$451,MATCH(H96,'Wattage Table'!$D$23:$D$451,0)))*$L96)","v":" "},{"$f":"IF(D96=\"\",\"\",IF(OR(D96=\"None\",D96=\"\",H96=\"\"),\"No\",IF(VLOOKUP(H96,'Wattage Table'!$D:$F,3,0)*L96/F96<=VLOOKUP(D96,Validation!$O$7:$Q$9,3,0),\"No\",\"Yes\")))","v":""}]
[null,76,null,null,{"$f":"IF(D97=\"\",\"\",IF(D97=\"None\",\"None\",INDEX('Lighting Controls Summary'!$D$19:$D$22,MATCH(D97,'Lighting Controls Summary'!$C$19:$C$22,0),1)))","v":""},null,null,null,{"$f":"IF(H97=\"\",\"\",VLOOKUP(H97,'Wattage Table'!$D:$E,2,0))","v":""},null,0,null,{"$f":"IF(OR(H97=\"\",R97=\"No\"),0,(((VLOOKUP(H97,'Wattage Table'!$D:$F,3,0)*J97)-(VLOOKUP(H97,'Wattage Table'!$D:$F,3,0)*(J97-K97)))*L97)/1000)","v":0},{"$f":"IF(OR(H97=\"\",R97=\"No\"),0,(VLOOKUP(H97,'Wattage Table'!$D:$F,3,0)*L97)/1000*0.25)","v":0},0,0,{"$f":"IF(ISERROR(IF(H97=\"-\",\"-\",INDEX('Wattage Table'!$F$23:$F$451,MATCH(H97,'Wattage Table'!$D$23:$D$451,0)))*$L97),\" \",IF(H97=\"-\",\"-\",INDEX('Wattage Table'!$F$23:$F$451,MATCH(H97,'Wattage Table'!$D$23:$D$451,0)))*$L97)","v":" "},{"$f":"IF(D97=\"\",\"\",IF(OR(D97=\"None\",D97=\"\",H97=\"\"),\"No\",IF(VLOOKUP(H97,'Wattage Table'!$D:$F,3,0)*L97/F97<=VLOOKUP(D97,Validation!$O$7:$Q$9,3,0),\"No\",\"Yes\")))","v":""}]
[null,77,null,null,{"$f":"IF(D98=\"\",\"\",IF(D98=\"None\",\"None\",INDEX('Lighting Controls Summary'!$D$19:$D$22,MATCH(D98,'Lighting Controls Summary'!$C$19:$C$22,0),1)))","v":""},null,null,null,{"$f":"IF(H98=\"\",\"\",VLOOKUP(H98,'Wattage Table'!$D:$E,2,0))","v":""},null,0,null,{"$f":"IF(OR(H98=\"\",R98=\"No\"),0,(((VLOOKUP(H98,'Wattage Table'!$D:$F,3,0)*J98)-(VLOOKUP(H98,'Wattage Table'!$D:$F,3,0)*(J98-K98)))*L98)/1000)","v":0},{"$f":"IF(OR(H98=\"\",R98=\"No\"),0,(VLOOKUP(H98,'Wattage Table'!$D:$F,3,0)*L98)/1000*0.25)","v":0},0,0,{"$f":"IF(ISERROR(IF(H98=\"-\",\"-\",INDEX('Wattage Table'!$F$23:$F$451,MATCH(H98,'Wattage Table'!$D$23:$D$451,0)))*$L98),\" \",IF(H98=\"-\",\"-\",INDEX('Wattage Table'!$F$23:$F$451,MATCH(H98,'Wattage Table'!$D$23:$D$451,0)))*$L98)","v":" "},{"$f":"IF(D98=\"\",\"\",IF(OR(D98=\"None\",D98=\"\",H98=\"\"),\"No\",IF(VLOOKUP(H98,'Wattage Table'!$D:$F,3,0)*L98/F98<=VLOOKUP(D98,Validation!$O$7:$Q$9,3,0),\"No\",\"Yes\")))","v":""}]
[null,78,null,null,{"$f":"IF(D99=\"\",\"\",IF(D99=\"None\",\"None\",INDEX('Lighting Controls Summary'!$D$19:$D$22,MATCH(D99,'Lighting Controls Summary'!$C$19:$C$22,0),1)))","v":""},null,null,null,{"$f":"IF(H99=\"\",\"\",VLOOKUP(H99,'Wattage Table'!$D:$E,2,0))","v":""},null,0,null,{"$f":"IF(OR(H99=\"\",R99=\"No\"),0,(((VLOOKUP(H99,'Wattage Table'!$D:$F,3,0)*J99)-(VLOOKUP(H99,'Wattage Table'!$D:$F,3,0)*(J99-K99)))*L99)/1000)","v":0},{"$f":"IF(OR(H99=\"\",R99=\"No\"),0,(VLOOKUP(H99,'Wattage Table'!$D:$F,3,0)*L99)/1000*0.25)","v":0},0,0,{"$f":"IF(ISERROR(IF(H99=\"-\",\"-\",INDEX('Wattage Table'!$F$23:$F$451,MATCH(H99,'Wattage Table'!$D$23:$D$451,0)))*$L99),\" \",IF(H99=\"-\",\"-\",INDEX('Wattage Table'!$F$23:$F$451,MATCH(H99,'Wattage Table'!$D$23:$D$451,0)))*$L99)","v":" "},{"$f":"IF(D99=\"\",\"\",IF(OR(D99=\"None\",D99=\"\",H99=\"\"),\"No\",IF(VLOOKUP(H99,'Wattage Table'!$D:$F,3,0)*L99/F99<=VLOOKUP(D99,Validation!$O$7:$Q$9,3,0),\"No\",\"Yes\")))","v":""}]
[null,79,null,null,{"$f":"IF(D100=\"\",\"\",IF(D100=\"None\",\"None\",INDEX('Lighting Controls Summary'!$D$19:$D$22,MATCH(D100,'Lighting Controls Summary'!$C$19:$C$22,0),1)))","v":""},null,null,null,{"$f":"IF(H100=\"\",\"\",VLOOKUP(H100,'Wattage Table'!$D:$E,2,0))","v":""},null,0,null,{"$f":"IF(OR(H100=\"\",R100=\"No\"),0,(((VLOOKUP(H100,'Wattage Table'!$D:$F,3,0)*J100)-(VLOOKUP(H100,'Wattage Table'!$D:$F,3,0)*(J100-K100)))*L100)/1000)","v":0},{"$f":"IF(OR(H100=\"\",R100=\"No\"),0,(VLOOKUP(H100,'Wattage Table'!$D:$F,3,0)*L100)/1000*0.25)","v":0},0,0,{"$f":"IF(ISERROR(IF(H100=\"-\",\"-\",INDEX('Wattage Table'!$F$23:$F$451,MATCH(H100,'Wattage Table'!$D$23:$D$451,0)))*$L100),\" \",IF(H100=\"-\",\"-\",INDEX('Wattage Table'!$F$23:$F$451,MATCH(H100,'Wattage Table'!$D$23:$D$451,0)))*$L100)","v":" "},{"$f":"IF(D100=\"\",\"\",IF(OR(D100=\"None\",D100=\"\",H100=\"\"),\"No\",IF(VLOOKUP(H100,'Wattage Table'!$D:$F,3,0)*L100/F100<=VLOOKUP(D100,Validation!$O$7:$Q$9,3,0),\"No\",\"Yes\")))","v":""}]
[null,80,null,null,{"$f":"IF(D101=\"\",\"\",IF(D101=\"None\",\"None\",INDEX('Lighting Controls Summary'!$D$19:$D$22,MATCH(D101,'Lighting Controls Summary'!$C$19:$C$22,0),1)))","v":""},null,null,null,{"$f":"IF(H101=\"\",\"\",VLOOKUP(H101,'Wattage Table'!$D:$E,2,0))","v":""},null,0,null,{"$f":"IF(OR(H101=\"\",R101=\"No\"),0,(((VLOOKUP(H101,'Wattage Table'!$D:$F,3,0)*J101)-(VLOOKUP(H101,'Wattage Table'!$D:$F,3,0)*(J101-K101)))*L101)/1000)","v":0},{"$f":"IF(OR(H101=\"\",R101=\"No\"),0,(VLOOKUP(H101,'Wattage Table'!$D:$F,3,0)*L101)/1000*0.25)","v":0},0,0,{"$f":"IF(ISERROR(IF(H101=\"-\",\"-\",INDEX('Wattage Table'!$F$23:$F$451,MATCH(H101,'Wattage Table'!$D$23:$D$451,0)))*$L101),\" \",IF(H101=\"-\",\"-\",INDEX('Wattage Table'!$F$23:$F$451,MATCH(H101,'Wattage Table'!$D$23:$D$451,0)))*$L101)","v":" "},{"$f":"IF(D101=\"\",\"\",IF(OR(D101=\"None\",D101=\"\",H101=\"\"),\"No\",IF(VLOOKUP(H101,'Wattage Table'!$D:$F,3,0)*L101/F101<=VLOOKUP(D101,Validation!$O$7:$Q$9,3,0),\"No\",\"Yes\")))","v":""}]
[null,81,null,null,{"$f":"IF(D102=\"\",\"\",IF(D102=\"None\",\"None\",INDEX('Lighting Controls Summary'!$D$19:$D$22,MATCH(D102,'Lighting Controls Summary'!$C$19:$C$22,0),1)))","v":""},null,null,null,{"$f":"IF(H102=\"\",\"\",VLOOKUP(H102,'Wattage Table'!$D:$E,2,0))","v":""},null,0,null,{"$f":"IF(OR(H102=\"\",R102=\"No\"),0,(((VLOOKUP(H102,'Wattage Table'!$D:$F,3,0)*J102)-(VLOOKUP(H102,'Wattage Table'!$D:$F,3,0)*(J102-K102)))*L102)/1000)","v":0},{"$f":"IF(OR(H102=\"\",R102=\"No\"),0,(VLOOKUP(H102,'Wattage Table'!$D:$F,3,0)*L102)/1000*0.25)","v":0},0,0,{"$f":"IF(ISERROR(IF(H102=\"-\",\"-\",INDEX('Wattage Table'!$F$23:$F$451,MATCH(H102,'Wattage Table'!$D$23:$D$451,0)))*$L102),\" \",IF(H102=\"-\",\"-\",INDEX('Wattage Table'!$F$23:$F$451,MATCH(H102,'Wattage Table'!$D$23:$D$451,0)))*$L102)","v":" "},{"$f":"IF(D102=\"\",\"\",IF(OR(D102=\"None\",D102=\"\",H102=\"\"),\"No\",IF(VLOOKUP(H102,'Wattage Table'!$D:$F,3,0)*L102/F102<=VLOOKUP(D102,Validation!$O$7:$Q$9,3,0),\"No\",\"Yes\")))","v":""}]
[null,82,null,null,{"$f":"IF(D103=\"\",\"\",IF(D103=\"None\",\"None\",INDEX('Lighting Controls Summary'!$D$19:$D$22,MATCH(D103,'Lighting Controls Summary'!$C$19:$C$22,0),1)))","v":""},null,null,null,{"$f":"IF(H103=\"\",\"\",VLOOKUP(H103,'Wattage Table'!$D:$E,2,0))","v":""},null,0,null,{"$f":"IF(OR(H103=\"\",R103=\"No\"),0,(((VLOOKUP(H103,'Wattage Table'!$D:$F,3,0)*J103)-(VLOOKUP(H103,'Wattage Table'!$D:$F,3,0)*(J103-K103)))*L103)/1000)","v":0},{"$f":"IF(OR(H103=\"\",R103=\"No\"),0,(VLOOKUP(H103,'Wattage Table'!$D:$F,3,0)*L103)/1000*0.25)","v":0},0,0,{"$f":"IF(ISERROR(IF(H103=\"-\",\"-\",INDEX('Wattage Table'!$F$23:$F$451,MATCH(H103,'Wattage Table'!$D$23:$D$451,0)))*$L103),\" \",IF(H103=\"-\",\"-\",INDEX('Wattage Table'!$F$23:$F$451,MATCH(H103,'Wattage Table'!$D$23:$D$451,0)))*$L103)","v":" "},{"$f":"IF(D103=\"\",\"\",IF(OR(D103=\"None\",D103=\"\",H103=\"\"),\"No\",IF(VLOOKUP(H103,'Wattage Table'!$D:$F,3,0)*L103/F103<=VLOOKUP(D103,Validation!$O$7:$Q$9,3,0),\"No\",\"Yes\")))","v":""}]
[null,83,null,null,{"$f":"IF(D104=\"\",\"\",IF(D104=\"None\",\"None\",INDEX('Lighting Controls Summary'!$D$19:$D$22,MATCH(D104,'Lighting Controls Summary'!$C$19:$C$22,0),1)))","v":""},null,null,null,{"$f":"IF(H104=\"\",\"\",VLOOKUP(H104,'Wattage Table'!$D:$E,2,0))","v":""},null,0,null,{"$f":"IF(OR(H104=\"\",R104=\"No\"),0,(((VLOOKUP(H104,'Wattage Table'!$D:$F,3,0)*J104)-(VLOOKUP(H104,'Wattage Table'!$D:$F,3,0)*(J104-K104)))*L104)/1000)","v":0},{"$f":"IF(OR(H104=\"\",R104=\"No\"),0,(VLOOKUP(H104,'Wattage Table'!$D:$F,3,0)*L104)/1000*0.25)","v":0},0,0,{"$f":"IF(ISERROR(IF(H104=\"-\",\"-\",INDEX('Wattage Table'!$F$23:$F$451,MATCH(H104,'Wattage Table'!$D$23:$D$451,0)))*$L104),\" \",IF(H104=\"-\",\"-\",INDEX('Wattage Table'!$F$23:$F$451,MATCH(H104,'Wattage Table'!$D$23:$D$451,0)))*$L104)","v":" "},{"$f":"IF(D104=\"\",\"\",IF(OR(D104=\"None\",D104=\"\",H104=\"\"),\"No\",IF(VLOOKUP(H104,'Wattage Table'!$D:$F,3,0)*L104/F104<=VLOOKUP(D104,Validation!$O$7:$Q$9,3,0),\"No\",\"Yes\")))","v":""}]
[null,84,null,null,{"$f":"IF(D105=\"\",\"\",IF(D105=\"None\",\"None\",INDEX('Lighting Controls Summary'!$D$19:$D$22,MATCH(D105,'Lighting Controls Summary'!$C$19:$C$22,0),1)))","v":""},null,null,null,{"$f":"IF(H105=\"\",\"\",VLOOKUP(H105,'Wattage Table'!$D:$E,2,0))","v":""},null,0,null,{"$f":"IF(OR(H105=\"\",R105=\"No\"),0,(((VLOOKUP(H105,'Wattage Table'!$D:$F,3,0)*J105)-(VLOOKUP(H105,'Wattage Table'!$D:$F,3,0)*(J105-K105)))*L105)/1000)","v":0},{"$f":"IF(OR(H105=\"\",R105=\"No\"),0,(VLOOKUP(H105,'Wattage Table'!$D:$F,3,0)*L105)/1000*0.25)","v":0},0,0,{"$f":"IF(ISERROR(IF(H105=\"-\",\"-\",INDEX('Wattage Table'!$F$23:$F$451,MATCH(H105,'Wattage Table'!$D$23:$D$451,0)))*$L105),\" \",IF(H105=\"-\",\"-\",INDEX('Wattage Table'!$F$23:$F$451,MATCH(H105,'Wattage Table'!$D$23:$D$451,0)))*$L105)","v":" "},{"$f":"IF(D105=\"\",\"\",IF(OR(D105=\"None\",D105=\"\",H105=\"\"),\"No\",IF(VLOOKUP(H105,'Wattage Table'!$D:$F,3,0)*L105/F105<=VLOOKUP(D105,Validation!$O$7:$Q$9,3,0),\"No\",\"Yes\")))","v":""}]
[null,85,null,null,{"$f":"IF(D106=\"\",\"\",IF(D106=\"None\",\"None\",INDEX('Lighting Controls Summary'!$D$19:$D$22,MATCH(D106,'Lighting Controls Summary'!$C$19:$C$22,0),1)))","v":""},null,null,null,{"$f":"IF(H106=\"\",\"\",VLOOKUP(H106,'Wattage Table'!$D:$E,2,0))","v":""},null,0,null,{"$f":"IF(OR(H106=\"\",R106=\"No\"),0,(((VLOOKUP(H106,'Wattage Table'!$D:$F,3,0)*J106)-(VLOOKUP(H106,'Wattage Table'!$D:$F,3,0)*(J106-K106)))*L106)/1000)","v":0},{"$f":"IF(OR(H106=\"\",R106=\"No\"),0,(VLOOKUP(H106,'Wattage Table'!$D:$F,3,0)*L106)/1000*0.25)","v":0},0,0,{"$f":"IF(ISERROR(IF(H106=\"-\",\"-\",INDEX('Wattage Table'!$F$23:$F$451,MATCH(H106,'Wattage Table'!$D$23:$D$451,0)))*$L106),\" \",IF(H106=\"-\",\"-\",INDEX('Wattage Table'!$F$23:$F$451,MATCH(H106,'Wattage Table'!$D$23:$D$451,0)))*$L106)","v":" "},{"$f":"IF(D106=\"\",\"\",IF(OR(D106=\"None\",D106=\"\",H106=\"\"),\"No\",IF(VLOOKUP(H106,'Wattage Table'!$D:$F,3,0)*L106/F106<=VLOOKUP(D106,Validation!$O$7:$Q$9,3,0),\"No\",\"Yes\")))","v":""}]
[null,86,null,null,{"$f":"IF(D107=\"\",\"\",IF(D107=\"None\",\"None\",INDEX('Lighting Controls Summary'!$D$19:$D$22,MATCH(D107,'Lighting Controls Summary'!$C$19:$C$22,0),1)))","v":""},null,null,null,{"$f":"IF(H107=\"\",\"\",VLOOKUP(H107,'Wattage Table'!$D:$E,2,0))","v":""},null,0,null,{"$f":"IF(OR(H107=\"\",R107=\"No\"),0,(((VLOOKUP(H107,'Wattage Table'!$D:$F,3,0)*J107)-(VLOOKUP(H107,'Wattage Table'!$D:$F,3,0)*(J107-K107)))*L107)/1000)","v":0},{"$f":"IF(OR(H107=\"\",R107=\"No\"),0,(VLOOKUP(H107,'Wattage Table'!$D:$F,3,0)*L107)/1000*0.25)","v":0},0,0,{"$f":"IF(ISERROR(IF(H107=\"-\",\"-\",INDEX('Wattage Table'!$F$23:$F$451,MATCH(H107,'Wattage Table'!$D$23:$D$451,0)))*$L107),\" \",IF(H107=\"-\",\"-\",INDEX('Wattage Table'!$F$23:$F$451,MATCH(H107,'Wattage Table'!$D$23:$D$451,0)))*$L107)","v":" "},{"$f":"IF(D107=\"\",\"\",IF(OR(D107=\"None\",D107=\"\",H107=\"\"),\"No\",IF(VLOOKUP(H107,'Wattage Table'!$D:$F,3,0)*L107/F107<=VLOOKUP(D107,Validation!$O$7:$Q$9,3,0),\"No\",\"Yes\")))","v":""}]
[null,87,null,null,{"$f":"IF(D108=\"\",\"\",IF(D108=\"None\",\"None\",INDEX('Lighting Controls Summary'!$D$19:$D$22,MATCH(D108,'Lighting Controls Summary'!$C$19:$C$22,0),1)))","v":""},null,null,null,{"$f":"IF(H108=\"\",\"\",VLOOKUP(H108,'Wattage Table'!$D:$E,2,0))","v":""},null,0,null,{"$f":"IF(OR(H108=\"\",R108=\"No\"),0,(((VLOOKUP(H108,'Wattage Table'!$D:$F,3,0)*J108)-(VLOOKUP(H108,'Wattage Table'!$D:$F,3,0)*(J108-K108)))*L108)/1000)","v":0},{"$f":"IF(OR(H108=\"\",R108=\"No\"),0,(VLOOKUP(H108,'Wattage Table'!$D:$F,3,0)*L108)/1000*0.25)","v":0},0,0,{"$f":"IF(ISERROR(IF(H108=\"-\",\"-\",INDEX('Wattage Table'!$F$23:$F$451,MATCH(H108,'Wattage Table'!$D$23:$D$451,0)))*$L108),\" \",IF(H108=\"-\",\"-\",INDEX('Wattage Table'!$F$23:$F$451,MATCH(H108,'Wattage Table'!$D$23:$D$451,0)))*$L108)","v":" "},{"$f":"IF(D108=\"\",\"\",IF(OR(D108=\"None\",D108=\"\",H108=\"\"),\"No\",IF(VLOOKUP(H108,'Wattage Table'!$D:$F,3,0)*L108/F108<=VLOOKUP(D108,Validation!$O$7:$Q$9,3,0),\"No\",\"Yes\")))","v":""}]
[null,88,null,null,{"$f":"IF(D109=\"\",\"\",IF(D109=\"None\",\"None\",INDEX('Lighting Controls Summary'!$D$19:$D$22,MATCH(D109,'Lighting Controls Summary'!$C$19:$C$22,0),1)))","v":""},null,null,null,{"$f":"IF(H109=\"\",\"\",VLOOKUP(H109,'Wattage Table'!$D:$E,2,0))","v":""},null,0,null,{"$f":"IF(OR(H109=\"\",R109=\"No\"),0,(((VLOOKUP(H109,'Wattage Table'!$D:$F,3,0)*J109)-(VLOOKUP(H109,'Wattage Table'!$D:$F,3,0)*(J109-K109)))*L109)/1000)","v":0},{"$f":"IF(OR(H109=\"\",R109=\"No\"),0,(VLOOKUP(H109,'Wattage Table'!$D:$F,3,0)*L109)/1000*0.25)","v":0},0,0,{"$f":"IF(ISERROR(IF(H109=\"-\",\"-\",INDEX('Wattage Table'!$F$23:$F$451,MATCH(H109,'Wattage Table'!$D$23:$D$451,0)))*$L109),\" \",IF(H109=\"-\",\"-\",INDEX('Wattage Table'!$F$23:$F$451,MATCH(H109,'Wattage Table'!$D$23:$D$451,0)))*$L109)","v":" "},{"$f":"IF(D109=\"\",\"\",IF(OR(D109=\"None\",D109=\"\",H109=\"\"),\"No\",IF(VLOOKUP(H109,'Wattage Table'!$D:$F,3,0)*L109/F109<=VLOOKUP(D109,Validation!$O$7:$Q$9,3,0),\"No\",\"Yes\")))","v":""}]
[null,89,null,null,{"$f":"IF(D110=\"\",\"\",IF(D110=\"None\",\"None\",INDEX('Lighting Controls Summary'!$D$19:$D$22,MATCH(D110,'Lighting Controls Summary'!$C$19:$C$22,0),1)))","v":""},null,null,null,{"$f":"IF(H110=\"\",\"\",VLOOKUP(H110,'Wattage Table'!$D:$E,2,0))","v":""},null,0,null,{"$f":"IF(OR(H110=\"\",R110=\"No\"),0,(((VLOOKUP(H110,'Wattage Table'!$D:$F,3,0)*J110)-(VLOOKUP(H110,'Wattage Table'!$D:$F,3,0)*(J110-K110)))*L110)/1000)","v":0},{"$f":"IF(OR(H110=\"\",R110=\"No\"),0,(VLOOKUP(H110,'Wattage Table'!$D:$F,3,0)*L110)/1000*0.25)","v":0},0,0,{"$f":"IF(ISERROR(IF(H110=\"-\",\"-\",INDEX('Wattage Table'!$F$23:$F$451,MATCH(H110,'Wattage Table'!$D$23:$D$451,0)))*$L110),\" \",IF(H110=\"-\",\"-\",INDEX('Wattage Table'!$F$23:$F$451,MATCH(H110,'Wattage Table'!$D$23:$D$451,0)))*$L110)","v":" "},{"$f":"IF(D110=\"\",\"\",IF(OR(D110=\"None\",D110=\"\",H110=\"\"),\"No\",IF(VLOOKUP(H110,'Wattage Table'!$D:$F,3,0)*L110/F110<=VLOOKUP(D110,Validation!$O$7:$Q$9,3,0),\"No\",\"Yes\")))","v":""}]
[null,90,null,null,{"$f":"IF(D111=\"\",\"\",IF(D111=\"None\",\"None\",INDEX('Lighting Controls Summary'!$D$19:$D$22,MATCH(D111,'Lighting Controls Summary'!$C$19:$C$22,0),1)))","v":""},null,null,null,{"$f":"IF(H111=\"\",\"\",VLOOKUP(H111,'Wattage Table'!$D:$E,2,0))","v":""},null,0,null,{"$f":"IF(OR(H111=\"\",R111=\"No\"),0,(((VLOOKUP(H111,'Wattage Table'!$D:$F,3,0)*J111)-(VLOOKUP(H111,'Wattage Table'!$D:$F,3,0)*(J111-K111)))*L111)/1000)","v":0},{"$f":"IF(OR(H111=\"\",R111=\"No\"),0,(VLOOKUP(H111,'Wattage Table'!$D:$F,3,0)*L111)/1000*0.25)","v":0},0,0,{"$f":"IF(ISERROR(IF(H111=\"-\",\"-\",INDEX('Wattage Table'!$F$23:$F$451,MATCH(H111,'Wattage Table'!$D$23:$D$451,0)))*$L111),\" \",IF(H111=\"-\",\"-\",INDEX('Wattage Table'!$F$23:$F$451,MATCH(H111,'Wattage Table'!$D$23:$D$451,0)))*$L111)","v":" "},{"$f":"IF(D111=\"\",\"\",IF(OR(D111=\"None\",D111=\"\",H111=\"\"),\"No\",IF(VLOOKUP(H111,'Wattage Table'!$D:$F,3,0)*L111/F111<=VLOOKUP(D111,Validation!$O$7:$Q$9,3,0),\"No\",\"Yes\")))","v":""}]
[null,91,null,null,{"$f":"IF(D112=\"\",\"\",IF(D112=\"None\",\"None\",INDEX('Lighting Controls Summary'!$D$19:$D$22,MATCH(D112,'Lighting Controls Summary'!$C$19:$C$22,0),1)))","v":""},null,null,null,{"$f":"IF(H112=\"\",\"\",VLOOKUP(H112,'Wattage Table'!$D:$E,2,0))","v":""},null,0,null,{"$f":"IF(OR(H112=\"\",R112=\"No\"),0,(((VLOOKUP(H112,'Wattage Table'!$D:$F,3,0)*J112)-(VLOOKUP(H112,'Wattage Table'!$D:$F,3,0)*(J112-K112)))*L112)/1000)","v":0},{"$f":"IF(OR(H112=\"\",R112=\"No\"),0,(VLOOKUP(H112,'Wattage Table'!$D:$F,3,0)*L112)/1000*0.25)","v":0},0,0,{"$f":"IF(ISERROR(IF(H112=\"-\",\"-\",INDEX('Wattage Table'!$F$23:$F$451,MATCH(H112,'Wattage Table'!$D$23:$D$451,0)))*$L112),\" \",IF(H112=\"-\",\"-\",INDEX('Wattage Table'!$F$23:$F$451,MATCH(H112,'Wattage Table'!$D$23:$D$451,0)))*$L112)","v":" "},{"$f":"IF(D112=\"\",\"\",IF(OR(D112=\"None\",D112=\"\",H112=\"\"),\"No\",IF(VLOOKUP(H112,'Wattage Table'!$D:$F,3,0)*L112/F112<=VLOOKUP(D112,Validation!$O$7:$Q$9,3,0),\"No\",\"Yes\")))","v":""}]
[null,92,null,null,{"$f":"IF(D113=\"\",\"\",IF(D113=\"None\",\"None\",INDEX('Lighting Controls Summary'!$D$19:$D$22,MATCH(D113,'Lighting Controls Summary'!$C$19:$C$22,0),1)))","v":""},null,null,null,{"$f":"IF(H113=\"\",\"\",VLOOKUP(H113,'Wattage Table'!$D:$E,2,0))","v":""},null,0,null,{"$f":"IF(OR(H113=\"\",R113=\"No\"),0,(((VLOOKUP(H113,'Wattage Table'!$D:$F,3,0)*J113)-(VLOOKUP(H113,'Wattage Table'!$D:$F,3,0)*(J113-K113)))*L113)/1000)","v":0},{"$f":"IF(OR(H113=\"\",R113=\"No\"),0,(VLOOKUP(H113,'Wattage Table'!$D:$F,3,0)*L113)/1000*0.25)","v":0},0,0,{"$f":"IF(ISERROR(IF(H113=\"-\",\"-\",INDEX('Wattage Table'!$F$23:$F$451,MATCH(H113,'Wattage Table'!$D$23:$D$451,0)))*$L113),\" \",IF(H113=\"-\",\"-\",INDEX('Wattage Table'!$F$23:$F$451,MATCH(H113,'Wattage Table'!$D$23:$D$451,0)))*$L113)","v":" "},{"$f":"IF(D113=\"\",\"\",IF(OR(D113=\"None\",D113=\"\",H113=\"\"),\"No\",IF(VLOOKUP(H113,'Wattage Table'!$D:$F,3,0)*L113/F113<=VLOOKUP(D113,Validation!$O$7:$Q$9,3,0),\"No\",\"Yes\")))","v":""}]
[null,93,null,null,{"$f":"IF(D114=\"\",\"\",IF(D114=\"None\",\"None\",INDEX('Lighting Controls Summary'!$D$19:$D$22,MATCH(D114,'Lighting Controls Summary'!$C$19:$C$22,0),1)))","v":""},null,null,null,{"$f":"IF(H114=\"\",\"\",VLOOKUP(H114,'Wattage Table'!$D:$E,2,0))","v":""},null,0,null,{"$f":"IF(OR(H114=\"\",R114=\"No\"),0,(((VLOOKUP(H114,'Wattage Table'!$D:$F,3,0)*J114)-(VLOOKUP(H114,'Wattage Table'!$D:$F,3,0)*(J114-K114)))*L114)/1000)","v":0},{"$f":"IF(OR(H114=\"\",R114=\"No\"),0,(VLOOKUP(H114,'Wattage Table'!$D:$F,3,0)*L114)/1000*0.25)","v":0},0,0,{"$f":"IF(ISERROR(IF(H114=\"-\",\"-\",INDEX('Wattage Table'!$F$23:$F$451,MATCH(H114,'Wattage Table'!$D$23:$D$451,0)))*$L114),\" \",IF(H114=\"-\",\"-\",INDEX('Wattage Table'!$F$23:$F$451,MATCH(H114,'Wattage Table'!$D$23:$D$451,0)))*$L114)","v":" "},{"$f":"IF(D114=\"\",\"\",IF(OR(D114=\"None\",D114=\"\",H114=\"\"),\"No\",IF(VLOOKUP(H114,'Wattage Table'!$D:$F,3,0)*L114/F114<=VLOOKUP(D114,Validation!$O$7:$Q$9,3,0),\"No\",\"Yes\")))","v":""}]
[null,94,null,null,{"$f":"IF(D115=\"\",\"\",IF(D115=\"None\",\"None\",INDEX('Lighting Controls Summary'!$D$19:$D$22,MATCH(D115,'Lighting Controls Summary'!$C$19:$C$22,0),1)))","v":""},null,null,null,{"$f":"IF(H115=\"\",\"\",VLOOKUP(H115,'Wattage Table'!$D:$E,2,0))","v":""},null,0,null,{"$f":"IF(OR(H115=\"\",R115=\"No\"),0,(((VLOOKUP(H115,'Wattage Table'!$D:$F,3,0)*J115)-(VLOOKUP(H115,'Wattage Table'!$D:$F,3,0)*(J115-K115)))*L115)/1000)","v":0},{"$f":"IF(OR(H115=\"\",R115=\"No\"),0,(VLOOKUP(H115,'Wattage Table'!$D:$F,3,0)*L115)/1000*0.25)","v":0},0,0,{"$f":"IF(ISERROR(IF(H115=\"-\",\"-\",INDEX('Wattage Table'!$F$23:$F$451,MATCH(H115,'Wattage Table'!$D$23:$D$451,0)))*$L115),\" \",IF(H115=\"-\",\"-\",INDEX('Wattage Table'!$F$23:$F$451,MATCH(H115,'Wattage Table'!$D$23:$D$451,0)))*$L115)","v":" "},{"$f":"IF(D115=\"\",\"\",IF(OR(D115=\"None\",D115=\"\",H115=\"\"),\"No\",IF(VLOOKUP(H115,'Wattage Table'!$D:$F,3,0)*L115/F115<=VLOOKUP(D115,Validation!$O$7:$Q$9,3,0),\"No\",\"Yes\")))","v":""}]
[null,95,null,null,{"$f":"IF(D116=\"\",\"\",IF(D116=\"None\",\"None\",INDEX('Lighting Controls Summary'!$D$19:$D$22,MATCH(D116,'Lighting Controls Summary'!$C$19:$C$22,0),1)))","v":""},null,null,null,{"$f":"IF(H116=\"\",\"\",VLOOKUP(H116,'Wattage Table'!$D:$E,2,0))","v":""},null,0,null,{"$f":"IF(OR(H116=\"\",R116=\"No\"),0,(((VLOOKUP(H116,'Wattage Table'!$D:$F,3,0)*J116)-(VLOOKUP(H116,'Wattage Table'!$D:$F,3,0)*(J116-K116)))*L116)/1000)","v":0},{"$f":"IF(OR(H116=\"\",R116=\"No\"),0,(VLOOKUP(H116,'Wattage Table'!$D:$F,3,0)*L116)/1000*0.25)","v":0},0,0,{"$f":"IF(ISERROR(IF(H116=\"-\",\"-\",INDEX('Wattage Table'!$F$23:$F$451,MATCH(H116,'Wattage Table'!$D$23:$D$451,0)))*$L116),\" \",IF(H116=\"-\",\"-\",INDEX('Wattage Table'!$F$23:$F$451,MATCH(H116,'Wattage Table'!$D$23:$D$451,0)))*$L116)","v":" "},{"$f":"IF(D116=\"\",\"\",IF(OR(D116=\"None\",D116=\"\",H116=\"\"),\"No\",IF(VLOOKUP(H116,'Wattage Table'!$D:$F,3,0)*L116/F116<=VLOOKUP(D116,Validation!$O$7:$Q$9,3,0),\"No\",\"Yes\")))","v":""}]
[null,96,null,null,{"$f":"IF(D117=\"\",\"\",IF(D117=\"None\",\"None\",INDEX('Lighting Controls Summary'!$D$19:$D$22,MATCH(D117,'Lighting Controls Summary'!$C$19:$C$22,0),1)))","v":""},null,null,null,{"$f":"IF(H117=\"\",\"\",VLOOKUP(H117,'Wattage Table'!$D:$E,2,0))","v":""},null,0,null,{"$f":"IF(OR(H117=\"\",R117=\"No\"),0,(((VLOOKUP(H117,'Wattage Table'!$D:$F,3,0)*J117)-(VLOOKUP(H117,'Wattage Table'!$D:$F,3,0)*(J117-K117)))*L117)/1000)","v":0},{"$f":"IF(OR(H117=\"\",R117=\"No\"),0,(VLOOKUP(H117,'Wattage Table'!$D:$F,3,0)*L117)/1000*0.25)","v":0},0,0,{"$f":"IF(ISERROR(IF(H117=\"-\",\"-\",INDEX('Wattage Table'!$F$23:$F$451,MATCH(H117,'Wattage Table'!$D$23:$D$451,0)))*$L117),\" \",IF(H117=\"-\",\"-\",INDEX('Wattage Table'!$F$23:$F$451,MATCH(H117,'Wattage Table'!$D$23:$D$451,0)))*$L117)","v":" "},{"$f":"IF(D117=\"\",\"\",IF(OR(D117=\"None\",D117=\"\",H117=\"\"),\"No\",IF(VLOOKUP(H117,'Wattage Table'!$D:$F,3,0)*L117/F117<=VLOOKUP(D117,Validation!$O$7:$Q$9,3,0),\"No\",\"Yes\")))","v":""}]
[null,97,null,null,{"$f":"IF(D118=\"\",\"\",IF(D118=\"None\",\"None\",INDEX('Lighting Controls Summary'!$D$19:$D$22,MATCH(D118,'Lighting Controls Summary'!$C$19:$C$22,0),1)))","v":""},null,null,null,{"$f":"IF(H118=\"\",\"\",VLOOKUP(H118,'Wattage Table'!$D:$E,2,0))","v":""},null,0,null,{"$f":"IF(OR(H118=\"\",R118=\"No\"),0,(((VLOOKUP(H118,'Wattage Table'!$D:$F,3,0)*J118)-(VLOOKUP(H118,'Wattage Table'!$D:$F,3,0)*(J118-K118)))*L118)/1000)","v":0},{"$f":"IF(OR(H118=\"\",R118=\"No\"),0,(VLOOKUP(H118,'Wattage Table'!$D:$F,3,0)*L118)/1000*0.25)","v":0},0,0,{"$f":"IF(ISERROR(IF(H118=\"-\",\"-\",INDEX('Wattage Table'!$F$23:$F$451,MATCH(H118,'Wattage Table'!$D$23:$D$451,0)))*$L118),\" \",IF(H118=\"-\",\"-\",INDEX('Wattage Table'!$F$23:$F$451,MATCH(H118,'Wattage Table'!$D$23:$D$451,0)))*$L118)","v":" "},{"$f":"IF(D118=\"\",\"\",IF(OR(D118=\"None\",D118=\"\",H118=\"\"),\"No\",IF(VLOOKUP(H118,'Wattage Table'!$D:$F,3,0)*L118/F118<=VLOOKUP(D118,Validation!$O$7:$Q$9,3,0),\"No\",\"Yes\")))","v":""}]
[null,98,null,null,{"$f":"IF(D119=\"\",\"\",IF(D119=\"None\",\"None\",INDEX('Lighting Controls Summary'!$D$19:$D$22,MATCH(D119,'Lighting Controls Summary'!$C$19:$C$22,0),1)))","v":""},null,null,null,{"$f":"IF(H119=\"\",\"\",VLOOKUP(H119,'Wattage Table'!$D:$E,2,0))","v":""},null,0,null,{"$f":"IF(OR(H119=\"\",R119=\"No\"),0,(((VLOOKUP(H119,'Wattage Table'!$D:$F,3,0)*J119)-(VLOOKUP(H119,'Wattage Table'!$D:$F,3,0)*(J119-K119)))*L119)/1000)","v":0},{"$f":"IF(OR(H119=\"\",R119=\"No\"),0,(VLOOKUP(H119,'Wattage Table'!$D:$F,3,0)*L119)/1000*0.25)","v":0},0,0,{"$f":"IF(ISERROR(IF(H119=\"-\",\"-\",INDEX('Wattage Table'!$F$23:$F$451,MATCH(H119,'Wattage Table'!$D$23:$D$451,0)))*$L119),\" \",IF(H119=\"-\",\"-\",INDEX('Wattage Table'!$F$23:$F$451,MATCH(H119,'Wattage Table'!$D$23:$D$451,0)))*$L119)","v":" "},{"$f":"IF(D119=\"\",\"\",IF(OR(D119=\"None\",D119=\"\",H119=\"\"),\"No\",IF(VLOOKUP(H119,'Wattage Table'!$D:$F,3,0)*L119/F119<=VLOOKUP(D119,Validation!$O$7:$Q$9,3,0),\"No\",\"Yes\")))","v":""}]
[null,99,null,null,{"$f":"IF(D120=\"\",\"\",IF(D120=\"None\",\"None\",INDEX('Lighting Controls Summary'!$D$19:$D$22,MATCH(D120,'Lighting Controls Summary'!$C$19:$C$22,0),1)))","v":""},null,null,null,{"$f":"IF(H120=\"\",\"\",VLOOKUP(H120,'Wattage Table'!$D:$E,2,0))","v":""},null,0,null,{"$f":"IF(OR(H120=\"\",R120=\"No\"),0,(((VLOOKUP(H120,'Wattage Table'!$D:$F,3,0)*J120)-(VLOOKUP(H120,'Wattage Table'!$D:$F,3,0)*(J120-K120)))*L120)/1000)","v":0},{"$f":"IF(OR(H120=\"\",R120=\"No\"),0,(VLOOKUP(H120,'Wattage Table'!$D:$F,3,0)*L120)/1000*0.25)","v":0},0,0,{"$f":"IF(ISERROR(IF(H120=\"-\",\"-\",INDEX('Wattage Table'!$F$23:$F$451,MATCH(H120,'Wattage Table'!$D$23:$D$451,0)))*$L120),\" \",IF(H120=\"-\",\"-\",INDEX('Wattage Table'!$F$23:$F$451,MATCH(H120,'Wattage Table'!$D$23:$D$451,0)))*$L120)","v":" "},{"$f":"IF(D120=\"\",\"\",IF(OR(D120=\"None\",D120=\"\",H120=\"\"),\"No\",IF(VLOOKUP(H120,'Wattage Table'!$D:$F,3,0)*L120/F120<=VLOOKUP(D120,Validation!$O$7:$Q$9,3,0),\"No\",\"Yes\")))","v":""}]
[null,100,null,null,{"$f":"IF(D121=\"\",\"\",IF(D121=\"None\",\"None\",INDEX('Lighting Controls Summary'!$D$19:$D$22,MATCH(D121,'Lighting Controls Summary'!$C$19:$C$22,0),1)))","v":""},null,null,null,{"$f":"IF(H121=\"\",\"\",VLOOKUP(H121,'Wattage Table'!$D:$E,2,0))","v":""},null,0,null,{"$f":"IF(OR(H121=\"\",R121=\"No\"),0,(((VLOOKUP(H121,'Wattage Table'!$D:$F,3,0)*J121)-(VLOOKUP(H121,'Wattage Table'!$D:$F,3,0)*(J121-K121)))*L121)/1000)","v":0},{"$f":"IF(OR(H121=\"\",R121=\"No\"),0,(VLOOKUP(H121,'Wattage Table'!$D:$F,3,0)*L121)/1000*0.25)","v":0},0,0,{"$f":"IF(ISERROR(IF(H121=\"-\",\"-\",INDEX('Wattage Table'!$F$23:$F$451,MATCH(H121,'Wattage Table'!$D$23:$D$451,0)))*$L121),\" \",IF(H121=\"-\",\"-\",INDEX('Wattage Table'!$F$23:$F$451,MATCH(H121,'Wattage Table'!$D$23:$D$451,0)))*$L121)","v":" "},{"$f":"IF(D121=\"\",\"\",IF(OR(D121=\"None\",D121=\"\",H121=\"\"),\"No\",IF(VLOOKUP(H121,'Wattage Table'!$D:$F,3,0)*L121/F121<=VLOOKUP(D121,Validation!$O$7:$Q$9,3,0),\"No\",\"Yes\")))","v":""}]
[null,101,null,null,{"$f":"IF(D122=\"\",\"\",IF(D122=\"None\",\"None\",INDEX('Lighting Controls Summary'!$D$19:$D$22,MATCH(D122,'Lighting Controls Summary'!$C$19:$C$22,0),1)))","v":""},null,null,null,{"$f":"IF(H122=\"\",\"\",VLOOKUP(H122,'Wattage Table'!$D:$E,2,0))","v":""},null,0,null,{"$f":"IF(OR(H122=\"\",R122=\"No\"),0,(((VLOOKUP(H122,'Wattage Table'!$D:$F,3,0)*J122)-(VLOOKUP(H122,'Wattage Table'!$D:$F,3,0)*(J122-K122)))*L122)/1000)","v":0},{"$f":"IF(OR(H122=\"\",R122=\"No\"),0,(VLOOKUP(H122,'Wattage Table'!$D:$F,3,0)*L122)/1000*0.25)","v":0},0,0,{"$f":"IF(ISERROR(IF(H122=\"-\",\"-\",INDEX('Wattage Table'!$F$23:$F$451,MATCH(H122,'Wattage Table'!$D$23:$D$451,0)))*$L122),\" \",IF(H122=\"-\",\"-\",INDEX('Wattage Table'!$F$23:$F$451,MATCH(H122,'Wattage Table'!$D$23:$D$451,0)))*$L122)","v":" "},{"$f":"IF(D122=\"\",\"\",IF(OR(D122=\"None\",D122=\"\",H122=\"\"),\"No\",IF(VLOOKUP(H122,'Wattage Table'!$D:$F,3,0)*L122/F122<=VLOOKUP(D122,Validation!$O$7:$Q$9,3,0),\"No\",\"Yes\")))","v":""}]
[null,102,null,null,{"$f":"IF(D123=\"\",\"\",IF(D123=\"None\",\"None\",INDEX('Lighting Controls Summary'!$D$19:$D$22,MATCH(D123,'Lighting Controls Summary'!$C$19:$C$22,0),1)))","v":""},null,null,null,{"$f":"IF(H123=\"\",\"\",VLOOKUP(H123,'Wattage Table'!$D:$E,2,0))","v":""},null,0,null,{"$f":"IF(OR(H123=\"\",R123=\"No\"),0,(((VLOOKUP(H123,'Wattage Table'!$D:$F,3,0)*J123)-(VLOOKUP(H123,'Wattage Table'!$D:$F,3,0)*(J123-K123)))*L123)/1000)","v":0},{"$f":"IF(OR(H123=\"\",R123=\"No\"),0,(VLOOKUP(H123,'Wattage Table'!$D:$F,3,0)*L123)/1000*0.25)","v":0},0,0,{"$f":"IF(ISERROR(IF(H123=\"-\",\"-\",INDEX('Wattage Table'!$F$23:$F$451,MATCH(H123,'Wattage Table'!$D$23:$D$451,0)))*$L123),\" \",IF(H123=\"-\",\"-\",INDEX('Wattage Table'!$F$23:$F$451,MATCH(H123,'Wattage Table'!$D$23:$D$451,0)))*$L123)","v":" "},{"$f":"IF(D123=\"\",\"\",IF(OR(D123=\"None\",D123=\"\",H123=\"\"),\"No\",IF(VLOOKUP(H123,'Wattage Table'!$D:$F,3,0)*L123/F123<=VLOOKUP(D123,Validation!$O$7:$Q$9,3,0),\"No\",\"Yes\")))","v":""}]
[null,103,null,null,{"$f":"IF(D124=\"\",\"\",IF(D124=\"None\",\"None\",INDEX('Lighting Controls Summary'!$D$19:$D$22,MATCH(D124,'Lighting Controls Summary'!$C$19:$C$22,0),1)))","v":""},null,null,null,{"$f":"IF(H124=\"\",\"\",VLOOKUP(H124,'Wattage Table'!$D:$E,2,0))","v":""},null,0,null,{"$f":"IF(OR(H124=\"\",R124=\"No\"),0,(((VLOOKUP(H124,'Wattage Table'!$D:$F,3,0)*J124)-(VLOOKUP(H124,'Wattage Table'!$D:$F,3,0)*(J124-K124)))*L124)/1000)","v":0},{"$f":"IF(OR(H124=\"\",R124=\"No\"),0,(VLOOKUP(H124,'Wattage Table'!$D:$F,3,0)*L124)/1000*0.25)","v":0},0,0,{"$f":"IF(ISERROR(IF(H124=\"-\",\"-\",INDEX('Wattage Table'!$F$23:$F$451,MATCH(H124,'Wattage Table'!$D$23:$D$451,0)))*$L124),\" \",IF(H124=\"-\",\"-\",INDEX('Wattage Table'!$F$23:$F$451,MATCH(H124,'Wattage Table'!$D$23:$D$451,0)))*$L124)","v":" "},{"$f":"IF(D124=\"\",\"\",IF(OR(D124=\"None\",D124=\"\",H124=\"\"),\"No\",IF(VLOOKUP(H124,'Wattage Table'!$D:$F,3,0)*L124/F124<=VLOOKUP(D124,Validation!$O$7:$Q$9,3,0),\"No\",\"Yes\")))","v":""}]
[null,104,null,null,{"$f":"IF(D125=\"\",\"\",IF(D125=\"None\",\"None\",INDEX('Lighting Controls Summary'!$D$19:$D$22,MATCH(D125,'Lighting Controls Summary'!$C$19:$C$22,0),1)))","v":""},null,null,null,{"$f":"IF(H125=\"\",\"\",VLOOKUP(H125,'Wattage Table'!$D:$E,2,0))","v":""},null,0,null,{"$f":"IF(OR(H125=\"\",R125=\"No\"),0,(((VLOOKUP(H125,'Wattage Table'!$D:$F,3,0)*J125)-(VLOOKUP(H125,'Wattage Table'!$D:$F,3,0)*(J125-K125)))*L125)/1000)","v":0},{"$f":"IF(OR(H125=\"\",R125=\"No\"),0,(VLOOKUP(H125,'Wattage Table'!$D:$F,3,0)*L125)/1000*0.25)","v":0},0,0,{"$f":"IF(ISERROR(IF(H125=\"-\",\"-\",INDEX('Wattage Table'!$F$23:$F$451,MATCH(H125,'Wattage Table'!$D$23:$D$451,0)))*$L125),\" \",IF(H125=\"-\",\"-\",INDEX('Wattage Table'!$F$23:$F$451,MATCH(H125,'Wattage Table'!$D$23:$D$451,0)))*$L125)","v":" "},{"$f":"IF(D125=\"\",\"\",IF(OR(D125=\"None\",D125=\"\",H125=\"\"),\"No\",IF(VLOOKUP(H125,'Wattage Table'!$D:$F,3,0)*L125/F125<=VLOOKUP(D125,Validation!$O$7:$Q$9,3,0),\"No\",\"Yes\")))","v":""}]
[null,105,null,null,{"$f":"IF(D126=\"\",\"\",IF(D126=\"None\",\"None\",INDEX('Lighting Controls Summary'!$D$19:$D$22,MATCH(D126,'Lighting Controls Summary'!$C$19:$C$22,0),1)))","v":""},null,null,null,{"$f":"IF(H126=\"\",\"\",VLOOKUP(H126,'Wattage Table'!$D:$E,2,0))","v":""},null,0,null,{"$f":"IF(OR(H126=\"\",R126=\"No\"),0,(((VLOOKUP(H126,'Wattage Table'!$D:$F,3,0)*J126)-(VLOOKUP(H126,'Wattage Table'!$D:$F,3,0)*(J126-K126)))*L126)/1000)","v":0},{"$f":"IF(OR(H126=\"\",R126=\"No\"),0,(VLOOKUP(H126,'Wattage Table'!$D:$F,3,0)*L126)/1000*0.25)","v":0},0,0,{"$f":"IF(ISERROR(IF(H126=\"-\",\"-\",INDEX('Wattage Table'!$F$23:$F$451,MATCH(H126,'Wattage Table'!$D$23:$D$451,0)))*$L126),\" \",IF(H126=\"-\",\"-\",INDEX('Wattage Table'!$F$23:$F$451,MATCH(H126,'Wattage Table'!$D$23:$D$451,0)))*$L126)","v":" "},{"$f":"IF(D126=\"\",\"\",IF(OR(D126=\"None\",D126=\"\",H126=\"\"),\"No\",IF(VLOOKUP(H126,'Wattage Table'!$D:$F,3,0)*L126/F126<=VLOOKUP(D126,Validation!$O$7:$Q$9,3,0),\"No\",\"Yes\")))","v":""}]
[null,106,null,null,{"$f":"IF(D127=\"\",\"\",IF(D127=\"None\",\"None\",INDEX('Lighting Controls Summary'!$D$19:$D$22,MATCH(D127,'Lighting Controls Summary'!$C$19:$C$22,0),1)))","v":""},null,null,null,{"$f":"IF(H127=\"\",\"\",VLOOKUP(H127,'Wattage Table'!$D:$E,2,0))","v":""},null,0,null,{"$f":"IF(OR(H127=\"\",R127=\"No\"),0,(((VLOOKUP(H127,'Wattage Table'!$D:$F,3,0)*J127)-(VLOOKUP(H127,'Wattage Table'!$D:$F,3,0)*(J127-K127)))*L127)/1000)","v":0},{"$f":"IF(OR(H127=\"\",R127=\"No\"),0,(VLOOKUP(H127,'Wattage Table'!$D:$F,3,0)*L127)/1000*0.25)","v":0},0,0,{"$f":"IF(ISERROR(IF(H127=\"-\",\"-\",INDEX('Wattage Table'!$F$23:$F$451,MATCH(H127,'Wattage Table'!$D$23:$D$451,0)))*$L127),\" \",IF(H127=\"-\",\"-\",INDEX('Wattage Table'!$F$23:$F$451,MATCH(H127,'Wattage Table'!$D$23:$D$451,0)))*$L127)","v":" "},{"$f":"IF(D127=\"\",\"\",IF(OR(D127=\"None\",D127=\"\",H127=\"\"),\"No\",IF(VLOOKUP(H127,'Wattage Table'!$D:$F,3,0)*L127/F127<=VLOOKUP(D127,Validation!$O$7:$Q$9,3,0),\"No\",\"Yes\")))","v":""}]
[null,107,null,null,{"$f":"IF(D128=\"\",\"\",IF(D128=\"None\",\"None\",INDEX('Lighting Controls Summary'!$D$19:$D$22,MATCH(D128,'Lighting Controls Summary'!$C$19:$C$22,0),1)))","v":""},null,null,null,{"$f":"IF(H128=\"\",\"\",VLOOKUP(H128,'Wattage Table'!$D:$E,2,0))","v":""},null,0,null,{"$f":"IF(OR(H128=\"\",R128=\"No\"),0,(((VLOOKUP(H128,'Wattage Table'!$D:$F,3,0)*J128)-(VLOOKUP(H128,'Wattage Table'!$D:$F,3,0)*(J128-K128)))*L128)/1000)","v":0},{"$f":"IF(OR(H128=\"\",R128=\"No\"),0,(VLOOKUP(H128,'Wattage Table'!$D:$F,3,0)*L128)/1000*0.25)","v":0},0,0,{"$f":"IF(ISERROR(IF(H128=\"-\",\"-\",INDEX('Wattage Table'!$F$23:$F$451,MATCH(H128,'Wattage Table'!$D$23:$D$451,0)))*$L128),\" \",IF(H128=\"-\",\"-\",INDEX('Wattage Table'!$F$23:$F$451,MATCH(H128,'Wattage Table'!$D$23:$D$451,0)))*$L128)","v":" "},{"$f":"IF(D128=\"\",\"\",IF(OR(D128=\"None\",D128=\"\",H128=\"\"),\"No\",IF(VLOOKUP(H128,'Wattage Table'!$D:$F,3,0)*L128/F128<=VLOOKUP(D128,Validation!$O$7:$Q$9,3,0),\"No\",\"Yes\")))","v":""}]
[null,108,null,null,{"$f":"IF(D129=\"\",\"\",IF(D129=\"None\",\"None\",INDEX('Lighting Controls Summary'!$D$19:$D$22,MATCH(D129,'Lighting Controls Summary'!$C$19:$C$22,0),1)))","v":""},null,null,null,{"$f":"IF(H129=\"\",\"\",VLOOKUP(H129,'Wattage Table'!$D:$E,2,0))","v":""},null,0,null,{"$f":"IF(OR(H129=\"\",R129=\"No\"),0,(((VLOOKUP(H129,'Wattage Table'!$D:$F,3,0)*J129)-(VLOOKUP(H129,'Wattage Table'!$D:$F,3,0)*(J129-K129)))*L129)/1000)","v":0},{"$f":"IF(OR(H129=\"\",R129=\"No\"),0,(VLOOKUP(H129,'Wattage Table'!$D:$F,3,0)*L129)/1000*0.25)","v":0},0,0,{"$f":"IF(ISERROR(IF(H129=\"-\",\"-\",INDEX('Wattage Table'!$F$23:$F$451,MATCH(H129,'Wattage Table'!$D$23:$D$451,0)))*$L129),\" \",IF(H129=\"-\",\"-\",INDEX('Wattage Table'!$F$23:$F$451,MATCH(H129,'Wattage Table'!$D$23:$D$451,0)))*$L129)","v":" "},{"$f":"IF(D129=\"\",\"\",IF(OR(D129=\"None\",D129=\"\",H129=\"\"),\"No\",IF(VLOOKUP(H129,'Wattage Table'!$D:$F,3,0)*L129/F129<=VLOOKUP(D129,Validation!$O$7:$Q$9,3,0),\"No\",\"Yes\")))","v":""}]
[null,109,null,null,{"$f":"IF(D130=\"\",\"\",IF(D130=\"None\",\"None\",INDEX('Lighting Controls Summary'!$D$19:$D$22,MATCH(D130,'Lighting Controls Summary'!$C$19:$C$22,0),1)))","v":""},null,null,null,{"$f":"IF(H130=\"\",\"\",VLOOKUP(H130,'Wattage Table'!$D:$E,2,0))","v":""},null,0,null,{"$f":"IF(OR(H130=\"\",R130=\"No\"),0,(((VLOOKUP(H130,'Wattage Table'!$D:$F,3,0)*J130)-(VLOOKUP(H130,'Wattage Table'!$D:$F,3,0)*(J130-K130)))*L130)/1000)","v":0},{"$f":"IF(OR(H130=\"\",R130=\"No\"),0,(VLOOKUP(H130,'Wattage Table'!$D:$F,3,0)*L130)/1000*0.25)","v":0},0,0,{"$f":"IF(ISERROR(IF(H130=\"-\",\"-\",INDEX('Wattage Table'!$F$23:$F$451,MATCH(H130,'Wattage Table'!$D$23:$D$451,0)))*$L130),\" \",IF(H130=\"-\",\"-\",INDEX('Wattage Table'!$F$23:$F$451,MATCH(H130,'Wattage Table'!$D$23:$D$451,0)))*$L130)","v":" "},{"$f":"IF(D130=\"\",\"\",IF(OR(D130=\"None\",D130=\"\",H130=\"\"),\"No\",IF(VLOOKUP(H130,'Wattage Table'!$D:$F,3,0)*L130/F130<=VLOOKUP(D130,Validation!$O$7:$Q$9,3,0),\"No\",\"Yes\")))","v":""}]
[null,110,null,null,{"$f":"IF(D131=\"\",\"\",IF(D131=\"None\",\"None\",INDEX('Lighting Controls Summary'!$D$19:$D$22,MATCH(D131,'Lighting Controls Summary'!$C$19:$C$22,0),1)))","v":""},null,null,null,{"$f":"IF(H131=\"\",\"\",VLOOKUP(H131,'Wattage Table'!$D:$E,2,0))","v":""},null,0,null,{"$f":"IF(OR(H131=\"\",R131=\"No\"),0,(((VLOOKUP(H131,'Wattage Table'!$D:$F,3,0)*J131)-(VLOOKUP(H131,'Wattage Table'!$D:$F,3,0)*(J131-K131)))*L131)/1000)","v":0},{"$f":"IF(OR(H131=\"\",R131=\"No\"),0,(VLOOKUP(H131,'Wattage Table'!$D:$F,3,0)*L131)/1000*0.25)","v":0},0,0,{"$f":"IF(ISERROR(IF(H131=\"-\",\"-\",INDEX('Wattage Table'!$F$23:$F$451,MATCH(H131,'Wattage Table'!$D$23:$D$451,0)))*$L131),\" \",IF(H131=\"-\",\"-\",INDEX('Wattage Table'!$F$23:$F$451,MATCH(H131,'Wattage Table'!$D$23:$D$451,0)))*$L131)","v":" "},{"$f":"IF(D131=\"\",\"\",IF(OR(D131=\"None\",D131=\"\",H131=\"\"),\"No\",IF(VLOOKUP(H131,'Wattage Table'!$D:$F,3,0)*L131/F131<=VLOOKUP(D131,Validation!$O$7:$Q$9,3,0),\"No\",\"Yes\")))","v":""}]
[null,111,null,null,{"$f":"IF(D132=\"\",\"\",IF(D132=\"None\",\"None\",INDEX('Lighting Controls Summary'!$D$19:$D$22,MATCH(D132,'Lighting Controls Summary'!$C$19:$C$22,0),1)))","v":""},null,null,null,{"$f":"IF(H132=\"\",\"\",VLOOKUP(H132,'Wattage Table'!$D:$E,2,0))","v":""},null,0,null,{"$f":"IF(OR(H132=\"\",R132=\"No\"),0,(((VLOOKUP(H132,'Wattage Table'!$D:$F,3,0)*J132)-(VLOOKUP(H132,'Wattage Table'!$D:$F,3,0)*(J132-K132)))*L132)/1000)","v":0},{"$f":"IF(OR(H132=\"\",R132=\"No\"),0,(VLOOKUP(H132,'Wattage Table'!$D:$F,3,0)*L132)/1000*0.25)","v":0},0,0,{"$f":"IF(ISERROR(IF(H132=\"-\",\"-\",INDEX('Wattage Table'!$F$23:$F$451,MATCH(H132,'Wattage Table'!$D$23:$D$451,0)))*$L132),\" \",IF(H132=\"-\",\"-\",INDEX('Wattage Table'!$F$23:$F$451,MATCH(H132,'Wattage Table'!$D$23:$D$451,0)))*$L132)","v":" "},{"$f":"IF(D132=\"\",\"\",IF(OR(D132=\"None\",D132=\"\",H132=\"\"),\"No\",IF(VLOOKUP(H132,'Wattage Table'!$D:$F,3,0)*L132/F132<=VLOOKUP(D132,Validation!$O$7:$Q$9,3,0),\"No\",\"Yes\")))","v":""}]
[null,112,null,null,{"$f":"IF(D133=\"\",\"\",IF(D133=\"None\",\"None\",INDEX('Lighting Controls Summary'!$D$19:$D$22,MATCH(D133,'Lighting Controls Summary'!$C$19:$C$22,0),1)))","v":""},null,null,null,{"$f":"IF(H133=\"\",\"\",VLOOKUP(H133,'Wattage Table'!$D:$E,2,0))","v":""},null,0,null,{"$f":"IF(OR(H133=\"\",R133=\"No\"),0,(((VLOOKUP(H133,'Wattage Table'!$D:$F,3,0)*J133)-(VLOOKUP(H133,'Wattage Table'!$D:$F,3,0)*(J133-K133)))*L133)/1000)","v":0},{"$f":"IF(OR(H133=\"\",R133=\"No\"),0,(VLOOKUP(H133,'Wattage Table'!$D:$F,3,0)*L133)/1000*0.25)","v":0},0,0,{"$f":"IF(ISERROR(IF(H133=\"-\",\"-\",INDEX('Wattage Table'!$F$23:$F$451,MATCH(H133,'Wattage Table'!$D$23:$D$451,0)))*$L133),\" \",IF(H133=\"-\",\"-\",INDEX('Wattage Table'!$F$23:$F$451,MATCH(H133,'Wattage Table'!$D$23:$D$451,0)))*$L133)","v":" "},{"$f":"IF(D133=\"\",\"\",IF(OR(D133=\"None\",D133=\"\",H133=\"\"),\"No\",IF(VLOOKUP(H133,'Wattage Table'!$D:$F,3,0)*L133/F133<=VLOOKUP(D133,Validation!$O$7:$Q$9,3,0),\"No\",\"Yes\")))","v":""}]
[null,113,null,null,{"$f":"IF(D134=\"\",\"\",IF(D134=\"None\",\"None\",INDEX('Lighting Controls Summary'!$D$19:$D$22,MATCH(D134,'Lighting Controls Summary'!$C$19:$C$22,0),1)))","v":""},null,null,null,{"$f":"IF(H134=\"\",\"\",VLOOKUP(H134,'Wattage Table'!$D:$E,2,0))","v":""},null,0,null,{"$f":"IF(OR(H134=\"\",R134=\"No\"),0,(((VLOOKUP(H134,'Wattage Table'!$D:$F,3,0)*J134)-(VLOOKUP(H134,'Wattage Table'!$D:$F,3,0)*(J134-K134)))*L134)/1000)","v":0},{"$f":"IF(OR(H134=\"\",R134=\"No\"),0,(VLOOKUP(H134,'Wattage Table'!$D:$F,3,0)*L134)/1000*0.25)","v":0},0,0,{"$f":"IF(ISERROR(IF(H134=\"-\",\"-\",INDEX('Wattage Table'!$F$23:$F$451,MATCH(H134,'Wattage Table'!$D$23:$D$451,0)))*$L134),\" \",IF(H134=\"-\",\"-\",INDEX('Wattage Table'!$F$23:$F$451,MATCH(H134,'Wattage Table'!$D$23:$D$451,0)))*$L134)","v":" "},{"$f":"IF(D134=\"\",\"\",IF(OR(D134=\"None\",D134=\"\",H134=\"\"),\"No\",IF(VLOOKUP(H134,'Wattage Table'!$D:$F,3,0)*L134/F134<=VLOOKUP(D134,Validation!$O$7:$Q$9,3,0),\"No\",\"Yes\")))","v":""}]
[null,114,null,null,{"$f":"IF(D135=\"\",\"\",IF(D135=\"None\",\"None\",INDEX('Lighting Controls Summary'!$D$19:$D$22,MATCH(D135,'Lighting Controls Summary'!$C$19:$C$22,0),1)))","v":""},null,null,null,{"$f":"IF(H135=\"\",\"\",VLOOKUP(H135,'Wattage Table'!$D:$E,2,0))","v":""},null,0,null,{"$f":"IF(OR(H135=\"\",R135=\"No\"),0,(((VLOOKUP(H135,'Wattage Table'!$D:$F,3,0)*J135)-(VLOOKUP(H135,'Wattage Table'!$D:$F,3,0)*(J135-K135)))*L135)/1000)","v":0},{"$f":"IF(OR(H135=\"\",R135=\"No\"),0,(VLOOKUP(H135,'Wattage Table'!$D:$F,3,0)*L135)/1000*0.25)","v":0},0,0,{"$f":"IF(ISERROR(IF(H135=\"-\",\"-\",INDEX('Wattage Table'!$F$23:$F$451,MATCH(H135,'Wattage Table'!$D$23:$D$451,0)))*$L135),\" \",IF(H135=\"-\",\"-\",INDEX('Wattage Table'!$F$23:$F$451,MATCH(H135,'Wattage Table'!$D$23:$D$451,0)))*$L135)","v":" "},{"$f":"IF(D135=\"\",\"\",IF(OR(D135=\"None\",D135=\"\",H135=\"\"),\"No\",IF(VLOOKUP(H135,'Wattage Table'!$D:$F,3,0)*L135/F135<=VLOOKUP(D135,Validation!$O$7:$Q$9,3,0),\"No\",\"Yes\")))","v":""}]
[null,115,null,null,{"$f":"IF(D136=\"\",\"\",IF(D136=\"None\",\"None\",INDEX('Lighting Controls Summary'!$D$19:$D$22,MATCH(D136,'Lighting Controls Summary'!$C$19:$C$22,0),1)))","v":""},null,null,null,{"$f":"IF(H136=\"\",\"\",VLOOKUP(H136,'Wattage Table'!$D:$E,2,0))","v":""},null,0,null,{"$f":"IF(OR(H136=\"\",R136=\"No\"),0,(((VLOOKUP(H136,'Wattage Table'!$D:$F,3,0)*J136)-(VLOOKUP(H136,'Wattage Table'!$D:$F,3,0)*(J136-K136)))*L136)/1000)","v":0},{"$f":"IF(OR(H136=\"\",R136=\"No\"),0,(VLOOKUP(H136,'Wattage Table'!$D:$F,3,0)*L136)/1000*0.25)","v":0},0,0,{"$f":"IF(ISERROR(IF(H136=\"-\",\"-\",INDEX('Wattage Table'!$F$23:$F$451,MATCH(H136,'Wattage Table'!$D$23:$D$451,0)))*$L136),\" \",IF(H136=\"-\",\"-\",INDEX('Wattage Table'!$F$23:$F$451,MATCH(H136,'Wattage Table'!$D$23:$D$451,0)))*$L136)","v":" "},{"$f":"IF(D136=\"\",\"\",IF(OR(D136=\"None\",D136=\"\",H136=\"\"),\"No\",IF(VLOOKUP(H136,'Wattage Table'!$D:$F,3,0)*L136/F136<=VLOOKUP(D136,Validation!$O$7:$Q$9,3,0),\"No\",\"Yes\")))","v":""}]
[null,116,null,null,{"$f":"IF(D137=\"\",\"\",IF(D137=\"None\",\"None\",INDEX('Lighting Controls Summary'!$D$19:$D$22,MATCH(D137,'Lighting Controls Summary'!$C$19:$C$22,0),1)))","v":""},null,null,null,{"$f":"IF(H137=\"\",\"\",VLOOKUP(H137,'Wattage Table'!$D:$E,2,0))","v":""},null,0,null,{"$f":"IF(OR(H137=\"\",R137=\"No\"),0,(((VLOOKUP(H137,'Wattage Table'!$D:$F,3,0)*J137)-(VLOOKUP(H137,'Wattage Table'!$D:$F,3,0)*(J137-K137)))*L137)/1000)","v":0},{"$f":"IF(OR(H137=\"\",R137=\"No\"),0,(VLOOKUP(H137,'Wattage Table'!$D:$F,3,0)*L137)/1000*0.25)","v":0},0,0,{"$f":"IF(ISERROR(IF(H137=\"-\",\"-\",INDEX('Wattage Table'!$F$23:$F$451,MATCH(H137,'Wattage Table'!$D$23:$D$451,0)))*$L137),\" \",IF(H137=\"-\",\"-\",INDEX('Wattage Table'!$F$23:$F$451,MATCH(H137,'Wattage Table'!$D$23:$D$451,0)))*$L137)","v":" "},{"$f":"IF(D137=\"\",\"\",IF(OR(D137=\"None\",D137=\"\",H137=\"\"),\"No\",IF(VLOOKUP(H137,'Wattage Table'!$D:$F,3,0)*L137/F137<=VLOOKUP(D137,Validation!$O$7:$Q$9,3,0),\"No\",\"Yes\")))","v":""}]
[null,117,null,null,{"$f":"IF(D138=\"\",\"\",IF(D138=\"None\",\"None\",INDEX('Lighting Controls Summary'!$D$19:$D$22,MATCH(D138,'Lighting Controls Summary'!$C$19:$C$22,0),1)))","v":""},null,null,null,{"$f":"IF(H138=\"\",\"\",VLOOKUP(H138,'Wattage Table'!$D:$E,2,0))","v":""},null,0,null,{"$f":"IF(OR(H138=\"\",R138=\"No\"),0,(((VLOOKUP(H138,'Wattage Table'!$D:$F,3,0)*J138)-(VLOOKUP(H138,'Wattage Table'!$D:$F,3,0)*(J138-K138)))*L138)/1000)","v":0},{"$f":"IF(OR(H138=\"\",R138=\"No\"),0,(VLOOKUP(H138,'Wattage Table'!$D:$F,3,0)*L138)/1000*0.25)","v":0},0,0,{"$f":"IF(ISERROR(IF(H138=\"-\",\"-\",INDEX('Wattage Table'!$F$23:$F$451,MATCH(H138,'Wattage Table'!$D$23:$D$451,0)))*$L138),\" \",IF(H138=\"-\",\"-\",INDEX('Wattage Table'!$F$23:$F$451,MATCH(H138,'Wattage Table'!$D$23:$D$451,0)))*$L138)","v":" "},{"$f":"IF(D138=\"\",\"\",IF(OR(D138=\"None\",D138=\"\",H138=\"\"),\"No\",IF(VLOOKUP(H138,'Wattage Table'!$D:$F,3,0)*L138/F138<=VLOOKUP(D138,Validation!$O$7:$Q$9,3,0),\"No\",\"Yes\")))","v":""}]
[null,118,null,null,{"$f":"IF(D139=\"\",\"\",IF(D139=\"None\",\"None\",INDEX('Lighting Controls Summary'!$D$19:$D$22,MATCH(D139,'Lighting Controls Summary'!$C$19:$C$22,0),1)))","v":""},null,null,null,{"$f":"IF(H139=\"\",\"\",VLOOKUP(H139,'Wattage Table'!$D:$E,2,0))","v":""},null,0,null,{"$f":"IF(OR(H139=\"\",R139=\"No\"),0,(((VLOOKUP(H139,'Wattage Table'!$D:$F,3,0)*J139)-(VLOOKUP(H139,'Wattage Table'!$D:$F,3,0)*(J139-K139)))*L139)/1000)","v":0},{"$f":"IF(OR(H139=\"\",R139=\"No\"),0,(VLOOKUP(H139,'Wattage Table'!$D:$F,3,0)*L139)/1000*0.25)","v":0},0,0,{"$f":"IF(ISERROR(IF(H139=\"-\",\"-\",INDEX('Wattage Table'!$F$23:$F$451,MATCH(H139,'Wattage Table'!$D$23:$D$451,0)))*$L139),\" \",IF(H139=\"-\",\"-\",INDEX('Wattage Table'!$F$23:$F$451,MATCH(H139,'Wattage Table'!$D$23:$D$451,0)))*$L139)","v":" "},{"$f":"IF(D139=\"\",\"\",IF(OR(D139=\"None\",D139=\"\",H139=\"\"),\"No\",IF(VLOOKUP(H139,'Wattage Table'!$D:$F,3,0)*L139/F139<=VLOOKUP(D139,Validation!$O$7:$Q$9,3,0),\"No\",\"Yes\")))","v":""}]
[null,119,null,null,{"$f":"IF(D140=\"\",\"\",IF(D140=\"None\",\"None\",INDEX('Lighting Controls Summary'!$D$19:$D$22,MATCH(D140,'Lighting Controls Summary'!$C$19:$C$22,0),1)))","v":""},null,null,null,{"$f":"IF(H140=\"\",\"\",VLOOKUP(H140,'Wattage Table'!$D:$E,2,0))","v":""},null,0,null,{"$f":"IF(OR(H140=\"\",R140=\"No\"),0,(((VLOOKUP(H140,'Wattage Table'!$D:$F,3,0)*J140)-(VLOOKUP(H140,'Wattage Table'!$D:$F,3,0)*(J140-K140)))*L140)/1000)","v":0},{"$f":"IF(OR(H140=\"\",R140=\"No\"),0,(VLOOKUP(H140,'Wattage Table'!$D:$F,3,0)*L140)/1000*0.25)","v":0},0,0,{"$f":"IF(ISERROR(IF(H140=\"-\",\"-\",INDEX('Wattage Table'!$F$23:$F$451,MATCH(H140,'Wattage Table'!$D$23:$D$451,0)))*$L140),\" \",IF(H140=\"-\",\"-\",INDEX('Wattage Table'!$F$23:$F$451,MATCH(H140,'Wattage Table'!$D$23:$D$451,0)))*$L140)","v":" "},{"$f":"IF(D140=\"\",\"\",IF(OR(D140=\"None\",D140=\"\",H140=\"\"),\"No\",IF(VLOOKUP(H140,'Wattage Table'!$D:$F,3,0)*L140/F140<=VLOOKUP(D140,Validation!$O$7:$Q$9,3,0),\"No\",\"Yes\")))","v":""}]
[null,120,null,null,{"$f":"IF(D141=\"\",\"\",IF(D141=\"None\",\"None\",INDEX('Lighting Controls Summary'!$D$19:$D$22,MATCH(D141,'Lighting Controls Summary'!$C$19:$C$22,0),1)))","v":""},null,null,null,{"$f":"IF(H141=\"\",\"\",VLOOKUP(H141,'Wattage Table'!$D:$E,2,0))","v":""},null,0,null,{"$f":"IF(OR(H141=\"\",R141=\"No\"),0,(((VLOOKUP(H141,'Wattage Table'!$D:$F,3,0)*J141)-(VLOOKUP(H141,'Wattage Table'!$D:$F,3,0)*(J141-K141)))*L141)/1000)","v":0},{"$f":"IF(OR(H141=\"\",R141=\"No\"),0,(VLOOKUP(H141,'Wattage Table'!$D:$F,3,0)*L141)/1000*0.25)","v":0},0,0,{"$f":"IF(ISERROR(IF(H141=\"-\",\"-\",INDEX('Wattage Table'!$F$23:$F$451,MATCH(H141,'Wattage Table'!$D$23:$D$451,0)))*$L141),\" \",IF(H141=\"-\",\"-\",INDEX('Wattage Table'!$F$23:$F$451,MATCH(H141,'Wattage Table'!$D$23:$D$451,0)))*$L141)","v":" "},{"$f":"IF(D141=\"\",\"\",IF(OR(D141=\"None\",D141=\"\",H141=\"\"),\"No\",IF(VLOOKUP(H141,'Wattage Table'!$D:$F,3,0)*L141/F141<=VLOOKUP(D141,Validation!$O$7:$Q$9,3,0),\"No\",\"Yes\")))","v":""}]
[null,121,null,null,{"$f":"IF(D142=\"\",\"\",IF(D142=\"None\",\"None\",INDEX('Lighting Controls Summary'!$D$19:$D$22,MATCH(D142,'Lighting Controls Summary'!$C$19:$C$22,0),1)))","v":""},null,null,null,{"$f":"IF(H142=\"\",\"\",VLOOKUP(H142,'Wattage Table'!$D:$E,2,0))","v":""},null,0,null,{"$f":"IF(OR(H142=\"\",R142=\"No\"),0,(((VLOOKUP(H142,'Wattage Table'!$D:$F,3,0)*J142)-(VLOOKUP(H142,'Wattage Table'!$D:$F,3,0)*(J142-K142)))*L142)/1000)","v":0},{"$f":"IF(OR(H142=\"\",R142=\"No\"),0,(VLOOKUP(H142,'Wattage Table'!$D:$F,3,0)*L142)/1000*0.25)","v":0},0,0,{"$f":"IF(ISERROR(IF(H142=\"-\",\"-\",INDEX('Wattage Table'!$F$23:$F$451,MATCH(H142,'Wattage Table'!$D$23:$D$451,0)))*$L142),\" \",IF(H142=\"-\",\"-\",INDEX('Wattage Table'!$F$23:$F$451,MATCH(H142,'Wattage Table'!$D$23:$D$451,0)))*$L142)","v":" "},{"$f":"IF(D142=\"\",\"\",IF(OR(D142=\"None\",D142=\"\",H142=\"\"),\"No\",IF(VLOOKUP(H142,'Wattage Table'!$D:$F,3,0)*L142/F142<=VLOOKUP(D142,Validation!$O$7:$Q$9,3,0),\"No\",\"Yes\")))","v":""}]
[null,122,null,null,{"$f":"IF(D143=\"\",\"\",IF(D143=\"None\",\"None\",INDEX('Lighting Controls Summary'!$D$19:$D$22,MATCH(D143,'Lighting Controls Summary'!$C$19:$C$22,0),1)))","v":""},null,null,null,{"$f":"IF(H143=\"\",\"\",VLOOKUP(H143,'Wattage Table'!$D:$E,2,0))","v":""},null,0,null,{"$f":"IF(OR(H143=\"\",R143=\"No\"),0,(((VLOOKUP(H143,'Wattage Table'!$D:$F,3,0)*J143)-(VLOOKUP(H143,'Wattage Table'!$D:$F,3,0)*(J143-K143)))*L143)/1000)","v":0},{"$f":"IF(OR(H143=\"\",R143=\"No\"),0,(VLOOKUP(H143,'Wattage Table'!$D:$F,3,0)*L143)/1000*0.25)","v":0},0,0,{"$f":"IF(ISERROR(IF(H143=\"-\",\"-\",INDEX('Wattage Table'!$F$23:$F$451,MATCH(H143,'Wattage Table'!$D$23:$D$451,0)))*$L143),\" \",IF(H143=\"-\",\"-\",INDEX('Wattage Table'!$F$23:$F$451,MATCH(H143,'Wattage Table'!$D$23:$D$451,0)))*$L143)","v":" "},{"$f":"IF(D143=\"\",\"\",IF(OR(D143=\"None\",D143=\"\",H143=\"\"),\"No\",IF(VLOOKUP(H143,'Wattage Table'!$D:$F,3,0)*L143/F143<=VLOOKUP(D143,Validation!$O$7:$Q$9,3,0),\"No\",\"Yes\")))","v":""}]
[null,123,null,null,{"$f":"IF(D144=\"\",\"\",IF(D144=\"None\",\"None\",INDEX('Lighting Controls Summary'!$D$19:$D$22,MATCH(D144,'Lighting Controls Summary'!$C$19:$C$22,0),1)))","v":""},null,null,null,{"$f":"IF(H144=\"\",\"\",VLOOKUP(H144,'Wattage Table'!$D:$E,2,0))","v":""},null,0,null,{"$f":"IF(OR(H144=\"\",R144=\"No\"),0,(((VLOOKUP(H144,'Wattage Table'!$D:$F,3,0)*J144)-(VLOOKUP(H144,'Wattage Table'!$D:$F,3,0)*(J144-K144)))*L144)/1000)","v":0},{"$f":"IF(OR(H144=\"\",R144=\"No\"),0,(VLOOKUP(H144,'Wattage Table'!$D:$F,3,0)*L144)/1000*0.25)","v":0},0,0,{"$f":"IF(ISERROR(IF(H144=\"-\",\"-\",INDEX('Wattage Table'!$F$23:$F$451,MATCH(H144,'Wattage Table'!$D$23:$D$451,0)))*$L144),\" \",IF(H144=\"-\",\"-\",INDEX('Wattage Table'!$F$23:$F$451,MATCH(H144,'Wattage Table'!$D$23:$D$451,0)))*$L144)","v":" "},{"$f":"IF(D144=\"\",\"\",IF(OR(D144=\"None\",D144=\"\",H144=\"\"),\"No\",IF(VLOOKUP(H144,'Wattage Table'!$D:$F,3,0)*L144/F144<=VLOOKUP(D144,Validation!$O$7:$Q$9,3,0),\"No\",\"Yes\")))","v":""}]
[null,124,null,null,{"$f":"IF(D145=\"\",\"\",IF(D145=\"None\",\"None\",INDEX('Lighting Controls Summary'!$D$19:$D$22,MATCH(D145,'Lighting Controls Summary'!$C$19:$C$22,0),1)))","v":""},null,null,null,{"$f":"IF(H145=\"\",\"\",VLOOKUP(H145,'Wattage Table'!$D:$E,2,0))","v":""},null,0,null,{"$f":"IF(OR(H145=\"\",R145=\"No\"),0,(((VLOOKUP(H145,'Wattage Table'!$D:$F,3,0)*J145)-(VLOOKUP(H145,'Wattage Table'!$D:$F,3,0)*(J145-K145)))*L145)/1000)","v":0},{"$f":"IF(OR(H145=\"\",R145=\"No\"),0,(VLOOKUP(H145,'Wattage Table'!$D:$F,3,0)*L145)/1000*0.25)","v":0},0,0,{"$f":"IF(ISERROR(IF(H145=\"-\",\"-\",INDEX('Wattage Table'!$F$23:$F$451,MATCH(H145,'Wattage Table'!$D$23:$D$451,0)))*$L145),\" \",IF(H145=\"-\",\"-\",INDEX('Wattage Table'!$F$23:$F$451,MATCH(H145,'Wattage Table'!$D$23:$D$451,0)))*$L145)","v":" "},{"$f":"IF(D145=\"\",\"\",IF(OR(D145=\"None\",D145=\"\",H145=\"\"),\"No\",IF(VLOOKUP(H145,'Wattage Table'!$D:$F,3,0)*L145/F145<=VLOOKUP(D145,Validation!$O$7:$Q$9,3,0),\"No\",\"Yes\")))","v":""}]
[null,125,null,null,{"$f":"IF(D146=\"\",\"\",IF(D146=\"None\",\"None\",INDEX('Lighting Controls Summary'!$D$19:$D$22,MATCH(D146,'Lighting Controls Summary'!$C$19:$C$22,0),1)))","v":""},null,null,null,{"$f":"IF(H146=\"\",\"\",VLOOKUP(H146,'Wattage Table'!$D:$E,2,0))","v":""},null,0,null,{"$f":"IF(OR(H146=\"\",R146=\"No\"),0,(((VLOOKUP(H146,'Wattage Table'!$D:$F,3,0)*J146)-(VLOOKUP(H146,'Wattage Table'!$D:$F,3,0)*(J146-K146)))*L146)/1000)","v":0},{"$f":"IF(OR(H146=\"\",R146=\"No\"),0,(VLOOKUP(H146,'Wattage Table'!$D:$F,3,0)*L146)/1000*0.25)","v":0},0,0,{"$f":"IF(ISERROR(IF(H146=\"-\",\"-\",INDEX('Wattage Table'!$F$23:$F$451,MATCH(H146,'Wattage Table'!$D$23:$D$451,0)))*$L146),\" \",IF(H146=\"-\",\"-\",INDEX('Wattage Table'!$F$23:$F$451,MATCH(H146,'Wattage Table'!$D$23:$D$451,0)))*$L146)","v":" "},{"$f":"IF(D146=\"\",\"\",IF(OR(D146=\"None\",D146=\"\",H146=\"\"),\"No\",IF(VLOOKUP(H146,'Wattage Table'!$D:$F,3,0)*L146/F146<=VLOOKUP(D146,Validation!$O$7:$Q$9,3,0),\"No\",\"Yes\")))","v":""}]
[null,126,null,null,{"$f":"IF(D147=\"\",\"\",IF(D147=\"None\",\"None\",INDEX('Lighting Controls Summary'!$D$19:$D$22,MATCH(D147,'Lighting Controls Summary'!$C$19:$C$22,0),1)))","v":""},null,null,null,{"$f":"IF(H147=\"\",\"\",VLOOKUP(H147,'Wattage Table'!$D:$E,2,0))","v":""},null,0,null,{"$f":"IF(OR(H147=\"\",R147=\"No\"),0,(((VLOOKUP(H147,'Wattage Table'!$D:$F,3,0)*J147)-(VLOOKUP(H147,'Wattage Table'!$D:$F,3,0)*(J147-K147)))*L147)/1000)","v":0},{"$f":"IF(OR(H147=\"\",R147=\"No\"),0,(VLOOKUP(H147,'Wattage Table'!$D:$F,3,0)*L147)/1000*0.25)","v":0},0,0,{"$f":"IF(ISERROR(IF(H147=\"-\",\"-\",INDEX('Wattage Table'!$F$23:$F$451,MATCH(H147,'Wattage Table'!$D$23:$D$451,0)))*$L147),\" \",IF(H147=\"-\",\"-\",INDEX('Wattage Table'!$F$23:$F$451,MATCH(H147,'Wattage Table'!$D$23:$D$451,0)))*$L147)","v":" "},{"$f":"IF(D147=\"\",\"\",IF(OR(D147=\"None\",D147=\"\",H147=\"\"),\"No\",IF(VLOOKUP(H147,'Wattage Table'!$D:$F,3,0)*L147/F147<=VLOOKUP(D147,Validation!$O$7:$Q$9,3,0),\"No\",\"Yes\")))","v":""}]
[null,127,null,null,{"$f":"IF(D148=\"\",\"\",IF(D148=\"None\",\"None\",INDEX('Lighting Controls Summary'!$D$19:$D$22,MATCH(D148,'Lighting Controls Summary'!$C$19:$C$22,0),1)))","v":""},null,null,null,{"$f":"IF(H148=\"\",\"\",VLOOKUP(H148,'Wattage Table'!$D:$E,2,0))","v":""},null,0,null,{"$f":"IF(OR(H148=\"\",R148=\"No\"),0,(((VLOOKUP(H148,'Wattage Table'!$D:$F,3,0)*J148)-(VLOOKUP(H148,'Wattage Table'!$D:$F,3,0)*(J148-K148)))*L148)/1000)","v":0},{"$f":"IF(OR(H148=\"\",R148=\"No\"),0,(VLOOKUP(H148,'Wattage Table'!$D:$F,3,0)*L148)/1000*0.25)","v":0},0,0,{"$f":"IF(ISERROR(IF(H148=\"-\",\"-\",INDEX('Wattage Table'!$F$23:$F$451,MATCH(H148,'Wattage Table'!$D$23:$D$451,0)))*$L148),\" \",IF(H148=\"-\",\"-\",INDEX('Wattage Table'!$F$23:$F$451,MATCH(H148,'Wattage Table'!$D$23:$D$451,0)))*$L148)","v":" "},{"$f":"IF(D148=\"\",\"\",IF(OR(D148=\"None\",D148=\"\",H148=\"\"),\"No\",IF(VLOOKUP(H148,'Wattage Table'!$D:$F,3,0)*L148/F148<=VLOOKUP(D148,Validation!$O$7:$Q$9,3,0),\"No\",\"Yes\")))","v":""}]
[null,128,null,null,{"$f":"IF(D149=\"\",\"\",IF(D149=\"None\",\"None\",INDEX('Lighting Controls Summary'!$D$19:$D$22,MATCH(D149,'Lighting Controls Summary'!$C$19:$C$22,0),1)))","v":""},null,null,null,{"$f":"IF(H149=\"\",\"\",VLOOKUP(H149,'Wattage Table'!$D:$E,2,0))","v":""},null,0,null,{"$f":"IF(OR(H149=\"\",R149=\"No\"),0,(((VLOOKUP(H149,'Wattage Table'!$D:$F,3,0)*J149)-(VLOOKUP(H149,'Wattage Table'!$D:$F,3,0)*(J149-K149)))*L149)/1000)","v":0},{"$f":"IF(OR(H149=\"\",R149=\"No\"),0,(VLOOKUP(H149,'Wattage Table'!$D:$F,3,0)*L149)/1000*0.25)","v":0},0,0,{"$f":"IF(ISERROR(IF(H149=\"-\",\"-\",INDEX('Wattage Table'!$F$23:$F$451,MATCH(H149,'Wattage Table'!$D$23:$D$451,0)))*$L149),\" \",IF(H149=\"-\",\"-\",INDEX('Wattage Table'!$F$23:$F$451,MATCH(H149,'Wattage Table'!$D$23:$D$451,0)))*$L149)","v":" "},{"$f":"IF(D149=\"\",\"\",IF(OR(D149=\"None\",D149=\"\",H149=\"\"),\"No\",IF(VLOOKUP(H149,'Wattage Table'!$D:$F,3,0)*L149/F149<=VLOOKUP(D149,Validation!$O$7:$Q$9,3,0),\"No\",\"Yes\")))","v":""}]
[null,129,null,null,{"$f":"IF(D150=\"\",\"\",IF(D150=\"None\",\"None\",INDEX('Lighting Controls Summary'!$D$19:$D$22,MATCH(D150,'Lighting Controls Summary'!$C$19:$C$22,0),1)))","v":""},null,null,null,{"$f":"IF(H150=\"\",\"\",VLOOKUP(H150,'Wattage Table'!$D:$E,2,0))","v":""},null,{"$f":"IF(OR(D150=\"\",J150=\"\"),0,J150*0.25)","v":0},null,{"$f":"IF(OR(H150=\"\",R150=\"No\"),0,(((VLOOKUP(H150,'Wattage Table'!$D:$F,3,0)*J150)-(VLOOKUP(H150,'Wattage Table'!$D:$F,3,0)*(J150-K150)))*L150)/1000)","v":0},{"$f":"IF(OR(H150=\"\",R150=\"No\"),0,(VLOOKUP(H150,'Wattage Table'!$D:$F,3,0)*L150)/1000*0.25)","v":0},0,{"$f":"IF(O150<=0,0,F150)","v":0},{"$f":"IF(ISERROR(IF(H150=\"-\",\"-\",INDEX('Wattage Table'!$F$23:$F$451,MATCH(H150,'Wattage Table'!$D$23:$D$451,0)))*$L150),\" \",IF(H150=\"-\",\"-\",INDEX('Wattage Table'!$F$23:$F$451,MATCH(H150,'Wattage Table'!$D$23:$D$451,0)))*$L150)","v":" "},{"$f":"IF(D150=\"\",\"\",IF(OR(D150=\"None\",D150=\"\",H150=\"\"),\"No\",IF(VLOOKUP(H150,'Wattage Table'!$D:$F,3,0)*L150/F150<=VLOOKUP(D150,Validation!$O$7:$Q$9,3,0),\"No\",\"Yes\")))","v":""}]
[null,130,null,null,{"$f":"IF(D151=\"\",\"\",IF(D151=\"None\",\"None\",INDEX('Lighting Controls Summary'!$D$19:$D$22,MATCH(D151,'Lighting Controls Summary'!$C$19:$C$22,0),1)))","v":""},null,null,null,{"$f":"IF(H151=\"\",\"\",VLOOKUP(H151,'Wattage Table'!$D:$E,2,0))","v":""},null,0,null,{"$f":"IF(OR(H151=\"\",R151=\"No\"),0,(((VLOOKUP(H151,'Wattage Table'!$D:$F,3,0)*J151)-(VLOOKUP(H151,'Wattage Table'!$D:$F,3,0)*(J151-K151)))*L151)/1000)","v":0},{"$f":"IF(OR(H151=\"\",R151=\"No\"),0,(VLOOKUP(H151,'Wattage Table'!$D:$F,3,0)*L151)/1000*0.25)","v":0},{"$f":"IF(OR(D151=\"None\",M151<=0,N151<=0,D151=\"\",H151=\"\",R151=\"No\"),0,IF(OR(D151=\"80B\",D151=\"80E\"),F151*35,IF(OR(D151=\"80A\",D151=\"80C\"),F151*15,0)))","v":0},0,{"$f":"IF(ISERROR(IF(H151=\"-\",\"-\",INDEX('Wattage Table'!$F$23:$F$451,MATCH(H151,'Wattage Table'!$D$23:$D$451,0)))*$L151),\" \",IF(H151=\"-\",\"-\",INDEX('Wattage Table'!$F$23:$F$451,MATCH(H151,'Wattage Table'!$D$23:$D$451,0)))*$L151)","v":" "},{"$f":"IF(D151=\"\",\"\",IF(OR(D151=\"None\",D151=\"\",H151=\"\"),\"No\",IF(VLOOKUP(H151,'Wattage Table'!$D:$F,3,0)*L151/F151<=VLOOKUP(D151,Validation!$O$7:$Q$9,3,0),\"No\",\"Yes\")))","v":""}]
[null,131,null,null,{"$f":"IF(D152=\"\",\"\",IF(D152=\"None\",\"None\",INDEX('Lighting Controls Summary'!$D$19:$D$22,MATCH(D152,'Lighting Controls Summary'!$C$19:$C$22,0),1)))","v":""},null,null,null,{"$f":"IF(H152=\"\",\"\",VLOOKUP(H152,'Wattage Table'!$D:$E,2,0))","v":""},null,0,null,{"$f":"IF(OR(H152=\"\",R152=\"No\"),0,(((VLOOKUP(H152,'Wattage Table'!$D:$F,3,0)*J152)-(VLOOKUP(H152,'Wattage Table'!$D:$F,3,0)*(J152-K152)))*L152)/1000)","v":0},{"$f":"IF(OR(H152=\"\",R152=\"No\"),0,(VLOOKUP(H152,'Wattage Table'!$D:$F,3,0)*L152)/1000*0.25)","v":0},0,0,{"$f":"IF(ISERROR(IF(H152=\"-\",\"-\",INDEX('Wattage Table'!$F$23:$F$451,MATCH(H152,'Wattage Table'!$D$23:$D$451,0)))*$L152),\" \",IF(H152=\"-\",\"-\",INDEX('Wattage Table'!$F$23:$F$451,MATCH(H152,'Wattage Table'!$D$23:$D$451,0)))*$L152)","v":" "},{"$f":"IF(D152=\"\",\"\",IF(OR(D152=\"None\",D152=\"\",H152=\"\"),\"No\",IF(VLOOKUP(H152,'Wattage Table'!$D:$F,3,0)*L152/F152<=VLOOKUP(D152,Validation!$O$7:$Q$9,3,0),\"No\",\"Yes\")))","v":""}]
[null,132,null,null,{"$f":"IF(D153=\"\",\"\",IF(D153=\"None\",\"None\",INDEX('Lighting Controls Summary'!$D$19:$D$22,MATCH(D153,'Lighting Controls Summary'!$C$19:$C$22,0),1)))","v":""},null,null,null,{"$f":"IF(H153=\"\",\"\",VLOOKUP(H153,'Wattage Table'!$D:$E,2,0))","v":""},null,0,null,{"$f":"IF(OR(H153=\"\",R153=\"No\"),0,(((VLOOKUP(H153,'Wattage Table'!$D:$F,3,0)*J153)-(VLOOKUP(H153,'Wattage Table'!$D:$F,3,0)*(J153-K153)))*L153)/1000)","v":0},{"$f":"IF(OR(H153=\"\",R153=\"No\"),0,(VLOOKUP(H153,'Wattage Table'!$D:$F,3,0)*L153)/1000*0.25)","v":0},0,0,{"$f":"IF(ISERROR(IF(H153=\"-\",\"-\",INDEX('Wattage Table'!$F$23:$F$451,MATCH(H153,'Wattage Table'!$D$23:$D$451,0)))*$L153),\" \",IF(H153=\"-\",\"-\",INDEX('Wattage Table'!$F$23:$F$451,MATCH(H153,'Wattage Table'!$D$23:$D$451,0)))*$L153)","v":" "},{"$f":"IF(D153=\"\",\"\",IF(OR(D153=\"None\",D153=\"\",H153=\"\"),\"No\",IF(VLOOKUP(H153,'Wattage Table'!$D:$F,3,0)*L153/F153<=VLOOKUP(D153,Validation!$O$7:$Q$9,3,0),\"No\",\"Yes\")))","v":""}]
[null,133,null,null,{"$f":"IF(D154=\"\",\"\",IF(D154=\"None\",\"None\",INDEX('Lighting Controls Summary'!$D$19:$D$22,MATCH(D154,'Lighting Controls Summary'!$C$19:$C$22,0),1)))","v":""},null,null,null,{"$f":"IF(H154=\"\",\"\",VLOOKUP(H154,'Wattage Table'!$D:$E,2,0))","v":""},null,0,null,{"$f":"IF(OR(H154=\"\",R154=\"No\"),0,(((VLOOKUP(H154,'Wattage Table'!$D:$F,3,0)*J154)-(VLOOKUP(H154,'Wattage Table'!$D:$F,3,0)*(J154-K154)))*L154)/1000)","v":0},{"$f":"IF(OR(H154=\"\",R154=\"No\"),0,(VLOOKUP(H154,'Wattage Table'!$D:$F,3,0)*L154)/1000*0.25)","v":0},0,0,{"$f":"IF(ISERROR(IF(H154=\"-\",\"-\",INDEX('Wattage Table'!$F$23:$F$451,MATCH(H154,'Wattage Table'!$D$23:$D$451,0)))*$L154),\" \",IF(H154=\"-\",\"-\",INDEX('Wattage Table'!$F$23:$F$451,MATCH(H154,'Wattage Table'!$D$23:$D$451,0)))*$L154)","v":" "},{"$f":"IF(D154=\"\",\"\",IF(OR(D154=\"None\",D154=\"\",H154=\"\"),\"No\",IF(VLOOKUP(H154,'Wattage Table'!$D:$F,3,0)*L154/F154<=VLOOKUP(D154,Validation!$O$7:$Q$9,3,0),\"No\",\"Yes\")))","v":""}]
[null,134,null,null,{"$f":"IF(D155=\"\",\"\",IF(D155=\"None\",\"None\",INDEX('Lighting Controls Summary'!$D$19:$D$22,MATCH(D155,'Lighting Controls Summary'!$C$19:$C$22,0),1)))","v":""},null,null,null,{"$f":"IF(H155=\"\",\"\",VLOOKUP(H155,'Wattage Table'!$D:$E,2,0))","v":""},null,0,null,{"$f":"IF(OR(H155=\"\",R155=\"No\"),0,(((VLOOKUP(H155,'Wattage Table'!$D:$F,3,0)*J155)-(VLOOKUP(H155,'Wattage Table'!$D:$F,3,0)*(J155-K155)))*L155)/1000)","v":0},{"$f":"IF(OR(H155=\"\",R155=\"No\"),0,(VLOOKUP(H155,'Wattage Table'!$D:$F,3,0)*L155)/1000*0.25)","v":0},0,0,{"$f":"IF(ISERROR(IF(H155=\"-\",\"-\",INDEX('Wattage Table'!$F$23:$F$451,MATCH(H155,'Wattage Table'!$D$23:$D$451,0)))*$L155),\" \",IF(H155=\"-\",\"-\",INDEX('Wattage Table'!$F$23:$F$451,MATCH(H155,'Wattage Table'!$D$23:$D$451,0)))*$L155)","v":" "},{"$f":"IF(D155=\"\",\"\",IF(OR(D155=\"None\",D155=\"\",H155=\"\"),\"No\",IF(VLOOKUP(H155,'Wattage Table'!$D:$F,3,0)*L155/F155<=VLOOKUP(D155,Validation!$O$7:$Q$9,3,0),\"No\",\"Yes\")))","v":""}]
[null,135,null,null,{"$f":"IF(D156=\"\",\"\",IF(D156=\"None\",\"None\",INDEX('Lighting Controls Summary'!$D$19:$D$22,MATCH(D156,'Lighting Controls Summary'!$C$19:$C$22,0),1)))","v":""},null,null,null,{"$f":"IF(H156=\"\",\"\",VLOOKUP(H156,'Wattage Table'!$D:$E,2,0))","v":""},null,0,null,{"$f":"IF(OR(H156=\"\",R156=\"No\"),0,(((VLOOKUP(H156,'Wattage Table'!$D:$F,3,0)*J156)-(VLOOKUP(H156,'Wattage Table'!$D:$F,3,0)*(J156-K156)))*L156)/1000)","v":0},{"$f":"IF(OR(H156=\"\",R156=\"No\"),0,(VLOOKUP(H156,'Wattage Table'!$D:$F,3,0)*L156)/1000*0.25)","v":0},0,0,{"$f":"IF(ISERROR(IF(H156=\"-\",\"-\",INDEX('Wattage Table'!$F$23:$F$451,MATCH(H156,'Wattage Table'!$D$23:$D$451,0)))*$L156),\" \",IF(H156=\"-\",\"-\",INDEX('Wattage Table'!$F$23:$F$451,MATCH(H156,'Wattage Table'!$D$23:$D$451,0)))*$L156)","v":" "},{"$f":"IF(D156=\"\",\"\",IF(OR(D156=\"None\",D156=\"\",H156=\"\"),\"No\",IF(VLOOKUP(H156,'Wattage Table'!$D:$F,3,0)*L156/F156<=VLOOKUP(D156,Validation!$O$7:$Q$9,3,0),\"No\",\"Yes\")))","v":""}]
[null,136,null,null,{"$f":"IF(D157=\"\",\"\",IF(D157=\"None\",\"None\",INDEX('Lighting Controls Summary'!$D$19:$D$22,MATCH(D157,'Lighting Controls Summary'!$C$19:$C$22,0),1)))","v":""},null,null,null,{"$f":"IF(H157=\"\",\"\",VLOOKUP(H157,'Wattage Table'!$D:$E,2,0))","v":""},null,0,null,{"$f":"IF(OR(H157=\"\",R157=\"No\"),0,(((VLOOKUP(H157,'Wattage Table'!$D:$F,3,0)*J157)-(VLOOKUP(H157,'Wattage Table'!$D:$F,3,0)*(J157-K157)))*L157)/1000)","v":0},{"$f":"IF(OR(H157=\"\",R157=\"No\"),0,(VLOOKUP(H157,'Wattage Table'!$D:$F,3,0)*L157)/1000*0.25)","v":0},0,0,{"$f":"IF(ISERROR(IF(H157=\"-\",\"-\",INDEX('Wattage Table'!$F$23:$F$451,MATCH(H157,'Wattage Table'!$D$23:$D$451,0)))*$L157),\" \",IF(H157=\"-\",\"-\",INDEX('Wattage Table'!$F$23:$F$451,MATCH(H157,'Wattage Table'!$D$23:$D$451,0)))*$L157)","v":" "},{"$f":"IF(D157=\"\",\"\",IF(OR(D157=\"None\",D157=\"\",H157=\"\"),\"No\",IF(VLOOKUP(H157,'Wattage Table'!$D:$F,3,0)*L157/F157<=VLOOKUP(D157,Validation!$O$7:$Q$9,3,0),\"No\",\"Yes\")))","v":""}]
[null,137,null,null,{"$f":"IF(D158=\"\",\"\",IF(D158=\"None\",\"None\",INDEX('Lighting Controls Summary'!$D$19:$D$22,MATCH(D158,'Lighting Controls Summary'!$C$19:$C$22,0),1)))","v":""},null,null,null,{"$f":"IF(H158=\"\",\"\",VLOOKUP(H158,'Wattage Table'!$D:$E,2,0))","v":""},null,0,null,{"$f":"IF(OR(H158=\"\",R158=\"No\"),0,(((VLOOKUP(H158,'Wattage Table'!$D:$F,3,0)*J158)-(VLOOKUP(H158,'Wattage Table'!$D:$F,3,0)*(J158-K158)))*L158)/1000)","v":0},{"$f":"IF(OR(H158=\"\",R158=\"No\"),0,(VLOOKUP(H158,'Wattage Table'!$D:$F,3,0)*L158)/1000*0.25)","v":0},0,0,{"$f":"IF(ISERROR(IF(H158=\"-\",\"-\",INDEX('Wattage Table'!$F$23:$F$451,MATCH(H158,'Wattage Table'!$D$23:$D$451,0)))*$L158),\" \",IF(H158=\"-\",\"-\",INDEX('Wattage Table'!$F$23:$F$451,MATCH(H158,'Wattage Table'!$D$23:$D$451,0)))*$L158)","v":" "},{"$f":"IF(D158=\"\",\"\",IF(OR(D158=\"None\",D158=\"\",H158=\"\"),\"No\",IF(VLOOKUP(H158,'Wattage Table'!$D:$F,3,0)*L158/F158<=VLOOKUP(D158,Validation!$O$7:$Q$9,3,0),\"No\",\"Yes\")))","v":""}]
[null,138,null,null,{"$f":"IF(D159=\"\",\"\",IF(D159=\"None\",\"None\",INDEX('Lighting Controls Summary'!$D$19:$D$22,MATCH(D159,'Lighting Controls Summary'!$C$19:$C$22,0),1)))","v":""},null,null,null,{"$f":"IF(H159=\"\",\"\",VLOOKUP(H159,'Wattage Table'!$D:$E,2,0))","v":""},null,0,null,{"$f":"IF(OR(H159=\"\",R159=\"No\"),0,(((VLOOKUP(H159,'Wattage Table'!$D:$F,3,0)*J159)-(VLOOKUP(H159,'Wattage Table'!$D:$F,3,0)*(J159-K159)))*L159)/1000)","v":0},{"$f":"IF(OR(H159=\"\",R159=\"No\"),0,(VLOOKUP(H159,'Wattage Table'!$D:$F,3,0)*L159)/1000*0.25)","v":0},0,0,{"$f":"IF(ISERROR(IF(H159=\"-\",\"-\",INDEX('Wattage Table'!$F$23:$F$451,MATCH(H159,'Wattage Table'!$D$23:$D$451,0)))*$L159),\" \",IF(H159=\"-\",\"-\",INDEX('Wattage Table'!$F$23:$F$451,MATCH(H159,'Wattage Table'!$D$23:$D$451,0)))*$L159)","v":" "},{"$f":"IF(D159=\"\",\"\",IF(OR(D159=\"None\",D159=\"\",H159=\"\"),\"No\",IF(VLOOKUP(H159,'Wattage Table'!$D:$F,3,0)*L159/F159<=VLOOKUP(D159,Validation!$O$7:$Q$9,3,0),\"No\",\"Yes\")))","v":""}]
[null,139,null,null,{"$f":"IF(D160=\"\",\"\",IF(D160=\"None\",\"None\",INDEX('Lighting Controls Summary'!$D$19:$D$22,MATCH(D160,'Lighting Controls Summary'!$C$19:$C$22,0),1)))","v":""},null,null,null,{"$f":"IF(H160=\"\",\"\",VLOOKUP(H160,'Wattage Table'!$D:$E,2,0))","v":""},null,0,null,{"$f":"IF(OR(H160=\"\",R160=\"No\"),0,(((VLOOKUP(H160,'Wattage Table'!$D:$F,3,0)*J160)-(VLOOKUP(H160,'Wattage Table'!$D:$F,3,0)*(J160-K160)))*L160)/1000)","v":0},{"$f":"IF(OR(H160=\"\",R160=\"No\"),0,(VLOOKUP(H160,'Wattage Table'!$D:$F,3,0)*L160)/1000*0.25)","v":0},0,0,{"$f":"IF(ISERROR(IF(H160=\"-\",\"-\",INDEX('Wattage Table'!$F$23:$F$451,MATCH(H160,'Wattage Table'!$D$23:$D$451,0)))*$L160),\" \",IF(H160=\"-\",\"-\",INDEX('Wattage Table'!$F$23:$F$451,MATCH(H160,'Wattage Table'!$D$23:$D$451,0)))*$L160)","v":" "},{"$f":"IF(D160=\"\",\"\",IF(OR(D160=\"None\",D160=\"\",H160=\"\"),\"No\",IF(VLOOKUP(H160,'Wattage Table'!$D:$F,3,0)*L160/F160<=VLOOKUP(D160,Validation!$O$7:$Q$9,3,0),\"No\",\"Yes\")))","v":""}]
[null,140,null,null,{"$f":"IF(D161=\"\",\"\",IF(D161=\"None\",\"None\",INDEX('Lighting Controls Summary'!$D$19:$D$22,MATCH(D161,'Lighting Controls Summary'!$C$19:$C$22,0),1)))","v":""},null,null,null,{"$f":"IF(H161=\"\",\"\",VLOOKUP(H161,'Wattage Table'!$D:$E,2,0))","v":""},null,0,null,{"$f":"IF(OR(H161=\"\",R161=\"No\"),0,(((VLOOKUP(H161,'Wattage Table'!$D:$F,3,0)*J161)-(VLOOKUP(H161,'Wattage Table'!$D:$F,3,0)*(J161-K161)))*L161)/1000)","v":0},{"$f":"IF(OR(H161=\"\",R161=\"No\"),0,(VLOOKUP(H161,'Wattage Table'!$D:$F,3,0)*L161)/1000*0.25)","v":0},0,0,{"$f":"IF(ISERROR(IF(H161=\"-\",\"-\",INDEX('Wattage Table'!$F$23:$F$451,MATCH(H161,'Wattage Table'!$D$23:$D$451,0)))*$L161),\" \",IF(H161=\"-\",\"-\",INDEX('Wattage Table'!$F$23:$F$451,MATCH(H161,'Wattage Table'!$D$23:$D$451,0)))*$L161)","v":" "},{"$f":"IF(D161=\"\",\"\",IF(OR(D161=\"None\",D161=\"\",H161=\"\"),\"No\",IF(VLOOKUP(H161,'Wattage Table'!$D:$F,3,0)*L161/F161<=VLOOKUP(D161,Validation!$O$7:$Q$9,3,0),\"No\",\"Yes\")))","v":""}]
[null,141,null,null,{"$f":"IF(D162=\"\",\"\",IF(D162=\"None\",\"None\",INDEX('Lighting Controls Summary'!$D$19:$D$22,MATCH(D162,'Lighting Controls Summary'!$C$19:$C$22,0),1)))","v":""},null,null,null,{"$f":"IF(H162=\"\",\"\",VLOOKUP(H162,'Wattage Table'!$D:$E,2,0))","v":""},null,0,null,{"$f":"IF(OR(H162=\"\",R162=\"No\"),0,(((VLOOKUP(H162,'Wattage Table'!$D:$F,3,0)*J162)-(VLOOKUP(H162,'Wattage Table'!$D:$F,3,0)*(J162-K162)))*L162)/1000)","v":0},{"$f":"IF(OR(H162=\"\",R162=\"No\"),0,(VLOOKUP(H162,'Wattage Table'!$D:$F,3,0)*L162)/1000*0.25)","v":0},0,0,{"$f":"IF(ISERROR(IF(H162=\"-\",\"-\",INDEX('Wattage Table'!$F$23:$F$451,MATCH(H162,'Wattage Table'!$D$23:$D$451,0)))*$L162),\" \",IF(H162=\"-\",\"-\",INDEX('Wattage Table'!$F$23:$F$451,MATCH(H162,'Wattage Table'!$D$23:$D$451,0)))*$L162)","v":" "},{"$f":"IF(D162=\"\",\"\",IF(OR(D162=\"None\",D162=\"\",H162=\"\"),\"No\",IF(VLOOKUP(H162,'Wattage Table'!$D:$F,3,0)*L162/F162<=VLOOKUP(D162,Validation!$O$7:$Q$9,3,0),\"No\",\"Yes\")))","v":""}]
[null,142,null,null,{"$f":"IF(D163=\"\",\"\",IF(D163=\"None\",\"None\",INDEX('Lighting Controls Summary'!$D$19:$D$22,MATCH(D163,'Lighting Controls Summary'!$C$19:$C$22,0),1)))","v":""},null,null,null,{"$f":"IF(H163=\"\",\"\",VLOOKUP(H163,'Wattage Table'!$D:$E,2,0))","v":""},null,0,null,{"$f":"IF(OR(H163=\"\",R163=\"No\"),0,(((VLOOKUP(H163,'Wattage Table'!$D:$F,3,0)*J163)-(VLOOKUP(H163,'Wattage Table'!$D:$F,3,0)*(J163-K163)))*L163)/1000)","v":0},{"$f":"IF(OR(H163=\"\",R163=\"No\"),0,(VLOOKUP(H163,'Wattage Table'!$D:$F,3,0)*L163)/1000*0.25)","v":0},0,0,{"$f":"IF(ISERROR(IF(H163=\"-\",\"-\",INDEX('Wattage Table'!$F$23:$F$451,MATCH(H163,'Wattage Table'!$D$23:$D$451,0)))*$L163),\" \",IF(H163=\"-\",\"-\",INDEX('Wattage Table'!$F$23:$F$451,MATCH(H163,'Wattage Table'!$D$23:$D$451,0)))*$L163)","v":" "},{"$f":"IF(D163=\"\",\"\",IF(OR(D163=\"None\",D163=\"\",H163=\"\"),\"No\",IF(VLOOKUP(H163,'Wattage Table'!$D:$F,3,0)*L163/F163<=VLOOKUP(D163,Validation!$O$7:$Q$9,3,0),\"No\",\"Yes\")))","v":""}]
[null,143,null,null,{"$f":"IF(D164=\"\",\"\",IF(D164=\"None\",\"None\",INDEX('Lighting Controls Summary'!$D$19:$D$22,MATCH(D164,'Lighting Controls Summary'!$C$19:$C$22,0),1)))","v":""},null,null,null,{"$f":"IF(H164=\"\",\"\",VLOOKUP(H164,'Wattage Table'!$D:$E,2,0))","v":""},null,0,null,{"$f":"IF(OR(H164=\"\",R164=\"No\"),0,(((VLOOKUP(H164,'Wattage Table'!$D:$F,3,0)*J164)-(VLOOKUP(H164,'Wattage Table'!$D:$F,3,0)*(J164-K164)))*L164)/1000)","v":0},{"$f":"IF(OR(H164=\"\",R164=\"No\"),0,(VLOOKUP(H164,'Wattage Table'!$D:$F,3,0)*L164)/1000*0.25)","v":0},0,0,{"$f":"IF(ISERROR(IF(H164=\"-\",\"-\",INDEX('Wattage Table'!$F$23:$F$451,MATCH(H164,'Wattage Table'!$D$23:$D$451,0)))*$L164),\" \",IF(H164=\"-\",\"-\",INDEX('Wattage Table'!$F$23:$F$451,MATCH(H164,'Wattage Table'!$D$23:$D$451,0)))*$L164)","v":" "},{"$f":"IF(D164=\"\",\"\",IF(OR(D164=\"None\",D164=\"\",H164=\"\"),\"No\",IF(VLOOKUP(H164,'Wattage Table'!$D:$F,3,0)*L164/F164<=VLOOKUP(D164,Validation!$O$7:$Q$9,3,0),\"No\",\"Yes\")))","v":""}]
[null,144,null,null,{"$f":"IF(D165=\"\",\"\",IF(D165=\"None\",\"None\",INDEX('Lighting Controls Summary'!$D$19:$D$22,MATCH(D165,'Lighting Controls Summary'!$C$19:$C$22,0),1)))","v":""},null,null,null,{"$f":"IF(H165=\"\",\"\",VLOOKUP(H165,'Wattage Table'!$D:$E,2,0))","v":""},null,0,null,{"$f":"IF(OR(H165=\"\",R165=\"No\"),0,(((VLOOKUP(H165,'Wattage Table'!$D:$F,3,0)*J165)-(VLOOKUP(H165,'Wattage Table'!$D:$F,3,0)*(J165-K165)))*L165)/1000)","v":0},{"$f":"IF(OR(H165=\"\",R165=\"No\"),0,(VLOOKUP(H165,'Wattage Table'!$D:$F,3,0)*L165)/1000*0.25)","v":0},0,0,{"$f":"IF(ISERROR(IF(H165=\"-\",\"-\",INDEX('Wattage Table'!$F$23:$F$451,MATCH(H165,'Wattage Table'!$D$23:$D$451,0)))*$L165),\" \",IF(H165=\"-\",\"-\",INDEX('Wattage Table'!$F$23:$F$451,MATCH(H165,'Wattage Table'!$D$23:$D$451,0)))*$L165)","v":" "},{"$f":"IF(D165=\"\",\"\",IF(OR(D165=\"None\",D165=\"\",H165=\"\"),\"No\",IF(VLOOKUP(H165,'Wattage Table'!$D:$F,3,0)*L165/F165<=VLOOKUP(D165,Validation!$O$7:$Q$9,3,0),\"No\",\"Yes\")))","v":""}]
[null,145,null,null,{"$f":"IF(D166=\"\",\"\",IF(D166=\"None\",\"None\",INDEX('Lighting Controls Summary'!$D$19:$D$22,MATCH(D166,'Lighting Controls Summary'!$C$19:$C$22,0),1)))","v":""},null,null,null,{"$f":"IF(H166=\"\",\"\",VLOOKUP(H166,'Wattage Table'!$D:$E,2,0))","v":""},null,0,null,{"$f":"IF(OR(H166=\"\",R166=\"No\"),0,(((VLOOKUP(H166,'Wattage Table'!$D:$F,3,0)*J166)-(VLOOKUP(H166,'Wattage Table'!$D:$F,3,0)*(J166-K166)))*L166)/1000)","v":0},{"$f":"IF(OR(H166=\"\",R166=\"No\"),0,(VLOOKUP(H166,'Wattage Table'!$D:$F,3,0)*L166)/1000*0.25)","v":0},0,0,{"$f":"IF(ISERROR(IF(H166=\"-\",\"-\",INDEX('Wattage Table'!$F$23:$F$451,MATCH(H166,'Wattage Table'!$D$23:$D$451,0)))*$L166),\" \",IF(H166=\"-\",\"-\",INDEX('Wattage Table'!$F$23:$F$451,MATCH(H166,'Wattage Table'!$D$23:$D$451,0)))*$L166)","v":" "},{"$f":"IF(D166=\"\",\"\",IF(OR(D166=\"None\",D166=\"\",H166=\"\"),\"No\",IF(VLOOKUP(H166,'Wattage Table'!$D:$F,3,0)*L166/F166<=VLOOKUP(D166,Validation!$O$7:$Q$9,3,0),\"No\",\"Yes\")))","v":""}]
[null,146,null,null,{"$f":"IF(D167=\"\",\"\",IF(D167=\"None\",\"None\",INDEX('Lighting Controls Summary'!$D$19:$D$22,MATCH(D167,'Lighting Controls Summary'!$C$19:$C$22,0),1)))","v":""},null,null,null,{"$f":"IF(H167=\"\",\"\",VLOOKUP(H167,'Wattage Table'!$D:$E,2,0))","v":""},null,0,null,{"$f":"IF(OR(H167=\"\",R167=\"No\"),0,(((VLOOKUP(H167,'Wattage Table'!$D:$F,3,0)*J167)-(VLOOKUP(H167,'Wattage Table'!$D:$F,3,0)*(J167-K167)))*L167)/1000)","v":0},{"$f":"IF(OR(H167=\"\",R167=\"No\"),0,(VLOOKUP(H167,'Wattage Table'!$D:$F,3,0)*L167)/1000*0.25)","v":0},0,0,{"$f":"IF(ISERROR(IF(H167=\"-\",\"-\",INDEX('Wattage Table'!$F$23:$F$451,MATCH(H167,'Wattage Table'!$D$23:$D$451,0)))*$L167),\" \",IF(H167=\"-\",\"-\",INDEX('Wattage Table'!$F$23:$F$451,MATCH(H167,'Wattage Table'!$D$23:$D$451,0)))*$L167)","v":" "},{"$f":"IF(D167=\"\",\"\",IF(OR(D167=\"None\",D167=\"\",H167=\"\"),\"No\",IF(VLOOKUP(H167,'Wattage Table'!$D:$F,3,0)*L167/F167<=VLOOKUP(D167,Validation!$O$7:$Q$9,3,0),\"No\",\"Yes\")))","v":""}]
[null,147,null,null,{"$f":"IF(D168=\"\",\"\",IF(D168=\"None\",\"None\",INDEX('Lighting Controls Summary'!$D$19:$D$22,MATCH(D168,'Lighting Controls Summary'!$C$19:$C$22,0),1)))","v":""},null,null,null,{"$f":"IF(H168=\"\",\"\",VLOOKUP(H168,'Wattage Table'!$D:$E,2,0))","v":""},null,0,null,{"$f":"IF(OR(H168=\"\",R168=\"No\"),0,(((VLOOKUP(H168,'Wattage Table'!$D:$F,3,0)*J168)-(VLOOKUP(H168,'Wattage Table'!$D:$F,3,0)*(J168-K168)))*L168)/1000)","v":0},{"$f":"IF(OR(H168=\"\",R168=\"No\"),0,(VLOOKUP(H168,'Wattage Table'!$D:$F,3,0)*L168)/1000*0.25)","v":0},0,0,{"$f":"IF(ISERROR(IF(H168=\"-\",\"-\",INDEX('Wattage Table'!$F$23:$F$451,MATCH(H168,'Wattage Table'!$D$23:$D$451,0)))*$L168),\" \",IF(H168=\"-\",\"-\",INDEX('Wattage Table'!$F$23:$F$451,MATCH(H168,'Wattage Table'!$D$23:$D$451,0)))*$L168)","v":" "},{"$f":"IF(D168=\"\",\"\",IF(OR(D168=\"None\",D168=\"\",H168=\"\"),\"No\",IF(VLOOKUP(H168,'Wattage Table'!$D:$F,3,0)*L168/F168<=VLOOKUP(D168,Validation!$O$7:$Q$9,3,0),\"No\",\"Yes\")))","v":""}]
[null,148,null,null,{"$f":"IF(D169=\"\",\"\",IF(D169=\"None\",\"None\",INDEX('Lighting Controls Summary'!$D$19:$D$22,MATCH(D169,'Lighting Controls Summary'!$C$19:$C$22,0),1)))","v":""},null,null,null,{"$f":"IF(H169=\"\",\"\",VLOOKUP(H169,'Wattage Table'!$D:$E,2,0))","v":""},null,0,null,{"$f":"IF(OR(H169=\"\",R169=\"No\"),0,(((VLOOKUP(H169,'Wattage Table'!$D:$F,3,0)*J169)-(VLOOKUP(H169,'Wattage Table'!$D:$F,3,0)*(J169-K169)))*L169)/1000)","v":0},{"$f":"IF(OR(H169=\"\",R169=\"No\"),0,(VLOOKUP(H169,'Wattage Table'!$D:$F,3,0)*L169)/1000*0.25)","v":0},0,0,{"$f":"IF(ISERROR(IF(H169=\"-\",\"-\",INDEX('Wattage Table'!$F$23:$F$451,MATCH(H169,'Wattage Table'!$D$23:$D$451,0)))*$L169),\" \",IF(H169=\"-\",\"-\",INDEX('Wattage Table'!$F$23:$F$451,MATCH(H169,'Wattage Table'!$D$23:$D$451,0)))*$L169)","v":" "},{"$f":"IF(D169=\"\",\"\",IF(OR(D169=\"None\",D169=\"\",H169=\"\"),\"No\",IF(VLOOKUP(H169,'Wattage Table'!$D:$F,3,0)*L169/F169<=VLOOKUP(D169,Validation!$O$7:$Q$9,3,0),\"No\",\"Yes\")))","v":""}]
[null,149,null,null,{"$f":"IF(D170=\"\",\"\",IF(D170=\"None\",\"None\",INDEX('Lighting Controls Summary'!$D$19:$D$22,MATCH(D170,'Lighting Controls Summary'!$C$19:$C$22,0),1)))","v":""},null,null,null,{"$f":"IF(H170=\"\",\"\",VLOOKUP(H170,'Wattage Table'!$D:$E,2,0))","v":""},null,0,null,{"$f":"IF(OR(H170=\"\",R170=\"No\"),0,(((VLOOKUP(H170,'Wattage Table'!$D:$F,3,0)*J170)-(VLOOKUP(H170,'Wattage Table'!$D:$F,3,0)*(J170-K170)))*L170)/1000)","v":0},{"$f":"IF(OR(H170=\"\",R170=\"No\"),0,(VLOOKUP(H170,'Wattage Table'!$D:$F,3,0)*L170)/1000*0.25)","v":0},0,0,{"$f":"IF(ISERROR(IF(H170=\"-\",\"-\",INDEX('Wattage Table'!$F$23:$F$451,MATCH(H170,'Wattage Table'!$D$23:$D$451,0)))*$L170),\" \",IF(H170=\"-\",\"-\",INDEX('Wattage Table'!$F$23:$F$451,MATCH(H170,'Wattage Table'!$D$23:$D$451,0)))*$L170)","v":" "},{"$f":"IF(D170=\"\",\"\",IF(OR(D170=\"None\",D170=\"\",H170=\"\"),\"No\",IF(VLOOKUP(H170,'Wattage Table'!$D:$F,3,0)*L170/F170<=VLOOKUP(D170,Validation!$O$7:$Q$9,3,0),\"No\",\"Yes\")))","v":""}]
[null,150,null,null,{"$f":"IF(D171=\"\",\"\",IF(D171=\"None\",\"None\",INDEX('Lighting Controls Summary'!$D$19:$D$22,MATCH(D171,'Lighting Controls Summary'!$C$19:$C$22,0),1)))","v":""},null,null,null,{"$f":"IF(H171=\"\",\"\",VLOOKUP(H171,'Wattage Table'!$D:$E,2,0))","v":""},null,0,null,{"$f":"IF(OR(H171=\"\",R171=\"No\"),0,(((VLOOKUP(H171,'Wattage Table'!$D:$F,3,0)*J171)-(VLOOKUP(H171,'Wattage Table'!$D:$F,3,0)*(J171-K171)))*L171)/1000)","v":0},{"$f":"IF(OR(H171=\"\",R171=\"No\"),0,(VLOOKUP(H171,'Wattage Table'!$D:$F,3,0)*L171)/1000*0.25)","v":0},0,0,{"$f":"IF(ISERROR(IF(H171=\"-\",\"-\",INDEX('Wattage Table'!$F$23:$F$451,MATCH(H171,'Wattage Table'!$D$23:$D$451,0)))*$L171),\" \",IF(H171=\"-\",\"-\",INDEX('Wattage Table'!$F$23:$F$451,MATCH(H171,'Wattage Table'!$D$23:$D$451,0)))*$L171)","v":" "},{"$f":"IF(D171=\"\",\"\",IF(OR(D171=\"None\",D171=\"\",H171=\"\"),\"No\",IF(VLOOKUP(H171,'Wattage Table'!$D:$F,3,0)*L171/F171<=VLOOKUP(D171,Validation!$O$7:$Q$9,3,0),\"No\",\"Yes\")))","v":""}]
[null,151,null,null,{"$f":"IF(D172=\"\",\"\",IF(D172=\"None\",\"None\",INDEX('Lighting Controls Summary'!$D$19:$D$22,MATCH(D172,'Lighting Controls Summary'!$C$19:$C$22,0),1)))","v":""},null,null,null,{"$f":"IF(H172=\"\",\"\",VLOOKUP(H172,'Wattage Table'!$D:$E,2,0))","v":""},null,0,null,{"$f":"IF(OR(H172=\"\",R172=\"No\"),0,(((VLOOKUP(H172,'Wattage Table'!$D:$F,3,0)*J172)-(VLOOKUP(H172,'Wattage Table'!$D:$F,3,0)*(J172-K172)))*L172)/1000)","v":0},{"$f":"IF(OR(H172=\"\",R172=\"No\"),0,(VLOOKUP(H172,'Wattage Table'!$D:$F,3,0)*L172)/1000*0.25)","v":0},0,0,{"$f":"IF(ISERROR(IF(H172=\"-\",\"-\",INDEX('Wattage Table'!$F$23:$F$451,MATCH(H172,'Wattage Table'!$D$23:$D$451,0)))*$L172),\" \",IF(H172=\"-\",\"-\",INDEX('Wattage Table'!$F$23:$F$451,MATCH(H172,'Wattage Table'!$D$23:$D$451,0)))*$L172)","v":" "},{"$f":"IF(D172=\"\",\"\",IF(OR(D172=\"None\",D172=\"\",H172=\"\"),\"No\",IF(VLOOKUP(H172,'Wattage Table'!$D:$F,3,0)*L172/F172<=VLOOKUP(D172,Validation!$O$7:$Q$9,3,0),\"No\",\"Yes\")))","v":""}]
[null,152,null,null,{"$f":"IF(D173=\"\",\"\",IF(D173=\"None\",\"None\",INDEX('Lighting Controls Summary'!$D$19:$D$22,MATCH(D173,'Lighting Controls Summary'!$C$19:$C$22,0),1)))","v":""},null,null,null,{"$f":"IF(H173=\"\",\"\",VLOOKUP(H173,'Wattage Table'!$D:$E,2,0))","v":""},null,0,null,{"$f":"IF(OR(H173=\"\",R173=\"No\"),0,(((VLOOKUP(H173,'Wattage Table'!$D:$F,3,0)*J173)-(VLOOKUP(H173,'Wattage Table'!$D:$F,3,0)*(J173-K173)))*L173)/1000)","v":0},{"$f":"IF(OR(H173=\"\",R173=\"No\"),0,(VLOOKUP(H173,'Wattage Table'!$D:$F,3,0)*L173)/1000*0.25)","v":0},0,0,{"$f":"IF(ISERROR(IF(H173=\"-\",\"-\",INDEX('Wattage Table'!$F$23:$F$451,MATCH(H173,'Wattage Table'!$D$23:$D$451,0)))*$L173),\" \",IF(H173=\"-\",\"-\",INDEX('Wattage Table'!$F$23:$F$451,MATCH(H173,'Wattage Table'!$D$23:$D$451,0)))*$L173)","v":" "},{"$f":"IF(D173=\"\",\"\",IF(OR(D173=\"None\",D173=\"\",H173=\"\"),\"No\",IF(VLOOKUP(H173,'Wattage Table'!$D:$F,3,0)*L173/F173<=VLOOKUP(D173,Validation!$O$7:$Q$9,3,0),\"No\",\"Yes\")))","v":""}]
[null,153,null,null,{"$f":"IF(D174=\"\",\"\",IF(D174=\"None\",\"None\",INDEX('Lighting Controls Summary'!$D$19:$D$22,MATCH(D174,'Lighting Controls Summary'!$C$19:$C$22,0),1)))","v":""},null,null,null,{"$f":"IF(H174=\"\",\"\",VLOOKUP(H174,'Wattage Table'!$D:$E,2,0))","v":""},null,0,null,{"$f":"IF(OR(H174=\"\",R174=\"No\"),0,(((VLOOKUP(H174,'Wattage Table'!$D:$F,3,0)*J174)-(VLOOKUP(H174,'Wattage Table'!$D:$F,3,0)*(J174-K174)))*L174)/1000)","v":0},{"$f":"IF(OR(H174=\"\",R174=\"No\"),0,(VLOOKUP(H174,'Wattage Table'!$D:$F,3,0)*L174)/1000*0.25)","v":0},0,0,{"$f":"IF(ISERROR(IF(H174=\"-\",\"-\",INDEX('Wattage Table'!$F$23:$F$451,MATCH(H174,'Wattage Table'!$D$23:$D$451,0)))*$L174),\" \",IF(H174=\"-\",\"-\",INDEX('Wattage Table'!$F$23:$F$451,MATCH(H174,'Wattage Table'!$D$23:$D$451,0)))*$L174)","v":" "},{"$f":"IF(D174=\"\",\"\",IF(OR(D174=\"None\",D174=\"\",H174=\"\"),\"No\",IF(VLOOKUP(H174,'Wattage Table'!$D:$F,3,0)*L174/F174<=VLOOKUP(D174,Validation!$O$7:$Q$9,3,0),\"No\",\"Yes\")))","v":""}]
[null,154,null,null,{"$f":"IF(D175=\"\",\"\",IF(D175=\"None\",\"None\",INDEX('Lighting Controls Summary'!$D$19:$D$22,MATCH(D175,'Lighting Controls Summary'!$C$19:$C$22,0),1)))","v":""},null,null,null,{"$f":"IF(H175=\"\",\"\",VLOOKUP(H175,'Wattage Table'!$D:$E,2,0))","v":""},null,0,null,{"$f":"IF(OR(H175=\"\",R175=\"No\"),0,(((VLOOKUP(H175,'Wattage Table'!$D:$F,3,0)*J175)-(VLOOKUP(H175,'Wattage Table'!$D:$F,3,0)*(J175-K175)))*L175)/1000)","v":0},{"$f":"IF(OR(H175=\"\",R175=\"No\"),0,(VLOOKUP(H175,'Wattage Table'!$D:$F,3,0)*L175)/1000*0.25)","v":0},0,0,{"$f":"IF(ISERROR(IF(H175=\"-\",\"-\",INDEX('Wattage Table'!$F$23:$F$451,MATCH(H175,'Wattage Table'!$D$23:$D$451,0)))*$L175),\" \",IF(H175=\"-\",\"-\",INDEX('Wattage Table'!$F$23:$F$451,MATCH(H175,'Wattage Table'!$D$23:$D$451,0)))*$L175)","v":" "},{"$f":"IF(D175=\"\",\"\",IF(OR(D175=\"None\",D175=\"\",H175=\"\"),\"No\",IF(VLOOKUP(H175,'Wattage Table'!$D:$F,3,0)*L175/F175<=VLOOKUP(D175,Validation!$O$7:$Q$9,3,0),\"No\",\"Yes\")))","v":""}]
[null,155,null,null,{"$f":"IF(D176=\"\",\"\",IF(D176=\"None\",\"None\",INDEX('Lighting Controls Summary'!$D$19:$D$22,MATCH(D176,'Lighting Controls Summary'!$C$19:$C$22,0),1)))","v":""},null,null,null,{"$f":"IF(H176=\"\",\"\",VLOOKUP(H176,'Wattage Table'!$D:$E,2,0))","v":""},null,0,null,{"$f":"IF(OR(H176=\"\",R176=\"No\"),0,(((VLOOKUP(H176,'Wattage Table'!$D:$F,3,0)*J176)-(VLOOKUP(H176,'Wattage Table'!$D:$F,3,0)*(J176-K176)))*L176)/1000)","v":0},{"$f":"IF(OR(H176=\"\",R176=\"No\"),0,(VLOOKUP(H176,'Wattage Table'!$D:$F,3,0)*L176)/1000*0.25)","v":0},0,0,{"$f":"IF(ISERROR(IF(H176=\"-\",\"-\",INDEX('Wattage Table'!$F$23:$F$451,MATCH(H176,'Wattage Table'!$D$23:$D$451,0)))*$L176),\" \",IF(H176=\"-\",\"-\",INDEX('Wattage Table'!$F$23:$F$451,MATCH(H176,'Wattage Table'!$D$23:$D$451,0)))*$L176)","v":" "},{"$f":"IF(D176=\"\",\"\",IF(OR(D176=\"None\",D176=\"\",H176=\"\"),\"No\",IF(VLOOKUP(H176,'Wattage Table'!$D:$F,3,0)*L176/F176<=VLOOKUP(D176,Validation!$O$7:$Q$9,3,0),\"No\",\"Yes\")))","v":""}]
[null,156,null,null,{"$f":"IF(D177=\"\",\"\",IF(D177=\"None\",\"None\",INDEX('Lighting Controls Summary'!$D$19:$D$22,MATCH(D177,'Lighting Controls Summary'!$C$19:$C$22,0),1)))","v":""},null,null,null,{"$f":"IF(H177=\"\",\"\",VLOOKUP(H177,'Wattage Table'!$D:$E,2,0))","v":""},null,0,null,{"$f":"IF(OR(H177=\"\",R177=\"No\"),0,(((VLOOKUP(H177,'Wattage Table'!$D:$F,3,0)*J177)-(VLOOKUP(H177,'Wattage Table'!$D:$F,3,0)*(J177-K177)))*L177)/1000)","v":0},{"$f":"IF(OR(H177=\"\",R177=\"No\"),0,(VLOOKUP(H177,'Wattage Table'!$D:$F,3,0)*L177)/1000*0.25)","v":0},0,0,{"$f":"IF(ISERROR(IF(H177=\"-\",\"-\",INDEX('Wattage Table'!$F$23:$F$451,MATCH(H177,'Wattage Table'!$D$23:$D$451,0)))*$L177),\" \",IF(H177=\"-\",\"-\",INDEX('Wattage Table'!$F$23:$F$451,MATCH(H177,'Wattage Table'!$D$23:$D$451,0)))*$L177)","v":" "},{"$f":"IF(D177=\"\",\"\",IF(OR(D177=\"None\",D177=\"\",H177=\"\"),\"No\",IF(VLOOKUP(H177,'Wattage Table'!$D:$F,3,0)*L177/F177<=VLOOKUP(D177,Validation!$O$7:$Q$9,3,0),\"No\",\"Yes\")))","v":""}]
[null,157,null,null,{"$f":"IF(D178=\"\",\"\",IF(D178=\"None\",\"None\",INDEX('Lighting Controls Summary'!$D$19:$D$22,MATCH(D178,'Lighting Controls Summary'!$C$19:$C$22,0),1)))","v":""},null,null,null,{"$f":"IF(H178=\"\",\"\",VLOOKUP(H178,'Wattage Table'!$D:$E,2,0))","v":""},null,0,null,{"$f":"IF(OR(H178=\"\",R178=\"No\"),0,(((VLOOKUP(H178,'Wattage Table'!$D:$F,3,0)*J178)-(VLOOKUP(H178,'Wattage Table'!$D:$F,3,0)*(J178-K178)))*L178)/1000)","v":0},{"$f":"IF(OR(H178=\"\",R178=\"No\"),0,(VLOOKUP(H178,'Wattage Table'!$D:$F,3,0)*L178)/1000*0.25)","v":0},0,0,{"$f":"IF(ISERROR(IF(H178=\"-\",\"-\",INDEX('Wattage Table'!$F$23:$F$451,MATCH(H178,'Wattage Table'!$D$23:$D$451,0)))*$L178),\" \",IF(H178=\"-\",\"-\",INDEX('Wattage Table'!$F$23:$F$451,MATCH(H178,'Wattage Table'!$D$23:$D$451,0)))*$L178)","v":" "},{"$f":"IF(D178=\"\",\"\",IF(OR(D178=\"None\",D178=\"\",H178=\"\"),\"No\",IF(VLOOKUP(H178,'Wattage Table'!$D:$F,3,0)*L178/F178<=VLOOKUP(D178,Validation!$O$7:$Q$9,3,0),\"No\",\"Yes\")))","v":""}]
[null,158,null,null,{"$f":"IF(D179=\"\",\"\",IF(D179=\"None\",\"None\",INDEX('Lighting Controls Summary'!$D$19:$D$22,MATCH(D179,'Lighting Controls Summary'!$C$19:$C$22,0),1)))","v":""},null,null,null,{"$f":"IF(H179=\"\",\"\",VLOOKUP(H179,'Wattage Table'!$D:$E,2,0))","v":""},null,0,null,{"$f":"IF(OR(H179=\"\",R179=\"No\"),0,(((VLOOKUP(H179,'Wattage Table'!$D:$F,3,0)*J179)-(VLOOKUP(H179,'Wattage Table'!$D:$F,3,0)*(J179-K179)))*L179)/1000)","v":0},{"$f":"IF(OR(H179=\"\",R179=\"No\"),0,(VLOOKUP(H179,'Wattage Table'!$D:$F,3,0)*L179)/1000*0.25)","v":0},0,0,{"$f":"IF(ISERROR(IF(H179=\"-\",\"-\",INDEX('Wattage Table'!$F$23:$F$451,MATCH(H179,'Wattage Table'!$D$23:$D$451,0)))*$L179),\" \",IF(H179=\"-\",\"-\",INDEX('Wattage Table'!$F$23:$F$451,MATCH(H179,'Wattage Table'!$D$23:$D$451,0)))*$L179)","v":" "},{"$f":"IF(D179=\"\",\"\",IF(OR(D179=\"None\",D179=\"\",H179=\"\"),\"No\",IF(VLOOKUP(H179,'Wattage Table'!$D:$F,3,0)*L179/F179<=VLOOKUP(D179,Validation!$O$7:$Q$9,3,0),\"No\",\"Yes\")))","v":""}]
[null,159,null,null,{"$f":"IF(D180=\"\",\"\",IF(D180=\"None\",\"None\",INDEX('Lighting Controls Summary'!$D$19:$D$22,MATCH(D180,'Lighting Controls Summary'!$C$19:$C$22,0),1)))","v":""},null,null,null,{"$f":"IF(H180=\"\",\"\",VLOOKUP(H180,'Wattage Table'!$D:$E,2,0))","v":""},null,0,null,{"$f":"IF(OR(H180=\"\",R180=\"No\"),0,(((VLOOKUP(H180,'Wattage Table'!$D:$F,3,0)*J180)-(VLOOKUP(H180,'Wattage Table'!$D:$F,3,0)*(J180-K180)))*L180)/1000)","v":0},{"$f":"IF(OR(H180=\"\",R180=\"No\"),0,(VLOOKUP(H180,'Wattage Table'!$D:$F,3,0)*L180)/1000*0.25)","v":0},0,0,{"$f":"IF(ISERROR(IF(H180=\"-\",\"-\",INDEX('Wattage Table'!$F$23:$F$451,MATCH(H180,'Wattage Table'!$D$23:$D$451,0)))*$L180),\" \",IF(H180=\"-\",\"-\",INDEX('Wattage Table'!$F$23:$F$451,MATCH(H180,'Wattage Table'!$D$23:$D$451,0)))*$L180)","v":" "},{"$f":"IF(D180=\"\",\"\",IF(OR(D180=\"None\",D180=\"\",H180=\"\"),\"No\",IF(VLOOKUP(H180,'Wattage Table'!$D:$F,3,0)*L180/F180<=VLOOKUP(D180,Validation!$O$7:$Q$9,3,0),\"No\",\"Yes\")))","v":""}]
[null,160,null,null,{"$f":"IF(D181=\"\",\"\",IF(D181=\"None\",\"None\",INDEX('Lighting Controls Summary'!$D$19:$D$22,MATCH(D181,'Lighting Controls Summary'!$C$19:$C$22,0),1)))","v":""},null,null,null,{"$f":"IF(H181=\"\",\"\",VLOOKUP(H181,'Wattage Table'!$D:$E,2,0))","v":""},null,0,null,{"$f":"IF(OR(H181=\"\",R181=\"No\"),0,(((VLOOKUP(H181,'Wattage Table'!$D:$F,3,0)*J181)-(VLOOKUP(H181,'Wattage Table'!$D:$F,3,0)*(J181-K181)))*L181)/1000)","v":0},{"$f":"IF(OR(H181=\"\",R181=\"No\"),0,(VLOOKUP(H181,'Wattage Table'!$D:$F,3,0)*L181)/1000*0.25)","v":0},0,0,{"$f":"IF(ISERROR(IF(H181=\"-\",\"-\",INDEX('Wattage Table'!$F$23:$F$451,MATCH(H181,'Wattage Table'!$D$23:$D$451,0)))*$L181),\" \",IF(H181=\"-\",\"-\",INDEX('Wattage Table'!$F$23:$F$451,MATCH(H181,'Wattage Table'!$D$23:$D$451,0)))*$L181)","v":" "},{"$f":"IF(D181=\"\",\"\",IF(OR(D181=\"None\",D181=\"\",H181=\"\"),\"No\",IF(VLOOKUP(H181,'Wattage Table'!$D:$F,3,0)*L181/F181<=VLOOKUP(D181,Validation!$O$7:$Q$9,3,0),\"No\",\"Yes\")))","v":""}]
[null,161,null,null,{"$f":"IF(D182=\"\",\"\",IF(D182=\"None\",\"None\",INDEX('Lighting Controls Summary'!$D$19:$D$22,MATCH(D182,'Lighting Controls Summary'!$C$19:$C$22,0),1)))","v":""},null,null,null,{"$f":"IF(H182=\"\",\"\",VLOOKUP(H182,'Wattage Table'!$D:$E,2,0))","v":""},null,0,null,{"$f":"IF(OR(H182=\"\",R182=\"No\"),0,(((VLOOKUP(H182,'Wattage Table'!$D:$F,3,0)*J182)-(VLOOKUP(H182,'Wattage Table'!$D:$F,3,0)*(J182-K182)))*L182)/1000)","v":0},{"$f":"IF(OR(H182=\"\",R182=\"No\"),0,(VLOOKUP(H182,'Wattage Table'!$D:$F,3,0)*L182)/1000*0.25)","v":0},0,0,{"$f":"IF(ISERROR(IF(H182=\"-\",\"-\",INDEX('Wattage Table'!$F$23:$F$451,MATCH(H182,'Wattage Table'!$D$23:$D$451,0)))*$L182),\" \",IF(H182=\"-\",\"-\",INDEX('Wattage Table'!$F$23:$F$451,MATCH(H182,'Wattage Table'!$D$23:$D$451,0)))*$L182)","v":" "},{"$f":"IF(D182=\"\",\"\",IF(OR(D182=\"None\",D182=\"\",H182=\"\"),\"No\",IF(VLOOKUP(H182,'Wattage Table'!$D:$F,3,0)*L182/F182<=VLOOKUP(D182,Validation!$O$7:$Q$9,3,0),\"No\",\"Yes\")))","v":""}]
[null,162,null,null,{"$f":"IF(D183=\"\",\"\",IF(D183=\"None\",\"None\",INDEX('Lighting Controls Summary'!$D$19:$D$22,MATCH(D183,'Lighting Controls Summary'!$C$19:$C$22,0),1)))","v":""},null,null,null,{"$f":"IF(H183=\"\",\"\",VLOOKUP(H183,'Wattage Table'!$D:$E,2,0))","v":""},null,0,null,{"$f":"IF(OR(H183=\"\",R183=\"No\"),0,(((VLOOKUP(H183,'Wattage Table'!$D:$F,3,0)*J183)-(VLOOKUP(H183,'Wattage Table'!$D:$F,3,0)*(J183-K183)))*L183)/1000)","v":0},{"$f":"IF(OR(H183=\"\",R183=\"No\"),0,(VLOOKUP(H183,'Wattage Table'!$D:$F,3,0)*L183)/1000*0.25)","v":0},0,0,{"$f":"IF(ISERROR(IF(H183=\"-\",\"-\",INDEX('Wattage Table'!$F$23:$F$451,MATCH(H183,'Wattage Table'!$D$23:$D$451,0)))*$L183),\" \",IF(H183=\"-\",\"-\",INDEX('Wattage Table'!$F$23:$F$451,MATCH(H183,'Wattage Table'!$D$23:$D$451,0)))*$L183)","v":" "},{"$f":"IF(D183=\"\",\"\",IF(OR(D183=\"None\",D183=\"\",H183=\"\"),\"No\",IF(VLOOKUP(H183,'Wattage Table'!$D:$F,3,0)*L183/F183<=VLOOKUP(D183,Validation!$O$7:$Q$9,3,0),\"No\",\"Yes\")))","v":""}]
[null,163,null,null,{"$f":"IF(D184=\"\",\"\",IF(D184=\"None\",\"None\",INDEX('Lighting Controls Summary'!$D$19:$D$22,MATCH(D184,'Lighting Controls Summary'!$C$19:$C$22,0),1)))","v":""},null,null,null,{"$f":"IF(H184=\"\",\"\",VLOOKUP(H184,'Wattage Table'!$D:$E,2,0))","v":""},null,0,null,{"$f":"IF(OR(H184=\"\",R184=\"No\"),0,(((VLOOKUP(H184,'Wattage Table'!$D:$F,3,0)*J184)-(VLOOKUP(H184,'Wattage Table'!$D:$F,3,0)*(J184-K184)))*L184)/1000)","v":0},{"$f":"IF(OR(H184=\"\",R184=\"No\"),0,(VLOOKUP(H184,'Wattage Table'!$D:$F,3,0)*L184)/1000*0.25)","v":0},0,0,{"$f":"IF(ISERROR(IF(H184=\"-\",\"-\",INDEX('Wattage Table'!$F$23:$F$451,MATCH(H184,'Wattage Table'!$D$23:$D$451,0)))*$L184),\" \",IF(H184=\"-\",\"-\",INDEX('Wattage Table'!$F$23:$F$451,MATCH(H184,'Wattage Table'!$D$23:$D$451,0)))*$L184)","v":" "},{"$f":"IF(D184=\"\",\"\",IF(OR(D184=\"None\",D184=\"\",H184=\"\"),\"No\",IF(VLOOKUP(H184,'Wattage Table'!$D:$F,3,0)*L184/F184<=VLOOKUP(D184,Validation!$O$7:$Q$9,3,0),\"No\",\"Yes\")))","v":""}]
[null,164,null,null,{"$f":"IF(D185=\"\",\"\",IF(D185=\"None\",\"None\",INDEX('Lighting Controls Summary'!$D$19:$D$22,MATCH(D185,'Lighting Controls Summary'!$C$19:$C$22,0),1)))","v":""},null,null,null,{"$f":"IF(H185=\"\",\"\",VLOOKUP(H185,'Wattage Table'!$D:$E,2,0))","v":""},null,0,null,{"$f":"IF(OR(H185=\"\",R185=\"No\"),0,(((VLOOKUP(H185,'Wattage Table'!$D:$F,3,0)*J185)-(VLOOKUP(H185,'Wattage Table'!$D:$F,3,0)*(J185-K185)))*L185)/1000)","v":0},{"$f":"IF(OR(H185=\"\",R185=\"No\"),0,(VLOOKUP(H185,'Wattage Table'!$D:$F,3,0)*L185)/1000*0.25)","v":0},0,0,{"$f":"IF(ISERROR(IF(H185=\"-\",\"-\",INDEX('Wattage Table'!$F$23:$F$451,MATCH(H185,'Wattage Table'!$D$23:$D$451,0)))*$L185),\" \",IF(H185=\"-\",\"-\",INDEX('Wattage Table'!$F$23:$F$451,MATCH(H185,'Wattage Table'!$D$23:$D$451,0)))*$L185)","v":" "},{"$f":"IF(D185=\"\",\"\",IF(OR(D185=\"None\",D185=\"\",H185=\"\"),\"No\",IF(VLOOKUP(H185,'Wattage Table'!$D:$F,3,0)*L185/F185<=VLOOKUP(D185,Validation!$O$7:$Q$9,3,0),\"No\",\"Yes\")))","v":""}]
[null,165,null,null,{"$f":"IF(D186=\"\",\"\",IF(D186=\"None\",\"None\",INDEX('Lighting Controls Summary'!$D$19:$D$22,MATCH(D186,'Lighting Controls Summary'!$C$19:$C$22,0),1)))","v":""},null,null,null,{"$f":"IF(H186=\"\",\"\",VLOOKUP(H186,'Wattage Table'!$D:$E,2,0))","v":""},null,0,null,{"$f":"IF(OR(H186=\"\",R186=\"No\"),0,(((VLOOKUP(H186,'Wattage Table'!$D:$F,3,0)*J186)-(VLOOKUP(H186,'Wattage Table'!$D:$F,3,0)*(J186-K186)))*L186)/1000)","v":0},{"$f":"IF(OR(H186=\"\",R186=\"No\"),0,(VLOOKUP(H186,'Wattage Table'!$D:$F,3,0)*L186)/1000*0.25)","v":0},0,0,{"$f":"IF(ISERROR(IF(H186=\"-\",\"-\",INDEX('Wattage Table'!$F$23:$F$451,MATCH(H186,'Wattage Table'!$D$23:$D$451,0)))*$L186),\" \",IF(H186=\"-\",\"-\",INDEX('Wattage Table'!$F$23:$F$451,MATCH(H186,'Wattage Table'!$D$23:$D$451,0)))*$L186)","v":" "},{"$f":"IF(D186=\"\",\"\",IF(OR(D186=\"None\",D186=\"\",H186=\"\"),\"No\",IF(VLOOKUP(H186,'Wattage Table'!$D:$F,3,0)*L186/F186<=VLOOKUP(D186,Validation!$O$7:$Q$9,3,0),\"No\",\"Yes\")))","v":""}]
[null,166,null,null,{"$f":"IF(D187=\"\",\"\",IF(D187=\"None\",\"None\",INDEX('Lighting Controls Summary'!$D$19:$D$22,MATCH(D187,'Lighting Controls Summary'!$C$19:$C$22,0),1)))","v":""},null,null,null,{"$f":"IF(H187=\"\",\"\",VLOOKUP(H187,'Wattage Table'!$D:$E,2,0))","v":""},null,0,null,{"$f":"IF(OR(H187=\"\",R187=\"No\"),0,(((VLOOKUP(H187,'Wattage Table'!$D:$F,3,0)*J187)-(VLOOKUP(H187,'Wattage Table'!$D:$F,3,0)*(J187-K187)))*L187)/1000)","v":0},{"$f":"IF(OR(H187=\"\",R187=\"No\"),0,(VLOOKUP(H187,'Wattage Table'!$D:$F,3,0)*L187)/1000*0.25)","v":0},0,0,{"$f":"IF(ISERROR(IF(H187=\"-\",\"-\",INDEX('Wattage Table'!$F$23:$F$451,MATCH(H187,'Wattage Table'!$D$23:$D$451,0)))*$L187),\" \",IF(H187=\"-\",\"-\",INDEX('Wattage Table'!$F$23:$F$451,MATCH(H187,'Wattage Table'!$D$23:$D$451,0)))*$L187)","v":" "},{"$f":"IF(D187=\"\",\"\",IF(OR(D187=\"None\",D187=\"\",H187=\"\"),\"No\",IF(VLOOKUP(H187,'Wattage Table'!$D:$F,3,0)*L187/F187<=VLOOKUP(D187,Validation!$O$7:$Q$9,3,0),\"No\",\"Yes\")))","v":""}]
[null,167,null,null,{"$f":"IF(D188=\"\",\"\",IF(D188=\"None\",\"None\",INDEX('Lighting Controls Summary'!$D$19:$D$22,MATCH(D188,'Lighting Controls Summary'!$C$19:$C$22,0),1)))","v":""},null,null,null,{"$f":"IF(H188=\"\",\"\",VLOOKUP(H188,'Wattage Table'!$D:$E,2,0))","v":""},null,0,null,{"$f":"IF(OR(H188=\"\",R188=\"No\"),0,(((VLOOKUP(H188,'Wattage Table'!$D:$F,3,0)*J188)-(VLOOKUP(H188,'Wattage Table'!$D:$F,3,0)*(J188-K188)))*L188)/1000)","v":0},{"$f":"IF(OR(H188=\"\",R188=\"No\"),0,(VLOOKUP(H188,'Wattage Table'!$D:$F,3,0)*L188)/1000*0.25)","v":0},0,0,{"$f":"IF(ISERROR(IF(H188=\"-\",\"-\",INDEX('Wattage Table'!$F$23:$F$451,MATCH(H188,'Wattage Table'!$D$23:$D$451,0)))*$L188),\" \",IF(H188=\"-\",\"-\",INDEX('Wattage Table'!$F$23:$F$451,MATCH(H188,'Wattage Table'!$D$23:$D$451,0)))*$L188)","v":" "},{"$f":"IF(D188=\"\",\"\",IF(OR(D188=\"None\",D188=\"\",H188=\"\"),\"No\",IF(VLOOKUP(H188,'Wattage Table'!$D:$F,3,0)*L188/F188<=VLOOKUP(D188,Validation!$O$7:$Q$9,3,0),\"No\",\"Yes\")))","v":""}]
[null,168,null,null,{"$f":"IF(D189=\"\",\"\",IF(D189=\"None\",\"None\",INDEX('Lighting Controls Summary'!$D$19:$D$22,MATCH(D189,'Lighting Controls Summary'!$C$19:$C$22,0),1)))","v":""},null,null,null,{"$f":"IF(H189=\"\",\"\",VLOOKUP(H189,'Wattage Table'!$D:$E,2,0))","v":""},null,0,null,{"$f":"IF(OR(H189=\"\",R189=\"No\"),0,(((VLOOKUP(H189,'Wattage Table'!$D:$F,3,0)*J189)-(VLOOKUP(H189,'Wattage Table'!$D:$F,3,0)*(J189-K189)))*L189)/1000)","v":0},{"$f":"IF(OR(H189=\"\",R189=\"No\"),0,(VLOOKUP(H189,'Wattage Table'!$D:$F,3,0)*L189)/1000*0.25)","v":0},0,0,{"$f":"IF(ISERROR(IF(H189=\"-\",\"-\",INDEX('Wattage Table'!$F$23:$F$451,MATCH(H189,'Wattage Table'!$D$23:$D$451,0)))*$L189),\" \",IF(H189=\"-\",\"-\",INDEX('Wattage Table'!$F$23:$F$451,MATCH(H189,'Wattage Table'!$D$23:$D$451,0)))*$L189)","v":" "},{"$f":"IF(D189=\"\",\"\",IF(OR(D189=\"None\",D189=\"\",H189=\"\"),\"No\",IF(VLOOKUP(H189,'Wattage Table'!$D:$F,3,0)*L189/F189<=VLOOKUP(D189,Validation!$O$7:$Q$9,3,0),\"No\",\"Yes\")))","v":""}]
[null,169,null,null,{"$f":"IF(D190=\"\",\"\",IF(D190=\"None\",\"None\",INDEX('Lighting Controls Summary'!$D$19:$D$22,MATCH(D190,'Lighting Controls Summary'!$C$19:$C$22,0),1)))","v":""},null,null,null,{"$f":"IF(H190=\"\",\"\",VLOOKUP(H190,'Wattage Table'!$D:$E,2,0))","v":""},null,0,null,{"$f":"IF(OR(H190=\"\",R190=\"No\"),0,(((VLOOKUP(H190,'Wattage Table'!$D:$F,3,0)*J190)-(VLOOKUP(H190,'Wattage Table'!$D:$F,3,0)*(J190-K190)))*L190)/1000)","v":0},{"$f":"IF(OR(H190=\"\",R190=\"No\"),0,(VLOOKUP(H190,'Wattage Table'!$D:$F,3,0)*L190)/1000*0.25)","v":0},0,0,{"$f":"IF(ISERROR(IF(H190=\"-\",\"-\",INDEX('Wattage Table'!$F$23:$F$451,MATCH(H190,'Wattage Table'!$D$23:$D$451,0)))*$L190),\" \",IF(H190=\"-\",\"-\",INDEX('Wattage Table'!$F$23:$F$451,MATCH(H190,'Wattage Table'!$D$23:$D$451,0)))*$L190)","v":" "},{"$f":"IF(D190=\"\",\"\",IF(OR(D190=\"None\",D190=\"\",H190=\"\"),\"No\",IF(VLOOKUP(H190,'Wattage Table'!$D:$F,3,0)*L190/F190<=VLOOKUP(D190,Validation!$O$7:$Q$9,3,0),\"No\",\"Yes\")))","v":""}]
[null,170,null,null,{"$f":"IF(D191=\"\",\"\",IF(D191=\"None\",\"None\",INDEX('Lighting Controls Summary'!$D$19:$D$22,MATCH(D191,'Lighting Controls Summary'!$C$19:$C$22,0),1)))","v":""},null,null,null,{"$f":"IF(H191=\"\",\"\",VLOOKUP(H191,'Wattage Table'!$D:$E,2,0))","v":""},null,0,null,{"$f":"IF(OR(H191=\"\",R191=\"No\"),0,(((VLOOKUP(H191,'Wattage Table'!$D:$F,3,0)*J191)-(VLOOKUP(H191,'Wattage Table'!$D:$F,3,0)*(J191-K191)))*L191)/1000)","v":0},{"$f":"IF(OR(H191=\"\",R191=\"No\"),0,(VLOOKUP(H191,'Wattage Table'!$D:$F,3,0)*L191)/1000*0.25)","v":0},0,0,{"$f":"IF(ISERROR(IF(H191=\"-\",\"-\",INDEX('Wattage Table'!$F$23:$F$451,MATCH(H191,'Wattage Table'!$D$23:$D$451,0)))*$L191),\" \",IF(H191=\"-\",\"-\",INDEX('Wattage Table'!$F$23:$F$451,MATCH(H191,'Wattage Table'!$D$23:$D$451,0)))*$L191)","v":" "},{"$f":"IF(D191=\"\",\"\",IF(OR(D191=\"None\",D191=\"\",H191=\"\"),\"No\",IF(VLOOKUP(H191,'Wattage Table'!$D:$F,3,0)*L191/F191<=VLOOKUP(D191,Validation!$O$7:$Q$9,3,0),\"No\",\"Yes\")))","v":""}]
[null,171,null,null,{"$f":"IF(D192=\"\",\"\",IF(D192=\"None\",\"None\",INDEX('Lighting Controls Summary'!$D$19:$D$22,MATCH(D192,'Lighting Controls Summary'!$C$19:$C$22,0),1)))","v":""},null,null,null,{"$f":"IF(H192=\"\",\"\",VLOOKUP(H192,'Wattage Table'!$D:$E,2,0))","v":""},null,0,null,{"$f":"IF(OR(H192=\"\",R192=\"No\"),0,(((VLOOKUP(H192,'Wattage Table'!$D:$F,3,0)*J192)-(VLOOKUP(H192,'Wattage Table'!$D:$F,3,0)*(J192-K192)))*L192)/1000)","v":0},{"$f":"IF(OR(H192=\"\",R192=\"No\"),0,(VLOOKUP(H192,'Wattage Table'!$D:$F,3,0)*L192)/1000*0.25)","v":0},0,0,{"$f":"IF(ISERROR(IF(H192=\"-\",\"-\",INDEX('Wattage Table'!$F$23:$F$451,MATCH(H192,'Wattage Table'!$D$23:$D$451,0)))*$L192),\" \",IF(H192=\"-\",\"-\",INDEX('Wattage Table'!$F$23:$F$451,MATCH(H192,'Wattage Table'!$D$23:$D$451,0)))*$L192)","v":" "},{"$f":"IF(D192=\"\",\"\",IF(OR(D192=\"None\",D192=\"\",H192=\"\"),\"No\",IF(VLOOKUP(H192,'Wattage Table'!$D:$F,3,0)*L192/F192<=VLOOKUP(D192,Validation!$O$7:$Q$9,3,0),\"No\",\"Yes\")))","v":""}]
[null,172,null,null,{"$f":"IF(D193=\"\",\"\",IF(D193=\"None\",\"None\",INDEX('Lighting Controls Summary'!$D$19:$D$22,MATCH(D193,'Lighting Controls Summary'!$C$19:$C$22,0),1)))","v":""},null,null,null,{"$f":"IF(H193=\"\",\"\",VLOOKUP(H193,'Wattage Table'!$D:$E,2,0))","v":""},null,0,null,{"$f":"IF(OR(H193=\"\",R193=\"No\"),0,(((VLOOKUP(H193,'Wattage Table'!$D:$F,3,0)*J193)-(VLOOKUP(H193,'Wattage Table'!$D:$F,3,0)*(J193-K193)))*L193)/1000)","v":0},{"$f":"IF(OR(H193=\"\",R193=\"No\"),0,(VLOOKUP(H193,'Wattage Table'!$D:$F,3,0)*L193)/1000*0.25)","v":0},0,0,{"$f":"IF(ISERROR(IF(H193=\"-\",\"-\",INDEX('Wattage Table'!$F$23:$F$451,MATCH(H193,'Wattage Table'!$D$23:$D$451,0)))*$L193),\" \",IF(H193=\"-\",\"-\",INDEX('Wattage Table'!$F$23:$F$451,MATCH(H193,'Wattage Table'!$D$23:$D$451,0)))*$L193)","v":" "},{"$f":"IF(D193=\"\",\"\",IF(OR(D193=\"None\",D193=\"\",H193=\"\"),\"No\",IF(VLOOKUP(H193,'Wattage Table'!$D:$F,3,0)*L193/F193<=VLOOKUP(D193,Validation!$O$7:$Q$9,3,0),\"No\",\"Yes\")))","v":""}]
[null,173,null,null,{"$f":"IF(D194=\"\",\"\",IF(D194=\"None\",\"None\",INDEX('Lighting Controls Summary'!$D$19:$D$22,MATCH(D194,'Lighting Controls Summary'!$C$19:$C$22,0),1)))","v":""},null,null,null,{"$f":"IF(H194=\"\",\"\",VLOOKUP(H194,'Wattage Table'!$D:$E,2,0))","v":""},null,0,null,{"$f":"IF(OR(H194=\"\",R194=\"No\"),0,(((VLOOKUP(H194,'Wattage Table'!$D:$F,3,0)*J194)-(VLOOKUP(H194,'Wattage Table'!$D:$F,3,0)*(J194-K194)))*L194)/1000)","v":0},{"$f":"IF(OR(H194=\"\",R194=\"No\"),0,(VLOOKUP(H194,'Wattage Table'!$D:$F,3,0)*L194)/1000*0.25)","v":0},0,0,{"$f":"IF(ISERROR(IF(H194=\"-\",\"-\",INDEX('Wattage Table'!$F$23:$F$451,MATCH(H194,'Wattage Table'!$D$23:$D$451,0)))*$L194),\" \",IF(H194=\"-\",\"-\",INDEX('Wattage Table'!$F$23:$F$451,MATCH(H194,'Wattage Table'!$D$23:$D$451,0)))*$L194)","v":" "},{"$f":"IF(D194=\"\",\"\",IF(OR(D194=\"None\",D194=\"\",H194=\"\"),\"No\",IF(VLOOKUP(H194,'Wattage Table'!$D:$F,3,0)*L194/F194<=VLOOKUP(D194,Validation!$O$7:$Q$9,3,0),\"No\",\"Yes\")))","v":""}]
[null,174,null,null,{"$f":"IF(D195=\"\",\"\",IF(D195=\"None\",\"None\",INDEX('Lighting Controls Summary'!$D$19:$D$22,MATCH(D195,'Lighting Controls Summary'!$C$19:$C$22,0),1)))","v":""},null,null,null,{"$f":"IF(H195=\"\",\"\",VLOOKUP(H195,'Wattage Table'!$D:$E,2,0))","v":""},null,0,null,{"$f":"IF(OR(H195=\"\",R195=\"No\"),0,(((VLOOKUP(H195,'Wattage Table'!$D:$F,3,0)*J195)-(VLOOKUP(H195,'Wattage Table'!$D:$F,3,0)*(J195-K195)))*L195)/1000)","v":0},{"$f":"IF(OR(H195=\"\",R195=\"No\"),0,(VLOOKUP(H195,'Wattage Table'!$D:$F,3,0)*L195)/1000*0.25)","v":0},0,0,{"$f":"IF(ISERROR(IF(H195=\"-\",\"-\",INDEX('Wattage Table'!$F$23:$F$451,MATCH(H195,'Wattage Table'!$D$23:$D$451,0)))*$L195),\" \",IF(H195=\"-\",\"-\",INDEX('Wattage Table'!$F$23:$F$451,MATCH(H195,'Wattage Table'!$D$23:$D$451,0)))*$L195)","v":" "},{"$f":"IF(D195=\"\",\"\",IF(OR(D195=\"None\",D195=\"\",H195=\"\"),\"No\",IF(VLOOKUP(H195,'Wattage Table'!$D:$F,3,0)*L195/F195<=VLOOKUP(D195,Validation!$O$7:$Q$9,3,0),\"No\",\"Yes\")))","v":""}]
[null,175,null,null,{"$f":"IF(D196=\"\",\"\",IF(D196=\"None\",\"None\",INDEX('Lighting Controls Summary'!$D$19:$D$22,MATCH(D196,'Lighting Controls Summary'!$C$19:$C$22,0),1)))","v":""},null,null,null,{"$f":"IF(H196=\"\",\"\",VLOOKUP(H196,'Wattage Table'!$D:$E,2,0))","v":""},null,0,null,{"$f":"IF(OR(H196=\"\",R196=\"No\"),0,(((VLOOKUP(H196,'Wattage Table'!$D:$F,3,0)*J196)-(VLOOKUP(H196,'Wattage Table'!$D:$F,3,0)*(J196-K196)))*L196)/1000)","v":0},{"$f":"IF(OR(H196=\"\",R196=\"No\"),0,(VLOOKUP(H196,'Wattage Table'!$D:$F,3,0)*L196)/1000*0.25)","v":0},0,0,{"$f":"IF(ISERROR(IF(H196=\"-\",\"-\",INDEX('Wattage Table'!$F$23:$F$451,MATCH(H196,'Wattage Table'!$D$23:$D$451,0)))*$L196),\" \",IF(H196=\"-\",\"-\",INDEX('Wattage Table'!$F$23:$F$451,MATCH(H196,'Wattage Table'!$D$23:$D$451,0)))*$L196)","v":" "},{"$f":"IF(D196=\"\",\"\",IF(OR(D196=\"None\",D196=\"\",H196=\"\"),\"No\",IF(VLOOKUP(H196,'Wattage Table'!$D:$F,3,0)*L196/F196<=VLOOKUP(D196,Validation!$O$7:$Q$9,3,0),\"No\",\"Yes\")))","v":""}]
[null,176,null,null,{"$f":"IF(D197=\"\",\"\",IF(D197=\"None\",\"None\",INDEX('Lighting Controls Summary'!$D$19:$D$22,MATCH(D197,'Lighting Controls Summary'!$C$19:$C$22,0),1)))","v":""},null,null,null,{"$f":"IF(H197=\"\",\"\",VLOOKUP(H197,'Wattage Table'!$D:$E,2,0))","v":""},null,0,null,{"$f":"IF(OR(H197=\"\",R197=\"No\"),0,(((VLOOKUP(H197,'Wattage Table'!$D:$F,3,0)*J197)-(VLOOKUP(H197,'Wattage Table'!$D:$F,3,0)*(J197-K197)))*L197)/1000)","v":0},{"$f":"IF(OR(H197=\"\",R197=\"No\"),0,(VLOOKUP(H197,'Wattage Table'!$D:$F,3,0)*L197)/1000*0.25)","v":0},0,0,{"$f":"IF(ISERROR(IF(H197=\"-\",\"-\",INDEX('Wattage Table'!$F$23:$F$451,MATCH(H197,'Wattage Table'!$D$23:$D$451,0)))*$L197),\" \",IF(H197=\"-\",\"-\",INDEX('Wattage Table'!$F$23:$F$451,MATCH(H197,'Wattage Table'!$D$23:$D$451,0)))*$L197)","v":" "},{"$f":"IF(D197=\"\",\"\",IF(OR(D197=\"None\",D197=\"\",H197=\"\"),\"No\",IF(VLOOKUP(H197,'Wattage Table'!$D:$F,3,0)*L197/F197<=VLOOKUP(D197,Validation!$O$7:$Q$9,3,0),\"No\",\"Yes\")))","v":""}]
[null,177,null,null,{"$f":"IF(D198=\"\",\"\",IF(D198=\"None\",\"None\",INDEX('Lighting Controls Summary'!$D$19:$D$22,MATCH(D198,'Lighting Controls Summary'!$C$19:$C$22,0),1)))","v":""},null,null,null,{"$f":"IF(H198=\"\",\"\",VLOOKUP(H198,'Wattage Table'!$D:$E,2,0))","v":""},null,0,null,{"$f":"IF(OR(H198=\"\",R198=\"No\"),0,(((VLOOKUP(H198,'Wattage Table'!$D:$F,3,0)*J198)-(VLOOKUP(H198,'Wattage Table'!$D:$F,3,0)*(J198-K198)))*L198)/1000)","v":0},{"$f":"IF(OR(H198=\"\",R198=\"No\"),0,(VLOOKUP(H198,'Wattage Table'!$D:$F,3,0)*L198)/1000*0.25)","v":0},0,0,{"$f":"IF(ISERROR(IF(H198=\"-\",\"-\",INDEX('Wattage Table'!$F$23:$F$451,MATCH(H198,'Wattage Table'!$D$23:$D$451,0)))*$L198),\" \",IF(H198=\"-\",\"-\",INDEX('Wattage Table'!$F$23:$F$451,MATCH(H198,'Wattage Table'!$D$23:$D$451,0)))*$L198)","v":" "},{"$f":"IF(D198=\"\",\"\",IF(OR(D198=\"None\",D198=\"\",H198=\"\"),\"No\",IF(VLOOKUP(H198,'Wattage Table'!$D:$F,3,0)*L198/F198<=VLOOKUP(D198,Validation!$O$7:$Q$9,3,0),\"No\",\"Yes\")))","v":""}]
[null,178,null,null,{"$f":"IF(D199=\"\",\"\",IF(D199=\"None\",\"None\",INDEX('Lighting Controls Summary'!$D$19:$D$22,MATCH(D199,'Lighting Controls Summary'!$C$19:$C$22,0),1)))","v":""},null,null,null,{"$f":"IF(H199=\"\",\"\",VLOOKUP(H199,'Wattage Table'!$D:$E,2,0))","v":""},null,0,null,{"$f":"IF(OR(H199=\"\",R199=\"No\"),0,(((VLOOKUP(H199,'Wattage Table'!$D:$F,3,0)*J199)-(VLOOKUP(H199,'Wattage Table'!$D:$F,3,0)*(J199-K199)))*L199)/1000)","v":0},{"$f":"IF(OR(H199=\"\",R199=\"No\"),0,(VLOOKUP(H199,'Wattage Table'!$D:$F,3,0)*L199)/1000*0.25)","v":0},0,0,{"$f":"IF(ISERROR(IF(H199=\"-\",\"-\",INDEX('Wattage Table'!$F$23:$F$451,MATCH(H199,'Wattage Table'!$D$23:$D$451,0)))*$L199),\" \",IF(H199=\"-\",\"-\",INDEX('Wattage Table'!$F$23:$F$451,MATCH(H199,'Wattage Table'!$D$23:$D$451,0)))*$L199)","v":" "},{"$f":"IF(D199=\"\",\"\",IF(OR(D199=\"None\",D199=\"\",H199=\"\"),\"No\",IF(VLOOKUP(H199,'Wattage Table'!$D:$F,3,0)*L199/F199<=VLOOKUP(D199,Validation!$O$7:$Q$9,3,0),\"No\",\"Yes\")))","v":""}]
[null,179,null,null,{"$f":"IF(D200=\"\",\"\",IF(D200=\"None\",\"None\",INDEX('Lighting Controls Summary'!$D$19:$D$22,MATCH(D200,'Lighting Controls Summary'!$C$19:$C$22,0),1)))","v":""},null,null,null,{"$f":"IF(H200=\"\",\"\",VLOOKUP(H200,'Wattage Table'!$D:$E,2,0))","v":""},null,0,null,{"$f":"IF(OR(H200=\"\",R200=\"No\"),0,(((VLOOKUP(H200,'Wattage Table'!$D:$F,3,0)*J200)-(VLOOKUP(H200,'Wattage Table'!$D:$F,3,0)*(J200-K200)))*L200)/1000)","v":0},{"$f":"IF(OR(H200=\"\",R200=\"No\"),0,(VLOOKUP(H200,'Wattage Table'!$D:$F,3,0)*L200)/1000*0.25)","v":0},0,0,{"$f":"IF(ISERROR(IF(H200=\"-\",\"-\",INDEX('Wattage Table'!$F$23:$F$451,MATCH(H200,'Wattage Table'!$D$23:$D$451,0)))*$L200),\" \",IF(H200=\"-\",\"-\",INDEX('Wattage Table'!$F$23:$F$451,MATCH(H200,'Wattage Table'!$D$23:$D$451,0)))*$L200)","v":" "},{"$f":"IF(D200=\"\",\"\",IF(OR(D200=\"None\",D200=\"\",H200=\"\"),\"No\",IF(VLOOKUP(H200,'Wattage Table'!$D:$F,3,0)*L200/F200<=VLOOKUP(D200,Validation!$O$7:$Q$9,3,0),\"No\",\"Yes\")))","v":""}]
[null,180,null,null,{"$f":"IF(D201=\"\",\"\",IF(D201=\"None\",\"None\",INDEX('Lighting Controls Summary'!$D$19:$D$22,MATCH(D201,'Lighting Controls Summary'!$C$19:$C$22,0),1)))","v":""},null,null,null,{"$f":"IF(H201=\"\",\"\",VLOOKUP(H201,'Wattage Table'!$D:$E,2,0))","v":""},null,0,null,{"$f":"IF(OR(H201=\"\",R201=\"No\"),0,(((VLOOKUP(H201,'Wattage Table'!$D:$F,3,0)*J201)-(VLOOKUP(H201,'Wattage Table'!$D:$F,3,0)*(J201-K201)))*L201)/1000)","v":0},{"$f":"IF(OR(H201=\"\",R201=\"No\"),0,(VLOOKUP(H201,'Wattage Table'!$D:$F,3,0)*L201)/1000*0.25)","v":0},0,0,{"$f":"IF(ISERROR(IF(H201=\"-\",\"-\",INDEX('Wattage Table'!$F$23:$F$451,MATCH(H201,'Wattage Table'!$D$23:$D$451,0)))*$L201),\" \",IF(H201=\"-\",\"-\",INDEX('Wattage Table'!$F$23:$F$451,MATCH(H201,'Wattage Table'!$D$23:$D$451,0)))*$L201)","v":" "},{"$f":"IF(D201=\"\",\"\",IF(OR(D201=\"None\",D201=\"\",H201=\"\"),\"No\",IF(VLOOKUP(H201,'Wattage Table'!$D:$F,3,0)*L201/F201<=VLOOKUP(D201,Validation!$O$7:$Q$9,3,0),\"No\",\"Yes\")))","v":""}]
[null,181,null,null,{"$f":"IF(D202=\"\",\"\",IF(D202=\"None\",\"None\",INDEX('Lighting Controls Summary'!$D$19:$D$22,MATCH(D202,'Lighting Controls Summary'!$C$19:$C$22,0),1)))","v":""},null,null,null,{"$f":"IF(H202=\"\",\"\",VLOOKUP(H202,'Wattage Table'!$D:$E,2,0))","v":""},null,0,null,{"$f":"IF(OR(H202=\"\",R202=\"No\"),0,(((VLOOKUP(H202,'Wattage Table'!$D:$F,3,0)*J202)-(VLOOKUP(H202,'Wattage Table'!$D:$F,3,0)*(J202-K202)))*L202)/1000)","v":0},{"$f":"IF(OR(H202=\"\",R202=\"No\"),0,(VLOOKUP(H202,'Wattage Table'!$D:$F,3,0)*L202)/1000*0.25)","v":0},0,0,{"$f":"IF(ISERROR(IF(H202=\"-\",\"-\",INDEX('Wattage Table'!$F$23:$F$451,MATCH(H202,'Wattage Table'!$D$23:$D$451,0)))*$L202),\" \",IF(H202=\"-\",\"-\",INDEX('Wattage Table'!$F$23:$F$451,MATCH(H202,'Wattage Table'!$D$23:$D$451,0)))*$L202)","v":" "},{"$f":"IF(D202=\"\",\"\",IF(OR(D202=\"None\",D202=\"\",H202=\"\"),\"No\",IF(VLOOKUP(H202,'Wattage Table'!$D:$F,3,0)*L202/F202<=VLOOKUP(D202,Validation!$O$7:$Q$9,3,0),\"No\",\"Yes\")))","v":""}]
[null,182,null,null,{"$f":"IF(D203=\"\",\"\",IF(D203=\"None\",\"None\",INDEX('Lighting Controls Summary'!$D$19:$D$22,MATCH(D203,'Lighting Controls Summary'!$C$19:$C$22,0),1)))","v":""},null,null,null,{"$f":"IF(H203=\"\",\"\",VLOOKUP(H203,'Wattage Table'!$D:$E,2,0))","v":""},null,0,null,{"$f":"IF(OR(H203=\"\",R203=\"No\"),0,(((VLOOKUP(H203,'Wattage Table'!$D:$F,3,0)*J203)-(VLOOKUP(H203,'Wattage Table'!$D:$F,3,0)*(J203-K203)))*L203)/1000)","v":0},{"$f":"IF(OR(H203=\"\",R203=\"No\"),0,(VLOOKUP(H203,'Wattage Table'!$D:$F,3,0)*L203)/1000*0.25)","v":0},0,0,{"$f":"IF(ISERROR(IF(H203=\"-\",\"-\",INDEX('Wattage Table'!$F$23:$F$451,MATCH(H203,'Wattage Table'!$D$23:$D$451,0)))*$L203),\" \",IF(H203=\"-\",\"-\",INDEX('Wattage Table'!$F$23:$F$451,MATCH(H203,'Wattage Table'!$D$23:$D$451,0)))*$L203)","v":" "},{"$f":"IF(D203=\"\",\"\",IF(OR(D203=\"None\",D203=\"\",H203=\"\"),\"No\",IF(VLOOKUP(H203,'Wattage Table'!$D:$F,3,0)*L203/F203<=VLOOKUP(D203,Validation!$O$7:$Q$9,3,0),\"No\",\"Yes\")))","v":""}]
[null,183,null,null,{"$f":"IF(D204=\"\",\"\",IF(D204=\"None\",\"None\",INDEX('Lighting Controls Summary'!$D$19:$D$22,MATCH(D204,'Lighting Controls Summary'!$C$19:$C$22,0),1)))","v":""},null,null,null,{"$f":"IF(H204=\"\",\"\",VLOOKUP(H204,'Wattage Table'!$D:$E,2,0))","v":""},null,0,null,{"$f":"IF(OR(H204=\"\",R204=\"No\"),0,(((VLOOKUP(H204,'Wattage Table'!$D:$F,3,0)*J204)-(VLOOKUP(H204,'Wattage Table'!$D:$F,3,0)*(J204-K204)))*L204)/1000)","v":0},{"$f":"IF(OR(H204=\"\",R204=\"No\"),0,(VLOOKUP(H204,'Wattage Table'!$D:$F,3,0)*L204)/1000*0.25)","v":0},0,0,{"$f":"IF(ISERROR(IF(H204=\"-\",\"-\",INDEX('Wattage Table'!$F$23:$F$451,MATCH(H204,'Wattage Table'!$D$23:$D$451,0)))*$L204),\" \",IF(H204=\"-\",\"-\",INDEX('Wattage Table'!$F$23:$F$451,MATCH(H204,'Wattage Table'!$D$23:$D$451,0)))*$L204)","v":" "},{"$f":"IF(D204=\"\",\"\",IF(OR(D204=\"None\",D204=\"\",H204=\"\"),\"No\",IF(VLOOKUP(H204,'Wattage Table'!$D:$F,3,0)*L204/F204<=VLOOKUP(D204,Validation!$O$7:$Q$9,3,0),\"No\",\"Yes\")))","v":""}]
[null,184,null,null,{"$f":"IF(D205=\"\",\"\",IF(D205=\"None\",\"None\",INDEX('Lighting Controls Summary'!$D$19:$D$22,MATCH(D205,'Lighting Controls Summary'!$C$19:$C$22,0),1)))","v":""},null,null,null,{"$f":"IF(H205=\"\",\"\",VLOOKUP(H205,'Wattage Table'!$D:$E,2,0))","v":""},null,0,null,{"$f":"IF(OR(H205=\"\",R205=\"No\"),0,(((VLOOKUP(H205,'Wattage Table'!$D:$F,3,0)*J205)-(VLOOKUP(H205,'Wattage Table'!$D:$F,3,0)*(J205-K205)))*L205)/1000)","v":0},{"$f":"IF(OR(H205=\"\",R205=\"No\"),0,(VLOOKUP(H205,'Wattage Table'!$D:$F,3,0)*L205)/1000*0.25)","v":0},0,0,{"$f":"IF(ISERROR(IF(H205=\"-\",\"-\",INDEX('Wattage Table'!$F$23:$F$451,MATCH(H205,'Wattage Table'!$D$23:$D$451,0)))*$L205),\" \",IF(H205=\"-\",\"-\",INDEX('Wattage Table'!$F$23:$F$451,MATCH(H205,'Wattage Table'!$D$23:$D$451,0)))*$L205)","v":" "},{"$f":"IF(D205=\"\",\"\",IF(OR(D205=\"None\",D205=\"\",H205=\"\"),\"No\",IF(VLOOKUP(H205,'Wattage Table'!$D:$F,3,0)*L205/F205<=VLOOKUP(D205,Validation!$O$7:$Q$9,3,0),\"No\",\"Yes\")))","v":""}]
[null,185,null,null,{"$f":"IF(D206=\"\",\"\",IF(D206=\"None\",\"None\",INDEX('Lighting Controls Summary'!$D$19:$D$22,MATCH(D206,'Lighting Controls Summary'!$C$19:$C$22,0),1)))","v":""},null,null,null,{"$f":"IF(H206=\"\",\"\",VLOOKUP(H206,'Wattage Table'!$D:$E,2,0))","v":""},null,0,null,{"$f":"IF(OR(H206=\"\",R206=\"No\"),0,(((VLOOKUP(H206,'Wattage Table'!$D:$F,3,0)*J206)-(VLOOKUP(H206,'Wattage Table'!$D:$F,3,0)*(J206-K206)))*L206)/1000)","v":0},{"$f":"IF(OR(H206=\"\",R206=\"No\"),0,(VLOOKUP(H206,'Wattage Table'!$D:$F,3,0)*L206)/1000*0.25)","v":0},0,0,{"$f":"IF(ISERROR(IF(H206=\"-\",\"-\",INDEX('Wattage Table'!$F$23:$F$451,MATCH(H206,'Wattage Table'!$D$23:$D$451,0)))*$L206),\" \",IF(H206=\"-\",\"-\",INDEX('Wattage Table'!$F$23:$F$451,MATCH(H206,'Wattage Table'!$D$23:$D$451,0)))*$L206)","v":" "},{"$f":"IF(D206=\"\",\"\",IF(OR(D206=\"None\",D206=\"\",H206=\"\"),\"No\",IF(VLOOKUP(H206,'Wattage Table'!$D:$F,3,0)*L206/F206<=VLOOKUP(D206,Validation!$O$7:$Q$9,3,0),\"No\",\"Yes\")))","v":""}]
[null,186,null,null,{"$f":"IF(D207=\"\",\"\",IF(D207=\"None\",\"None\",INDEX('Lighting Controls Summary'!$D$19:$D$22,MATCH(D207,'Lighting Controls Summary'!$C$19:$C$22,0),1)))","v":""},null,null,null,{"$f":"IF(H207=\"\",\"\",VLOOKUP(H207,'Wattage Table'!$D:$E,2,0))","v":""},null,0,null,{"$f":"IF(OR(H207=\"\",R207=\"No\"),0,(((VLOOKUP(H207,'Wattage Table'!$D:$F,3,0)*J207)-(VLOOKUP(H207,'Wattage Table'!$D:$F,3,0)*(J207-K207)))*L207)/1000)","v":0},{"$f":"IF(OR(H207=\"\",R207=\"No\"),0,(VLOOKUP(H207,'Wattage Table'!$D:$F,3,0)*L207)/1000*0.25)","v":0},0,0,{"$f":"IF(ISERROR(IF(H207=\"-\",\"-\",INDEX('Wattage Table'!$F$23:$F$451,MATCH(H207,'Wattage Table'!$D$23:$D$451,0)))*$L207),\" \",IF(H207=\"-\",\"-\",INDEX('Wattage Table'!$F$23:$F$451,MATCH(H207,'Wattage Table'!$D$23:$D$451,0)))*$L207)","v":" "},{"$f":"IF(D207=\"\",\"\",IF(OR(D207=\"None\",D207=\"\",H207=\"\"),\"No\",IF(VLOOKUP(H207,'Wattage Table'!$D:$F,3,0)*L207/F207<=VLOOKUP(D207,Validation!$O$7:$Q$9,3,0),\"No\",\"Yes\")))","v":""}]
[null,187,null,null,{"$f":"IF(D208=\"\",\"\",IF(D208=\"None\",\"None\",INDEX('Lighting Controls Summary'!$D$19:$D$22,MATCH(D208,'Lighting Controls Summary'!$C$19:$C$22,0),1)))","v":""},null,null,null,{"$f":"IF(H208=\"\",\"\",VLOOKUP(H208,'Wattage Table'!$D:$E,2,0))","v":""},null,0,null,{"$f":"IF(OR(H208=\"\",R208=\"No\"),0,(((VLOOKUP(H208,'Wattage Table'!$D:$F,3,0)*J208)-(VLOOKUP(H208,'Wattage Table'!$D:$F,3,0)*(J208-K208)))*L208)/1000)","v":0},{"$f":"IF(OR(H208=\"\",R208=\"No\"),0,(VLOOKUP(H208,'Wattage Table'!$D:$F,3,0)*L208)/1000*0.25)","v":0},0,0,{"$f":"IF(ISERROR(IF(H208=\"-\",\"-\",INDEX('Wattage Table'!$F$23:$F$451,MATCH(H208,'Wattage Table'!$D$23:$D$451,0)))*$L208),\" \",IF(H208=\"-\",\"-\",INDEX('Wattage Table'!$F$23:$F$451,MATCH(H208,'Wattage Table'!$D$23:$D$451,0)))*$L208)","v":" "},{"$f":"IF(D208=\"\",\"\",IF(OR(D208=\"None\",D208=\"\",H208=\"\"),\"No\",IF(VLOOKUP(H208,'Wattage Table'!$D:$F,3,0)*L208/F208<=VLOOKUP(D208,Validation!$O$7:$Q$9,3,0),\"No\",\"Yes\")))","v":""}]
[null,188,null,null,{"$f":"IF(D209=\"\",\"\",IF(D209=\"None\",\"None\",INDEX('Lighting Controls Summary'!$D$19:$D$22,MATCH(D209,'Lighting Controls Summary'!$C$19:$C$22,0),1)))","v":""},null,null,null,{"$f":"IF(H209=\"\",\"\",VLOOKUP(H209,'Wattage Table'!$D:$E,2,0))","v":""},null,0,null,{"$f":"IF(OR(H209=\"\",R209=\"No\"),0,(((VLOOKUP(H209,'Wattage Table'!$D:$F,3,0)*J209)-(VLOOKUP(H209,'Wattage Table'!$D:$F,3,0)*(J209-K209)))*L209)/1000)","v":0},{"$f":"IF(OR(H209=\"\",R209=\"No\"),0,(VLOOKUP(H209,'Wattage Table'!$D:$F,3,0)*L209)/1000*0.25)","v":0},0,0,{"$f":"IF(ISERROR(IF(H209=\"-\",\"-\",INDEX('Wattage Table'!$F$23:$F$451,MATCH(H209,'Wattage Table'!$D$23:$D$451,0)))*$L209),\" \",IF(H209=\"-\",\"-\",INDEX('Wattage Table'!$F$23:$F$451,MATCH(H209,'Wattage Table'!$D$23:$D$451,0)))*$L209)","v":" "},{"$f":"IF(D209=\"\",\"\",IF(OR(D209=\"None\",D209=\"\",H209=\"\"),\"No\",IF(VLOOKUP(H209,'Wattage Table'!$D:$F,3,0)*L209/F209<=VLOOKUP(D209,Validation!$O$7:$Q$9,3,0),\"No\",\"Yes\")))","v":""}]
[null,189,null,null,{"$f":"IF(D210=\"\",\"\",IF(D210=\"None\",\"None\",INDEX('Lighting Controls Summary'!$D$19:$D$22,MATCH(D210,'Lighting Controls Summary'!$C$19:$C$22,0),1)))","v":""},null,null,null,{"$f":"IF(H210=\"\",\"\",VLOOKUP(H210,'Wattage Table'!$D:$E,2,0))","v":""},null,0,null,{"$f":"IF(OR(H210=\"\",R210=\"No\"),0,(((VLOOKUP(H210,'Wattage Table'!$D:$F,3,0)*J210)-(VLOOKUP(H210,'Wattage Table'!$D:$F,3,0)*(J210-K210)))*L210)/1000)","v":0},{"$f":"IF(OR(H210=\"\",R210=\"No\"),0,(VLOOKUP(H210,'Wattage Table'!$D:$F,3,0)*L210)/1000*0.25)","v":0},0,0,{"$f":"IF(ISERROR(IF(H210=\"-\",\"-\",INDEX('Wattage Table'!$F$23:$F$451,MATCH(H210,'Wattage Table'!$D$23:$D$451,0)))*$L210),\" \",IF(H210=\"-\",\"-\",INDEX('Wattage Table'!$F$23:$F$451,MATCH(H210,'Wattage Table'!$D$23:$D$451,0)))*$L210)","v":" "},{"$f":"IF(D210=\"\",\"\",IF(OR(D210=\"None\",D210=\"\",H210=\"\"),\"No\",IF(VLOOKUP(H210,'Wattage Table'!$D:$F,3,0)*L210/F210<=VLOOKUP(D210,Validation!$O$7:$Q$9,3,0),\"No\",\"Yes\")))","v":""}]
[null,190,null,null,{"$f":"IF(D211=\"\",\"\",IF(D211=\"None\",\"None\",INDEX('Lighting Controls Summary'!$D$19:$D$22,MATCH(D211,'Lighting Controls Summary'!$C$19:$C$22,0),1)))","v":""},null,null,null,{"$f":"IF(H211=\"\",\"\",VLOOKUP(H211,'Wattage Table'!$D:$E,2,0))","v":""},null,0,null,{"$f":"IF(OR(H211=\"\",R211=\"No\"),0,(((VLOOKUP(H211,'Wattage Table'!$D:$F,3,0)*J211)-(VLOOKUP(H211,'Wattage Table'!$D:$F,3,0)*(J211-K211)))*L211)/1000)","v":0},{"$f":"IF(OR(H211=\"\",R211=\"No\"),0,(VLOOKUP(H211,'Wattage Table'!$D:$F,3,0)*L211)/1000*0.25)","v":0},0,0,{"$f":"IF(ISERROR(IF(H211=\"-\",\"-\",INDEX('Wattage Table'!$F$23:$F$451,MATCH(H211,'Wattage Table'!$D$23:$D$451,0)))*$L211),\" \",IF(H211=\"-\",\"-\",INDEX('Wattage Table'!$F$23:$F$451,MATCH(H211,'Wattage Table'!$D$23:$D$451,0)))*$L211)","v":" "},{"$f":"IF(D211=\"\",\"\",IF(OR(D211=\"None\",D211=\"\",H211=\"\"),\"No\",IF(VLOOKUP(H211,'Wattage Table'!$D:$F,3,0)*L211/F211<=VLOOKUP(D211,Validation!$O$7:$Q$9,3,0),\"No\",\"Yes\")))","v":""}]
[null,191,null,null,{"$f":"IF(D212=\"\",\"\",IF(D212=\"None\",\"None\",INDEX('Lighting Controls Summary'!$D$19:$D$22,MATCH(D212,'Lighting Controls Summary'!$C$19:$C$22,0),1)))","v":""},null,null,null,{"$f":"IF(H212=\"\",\"\",VLOOKUP(H212,'Wattage Table'!$D:$E,2,0))","v":""},null,0,null,{"$f":"IF(OR(H212=\"\",R212=\"No\"),0,(((VLOOKUP(H212,'Wattage Table'!$D:$F,3,0)*J212)-(VLOOKUP(H212,'Wattage Table'!$D:$F,3,0)*(J212-K212)))*L212)/1000)","v":0},{"$f":"IF(OR(H212=\"\",R212=\"No\"),0,(VLOOKUP(H212,'Wattage Table'!$D:$F,3,0)*L212)/1000*0.25)","v":0},0,0,{"$f":"IF(ISERROR(IF(H212=\"-\",\"-\",INDEX('Wattage Table'!$F$23:$F$451,MATCH(H212,'Wattage Table'!$D$23:$D$451,0)))*$L212),\" \",IF(H212=\"-\",\"-\",INDEX('Wattage Table'!$F$23:$F$451,MATCH(H212,'Wattage Table'!$D$23:$D$451,0)))*$L212)","v":" "},{"$f":"IF(D212=\"\",\"\",IF(OR(D212=\"None\",D212=\"\",H212=\"\"),\"No\",IF(VLOOKUP(H212,'Wattage Table'!$D:$F,3,0)*L212/F212<=VLOOKUP(D212,Validation!$O$7:$Q$9,3,0),\"No\",\"Yes\")))","v":""}]
[null,192,null,null,{"$f":"IF(D213=\"\",\"\",IF(D213=\"None\",\"None\",INDEX('Lighting Controls Summary'!$D$19:$D$22,MATCH(D213,'Lighting Controls Summary'!$C$19:$C$22,0),1)))","v":""},null,null,null,{"$f":"IF(H213=\"\",\"\",VLOOKUP(H213,'Wattage Table'!$D:$E,2,0))","v":""},null,0,null,{"$f":"IF(OR(H213=\"\",R213=\"No\"),0,(((VLOOKUP(H213,'Wattage Table'!$D:$F,3,0)*J213)-(VLOOKUP(H213,'Wattage Table'!$D:$F,3,0)*(J213-K213)))*L213)/1000)","v":0},{"$f":"IF(OR(H213=\"\",R213=\"No\"),0,(VLOOKUP(H213,'Wattage Table'!$D:$F,3,0)*L213)/1000*0.25)","v":0},0,0,{"$f":"IF(ISERROR(IF(H213=\"-\",\"-\",INDEX('Wattage Table'!$F$23:$F$451,MATCH(H213,'Wattage Table'!$D$23:$D$451,0)))*$L213),\" \",IF(H213=\"-\",\"-\",INDEX('Wattage Table'!$F$23:$F$451,MATCH(H213,'Wattage Table'!$D$23:$D$451,0)))*$L213)","v":" "},{"$f":"IF(D213=\"\",\"\",IF(OR(D213=\"None\",D213=\"\",H213=\"\"),\"No\",IF(VLOOKUP(H213,'Wattage Table'!$D:$F,3,0)*L213/F213<=VLOOKUP(D213,Validation!$O$7:$Q$9,3,0),\"No\",\"Yes\")))","v":""}]
[null,193,null,null,{"$f":"IF(D214=\"\",\"\",IF(D214=\"None\",\"None\",INDEX('Lighting Controls Summary'!$D$19:$D$22,MATCH(D214,'Lighting Controls Summary'!$C$19:$C$22,0),1)))","v":""},null,null,null,{"$f":"IF(H214=\"\",\"\",VLOOKUP(H214,'Wattage Table'!$D:$E,2,0))","v":""},null,{"$f":"IF(OR(D214=\"\",J214=\"\"),0,J214*0.25)","v":0},null,{"$f":"IF(OR(H214=\"\",R214=\"No\"),0,(((VLOOKUP(H214,'Wattage Table'!$D:$F,3,0)*J214)-(VLOOKUP(H214,'Wattage Table'!$D:$F,3,0)*(J214-K214)))*L214)/1000)","v":0},{"$f":"IF(OR(H214=\"\",R214=\"No\"),0,(VLOOKUP(H214,'Wattage Table'!$D:$F,3,0)*L214)/1000*0.25)","v":0},0,{"$f":"IF(O214<=0,0,F214)","v":0},{"$f":"IF(ISERROR(IF(H214=\"-\",\"-\",INDEX('Wattage Table'!$F$23:$F$451,MATCH(H214,'Wattage Table'!$D$23:$D$451,0)))*$L214),\" \",IF(H214=\"-\",\"-\",INDEX('Wattage Table'!$F$23:$F$451,MATCH(H214,'Wattage Table'!$D$23:$D$451,0)))*$L214)","v":" "},{"$f":"IF(D214=\"\",\"\",IF(OR(D214=\"None\",D214=\"\",H214=\"\"),\"No\",IF(VLOOKUP(H214,'Wattage Table'!$D:$F,3,0)*L214/F214<=VLOOKUP(D214,Validation!$O$7:$Q$9,3,0),\"No\",\"Yes\")))","v":""}]
[null,194,null,null,{"$f":"IF(D215=\"\",\"\",IF(D215=\"None\",\"None\",INDEX('Lighting Controls Summary'!$D$19:$D$22,MATCH(D215,'Lighting Controls Summary'!$C$19:$C$22,0),1)))","v":""},null,null,null,{"$f":"IF(H215=\"\",\"\",VLOOKUP(H215,'Wattage Table'!$D:$E,2,0))","v":""},null,0,null,{"$f":"IF(OR(H215=\"\",R215=\"No\"),0,(((VLOOKUP(H215,'Wattage Table'!$D:$F,3,0)*J215)-(VLOOKUP(H215,'Wattage Table'!$D:$F,3,0)*(J215-K215)))*L215)/1000)","v":0},{"$f":"IF(OR(H215=\"\",R215=\"No\"),0,(VLOOKUP(H215,'Wattage Table'!$D:$F,3,0)*L215)/1000*0.25)","v":0},{"$f":"IF(OR(D215=\"None\",M215<=0,N215<=0,D215=\"\",H215=\"\",R215=\"No\"),0,IF(OR(D215=\"80B\",D215=\"80E\"),F215*35,IF(OR(D215=\"80A\",D215=\"80C\"),F215*15,0)))","v":0},0,{"$f":"IF(ISERROR(IF(H215=\"-\",\"-\",INDEX('Wattage Table'!$F$23:$F$451,MATCH(H215,'Wattage Table'!$D$23:$D$451,0)))*$L215),\" \",IF(H215=\"-\",\"-\",INDEX('Wattage Table'!$F$23:$F$451,MATCH(H215,'Wattage Table'!$D$23:$D$451,0)))*$L215)","v":" "},{"$f":"IF(D215=\"\",\"\",IF(OR(D215=\"None\",D215=\"\",H215=\"\"),\"No\",IF(VLOOKUP(H215,'Wattage Table'!$D:$F,3,0)*L215/F215<=VLOOKUP(D215,Validation!$O$7:$Q$9,3,0),\"No\",\"Yes\")))","v":""}]
[null,195,null,null,{"$f":"IF(D216=\"\",\"\",IF(D216=\"None\",\"None\",INDEX('Lighting Controls Summary'!$D$19:$D$22,MATCH(D216,'Lighting Controls Summary'!$C$19:$C$22,0),1)))","v":""},null,null,null,{"$f":"IF(H216=\"\",\"\",VLOOKUP(H216,'Wattage Table'!$D:$E,2,0))","v":""},null,0,null,{"$f":"IF(OR(H216=\"\",R216=\"No\"),0,(((VLOOKUP(H216,'Wattage Table'!$D:$F,3,0)*J216)-(VLOOKUP(H216,'Wattage Table'!$D:$F,3,0)*(J216-K216)))*L216)/1000)","v":0},{"$f":"IF(OR(H216=\"\",R216=\"No\"),0,(VLOOKUP(H216,'Wattage Table'!$D:$F,3,0)*L216)/1000*0.25)","v":0},0,0,{"$f":"IF(ISERROR(IF(H216=\"-\",\"-\",INDEX('Wattage Table'!$F$23:$F$451,MATCH(H216,'Wattage Table'!$D$23:$D$451,0)))*$L216),\" \",IF(H216=\"-\",\"-\",INDEX('Wattage Table'!$F$23:$F$451,MATCH(H216,'Wattage Table'!$D$23:$D$451,0)))*$L216)","v":" "},{"$f":"IF(D216=\"\",\"\",IF(OR(D216=\"None\",D216=\"\",H216=\"\"),\"No\",IF(VLOOKUP(H216,'Wattage Table'!$D:$F,3,0)*L216/F216<=VLOOKUP(D216,Validation!$O$7:$Q$9,3,0),\"No\",\"Yes\")))","v":""}]
[null,196,null,null,{"$f":"IF(D217=\"\",\"\",IF(D217=\"None\",\"None\",INDEX('Lighting Controls Summary'!$D$19:$D$22,MATCH(D217,'Lighting Controls Summary'!$C$19:$C$22,0),1)))","v":""},null,null,null,{"$f":"IF(H217=\"\",\"\",VLOOKUP(H217,'Wattage Table'!$D:$E,2,0))","v":""},null,0,null,{"$f":"IF(OR(H217=\"\",R217=\"No\"),0,(((VLOOKUP(H217,'Wattage Table'!$D:$F,3,0)*J217)-(VLOOKUP(H217,'Wattage Table'!$D:$F,3,0)*(J217-K217)))*L217)/1000)","v":0},{"$f":"IF(OR(H217=\"\",R217=\"No\"),0,(VLOOKUP(H217,'Wattage Table'!$D:$F,3,0)*L217)/1000*0.25)","v":0},0,0,{"$f":"IF(ISERROR(IF(H217=\"-\",\"-\",INDEX('Wattage Table'!$F$23:$F$451,MATCH(H217,'Wattage Table'!$D$23:$D$451,0)))*$L217),\" \",IF(H217=\"-\",\"-\",INDEX('Wattage Table'!$F$23:$F$451,MATCH(H217,'Wattage Table'!$D$23:$D$451,0)))*$L217)","v":" "},{"$f":"IF(D217=\"\",\"\",IF(OR(D217=\"None\",D217=\"\",H217=\"\"),\"No\",IF(VLOOKUP(H217,'Wattage Table'!$D:$F,3,0)*L217/F217<=VLOOKUP(D217,Validation!$O$7:$Q$9,3,0),\"No\",\"Yes\")))","v":""}]
[null,197,null,null,{"$f":"IF(D218=\"\",\"\",IF(D218=\"None\",\"None\",INDEX('Lighting Controls Summary'!$D$19:$D$22,MATCH(D218,'Lighting Controls Summary'!$C$19:$C$22,0),1)))","v":""},null,null,null,{"$f":"IF(H218=\"\",\"\",VLOOKUP(H218,'Wattage Table'!$D:$E,2,0))","v":""},null,0,null,{"$f":"IF(OR(H218=\"\",R218=\"No\"),0,(((VLOOKUP(H218,'Wattage Table'!$D:$F,3,0)*J218)-(VLOOKUP(H218,'Wattage Table'!$D:$F,3,0)*(J218-K218)))*L218)/1000)","v":0},{"$f":"IF(OR(H218=\"\",R218=\"No\"),0,(VLOOKUP(H218,'Wattage Table'!$D:$F,3,0)*L218)/1000*0.25)","v":0},0,0,{"$f":"IF(ISERROR(IF(H218=\"-\",\"-\",INDEX('Wattage Table'!$F$23:$F$451,MATCH(H218,'Wattage Table'!$D$23:$D$451,0)))*$L218),\" \",IF(H218=\"-\",\"-\",INDEX('Wattage Table'!$F$23:$F$451,MATCH(H218,'Wattage Table'!$D$23:$D$451,0)))*$L218)","v":" "},{"$f":"IF(D218=\"\",\"\",IF(OR(D218=\"None\",D218=\"\",H218=\"\"),\"No\",IF(VLOOKUP(H218,'Wattage Table'!$D:$F,3,0)*L218/F218<=VLOOKUP(D218,Validation!$O$7:$Q$9,3,0),\"No\",\"Yes\")))","v":""}]
[null,198,null,null,{"$f":"IF(D219=\"\",\"\",IF(D219=\"None\",\"None\",INDEX('Lighting Controls Summary'!$D$19:$D$22,MATCH(D219,'Lighting Controls Summary'!$C$19:$C$22,0),1)))","v":""},null,null,null,{"$f":"IF(H219=\"\",\"\",VLOOKUP(H219,'Wattage Table'!$D:$E,2,0))","v":""},null,0,null,{"$f":"IF(OR(H219=\"\",R219=\"No\"),0,(((VLOOKUP(H219,'Wattage Table'!$D:$F,3,0)*J219)-(VLOOKUP(H219,'Wattage Table'!$D:$F,3,0)*(J219-K219)))*L219)/1000)","v":0},{"$f":"IF(OR(H219=\"\",R219=\"No\"),0,(VLOOKUP(H219,'Wattage Table'!$D:$F,3,0)*L219)/1000*0.25)","v":0},0,0,{"$f":"IF(ISERROR(IF(H219=\"-\",\"-\",INDEX('Wattage Table'!$F$23:$F$451,MATCH(H219,'Wattage Table'!$D$23:$D$451,0)))*$L219),\" \",IF(H219=\"-\",\"-\",INDEX('Wattage Table'!$F$23:$F$451,MATCH(H219,'Wattage Table'!$D$23:$D$451,0)))*$L219)","v":" "},{"$f":"IF(D219=\"\",\"\",IF(OR(D219=\"None\",D219=\"\",H219=\"\"),\"No\",IF(VLOOKUP(H219,'Wattage Table'!$D:$F,3,0)*L219/F219<=VLOOKUP(D219,Validation!$O$7:$Q$9,3,0),\"No\",\"Yes\")))","v":""}]
[null,199,null,null,{"$f":"IF(D220=\"\",\"\",IF(D220=\"None\",\"None\",INDEX('Lighting Controls Summary'!$D$19:$D$22,MATCH(D220,'Lighting Controls Summary'!$C$19:$C$22,0),1)))","v":""},null,null,null,{"$f":"IF(H220=\"\",\"\",VLOOKUP(H220,'Wattage Table'!$D:$E,2,0))","v":""},null,0,null,{"$f":"IF(OR(H220=\"\",R220=\"No\"),0,(((VLOOKUP(H220,'Wattage Table'!$D:$F,3,0)*J220)-(VLOOKUP(H220,'Wattage Table'!$D:$F,3,0)*(J220-K220)))*L220)/1000)","v":0},{"$f":"IF(OR(H220=\"\",R220=\"No\"),0,(VLOOKUP(H220,'Wattage Table'!$D:$F,3,0)*L220)/1000*0.25)","v":0},0,0,{"$f":"IF(ISERROR(IF(H220=\"-\",\"-\",INDEX('Wattage Table'!$F$23:$F$451,MATCH(H220,'Wattage Table'!$D$23:$D$451,0)))*$L220),\" \",IF(H220=\"-\",\"-\",INDEX('Wattage Table'!$F$23:$F$451,MATCH(H220,'Wattage Table'!$D$23:$D$451,0)))*$L220)","v":" "},{"$f":"IF(D220=\"\",\"\",IF(OR(D220=\"None\",D220=\"\",H220=\"\"),\"No\",IF(VLOOKUP(H220,'Wattage Table'!$D:$F,3,0)*L220/F220<=VLOOKUP(D220,Validation!$O$7:$Q$9,3,0),\"No\",\"Yes\")))","v":""}]
[null,200,null,null,{"$f":"IF(D221=\"\",\"\",IF(D221=\"None\",\"None\",INDEX('Lighting Controls Summary'!$D$19:$D$22,MATCH(D221,'Lighting Controls Summary'!$C$19:$C$22,0),1)))","v":""},null,null,null,{"$f":"IF(H221=\"\",\"\",VLOOKUP(H221,'Wattage Table'!$D:$E,2,0))","v":""},null,0,null,{"$f":"IF(OR(H221=\"\",R221=\"No\"),0,(((VLOOKUP(H221,'Wattage Table'!$D:$F,3,0)*J221)-(VLOOKUP(H221,'Wattage Table'!$D:$F,3,0)*(J221-K221)))*L221)/1000)","v":0},{"$f":"IF(OR(H221=\"\",R221=\"No\"),0,(VLOOKUP(H221,'Wattage Table'!$D:$F,3,0)*L221)/1000*0.25)","v":0},0,0,{"$f":"IF(ISERROR(IF(H221=\"-\",\"-\",INDEX('Wattage Table'!$F$23:$F$451,MATCH(H221,'Wattage Table'!$D$23:$D$451,0)))*$L221),\" \",IF(H221=\"-\",\"-\",INDEX('Wattage Table'!$F$23:$F$451,MATCH(H221,'Wattage Table'!$D$23:$D$451,0)))*$L221)","v":" "},{"$f":"IF(D221=\"\",\"\",IF(OR(D221=\"None\",D221=\"\",H221=\"\"),\"No\",IF(VLOOKUP(H221,'Wattage Table'!$D:$F,3,0)*L221/F221<=VLOOKUP(D221,Validation!$O$7:$Q$9,3,0),\"No\",\"Yes\")))","v":""}]

{"sheet":"Lighting Controls Summary","index":11,"n_rows":23,"n_cols":8,"rows_kept":23,"cut":false,"hidden":false,"merged":[[1,1,1,7],[2,1,2,7],[3,1,3,7],[4,1,4,7],[16,7,17,7],[16,6,17,6],[10,3,10,4],[11,3,11,4],[12,3,12,4],[13,3,13,4],[18,1,21,1],[5,1,5,7],[8,1,8,6],[16,2,17,2],[16,3,17,3],[16,4,17,4],[16,5,17,5]]}
[]
[]
[]
[null,"Lighting Controls Summary"]
[null,{"$f":"\"Version # \"&'Version Tracking'!C4","v":"Version # 10.1"}]
[null," "]
[null,"Copyright © 2010 ICF Resources, LLC, All Rights Reserved. Do not copy, distribute or quote without ICF’s written permission."]
[]
[null,"Required General Project Information"]
[]
[null,null,"Project Name",{"$f":"IF('Input - Lighting Controls'!D11=0,\"\",'Input - Lighting Controls'!D11)","v":""},null,"Prepared By",{"$f":"IF('Input - Lighting Controls'!G11=0,\"\",'Input - Lighting Controls'!G11)","v":""}]
[null,null,"Project Address",{"$f":"IF('Input - Lighting Controls'!D12=0,\"\",'Input - Lighting Controls'!D12)","v":""},null,"Contact Person",{"$f":"IF('Input - Lighting Controls'!G12=0,\"\",'Input - Lighting Controls'!G12)","v":""}]
[null,null,"City",{"$f":"IF('Input - Lighting Controls'!D13=0,\"\",'Input - Lighting Controls'!D13)","v":""},null,"Phone",{"$f":"IF('Input - Lighting Controls'!G13=0,\"\",'Input - Lighting Controls'!G13)","v":""}]
[null,null,"ZIP",{"$f":"IF('Input - Lighting Controls'!D14=0,\"\",'Input - Lighting Controls'!D14)","v":""},null,"Email",{"$f":"IF('Input - Lighting Controls'!G14=0,\"\",'Input - Lighting Controls'!G14)","v":""}]
[]
[]
[null,null,"Measure Code","Proposed Measure","Minnimum Watts that Must be Controlled","Total Unit Quantity","Incentive / Unit","Total Incentive"]
[]
[null,"Lighting Controls","80A","Occupancy Control: Wall Switch Replacement",40,{"$f":"SUMIF('Input - Lighting Controls'!$D$22:$D$221,$C19,'Input - Lighting Controls'!$P$22:$P$221)","v":0},"$15/ Control",{"$f":"SUMIF('Input - Lighting Controls'!$D$22:$D$221,$C19,'Input - Lighting Controls'!$O$22:$O$221)","v":0}]
[null,null,"80B","Occupancy Control: Ceiling / Wall Mount (Remote)",119,{"$f":"SUMIF('Input - Lighting Controls'!$D$22:$D$221,$C20,'Input - Lighting Controls'!$P$22:$P$221)","v":0},"$35 / Control",{"$f":"SUMIF('Input - Lighting Controls'!$D$22:$D$221,$C20,'Input - Lighting Controls'!$O$22:$O$221)","v":0}]
[null,null,"80C","Occupancy Control: Fixture Mounted (High Bay)",40,{"$f":"SUMIF('Input - Lighting Controls'!$D$22:$D$221,$C21,'Input - Lighting Controls'!$P$22:$P$221)","v":0},"$15 / Control",{"$f":"SUMIF('Input - Lighting Controls'!$D$22:$D$221,$C21,'Input - Lighting Controls'!$O$22:$O$221)","v":0}]
[null,null,"80E","Daylight Control/Harvesting (On/Off)",119,{"$f":"SUMIF('Input - Lighting Controls'!$D$22:$D$221,$C22,'Input - Lighting Controls'!$P$22:$P$221)","v":0},"$35 / Control",{"$f":"SUMIF('Input - Lighting Controls'!$D$22:$D$221,$C22,'Input - Lighting Controls'!$O$22:$O$221)","v":0}]
[null,null,null,null,null,null,"Total Incentive",{"$f":"SUM(H17:H22)","v":0}]

{"sheet":"Building Type LPD","index":12,"n_rows":46,"n_cols":4,"rows_kept":46,"cut":false,"hidden":false,"merged":[[11,1,11,3],[1,1,1,4],[3,1,3,3],[7,1,7,3],[10,1,10,3],[5,1,5,3]]}
[]
[]
[]
[]
[]
[null,"(NO INPUT NEEDED - FOR REFERENCE ONLY)"]
[]
[null,"Building Area Lighting Power Density"]
[]
[]
[null,"Lighting Power Density (W/Sq. Ft.) by Building"]
[null,"Building Area Method"]
[null,"BUILDING TYPE","Base LPD Watts/Sq. Ft.","Base LPD Watts/Sq. Ft. Less 15%"]
[null,"Automotive Facility",0.9,{"$f":"PRODUCT(C14,0.85)","v":0.76500000000000001}]
[null,"Convention Center",1.2,{"$f":"PRODUCT(C15,0.85)","v":1.02}]
[null,"Court House",1.2,{"$f":"PRODUCT(C16,0.85)","v":1.02}]
[null,"Dining: Bar Lounge/Leisure",1.3,1.105]
[null,"Dining: Cafeteria/Fast Food",1.4,1.19]
[null,"Dining: Family",1.6,1.36]
[null,"Dormitory",1,0.85]
[null,"Exercise Center",1,0.85]
[null,"Gymnasium",1.1000000000000001,0.93500000000000005]
[null,"Healthcare-Clinic",1,0.85]
[null,"Hospital",1.2,1.02]
[null,"Hotel",1,0.85]
[null,"Library",1.3,1.105]
[null,"Manufacturing Facility",1.3,1.105]
[null,"Motel",1,0.85]
[null,"Motion Picture Theater",1.2,1.02]
[null,"Multi-Family",0.7,0.59499999999999997]
[null,"Museum",1.1000000000000001,0.93500000000000005]
[null,"Office",1,0.85]
[null,"Parking Garage",0.3,0.255]
[null,"Penitentiary",1,0.85]
[null,"Performing Arts Theater",1.6,1.36]
[null,"Police/Fire Station",1,0.85]
[null,"Post Office",1.1000000000000001,0.93500000000000005]
[null,"Religious Building",1.3,1.105]
[null,"Retail",1.5,1.2749999999999999]
[null,"School/University",1.2,1.02]
[null,"Sports Arena",1.1000000000000001,0.93500000000000005]
[null,"Town Hall",1.1000000000000001,0.93500000000000005]
[null,"Transportation",1,0.85]
[null,"Warehouse",0.8,0.68]
[null,"Workshop",1.4,{"$f":"PRODUCT(C45,0.85)","v":1.19}]
[null,null,null,{"$f":"\"Version #\" & 'Version Tracking'!C4","v":"Version #10.1"}]

{"sheet":"Space-by-Space LPD","index":13,"n_rows":114,"n_cols":4,"rows_kept":114,"cut":false,"hidden":false,"merged":[[10,1,10,3],[1,1,1,4],[4,1,4,3],[6,1,6,3],[9,1,9,3]]}
[]
[]
[]
[]
[null,"(NO INPUT NEEDED - FOR REFERENCE ONLY)"]
[]
[null,"Space-by-Space Lighting Power Density"]
[]
[]
[null,"Lighting Power Density (W/Sq. Ft.) by Space Type"]
[null,"Space-by-Space Method"]
[null,"BUILDING TYPE","Base LPD Watts/Sq. Ft.","Base LPD Watts/Sq. Ft. Less 15%"]
[null,"Atrium-Each Additional Floor",0.2,{"$f":"PRODUCT(C13,0.85)","v":0.17}]
[null,"Atrium-First Three Floors",0.6,{"$f":"PRODUCT(C14,0.85)","v":0.51}]
[null,"Audience /Seating Area ",0.9,{"$f":"PRODUCT(C15,0.85)","v":0.76500000000000001}]
[null,"Audience /Seating Area - Convention Center",0.7,0.59499999999999997]
[null,"Audience /Seating Area - Exercise Center",0.3,0.255]
[null,"Audience /Seating Area - Gymnasium",0.4,0.34]
[null,"Audience /Seating Area - Penitentiary",0.7,0.59499999999999997]
[null,"Audience /Seating Area - Performing Arts Theater",2.6,2.21]
[null,"Audience /Seating Area - Motion Picture Theater",1.2,1.02]
[null,"Audience /Seating Area - Religious Buildings",1.7,1.4449999999999998]
[null,"Audience /Seating Area - Sports Arena",0.4,0.34]
[null,"Audience /Seating Area -Transportation",0.5,0.42499999999999999]
[null,"Automotive - Service/Repair",0.7,0.59499999999999997]
[null,"Banking/Office - Banking Activity Area",1.5,1.2749999999999999]
[null,"Classroom / Lecture Hall / Training room",1.4,1.19]
[null,"Conference / Meeting Room / Multipurpose",1.3,1.105]
[null,"Convention Center - Exhibit Space",1.3,1.105]
[null,"Corridor / Transition",0.5,0.42499999999999999]
[null,"Corridor / Transition - Hospital",1,0.85]
[null,"Corridor / Transition - Manufacturing Facility",0.5,0.42499999999999999]
[null,"Courthouse - Judges Chambers",1.3,1.105]
[null,"Courtroom",1.9,1.615]
[null,"Dining Area",0.9,0.76500000000000001]
[null,"Dining Area - Bar/Lounge/Leisure Dining",1.4,1.19]
[null,"Dining Area - Family Dining",2.1,1.7849999999999999]
[null,"Dining Area - Hotel",1.3,1.105]
[null,"Dining Area - Motel",1.2,1.02]
[null,"Dining Area - Penitentiary",1.3,1.105]
[null,"Dormitory-Living Quarters",1.1000000000000001,0.93500000000000005]
[null,"Dressing / Locker / Fitting Room",0.6,0.51]
[null,"Electrical / Mechanical Area",1.5,1.2749999999999999]
[null,"Exercise Area",0.9,0.76500000000000001]
[null,"Exhibition Space",1.3,1.105]
[null,"Fire Stations-Engine Room",0.8,0.68]
[null,"Fire Stations-Sleeping Quarters",0.3,0.255]
[null,"Food Preparation ",1.2,1.02]
[null,"Gymnasium Playing Area",1.4,1.19]
[null,"Hospital Corridor",1,0.85]
[null,"Hospital Pharmacy",1.2,1.02]
[null,"Hospital-Emergency",2.7,2.2949999999999999]
[null,"Hospital-Exam/Treatment",1.5,1.2749999999999999]
[null,"Hospital-Laundry Washing ",0.6,0.51]
[null,"Hospital-Lounge/Recreation",0.8,0.68]
[null,"Hospital-Medical Supply",1.4,1.19]
[null,"Hospital-Nursery",0.6,0.51]
[null,"Hospital-Operating Room",2.2000000000000002,1.87]
[null,"Hospital-Patient Room",0.7,0.59499999999999997]
[null,"Hospital-Physical Therapy",0.9,0.76500000000000001]
[null,"Hospital-Radiology",0.4,0.34]
[null,"Hospital-Recovery Room",0.8,0.68]
[null,"Hotel Dining",1.3,1.105]
[null,"Hotel Lobby",1.1000000000000001,0.93500000000000005]
[null,"Hotel/ Motel Guest Rooms",1.1000000000000001,0.93500000000000005]
[null,"Inactive Storage",0.3,0.255]
[null,"Inactive Storage -Museum",0.8,0.68]
[null,"Laboratory",1.4,1.19]
[null,"Library - Stacks",1.7,1.4449999999999998]
[null,"Library - Reading Area",1.2,1.02]
[null,"Library - Card File & Cataloguing",1.1000000000000001,0.93500000000000005]
[null,"Lobby - Hotel",1.1000000000000001,0.93500000000000005]
[null,"Lobby ",1.3,1.105]
[null,"Lobby-Motion Picture Theater",1.1000000000000001,0.93500000000000005]
[null,"Lobby-Performing Arts Theater",3.3,2.8049999999999997]
[null,"Lounge/ Recreation",1.2,1.02]
[null,"Lounge/ Recreation-Hospital",0.8,0.68]
[null,"Mall Concourse",1.7,1.4449999999999998]
[null,"Mall Sales Area (see Retail Sales)",1.7,{"$f":"PRODUCT(C79,0.85)","v":1.4449999999999998}]
[null,"Manufacturing Low Bay (<25 FT Floor to Ceiling Hgt)",1.2,1.02]
[null,"Manufacturing High Bay (>25 FT Floor to Ceiling Hgt)",1.7,1.4449999999999998]
[null,"Manufacturing-Control Room",0.5,0.42499999999999999]
[null,"Manufacturing-Corridor",0.5,0.42499999999999999]
[null,"Manufacturing-Detailed",2.1,1.7849999999999999]
[null,"Manufacturing-Equipment Room",1.2,1.02]
[null,"Motel-Dining",1.2,1.02]
[null,"Museum-General Exhibition",1,0.85]
[null,"Museum-Restoration",1.7,1.4449999999999998]
[null,"Hospital-Nurses Stations",1,0.85]
[null,"Office-Open Plan",1.1000000000000001,0.93500000000000005]
[null,"Office-Enclosed",1.1000000000000001,0.93500000000000005]
[null,"Penitentiary-Dining",1.3,1.105]
[null,"Penitentiary- Meeting/ Lecture/ Classroom",1.3,1.105]
[null,"Courthouse/Police Station / Penitentiary",0.9,0.76500000000000001]
[null,"Parking Garage",0.2,0.17]
[null,"Post Office-Sorting Area",1.2,1.02]
[null,"Religious Buildings Fellowship Hall",0.9,0.76500000000000001]
[null,"Religious Buildings Worship",2.4,2.04]
[null,"Restroom",0.9,0.76500000000000001]
[null,"Retail Sales Area ",1.7,1.4449999999999998]
[null,"Sports Arena (Court Type) ",2.2999999999999998,1.9549999999999998]
[null,"Sports Arena (Indoor Playing Field)",1.4,1.19]
[null,"Sports Arena (Ring Type) ",2.7,2.2949999999999999]
[null,"Stairs (Active)",0.6,0.51]
[null,"Storage - Hospital",0.9,0.76500000000000001]
[null,"Storage (Active)",0.8,0.68]
[null,"Storage (Inactive)",0.3,0.255]
[null,"Transportation (Air/ Train/ Bus  Baggage Area)",1,0.85]
[null,"Transportation (Airport Concourse)",0.6,0.51]
[null,"Transportation (Terminal Ticket Counter )",1.5,1.2749999999999999]
[null,"Warehouse Storage (Fine Material)",1.4,1.19]
[null,"Warehouse Storage (Medium/ Bulky Material)",0.9,0.76500000000000001]
[null,"Workshop",1.9,{"$f":"PRODUCT(C113,0.85)","v":1.615}]
[null,null,null,{"$f":"\"Version #\" & 'Version Tracking'!C4","v":"Version #10.1"}]

{"sheet":"Wattage Table","index":14,"n_rows":452,"n_cols":9,"rows_kept":452,"cut":false,"hidden":false,"merged":[[275,1,284,1],[185,1,265,1],[129,1,184,1],[1,1,1,4],[3,1,3,4],[6,1,6,5],[8,1,8,3],[266,1,274,1]]}
[]
[]
[]
[null,"(NO INPUT NEEDED - FOR REFERENCE ONLY)"]
[]
[]
[null,"Lighting System Rated Wattage Table"]
[]
[null,"Device Description Abbreviations"]
[null," BX  "," Biax/Twin Tube Lamp  "]
[null," HW  "," Hard Wire Fixture  "]
[null," EEMAG  "," Energy-Efficient Magnetic  "]
[null," EE  "," Energy-Efficient Lamp  "]
[null," ELIG  "," Electronic Ballast  "]
[null," HBF"," High Ballast Factor"]
[null," HPF  "," High Power Factor  "]
[null," HO  "," High Output Lamp  "]
[null," LBF"," Low Ballast Factor"]
[null," STD  "," Standard Ballast or Lamp  "]
[null," VHO  "," Very High Output Lamp  "]
[]
[null,"Measure Codes","System Category","Device Code","Device Description","Rated\nWatts","Lookup for Baseline based on Device Type","Fluorescent Length"]
[null,"10A Proposed","Four Foot Fluorescent T8 Systems","1F32SSE"," 1L4' T8/ELIG  ",28,"Linear Fluorescent","L4'",{"$f":"IF(B23=\"\",I22,B23)","v":"10A Proposed"}]
[null,null,"Four Foot Fluorescent T8 Systems","1F32SHH","1L4' T8/ELIG HIGH LUMEN HBF",30,"Linear Fluorescent","L4'",{"$f":"IF(B24=\"\",I23,B24)","v":"10A Proposed"}]
[null,null,"Four Foot Fluorescent T8 Systems","1F32SHL"," 1L4 T8/ELIG HIGH LUMEN LBF  ",26,"Linear Fluorescent","L4 ",{"$f":"IF(B25=\"\",I24,B25)","v":"10A Proposed"}]
[null,null,"Four Foot Fluorescent T8 Systems","2F32SSE"," 2L4' T8/ELIG  ",55,"Linear Fluorescent","L4'","10A Proposed"]
[null,null,"Four Foot Fluorescent T8 Systems","2F32SHH"," 2L4' T8/ELIG HIGH LUMEN HBF  ",78,"Linear Fluorescent","L4'","10A Proposed"]
[null,null,"Four Foot Fluorescent T8 Systems","2F32SHL"," 2L4 T8/ELIG HIGH LUMEN LBF  ",52,"Linear Fluorescent","L4 ","10A Proposed"]
[null,"10B Proposed","Four Foot Fluorescent T8 Systems","3F32SSE"," 3L4' T8/ELIG  ",82,"Linear Fluorescent","L4'","10B Proposed"]
[null,null,"Four Foot Fluorescent T8 Systems","3F32SHH"," 3L4' T8/ELIG HIGH LUMEN HBF  ",112,"Linear Fluorescent","L4'","10B Proposed"]
[null,null,"Four Foot Fluorescent T8 Systems","3F32SHL"," 3L4 T8/ELIG HIGH LUMEN LBF  ",76,"Linear Fluorescent","L4 ","10B Proposed"]
[null,null,"Four Foot Fluorescent T8 Systems","4F32SSE"," 4L4' T8/ELIG  ",108,"Linear Fluorescent","L4'","10B Proposed"]
[null,null,"Four Foot Fluorescent T8 Systems","4F32SHH"," 4L4' T8/ELIG HIGH LUMEN HBF ",153,"Linear Fluorescent","L4'","10B Proposed"]
[null,null,"Four Foot Fluorescent T8 Systems","4F32SHL"," 4L4 T8/ELIG HIGH LUMEN LBF",98,"Linear Fluorescent","L4 ","10B Proposed"]
[null,"10C Proposed","T8 Reduced Wattage","1F25EEH"," 1L4' 25W T8EE/EELE HBF  ",30,"Linear Fluorescent","L4'","10C Proposed"]
[null,null,"T8 Reduced Wattage","1F25EEE"," 1L4' 25W T8EE/ELEE  ",22,"Linear Fluorescent","L4'","10C Proposed"]
[null,null,"T8 Reduced Wattage","1F25EEL"," 1L4' 25W T8EE/ELEE LBF ",20,"Linear Fluorescent","L4'","10C Proposed"]
[null,null,"T8 Reduced Wattage","2F25EEH"," 2L4' 25WT8EE/EELE HBF ",86,"Linear Fluorescent","L4'","10C Proposed"]
[null,null,"T8 Reduced Wattage","2F25EEE"," 2L4' 25W T8EE/ELEE  ",43,"Linear Fluorescent","L4'","10C Proposed"]
[null,null,"T8 Reduced Wattage","2F25EEL"," 2L4' 25W T8EE/ELEE LBF ",57,"Linear Fluorescent","L4'","10C Proposed"]
[null,null,"T8 Reduced Wattage","1F28EEH"," 1L4' 28W T8EE/EELE HBF  ",33,"Linear Fluorescent","L4'","10C Proposed"]
[null,null,"T8 Reduced Wattage","1F28EEE"," 1L4' 28W T8EE/ELEE  ",24,"Linear Fluorescent","L4'","10C Proposed"]
[null,null,"T8 Reduced Wattage","1F28EEL"," 1L4' 28W T8EE/ELEE LBF ",22,"Linear Fluorescent","L4'","10C Proposed"]
[null,null,"T8 Reduced Wattage","2F28EEH"," 2L4' 28WT8EE/EELE HBF  ",65,"Linear Fluorescent","L4'","10C Proposed"]
[null,null,"T8 Reduced Wattage","2F28EEE"," 2L4' 28W T8EE/ELEE  ",49,"Linear Fluorescent","L4'","10C Proposed"]
[null,null,"T8 Reduced Wattage","2F28EEL"," 2L4' 28W T8EE/ELEE LBF ",42,"Linear Fluorescent","L4'","10C Proposed"]
[null,"10D Proposed","T8 Reduced Wattage","3F25EEH"," 3L4' 25W T8EE/EELE HBF  ",86,"Linear Fluorescent","L4'","10D Proposed"]
[null,null,"T8 Reduced Wattage","3F25EEE"," 3L4' 25W T8EE/ELEE  ",66,"Linear Fluorescent","L4'","10D Proposed"]
[null,null,"T8 Reduced Wattage","3F25EEL"," 3L4' 25W T8EE/ELEE LBF  ",57,"Linear Fluorescent","L4'","10D Proposed"]
[null,null,"T8 Reduced Wattage","4F25EEH"," 4L4' 25W T8EE/EELE HBF ",112,"Linear Fluorescent","L4'","10D Proposed"]
[null,null,"T8 Reduced Wattage","4F25EEE"," 4L4' 25W T8EE/ELEE  ",86,"Linear Fluorescent","L4'","10D Proposed"]
[null,null,"T8 Reduced Wattage","4F25EEL"," 4L4' 25W T8EE/ELEE LBF ",75,"Linear Fluorescent","L4'","10D Proposed"]
[null,null,"T8 Reduced Wattage","3F28EEH"," 3L4' 28W T8EE/EELE HBF  ",100,"Linear Fluorescent","L4'","10D Proposed"]
[null,null,"T8 Reduced Wattage","3F28EEE"," 3L4' 28W T8EE/ELEE  ",73,"Linear Fluorescent","L4'","10D Proposed"]
[null,null,"T8 Reduced Wattage","3F28EEL"," 3L4' 28W T8EE/ELEE LBF",64,"Linear Fluorescent","L4'","10D Proposed"]
[null,null,"T8 Reduced Wattage","4F28EEH"," 4L4' 28W T8EE/EELE HBF  ",126,"Linear Fluorescent","L4'","10D Proposed"]
[null,null,"T8 Reduced Wattage","4F28EEE"," 4L4' 28W T8EE/ELEE  ",94,"Linear Fluorescent","L4'","10D Proposed"]
[null,null,"T8 Reduced Wattage","4F28EEL"," 4L4' 28W T8EE/ELEE LBF",83,"Linear Fluorescent","L4'","10D Proposed"]
[null,"10E Proposed","Three Foot Fluorescent Systems","1F25SSE"," 1L3'T8/ELIG  ",24,"Linear Fluorescent","L3'","10E Proposed"]
[null,null,"Three Foot Fluorescent Systems","2F25SSE"," 2L3' T8/ELIG  ",47,"Linear Fluorescent","L3'","10E Proposed"]
[null,null,"Three Foot Fluorescent Systems","3F25SSE"," 3L3'T8/ELIG  ",68,"Linear Fluorescent","L3'","10E Proposed"]
[null,null,"Three Foot Fluorescent Systems","4F25SSE"," 4L3' T8/ELIG  ",88,"Linear Fluorescent","L3'","10E Proposed"]
[null,"10F Proposed","Two Foot Fluorescent Systems","1F17SSE"," 1L2'T8/ELIG  ",17,"Linear Fluorescent","L2'","10F Proposed"]
[null,null,"Two Foot Fluorescent Systems","1F17SSL"," 1L2'T8/ELIG   LBF",14,"Linear Fluorescent","L2'","10F Proposed"]
[null,null,"Two Foot Fluorescent Systems","2F17SSE"," 2L2' T8/ELIG  ",37,"Linear Fluorescent","L2'","10F Proposed"]
[null,null,"Two Foot Fluorescent Systems","2F17SSL"," 2L2' T8/ELIG LBF  ",27,"Linear Fluorescent","L2'","10F Proposed"]
[null,null,"Two Foot Fluorescent Systems","3F17SSE"," 3L2' T8/ELIG  ",53,"Linear Fluorescent","L2'","10F Proposed"]
[null,null,"Two Foot Fluorescent Systems","3F17SSL"," 3L2' T8/ELIG LBF  ",39,"Linear Fluorescent","L2'","10F Proposed"]
[null,null,"Two Foot Fluorescent Systems","4F17SSE"," 4L2' T8/ELIG  ",62,"Linear Fluorescent","L2'","10F Proposed"]
[null,null,"Two Foot Fluorescent Systems","4F17SSL"," 4L2' T8/ELIG  LBF",53,"Linear Fluorescent","L2'","10F Proposed"]
[null,"10A Existing","Four Foot Fluorescent T12 Systems","1F34SSS"," 1L4' EE/STD  ",41,"Linear Fluorescent","L4'","10A Existing"]
[null,null,"Four Foot Fluorescent T12 Systems","2F34SSS"," 2L4' EE/STD  ",74,"Linear Fluorescent","L4'","10A Existing"]
[null,"10C Existing","Four Foot Fluorescent T12 Systems","1F34SSS"," 1L4' EE/STD  ",41,"Linear Fluorescent","L4'","10C Existing"]
[null,null,"Four Foot Fluorescent T12 Systems","2F34SSS"," 2L4' EE/STD  ",74,"Linear Fluorescent","L4'","10C Existing"]
[null,null,"Four Foot Fluorescent T8 Systems","1F32SSS"," 1L4' EE/STD  ",30,"Linear Fluorescent","L4'","10C Existing"]
[null,null,"Four Foot Fluorescent T8 Systems","2F32SSS"," 2L4' EE/STD  ",60,"Linear Fluorescent","L4'","10C Existing"]
[null,"10B Existing","Four Foot Fluorescent T12 Systems","3F34SSS"," 3L4' EE/STD  ",115,"Linear Fluorescent","L4'","10B Existing"]
[null,null,"Four Foot Fluorescent T12 Systems","4F34SSS","4L4' EE/STD  ",148,"Linear Fluorescent","L4'","10B Existing"]
[null,"10D Existing","Four Foot Fluorescent T12 Systems","3F34SSS"," 3L4' EE/STD  ",115,"Linear Fluorescent","L4'","10D Existing"]
[null,null,"Four Foot Fluorescent T12 Systems","4F34SSS","4L4' EE/STD  ",148,"Linear Fluorescent","L4'","10D Existing"]
[null,null,"Four Foot Fluorescent T8 Systems","3F32SSS"," 3L4' EE/STD  ",88,"Linear Fluorescent","L4'","10D Existing"]
[null,null,"Four Foot Fluorescent T8 Systems","4F32SSS","4L4' EE/STD  ",112,"Linear Fluorescent","L4'","10D Existing"]
[null,"10E Existing","Three Foot Fluorescent Systems","1F30SEM"," 1L3' EE/EEMAG  ",38,"Linear Fluorescent","L3'","10E Existing"]
[null,null,"Three Foot Fluorescent Systems","1F30SES"," 1L3' EE/STD  ",42,"Linear Fluorescent","L3'","10E Existing"]
[null,null,"Three Foot Fluorescent Systems","1F30SSS"," 1L3' STD/STD  ",46,"Linear Fluorescent","L3'","10E Existing"]
[null,null,"Three Foot Fluorescent Systems","2F30SEE"," 2L3' EE/ELIG  ",49,"Linear Fluorescent","L3'","10E Existing"]
[null,null,"Three Foot Fluorescent Systems","2F30SEM"," 2L3' EE/EEMAG  ",66,"Linear Fluorescent","L3'","10E Existing"]
[null,null,"Three Foot Fluorescent Systems","2F30SES"," 2L3' EE/STD  ",73,"Linear Fluorescent","L3'","10E Existing"]
[null,null,"Three Foot Fluorescent Systems","2F30SSS"," 2L3' STD/STD  ",80,"Linear Fluorescent","L3'",{"$f":"IF(B89=\"\",I88,B89)","v":"10E Existing"}]
[null,null,"Three Foot Fluorescent Systems","3F30SES"," 3L3' EE/STD  ",127,"Linear Fluorescent","L3'","10E Existing"]
[null,null,"Three Foot Fluorescent Systems","3F30SSS"," 3L3' STD/STD  ",140,"Linear Fluorescent","L3'","10E Existing"]
[null,"10F Existing","Two Foot Fluorescent Systems","1F20SSS"," F20T12/HPF(1)  ",32,"Linear Fluorescent","L2'","10F Existing"]
[null,null,"Two Foot Fluorescent Systems","2F20SSS"," F20T12/HPF(2)  ",56,"Linear Fluorescent","L2'","10F Existing"]
[null,null,"Two Foot Fluorescent Systems","3F20SSS"," F20T12/HPF(3)  ",78,"Linear Fluorescent","L2'","10F Existing"]
[null,null,"Two Foot Fluorescent Systems","4F20SSS"," F20T12/HPF(4)  ",104,"Linear Fluorescent","L2'","10F Existing"]
[null,"15A Proposed","Four Foot Fluorescent T8 Systems","2F32SSE"," 2L4' T8/ELIG  ",55,"Linear Fluorescent","L4'","15A Proposed"]
[null,null,"Four Foot Fluorescent T8 Systems","2F32SHH"," 2L4' T8/ELIG HIGH LUMEN HBF  ",78,"Linear Fluorescent","L4'","15A Proposed"]
[null,null,"Four Foot Fluorescent T8 Systems","2F32SHL"," 2L4 T8/ELIG HIGH LUMEN LBF  ",52,"Linear Fluorescent","L4 ","15A Proposed"]
[null,"15B Proposed","Four Foot Fluorescent T8 Systems","2F32SSE"," 2L4' T8/ELIG  ",55,"Linear Fluorescent","L4'","15B Proposed"]
[null,null,"Four Foot Fluorescent T8 Systems","2F32SHH"," 2L4' T8/ELIG HIGH LUMEN HBF  ",78,"Linear Fluorescent","L4'","15B Proposed"]
[null,null,"Four Foot Fluorescent T8 Systems","2F32SHL"," 2L4 T8/ELIG HIGH LUMEN LBF  ",52,"Linear Fluorescent","L4 ","15B Proposed"]
[null,"15C Proposed","Four Foot Fluorescent T8 Systems","2F32SSE"," 2L4' T8/ELIG  ",55,"Linear Fluorescent","L4'","15C Proposed"]
[null,null,"Four Foot Fluorescent T8 Systems","2F32SHH"," 2L4' T8/ELIG HIGH LUMEN HBF  ",78,"Linear Fluorescent","L4'","15C Proposed"]
[null,null,"Four Foot Fluorescent T8 Systems","2F32SHL"," 2L4 T8/ELIG HIGH LUMEN LBF  ",52,"Linear Fluorescent","L4 ","15C Proposed"]
[null,"15D Proposed","Four Foot Fluorescent T8 Systems","1F32SSE"," 1L4' T8/ELIG  ",28,"Linear Fluorescent","L4'","15D Proposed"]
[null,null,"Four Foot Fluorescent T8 Systems","1F32SHH","1L4' T8/ELIG HIGH LUMEN HBF",30,"Linear Fluorescent","L4'","15D Proposed"]
[null,null,"Four Foot Fluorescent T8 Systems","1F32SHL"," 1L4 T8/ELIG HIGH LUMEN LBF  ",26,"Linear Fluorescent","L4 ","15D Proposed"]
[null,"15E Proposed","Two Foot Fluorescent Systems","2F17SSE"," 2L2' T8/ELIG  ",30,"Linear Fluorescent","L2'","15E Proposed"]
[null,null,"Two Foot Fluorescent Systems","2F17SSH","1L2' T8/ELIG HBF",39,"Linear Fluorescent","L2'","15E Proposed"]
[null,null,"Two Foot Fluorescent Systems","2F17SSL"," 2L2' T8/ELIG LBF  ",27,"Linear Fluorescent","L2'","15E Proposed"]
[null,"15A Existing","Eight Foot T12 HO Systems","2F96HEM"," 2L8' HO/EE/EEMAG  ",207,"Linear Fluorescent","L8'","15A Existing"]
[null,null,"Eight Foot T12 HO Systems","2F96HES"," 2L8' HO/EE/STD  ",227,"Linear Fluorescent","L8'","15A Existing"]
[null,null,"Eight Foot T12 VHO Systems","2F96VES","2L8' VHO/EE/STD",390,"Linear Fluorescent","L8'","15A Existing"]
[null,null,"Eight Foot T12 VHO Systems","2F96VSS","2L8' VHO/STD/STD",450,"Linear Fluorescent","L8'","15A Existing"]
[null,null,"Eight Foot T8 Systems","2F80SSE"," 2L8' T8 HO/ELIG  ",160,"Linear Fluorescent","L8'","15A Existing"]
[null,"15B Existing","Eight Foot T12 Systems","2F96SEM"," 2L8' EE/EEMAG  ",123,"Linear Fluorescent","L8'","15B Existing"]
[null,null,"Eight Foot T12 Systems","2F96SES"," 2L8' EE/STD  ",138,"Linear Fluorescent","L8'","15B Existing"]
[null,null,"Eight Foot T8 Systems","2F59SSE"," 2L8' T8/ELIG  ",109,"Linear Fluorescent","L8'","15B Existing"]
[null,null,"Eight Foot T8 Systems","2F59SSL"," 2L8' T8/ELIG LOW PWR  ",100,"Linear Fluorescent","L8'","15B Existing"]
[null,"15C Existing","Four Foot Fluorescent T12 Systems","3F34SSS"," 3L4' EE/STD  ",115,"Linear Fluorescent","L4'","15C Existing"]
[null,null,"Four Foot Fluorescent T12 Systems","4F34SSS","4L4' EE/STD  ",148,"Linear Fluorescent","L4'","15C Existing"]
[null,null,"Four Foot Fluorescent T8 Systems","3F32SSS"," 3L4' EE/STD  ",88,"Linear Fluorescent","L4'","15C Existing"]
[null,null,"Four Foot Fluorescent T8 Systems","4F32SSS","4L4' EE/STD  ",112,"Linear Fluorescent","L4'","15C Existing"]
[null,"15D Existing","Four Foot Fluorescent T12 Systems","2F34SSS"," 2L4' EE/STD  ",74,"Linear Fluorescent","L4'","15D Existing"]
[null,null,"Four Foot Fluorescent T12 Systems","3F34SSS","3L4' EE/STD  ",115,"Linear Fluorescent","L4'","15D Existing"]
[null,null,"Four Foot Fluorescent T8 Systems","2F32SSS"," 2L4' T8/ELIG  ",60,"Linear Fluorescent","L4'","15D Existing"]
[null,null,"Four Foot Fluorescent T8 Systems","3F32SSS"," 3L4' T8/ELIG  ",88,"Linear Fluorescent","L4'","15D Existing"]
[null,"15E Existing","Four Foot Fluorescent T12 U-Bend Systems","2F34SSS"," 2L4' EE/STD  ",74,"Linear Fluorescent","L4'","15E Existing"]
[null,null,"Four Foot Fluorescent T8 U-Bend Systems","2F32SSS"," 2L2' STD/U BEND ",60,"Linear Fluorescent","L4'","15E Existing"]
[null,"20 Proposed","Four Foot Fluorescent T8 Systems","1F32SSE"," 1L4' T8/ELIG  ",28,"Linear Fluorescent","L4'","20 Proposed"]
[null,null,"Four Foot Fluorescent T8 Systems","1F32SHH","1L4' T8/ELIG HIGH LUMEN HBF",30,"Linear Fluorescent","L4'","20 Proposed"]
[null,null,"Four Foot Fluorescent T8 Systems","1F32SHL"," 1L4 T8/ELIG HIGH LUMEN LBF  ",26,"Linear Fluorescent","L4 ","20 Proposed"]
[null,null,"Four Foot Fluorescent T8 Systems","2F32SSE"," 2L4' T8/ELIG  ",55,"Linear Fluorescent","L4'","20 Proposed"]
[null,null,"Four Foot Fluorescent T8 Systems","2F32SHH"," 2L4' T8/ELIG HIGH LUMEN HBF  ",78,"Linear Fluorescent","L4'","20 Proposed"]
[null,null,"Four Foot Fluorescent T8 Systems","2F32SHL"," 2L4 T8/ELIG HIGH LUMEN LBF  ",52,"Linear Fluorescent","L4 ","20 Proposed"]
[null,null,"T8 Reduced Wattage","1F25EEH"," 1L4' 25W T8EE/EELE HBF  ",30,"Linear Fluorescent","L4'","20 Proposed"]
[null,null,"T8 Reduced Wattage","1F25EEE"," 1L4' 25W T8EE/ELEE  ",22,"Linear Fluorescent","L4'","20 Proposed"]
[null,null,"T8 Reduced Wattage","1F25EEL"," 1L4' 25W T8EE/ELEE LBF ",20,"Linear Fluorescent","L4'","20 Proposed"]
[null,null,"T8 Reduced Wattage","2F25EEH"," 2L4' 25WT8EE/EELE HBF ",86,"Linear Fluorescent","L4'","20 Proposed"]
[null,null,"T8 Reduced Wattage","2F25EEE"," 2L4' 25W T8EE/ELEE  ",43,"Linear Fluorescent","L4'","20 Proposed"]
[null,null,"T8 Reduced Wattage","2F25EEL"," 2L4' 25W T8EE/ELEE LBF ",57,"Linear Fluorescent","L4'","20 Proposed"]
[null,null,"T8 Reduced Wattage","1F28EEH"," 1L4' 28W T8EE/EELE HBF  ",33,"Linear Fluorescent","L4'","20 Proposed"]
[null,null,"T8 Reduced Wattage","1F28EEE"," 1L4' 28W T8EE/ELEE  ",24,"Linear Fluorescent","L4'","20 Proposed"]
[null,null,"T8 Reduced Wattage","1F28EEL"," 1L4' 28W T8EE/ELEE LBF ",22,"Linear Fluorescent","L4'","20 Proposed"]
[null,null,"T8 Reduced Wattage","2F28EEH"," 2L4' 28WT8EE/EELE HBF  ",65,"Linear Fluorescent","L4'","20 Proposed"]
[null,null,"T8 Reduced Wattage","2F28EEE"," 2L4' 28W T8EE/ELEE  ",49,"Linear Fluorescent","L4'","20 Proposed"]
[null,null,"T8 Reduced Wattage","2F28EEL"," 2L4' 28W T8EE/ELEE LBF ",42,"Linear Fluorescent","L4'","20 Proposed"]
[null,null,"T5 Systems","1F28SSE"," 1L4' T5/ELIG  ",32,"Linear Fluorescent","L4'","20 Proposed"]
[null,null,"T5 Systems","2F28SSE"," 2L4' T5/ELIG  ",63,"Linear Fluorescent","L4'","20 Proposed"]
[null,null,"T5HO Systems","1F54HSE"," 1L4' T5 HO/ELIG  ",59,"T5HO Systems","L4'","20 Proposed"]
[null,null,"T5HO Systems","2F54HSE"," 2L4' T5 HO/ELIG  ",117,"T5HO Systems","L4'","20 Proposed"]
[null,null,"Four Foot Fluorescent T8 Systems","3F32SSE"," 3L4' T8/ELIG  ",82,"Linear Fluorescent","L4'","20 Proposed"]
[null,null,"Four Foot Fluorescent T8 Systems","3F32SHH"," 3L4' T8/ELIG HIGH LUMEN HBF  ",112,"Linear Fluorescent","L4'",{"$f":"IF(B153=\"\",I152,B153)","v":"20 Proposed"}]
[null,null,"Four Foot Fluorescent T8 Systems","3F32SHL"," 3L4 T8/ELIG HIGH LUMEN LBF  ",76,"Linear Fluorescent","L4 ","20 Proposed"]
[null,null,"Four Foot Fluorescent T8 Systems","4F32SSE"," 4L4' T8/ELIG  ",108,"Linear Fluorescent","L4'","20 Proposed"]
[null,null,"Four Foot Fluorescent T8 Systems","4F32SHH"," 4L4' T8/ELIG HIGH LUMEN HBF ",153,"Linear Fluorescent","L4'","20 Proposed"]
[null,null,"Four Foot Fluorescent T8 Systems","4F32SHL"," 4L4 T8/ELIG HIGH LUMEN LBF",98,"Linear Fluorescent","L4 ","20 Proposed"]
[null,null,"T8 Reduced Wattage","3F25EEH"," 3L4' 25W T8EE/EELE HBF  ",86,"Linear Fluorescent","L4'","20 Proposed"]
[null,null,"T8 Reduced Wattage","3F25EEE"," 3L4' 25W T8EE/ELEE  ",66,"Linear Fluorescent","L4'","20 Proposed"]
[null,null,"T8 Reduced Wattage","3F25EEL"," 3L4' 25W T8EE/ELEE LBF  ",57,"Linear Fluorescent","L4'","20 Proposed"]
[null,null,"T8 Reduced Wattage","4F25EEH"," 4L4' 25W T8EE/EELE HBF ",112,"Linear Fluorescent","L4'","20 Proposed"]
[null,null,"T8 Reduced Wattage","4F25EEE"," 4L4' 25W T8EE/ELEE  ",86,"Linear Fluorescent","L4'","20 Proposed"]
[null,null,"T8 Reduced Wattage","4F25EEL"," 4L4' 25W T8EE/ELEE LBF ",75,"Linear Fluorescent","L4'","20 Proposed"]
[null,null,"T8 Reduced Wattage","3F28EEH"," 3L4' 28W T8EE/EELE HBF  ",100,"Linear Fluorescent","L4'","20 Proposed"]
[null,null,"T8 Reduced Wattage","3F28EEE"," 3L4' 28W T8EE/ELEE  ",73,"Linear Fluorescent","L4'","20 Proposed"]
[null,null,"T8 Reduced Wattage","3F28EEL"," 3L4' 28W T8EE/ELEE LBF",64,"Linear Fluorescent","L4'","20 Proposed"]
[null,null,"T8 Reduced Wattage","4F28EEH"," 4L4' 28W T8EE/EELE HBF  ",126,"Linear Fluorescent","L4'","20 Proposed"]
[null,null,"T8 Reduced Wattage","4F28EEE"," 4L4' 28W T8EE/ELEE  ",94,"Linear Fluorescent","L4'","20 Proposed"]
[null,null,"T8 Reduced Wattage","4F28EEL"," 4L4' 28W T8EE/ELEE LBF",83,"Linear Fluorescent","L4'","20 Proposed"]
[null,null,"T5HO Systems","3F54HSE"," 3L4' T5 HO/ELIG  ",177,"T5HO Systems","L4'","20 Proposed"]
[null,null,"T5HO Systems","4F54HSE"," 4L 54W T5 HO  ",234,"T5HO Systems","L4'","20 Proposed"]
[null,null,"Three Foot Fluorescent Systems","1F25SSE"," 1L3'T8/ELIG  ",24,"Linear Fluorescent","L3'","20 Proposed"]
[null,null,"Three Foot Fluorescent Systems","2F25SSE"," 2L3' T8/ELIG  ",47,"Linear Fluorescent","L3'","20 Proposed"]
[null,null,"Three Foot Fluorescent Systems","3F25SSE"," 3L3'T8/ELIG  ",68,"Linear Fluorescent","L3'","20 Proposed"]
[null,null,"Three Foot Fluorescent Systems","4F25SSE"," 4L3' T8/ELIG  ",88,"Linear Fluorescent","L3'","20 Proposed"]
[null,null,"T5 Systems","1F21SSE"," 1L3' T5/ELIG  ",27,"Linear Fluorescent","L3'","20 Proposed"]
[null,null,"T5 Systems","2F21SSE"," 2L3' T5/ELIG  ",52,"Linear Fluorescent","L3'","20 Proposed"]
[null,null,"T5HO Systems","1F39HSE"," 1L3' T5 HO/ELIG  ",43,"T5HO Systems","L3'","20 Proposed"]
[null,null,"T5HO Systems","2F39HSE"," 2L3' T5 HO/ELIG  ",85,"T5HO Systems","L3'","20 Proposed"]
[null,null,"Two Foot Fluorescent Systems","1F17SSE"," 1L2'T8/ELIG  ",17,"Linear Fluorescent","L2'","20 Proposed"]
[null,null,"Two Foot Fluorescent Systems","2F17SSE"," 2L2' T8/ELIG  ",37,"Linear Fluorescent","L2'","20 Proposed"]
[null,null,"Two Foot Fluorescent Systems","2F17SSL"," 2L2' T8/ELIG LBF  ",27,"Linear Fluorescent","L2'","20 Proposed"]
[null,null,"Two Foot Fluorescent Systems","3F17SSE"," 3L2' T8/ELIG  ",53,"Linear Fluorescent","L2'","20 Proposed"]
[null,null,"Two Foot Fluorescent Systems","3F17SSL"," 3L2' T8/ELIG LBF  ",39,"Linear Fluorescent","L2'","20 Proposed"]
[null,null,"Two Foot Fluorescent Systems","4F17SSE"," 4L2' T8/ELIG  ",62,"Linear Fluorescent","L2'","20 Proposed"]
[null,"20 Existing","Four Foot Fluorescent T12 Systems","1F34SSS"," 1L4' EE/STD  ",41,"Linear Fluorescent","L4'","20 Existing"]
[null,null,"Four Foot Fluorescent T12 Systems","2F34SSS"," 2L4' EE/STD  ",74,"Linear Fluorescent","L4'","20 Existing"]
[null,null,"Four Foot Fluorescent T8 Systems","1F32SSS"," 1L4' T8/EEMAG  ",30,"Linear Fluorescent","L4'","20 Existing"]
[null,null,"Four Foot Fluorescent T8 Systems","2F32SSS"," 2L4' T8/ELIG  ",60,"Linear Fluorescent","L4'","20 Existing"]
[null,null,"Eight Foot T12 Systems","2F96SEM"," 2L8' EE/EEMAG  ",123,"Linear Fluorescent","L8'","20 Existing"]
[null,null,"Eight Foot T12 Systems","2F96SES"," 2L8' EE/STD  ",138,"Linear Fluorescent","L8'","20 Existing"]
[null,null,"Eight Foot T12 Systems","1F96SSE","1L8' EE/STD",83,"Linear Fluorescent","L8'","20 Existing"]
[null,null,"Eight Foot T8 Systems","2F59SSE"," 2L8' T8/ELIG  ",109,"Linear Fluorescent","L8'","20 Existing"]
[null,null,"Eight Foot T8 Systems","2F59SSL"," 2L8' T8/ELIG LOW PWR  ",100,"Linear Fluorescent","L8'","20 Existing"]
[null,null,"Eight Foot T8 Systems","1F59SSE","1L8' T8/ELIG",60,"Linear Fluorescent","L8'","20 Existing"]
[null,null,"Eight Foot T12 HO Systems","2F96HEM"," 2L8' HO/EE/EEMAG  ",207,"Linear Fluorescent","L8'","20 Existing"]
[null,null,"Eight Foot T12 HO Systems","2F96HES"," 2L8' HO/EE/STD  ",227,"Linear Fluorescent","L8'","20 Existing"]
[null,null,"Eight Foot T12 HO Systems","1F96HES","1L8' HO/EE/STD",125,"Linear Fluorescent","L8'","20 Existing"]
[null,null,"Eight Foot T12 VHO Systems","2F96VES","2L8' VHO/EE/STD",390,"Linear Fluorescent","L8'","20 Existing"]
[null,null,"Eight Foot T12 VHO Systems","2F96VSS","2L8' VHO/STD/STD",450,"Linear Fluorescent","L8'","20 Existing"]
[null,null,"Eight Foot T12 VHO Systems","1F96VES","1L8' VHO/EE/STD",200,"Linear Fluorescent","L8'","20 Existing"]
[null,null,"Eight Foot T12 VHO Systems","1F96VSS","1L8' VHO/STD/STD",230,"Linear Fluorescent","L8'","20 Existing"]
[null,null,"Eight Foot T8 HO Systems","2F80SSE"," 2L8' T8 HO/ELIG  ",160,"Linear Fluorescent","L8'","20 Existing"]
[null,null,"Eight Foot T8 HO Systems","1F80SSE","1L8' T8 HO/ELIG",85,"Linear Fluorescent","L8'","20 Existing"]
[null,null,"Incandescent Lamps","1I0060"," 60W INC  ",60,"Incandescent Lamps",null,"20 Existing"]
[null,null,"Incandescent Lamps","1I0075"," 75W INC  ",75,"Incandescent Lamps",null,"20 Existing"]
[null,null,"Incandescent Lamps","1I0100"," 100W INC  ",100,"Incandescent Lamps",null,"20 Existing"]
[null,null,"Four Foot Fluorescent T12 Systems","3F40SSS"," 3L4' EE/STD  ",115,"Linear Fluorescent","L4'","20 Existing"]
[null,null,"Four Foot Fluorescent T12 Systems","4F40SSS"," 4L4' EE/STD  ",148,"Linear Fluorescent","L4'","20 Existing"]
[null,null,"Four Foot Fluorescent T8 Systems","3F32SSS"," 3L4' T8/ELIG  ",88,"Linear Fluorescent","L4'","20 Existing"]
[null,null,"Four Foot Fluorescent T8 Systems","4F32SSS"," 4L4' T8/ELIG  ",112,"Linear Fluorescent","L4'","20 Existing"]
[null,null,"Eight Foot T12 Systems","2F96SEM"," 2L8' EE/EEMAG  ",123,"Linear Fluorescent","L8'","20 Existing"]
[null,null,"Eight Foot T12 Systems","2F96SES"," 2L8' EE/STD  ",138,"Linear Fluorescent","L8'","20 Existing"]
[null,null,"Eight Foot T12 Systems","1F96SSE","1L8' EE/STD",83,"Linear Fluorescent","L8'","20 Existing"]
[null,null,"Eight Foot T8 Systems","2F59SSE"," 2L8' T8/ELIG  ",109,"Linear Fluorescent","L8'","20 Existing"]
[null,null,"Eight Foot T8 Systems","2F59SSL"," 2L8' T8/ELIG LOW PWR  ",100,"Linear Fluorescent","L8'","20 Existing"]
[null,null,"Eight Foot T8 Systems","1F59SSE","1L8' T8/ELIG",60,"Linear Fluorescent","L8'",{"$f":"IF(B217=\"\",I216,B217)","v":"20 Existing"}]
[null,null,"Eight Foot T12 HO Systems","2F96HEM"," 2L8' HO/EE/EEMAG  ",207,"Linear Fluorescent","L8'","20 Existing"]
[null,null,"Eight Foot T12 HO Systems","2F96HES"," 2L8' HO/EE/STD  ",227,"Linear Fluorescent","L8'","20 Existing"]
[null,null,"Eight Foot T12 HO Systems","1F96HES","1L8' HO/EE/STD",125,"Linear Fluorescent","L8'","20 Existing"]
[null,null,"Eight Foot T12 VHO Systems","2F96VES","2L8' VHO/EE/STD",390,"Linear Fluorescent","L8'","20 Existing"]
[null,null,"Eight Foot T12 VHO Systems","2F96VSS","2L8' VHO/STD/STD",450,"Linear Fluorescent","L8'","20 Existing"]
[null,null,"Eight Foot T12 VHO Systems","1F96VES","1L8' VHO/EE/STD",200,"Linear Fluorescent","L8'","20 Existing"]
[null,null,"Eight Foot T12 VHO Systems","1F96VSS","1L8' VHO/STD/STD",230,"Linear Fluorescent","L8'","20 Existing"]
[null,null,"Eight Foot T8 HO Systems","2F80SSE"," 2L8' T8 HO/ELIG  ",160,"Linear Fluorescent","L8'","20 Existing"]
[null,null,"Eight Foot T8 HO Systems","1F80SSE","1L8' T8 HO/ELIG",85,"Linear Fluorescent","L8'","20 Existing"]
[null,null,"Incandescent Lamps","1I0060"," 60W INC  ",60,"Incandescent Lamps",null,"20 Existing"]
[null,null,"Incandescent Lamps","1I0075"," 75W INC  ",75,"Incandescent Lamps",null,"20 Existing"]
[null,null,"Incandescent Lamps","1I0100"," 100W INC  ",100,"Incandescent Lamps",null,"20 Existing"]
[null,null,"Three Foot Fluorescent Systems","1F30SEM"," 1L3' EE/EEMAG  ",38,"Linear Fluorescent","L3'","20 Existing"]
[null,null,"Three Foot Fluorescent Systems","1F30SES"," 1L3' EE/STD  ",42,"Linear Fluorescent","L3'","20 Existing"]
[null,null,"Three Foot Fluorescent Systems","1F30SSS"," 1L3' STD/STD  ",46,"Linear Fluorescent","L3'","20 Existing"]
[null,null,"Three Foot Fluorescent Systems","2F30SEE"," 2L3' EE/ELIG  ",49,"Linear Fluorescent","L3'","20 Existing"]
[null,null,"Three Foot Fluorescent Systems","2F30SEM"," 2L3' EE/EEMAG  ",66,"Linear Fluorescent","L3'","20 Existing"]
[null,null,"Three Foot Fluorescent Systems","2F30SES"," 2L3' EE/STD  ",73,"Linear Fluorescent","L3'","20 Existing"]
[null,null,"Three Foot Fluorescent Systems","2F30SSS"," 2L3' STD/STD  ",80,"Linear Fluorescent","L3'","20 Existing"]
[null,null,"Three Foot Fluorescent Systems","3F30SES"," 3L3' EE/STD  ",127,"Linear Fluorescent","L3'","20 Existing"]
[null,null,"Three Foot Fluorescent Systems","3F30SSS"," 3L3' STD/STD  ",140,"Linear Fluorescent","L3'","20 Existing"]
[null,null,"Incandescent Lamps","1I0060"," 60W INC  ",60,"Incandescent Lamps",null,"20 Existing"]
[null,null,"Incandescent Lamps","1I0075"," 75W INC  ",75,"Incandescent Lamps",null,"20 Existing"]
[null,null,"Incandescent Lamps","1I0100"," 100W INC  ",100,"Incandescent Lamps",null,"20 Existing"]
[null,null,"Two Foot Fluorescent Systems","1F20SSS"," F20T12/HPF(1)  ",32,"Linear Fluorescent","L2'","20 Existing"]
[null,null,"Two Foot Fluorescent Systems","2F20SSS"," F20T12/HPF(2)  ",56,"Linear Fluorescent","L2'","20 Existing"]
[null,null,"Two Foot Fluorescent Systems","2F24HSS"," 2L2' HO/STD/STD  ",85,"Linear Fluorescent","L2'","20 Existing"]
[null,null,"Two Foot Fluorescent Systems","3F20SSS"," F20T12/HPF(3)  ",78,"Linear Fluorescent","L2'","20 Existing"]
[null,null,"Two Foot Fluorescent Systems","3F24HSE"," 3L4’ T5HO/ELIG  ",80,"Linear Fluorescent","L2'","20 Existing"]
[null,null,"Two Foot Fluorescent Systems","4F20SSS"," F20T12/HPF(4)  ",104,"Linear Fluorescent","L2'","20 Existing"]
[null,null,"Incandescent Lamps","1I0060"," 60W INC  ",60,"Incandescent Lamps",null,"20 Existing"]
[null,null,"Incandescent Lamps","1I0075"," 75W INC  ",75,"Incandescent Lamps",null,"20 Existing"]
[null,null,"Incandescent Lamps","1I0100"," 100W INC  ",100,"Incandescent Lamps",null,"20 Existing"]
[null,null,"Metal Halide","1MH0050S"," 50W METAL HALIDE  ",65,"Metal Halide",null,"20 Existing"]
[null,null,"Metal Halide","1MH0070S"," 70W METAL HALIDE  ",95,"Metal Halide",null,"20 Existing"]
[null,null,"Metal Halide","1MH0100S"," 100W METAL HALIDE  ",120,"Metal Halide",null,"20 Existing"]
[null,null,"Metal Halide","1MH0150S"," 150W METAL HALIDE  ",190,"Metal Halide",null,"20 Existing"]
[null,null,"High Pressure Sodium","1HPS0050S"," 50W HPS  ",65,"High Pressure Sodium",null,"20 Existing"]
[null,null,"High Pressure Sodium","1HPS0070S"," 70W HPS  ",90,"High Pressure Sodium",null,"20 Existing"]
[null,null,"High Pressure Sodium","1HPS0100S"," 100W HPS  ",130,"High Pressure Sodium",null,"20 Existing"]
[null,null,"High Pressure Sodium","1HPS0150S"," 150W HPS  ",190,"High Pressure Sodium",null,"20 Existing"]
[null,null,"Metal Halide","1MH0050S"," 50W METAL HALIDE  ",65,"Metal Halide",null,"20 Existing"]
[null,null,"Metal Halide","1MH0070S"," 70W METAL HALIDE  ",95,"Metal Halide",null,"20 Existing"]
[null,null,"Metal Halide","1MH0100S"," 100W METAL HALIDE  ",120,"Metal Halide",null,"20 Existing"]
[null,null,"Metal Halide","1MH0150S"," 150W METAL HALIDE  ",190,"Metal Halide",null,"20 Existing"]
[null,null,"High Pressure Sodium","1HPS0050S"," 50W HPS  ",65,"High Pressure Sodium",null,"20 Existing"]
[null,null,"High Pressure Sodium","1HPS0070S"," 70W HPS  ",90,"High Pressure Sodium",null,"20 Existing"]
[null,null,"High Pressure Sodium","1HPS0100S"," 100W HPS  ",130,"High Pressure Sodium",null,"20 Existing"]
[null,null,"High Pressure Sodium","1HPS0150S"," 150W HPS  ",190,"High Pressure Sodium",null,"20 Existing"]
[null,"40 Proposed","Four Foot Fluorescent T8 Systems","1F32SSE"," 1L4' T8/ELIG  ",28,"Linear Fluorescent","L4'","40 Proposed"]
[null,null,"Four Foot Fluorescent T8 Systems","1F32SHL"," 1L4 T8/ELIG HIGH LUMEN LBF  ",26,"Linear Fluorescent","L4 ","40 Proposed"]
[null,null,"T5 Systems","1F28SSE"," 1L4' T5/ELIG  ",32,"Linear Fluorescent","L4'","40 Proposed"]
[null,null,"T5HO Systems","1F54HSE"," 1L4' T5 HO/ELIG  ",59,"T5HO Systems","L4'","40 Proposed"]
[null,null,"Four Foot Fluorescent T8 Systems","2F32SSE"," 2L4' T8/ELIG  ",55,"Linear Fluorescent","L4'","40 Proposed"]
[null,null,"Four Foot Fluorescent T8 Systems","2F32SHH"," 2L4' T8/ELIG HIGH LUMEN HBF  ",78,"Linear Fluorescent","L4'","40 Proposed"]
[null,null,"Four Foot Fluorescent T8 Systems","2F32SHL"," 2L4 T8/ELIG HIGH LUMEN LBF  ",52,"Linear Fluorescent","L4 ","40 Proposed"]
[null,null,"T5 Systems","2F28SSE"," 2L4' T5/ELIG  ",63,"Linear Fluorescent","L4'","40 Proposed"]
[null,null,"T5HO Systems","2F54HSE"," 2L4' T5 HO/ELIG  ",117,"T5HO Systems","L4'","40 Proposed"]
[null,"40 Existing","Four Foot Fluorescent T12 Systems","2F34SSS"," 2L4' STD/STD  ",74,"Linear Fluorescent","L4'","40 Existing"]
[null,null,"Four Foot Fluorescent T12 Systems","3F34SSS"," 3L4' STD/STD  ",115,"Linear Fluorescent","L4'","40 Existing"]
[null,null,"Four Foot Fluorescent T12 Systems","4F34SSS"," 4L4' STD/STD  ",148,"Linear Fluorescent","L4'","40 Existing"]
[null,null,"Four Foot Fluorescent T8 Systems","2F32SSS"," 2L4' T8/ELIG  ",60,"Linear Fluorescent","L4'","40 Existing"]
[null,null,"Four Foot Fluorescent T8 Systems","3F32SSS"," 3L4' T8/ELIG  ",88,"Linear Fluorescent","L4'","40 Existing"]
[null,null,"Four Foot Fluorescent T8 Systems","4F32SSS"," 4L4' T8/ELIG  ",112,"Linear Fluorescent","L4'",{"$f":"IF(B281=\"\",I280,B281)","v":"40 Existing"}]
[null,null,"Four Foot Fluorescent T12 Systems","3F34SSS"," 3L4' STD/STD  ",115,"Linear Fluorescent","L4'","40 Existing"]
[null,null,"Four Foot Fluorescent T12 Systems","4F34SSS"," 4L4' STD/STD  ",148,"Linear Fluorescent","L4'","40 Existing"]
[null,null,"Four Foot Fluorescent T8 Systems","3F32SSS"," 3L4' T8/ELIG  ",88,"Linear Fluorescent","L4'","40 Existing"]
[null,null,"Four Foot Fluorescent T8 Systems","4F32SSS"," 4L4' T8/ELIG  ",112,"Linear Fluorescent","L4'","40 Existing"]
[null,"60A Proposed","T5HO Systems","3F54HSE"," 3L4' T5 HO/ELIG  ",177,"T5HO Systems","L4'","60A Proposed"]
[null,null,"T5HO Systems","2F54HSE","2L4' T5 HO/ELIG",117,"T5HO Systems","L4'","60A Proposed"]
[null,"60B Proposed","T5HO Systems","4F54HSE"," 4L 54W T5 HO  ",234,"T5HO Systems","L4'","60B Proposed"]
[null,null,"T5HO Systems","3F54HSE"," 3L4' T5 HO/ELIG  ",177,"T5HO Systems","L4'","60B Proposed"]
[null,null,"T5HO Systems","5F54HSW","5L 54W T5 HO",294,"T5HO Systems","L4'","60B Proposed"]
[null,"60C Proposed","T5HO Systems","6F54HSE"," 6L 54W T5 HO  ",351,"T5HO Systems","L4'","60C Proposed"]
[null,"60D Proposed","T5HO Systems","12F54HSE"," 12L' 54W T5HO  ",702,"T5HO Systems","L4'","60D Proposed"]
[null,null,"T5HO Systems","10F54HSE"," 10L' 54W T5HO  ",585,"T5HO Systems","L4'","60D Proposed"]
[null,null,"T5HO Systems","8F54HSE"," 8L' 54W T5HO  ",468,"T5HO Systems","L4'","60D Proposed"]
[null,null,"T5HO Systems","6F54HSE"," 6L' 54W T5HO  ",351,"T5HO Systems","L4'","60D Proposed"]
[null,"61A Proposed","Four Foot Fluorescent T8 Systems","4F32SHH"," 4L4' T8/ELIG HIGH LUMEN HBF ",153,"Linear Fluorescent","L4'","61A Proposed"]
[null,null,"Four Foot Fluorescent T8 Systems","3F32SHH"," 3L4' T8/ELIG HIGH LUMEN HBF ",112,"Linear Fluorescent","L4'","61A Proposed"]
[null,"61B Proposed","Four Foot Fluorescent T8 Systems","6F32SHH","6L4' T8/ELIG HIGH LUMEN HBF",234,"Linear Fluorescent","L4'","61B Proposed"]
[null,null,"Four Foot Fluorescent T8 Systems","4F32SHH"," 4L4' T8/ELIG HIGH LUMEN HBF ",153,"Linear Fluorescent","L4'","61B Proposed"]
[null,"61C Proposed","Four Foot Fluorescent T8 Systems","8F32SHH"," 8L4' T8/ELIG HIGH LUMEN HBF",312,"Linear Fluorescent","L4'","61C Proposed"]
[null,"61D Proposed","Four Foot Fluorescent T8 Systems","16F32SHH"," 16L4' T8/ELIG HIGH LUMEN HBF",624,"Linear Fluorescent","L4'","61D Proposed"]
[null,null,"Four Foot Fluorescent T8 Systems","12F32SHH"," 12L4' T8/ELIG HIGH LUMEN HBF",442,"Linear Fluorescent","L4'","61D Proposed"]
[null,null,"Four Foot Fluorescent T8 Systems","10F32SHH","10L4' T8/ELIG HIGH LUMEN HBF",368,"Linear Fluorescent","L4'","61D Proposed"]
[null,null,"Four Foot Fluorescent T8 Systems","8F32SHH"," 8L4' T8/ELIG HIGH LUMEN HB",312,"Linear Fluorescent","L4'","61D Proposed"]
[null,"60A Existing","Metal Halide","1MH0250S"," 250W METAL HALIDE  ",295,"Metal Halide",null,"60A Existing"]
[null,null,"Mercury Vapor","1MV0250S"," 250W MERCURY  ",290,"Mercury Vapor",null,"60A Existing"]
[null,null,"High Pressure Sodium","1HPS0250S"," 250W HPS  ",295,"High Pressure Sodium",null,"60A Existing"]
[null,null,"Metal Halide","1MH0175S","175W METAL HALIDE",205,"Metal Halide",null,"60A Existing"]
[null,null,"Mercury Vapor","1MV0175S","175W MERCURY VAPOR",205,"Mercury Vapor",null,"60A Existing"]
[null,null,"High Pressure Sodium","1HPS0150S","150W HPS",190,"High Pressure Sodium",null,"60A Existing"]
[null,null,"Metal Halide","1MH0150S","150W METAL HALIDE",190,"Metal Halide",null,"60A Existing"]
[null,"61A Existing","Metal Halide","1MH0250S"," 250W METAL HALIDE  ",295,"Metal Halide",null,"61A Existing"]
[null,null,"Mercury Vapor","1MV0250S"," 250W MERCURY  ",290,"Mercury Vapor",null,"61A Existing"]
[null,null,"High Pressure Sodium","1HPS0250S"," 250W HPS  ",295,"High Pressure Sodium",null,"61A Existing"]
[null,null,"Metal Halide","1MH0175S","175W METAL HALIDE",205,"Metal Halide",null,"61A Existing"]
[null,null,"Mercury Vapor","1MV0175S","175W MERCURY VAPOR",205,"Mercury Vapor",null,"61A Existing"]
[null,null,"High Pressure Sodium","1HPS0150S","150W HPS",190,"High Pressure Sodium",null,"61A Existing"]
[null,null,"Metal Halide","1MH0150S","150W METAL HALIDE",190,"Metal Halide",null,"61A Existing"]
[null,"60B Existing","Metal Halide","1MH0400S"," 400W METAL HALIDE  ",455,"Metal Halide",null,"60B Existing"]
[null,null,"Mercury Vapor","1MV0400S"," 400W MERCURY  ",455,"Mercury Vapor",null,"60B Existing"]
[null,null,"High Pressure Sodium","1HPS0400S"," 400W HPS  ",460,"High Pressure Sodium",null,"60B Existing"]
[null,null,"Metal Halide","1MH0360S","360w METAL HALIDE",430,"Metal Halide",null,"60B Existing"]
[null,null,"Pulse Start MH","PS0300P","300w PS METAL HALIDE",342,"Pulse Start Metal Halide",null,"60B Existing"]
[null,null,"Pulse Start MH","PS0320P","320w PS METAL HALIDE",365,"Pulse Start Metal Halide",null,"60B Existing"]
[null,null,"Pulse Start MH","PS0350P","350W PS METAL HALIDE",400,"Pulse Start Metal Halide",null,"60B Existing"]
[null,null,"High Pressure Sodium","1HPS0310S","310w HPS",350,"High Pressure Sodium",null,"60B Existing"]
[null,null,"High Pressure Sodium","1HPS0360S","360w HPS",435,"High Pressure Sodium",null,"60B Existing"]
[null,"60C Existing","Metal Halide","1MH0400S"," 400W METAL HALIDE  ",455,"Metal Halide",null,"60C Existing"]
[null,null,"Mercury Vapor","1MV0400S"," 400W MERCURY  ",455,"Mercury Vapor",null,"60C Existing"]
[null,null,"High Pressure Sodium","1HPS0400S"," 400W HPS  ",460,"High Pressure Sodium",null,"60C Existing"]
[null,null,"Metal Halide","1MH0360S","360w METAL HALIDE",430,"Metal Halide",null,"60C Existing"]
[null,null,"Pulse Start MH","PS0300P","300w PS METAL HALIDE",342,"Pulse Start Metal Halide",null,"60C Existing"]
[null,null,"Pulse Start MH","PS0320P","320w PS METAL HALIDE",365,"Pulse Start Metal Halide",null,"60C Existing"]
[null,null,"Pulse Start MH","PS0350P","350W PS METAL HALIDE",400,"Pulse Start Metal Halide",null,"60C Existing"]
[null,null,"High Pressure Sodium","1HPS0310S","310w HPS",350,"High Pressure Sodium",null,"60C Existing"]
[null,null,"High Pressure Sodium","1HPS0360S","360w HPS",435,"High Pressure Sodium",null,"60C Existing"]
[null,"61B Existing","Metal Halide","1MH0400S"," 400W METAL HALIDE  ",455,"Metal Halide",null,"61B Existing"]
[null,null,"Mercury Vapor","1MV0400S"," 400W MERCURY  ",455,"Mercury Vapor",null,"61B Existing"]
[null,null,"High Pressure Sodium","1HPS0400S"," 400W HPS  ",460,"High Pressure Sodium",null,"61B Existing"]
[null,null,"Metal Halide","1MH0360S","360w METAL HALIDE",430,"Metal Halide",null,"61B Existing"]
[null,null,"Pulse Start MH","PS0300P","300w PS METAL HALIDE",342,"Pulse Start Metal Halide",null,"61B Existing"]
[null,null,"Pulse Start MH","PS0320P","320w PS METAL HALIDE",365,"Pulse Start Metal Halide",null,"61B Existing"]
[null,null,"Pulse Start MH","PS0350P","350W PS METAL HALIDE",400,"Pulse Start Metal Halide",null,"61B Existing"]
[null,null,"High Pressure Sodium","1HPS0310S","310w HPS",350,"High Pressure Sodium",null,"61B Existing"]
[null,null,"High Pressure Sodium","1HPS0360S","360w HPS",435,"High Pressure Sodium",null,{"$f":"IF(B345=\"\",I344,B345)","v":"61B Existing"}]
[null,"61C Existing","Metal Halide","1MH0400S"," 400W METAL HALIDE  ",455,"Metal Halide",null,"61C Existing"]
[null,null,"Mercury Vapor","1MV0400S"," 400W MERCURY  ",455,"Mercury Vapor",null,"61C Existing"]
[null,null,"High Pressure Sodium","1HPS0400S"," 400W HPS  ",460,"High Pressure Sodium",null,"61C Existing"]
[null,null,"Metal Halide","1MH0360S","360w METAL HALIDE",430,"Metal Halide",null,"61C Existing"]
[null,null,"Pulse Start MH","PS0300P","300w PS METAL HALIDE",342,"Pulse Start Metal Halide",null,"61C Existing"]
[null,null,"Pulse Start MH","PS0320P","320w PS METAL HALIDE",365,"Pulse Start Metal Halide",null,"61C Existing"]
[null,null,"Pulse Start MH","PS0350P","350W PS METAL HALIDE",400,"Pulse Start Metal Halide",null,"61C Existing"]
[null,null,"High Pressure Sodium","1HPS0310S","310w HPS",350,"High Pressure Sodium",null,"61C Existing"]
[null,null,"High Pressure Sodium","1HPS0360S","360w HPS",435,"High Pressure Sodium",null,"61C Existing"]
[null,"60D Existing","Metal Halide","1MH01000S"," 1000W METAL HALIDE  ",1075,"Metal Halide",null,"60D Existing"]
[null,null,"Mercury Vapor","1MV1000S"," 1000W MERCURY  ",1075,"Mercury Vapor",null,"60D Existing"]
[null,null,"High Pressure Sodium","1HPS01000S"," 1000W HPS  ",1085,"High Pressure Sodium",null,"60D Existing"]
[null,null,"Metal Halide","1MH0750S","750w METAL HALIDE",825,"Metal Halide",null,"60D Existing"]
[null,null,"Mercury Vapor","1MV0700S","700W MERCURY",775,"Mercury Vapor",null,"60D Existing"]
[null,null,"Mercury Vapor","1MV0400S","2/400w MERCURY",880,"Mercury Vapor",null,"60D Existing"]
[null,null,"High Pressure Sodium","1HPS0600S","600w HPS",675,"High Pressure Sodium",null,"60D Existing"]
[null,null,"High Pressure Sodium","1HPS0750S","750w HPS",835,"High Pressure Sodium",null,"60D Existing"]
[null,null,"Pulse Start MH","PS0750P","750 PS METAL HALIDE",815,"Pulse Start Metal Halide",null,"60D Existing"]
[null,"61D Existing","Metal Halide","1MH01000S"," 1000W METAL HALIDE  ",1075,"Metal Halide",null,"61D Existing"]
[null,null,"Mercury Vapor","1MV1000S"," 1000W MERCURY  ",1075,"Mercury Vapor",null,"61D Existing"]
[null,null,"High Pressure Sodium","1HPS01000S"," 1000W HPS  ",1085,"High Pressure Sodium",null,"61D Existing"]
[null,null,"Metal Halide","1MH0750S","750w METAL HALIDE",825,"Metal Halide",null,"61D Existing"]
[null,null,"Mercury Vapor","1MV0700S","700W MERCURY",775,"Mercury Vapor",null,"61D Existing"]
[null,null,"Mercury Vapor","1MV0400S","2/400w MERCURY",880,"Mercury Vapor",null,"61D Existing"]
[null,null,"High Pressure Sodium","1HPS0600S","600w HPS",675,"High Pressure Sodium",null,"61D Existing"]
[null,null,"High Pressure Sodium","1HPS0750S","750w HPS",835,"High Pressure Sodium",null,"61D Existing"]
[null,null,"Pulse Start MH","PS0750P","750 PS METAL HALIDE",815,"Pulse Start Metal Halide",null,"61D Existing"]
[null,"65A Proposed","Pulse Start MH Lamp/Ballast","1PS0320P"," 320W PSMH CWA  ",365,"Pulse Start MH Lamp/Ballast",null,"65A Proposed"]
[null,null,"Pulse Start MH Lamp/Ballast","1PS0320R"," 320W PSMH LINEAR  ",345,"Pulse Start MH Lamp/Ballast",null,"65A Proposed"]
[null,"65A Existing","Metal Halide","1MH0400S"," 400W METAL HALIDE  ",455,"Metal Halide",null,"65A Existing"]
[null,null,"Mercury Vapor","1MV0400S"," 400W MERCURY  ",455,"Mercury Vapor",null,"65A Existing"]
[null,null,"High Pressure Sodium","1HPS0400S"," 400W HPS  ",460,"High Pressure Sodium",null,"65A Existing"]
[null,"65B Proposed","Pulse Start MH Lamp/Ballast","1PS0750P"," 750W PSMH CWA  ",815,"Pulse Start MH Lamp/Ballast",null,"65B Proposed"]
[null,null,"Pulse Start MH Lamp/Ballast","1PS0750R"," 750W PSMH Linear  ",805,"Pulse Start MH Lamp/Ballast",null,"65B Proposed"]
[null,"65B Existing","Metal Halide","1MH1000S"," 1000W METAL HALIDE  ",1075,"Metal Halide",null,"65B Existing"]
[null,null,"Mercury Vapor","1MV1000S"," 1000W MERCURY  ",1075,"Mercury Vapor",null,"65B Existing"]
[null,null,"High Pressure Sodium","1HPS1000S"," 1000W HPS  ",1085,"High Pressure Sodium",null,"65B Existing"]
[null,"70A Proposed","Compact Fluorescents","1C0013S"," 13W COMPACT HW  ",15,"Compact Fluorescents",null,"70A Proposed"]
[null,null,"Compact Fluorescents","1C0018E"," 18W COMPACT HW ELIG  ",20,"Compact Fluorescents",null,"70A Proposed"]
[null,null,"Compact Fluorescents","1C0026E"," 26W COMPACT HW ELIG  ",28,"Compact Fluorescents",null,"70A Proposed"]
[null,null,"Compact Fluorescents","1C0032E","32w COMPACT HW ELIG",34,"Compact Fluorescents",null,"70A Proposed"]
[null,null,"Compact Fluorescents","1C0042E","42W COMPACT HW ELIG",48,"Compact Fluorescents",null,"70A Proposed"]
[null,"70A Existing","Incandescent Lamps","1I0060"," 60W INC  ",60,"Incandescent Lamps",null,"70A Existing"]
[null,null,"Incandescent Lamps","1I0075"," 75W INC  ",75,"Incandescent Lamps",null,"70A Existing"]
[null,null,"Incandescent Lamps","1I0100"," 100W INC  ",100,"Incandescent Lamps",null,"70A Existing"]
[null,"70B Proposed","Compact Fluorescents","2C0013E"," 2/13W COMPACT HW ELIG  ",28,"Compact Fluorescents",null,"70B Proposed"]
[null,null,"Compact Fluorescents","2C0013S"," 2/13W COMPACT HW  ",30,"Compact Fluorescents",null,"70B Proposed"]
[null,null,"Compact Fluorescents","2C0018E"," 2/18W COMP. HW ELIG  ",40,"Compact Fluorescents",null,"70B Proposed"]
[null,null,"Compact Fluorescents","2C0026E"," 2/26W COMP. HW ELIG  ",54,"Compact Fluorescents",null,"70B Proposed"]
[null,null,"Compact Fluorescents","2C0032E","2/32W COMP. HW ELIG",68,"Compact Fluorescents",null,"70B Proposed"]
[null,null,"Compact Fluorescents","2C0042E","2/42W COMP. HW ELIG",100,"Compact Fluorescents",null,"70B Proposed"]
[null,"70A Existing","Metal Halide","1MH0050S"," 50W METAL HALIDE  ",65,"Metal Halide",null,"70A Existing"]
[null,null,"Metal Halide","1MH0070S"," 70W METAL HALIDE  ",95,"Metal Halide",null,"70A Existing"]
[null,null,"Metal Halide","1MH0100S"," 100W METAL HALIDE  ",120,"Metal Halide",null,"70A Existing"]
[null,null,"Metal Halide","1MH0150S"," 150W METAL HALIDE  ",190,"Metal Halide",null,"70A Existing"]
[null,null,"High Pressure Sodium","1HPS0050S"," 50W HPS  ",65,"High Pressure Sodium",null,"70A Existing"]
[null,null,"High Pressure Sodium","1HPS0070S"," 70W HPS  ",90,"High Pressure Sodium",null,"70A Existing"]
[null,null,"High Pressure Sodium","1HPS0100S"," 100W HPS  ",130,"High Pressure Sodium",null,"70A Existing"]
[null,null,"High Pressure Sodium","1HPS0150S"," 150W HPS  ",190,"High Pressure Sodium",null,"70A Existing"]
[null,"70B Existing","Metal Halide","1MH0050S"," 50W METAL HALIDE  ",65,"Metal Halide",null,"70B Existing"]
[null,null,"Metal Halide","1MH0070S"," 70W METAL HALIDE  ",95,"Metal Halide",null,"70B Existing"]
[null,null,"Metal Halide","1MH0100S"," 100W METAL HALIDE  ",120,"Metal Halide",null,"70B Existing"]
[null,null,"Metal Halide","1MH0150S"," 150W METAL HALIDE  ",190,"Metal Halide",null,"70B Existing"]
[null,null,"High Pressure Sodium","1HPS0050S"," 50W HPS  ",65,"High Pressure Sodium",null,{"$f":"IF(B409=\"\",I408,B409)","v":"70B Existing"}]
[null,null,"High Pressure Sodium","1HPS0070S"," 70W HPS  ",90,"High Pressure Sodium",null,"70B Existing"]
[null,null,"High Pressure Sodium","1HPS0100S"," 100W HPS  ",130,"High Pressure Sodium",null,"70B Existing"]
[null,null,"High Pressure Sodium","1HPS0150S"," 150W HPS  ",190,"High Pressure Sodium",null,"70B Existing"]
[null,"70C Proposed","Compact Fluorescents","3C0018E"," 3'/18W COMPACT HW ELIG  ",60,"Compact Fluorescents",null,"70C Proposed"]
[null,null,"Compact Fluorescents","3C0026E"," 3/26W COMPACT HW ELIG  ",82,"Compact Fluorescents",null,"70C Proposed"]
[null,null,"Compact Fluorescents","3C0032E"," 3/32W COMPACT HW ELIG  ",114,"Compact Fluorescents",null,"70C Proposed"]
[null,null,"Compact Fluorescents","3C0042E","3/42 COMPACT HW ELIG",141,"Compact Fluorescents",null,"70C Proposed"]
[null,"70C Existing","Incandescent Lamps","1I0150"," 150W INC  ",150,"Incandescent Lamps",null,"70C Existing"]
[null,null,"Incandescent Lamps","1I0200"," 200W INC  ",200,"Incandescent Lamps",null,"70C Existing"]
[null,null,"Incandescent Lamps","1I0300"," 300W INC  ",300,"Incandescent Lamps",null,"70C Existing"]
[null,null,"Metal Halide","1MH0175S"," 175W METAL HALIDE  ",205,"Metal Halide",null,"70C Existing"]
[null,null,"Metal Halide","1MH0250S"," 250W METAL HALIDE  ",295,"Metal Halide",null,"70C Existing"]
[null,null,"High Pressure Sodium","1HPS0175S"," 175W HPS  ",210,"High Pressure Sodium",null,"70C Existing"]
[null,null,"High Pressure Sodium","1HPS0200S"," 200W HPS  ",240,"High Pressure Sodium",null,"70C Existing"]
[null,null,"High Pressure Sodium","1HPS0225S"," 225W HPS  ",275,"High Pressure Sodium",null,"70C Existing"]
[null,null,"High Pressure Sodium","1HPS0250S"," 250W HPS  ",295,"High Pressure Sodium",null,"70C Existing"]
[null,"71A Proposed","Compact Fluorescents","1C0011S"," 11W COMPACT HW  ",13,"Compact Fluorescents",null,"71A Proposed"]
[null,null,"Compact Fluorescents","1C0013S"," 13W COMPACT HW  ",15,"Compact Fluorescents",null,"71A Proposed"]
[null,null,"Compact Fluorescents","1C0018E"," 18W COMPACT HW ELIG  ",20,"Compact Fluorescents",null,"71A Proposed"]
[null,null,"Compact Fluorescents","1C0026E"," 26W COMPACT HW ELIG  ",28,"Compact Fluorescents",null,"71A Proposed"]
[null,"71A Existing","Incandescent Lamps","1I0040"," 40W INC  ",40,"Incandescent Lamps",null,"71A Existing"]
[null,null,"Incandescent Lamps","1I0060"," 60W INC  ",60,"Incandescent Lamps",null,"71A Existing"]
[null,null,"Incandescent Lamps","1I0075"," 75W INC  ",75,"Incandescent Lamps",null,"71A Existing"]
[null,null,"Incandescent Lamps","1I0100","100W INC  ",100,"Incandescent Lamps",null,"71A Existing"]
[null,"90B Proposed","LED Exit Signs","1E0002"," 2.0 WATT LED  ",2,"LED Exit Signs",null,"90B Proposed"]
[null,null,"LED Exit Signs","1E0003"," 3.0 WATT LED  ",3,"LED Exit Signs",null,"90B Proposed"]
[null,null,"LED Exit Signs","1E0005"," 5.0 WLED  ",5,"LED Exit Signs",null,"90B Proposed"]
[null,null,"LED Exit Signs","1E0005C"," 0.5 WATT LED  ",0.5,"LED Exit Signs",null,"90B Proposed"]
[null,null,"LED Exit Signs","1E0008"," 8.0 WLED  ",8,"LED Exit Signs",null,"90B Proposed"]
[null,null,"LED Exit Signs","1E0015"," 1.5 WATT LED  ",1.5,"LED Exit Signs",null,"90B Proposed"]
[null,null,"LED Exit Signs","1E0105"," 10.5 WATT LED  ",10.5,"LED Exit Signs",null,"90B Proposed"]
[null,"90A Proposed","LED Exit Signs","1E0002"," 2.0 WATT LED  ",2,"LED Exit Signs",null,"90A Proposed"]
[null,null,"LED Exit Signs","1E0003"," 3.0 WATT LED  ",3,"LED Exit Signs",null,"90A Proposed"]
[null,null,"LED Exit Signs","1E0005"," 5.0 WLED  ",5,"LED Exit Signs",null,"90A Proposed"]
[null,null,"LED Exit Signs","1E0005C"," 0.5 WATT LED  ",0.5,"LED Exit Signs",null,"90A Proposed"]
[null,null,"LED Exit Signs","1E0008"," 8.0 WLED  ",8,"LED Exit Signs",null,"90A Proposed"]
[null,null,"LED Exit Signs","1E0015"," 1.5 WATT LED  ",1.5,"LED Exit Signs",null,"90A Proposed"]
[null,null,"LED Exit Signs","1E0105"," 10.5 WATT LED  ",10.5,"LED Exit Signs",null,"90A Proposed"]
[null,"90A Existing","Incandescent Lamps","1I0020"," 20W INC  ",20,"Incandescent Lamps",null,"90A Existing"]
[null,null,"Incandescent Lamps","1I0040"," 40W INC  ",40,"Incandescent Lamps",null,"90A Existing"]
[null,"90B Existing","Compact Fluorescents","1C0009S"," 9W COMPACT HW  ",11,"Compact Fluorescents",null,"90B Existing"]
[null,null,"Compact Fluorescents","1C0018E"," 18W COMPACT HW ELIG  ",20,"Compact Fluorescents",null,"90B Existing"]
[null,null,null,null,null,{"$f":"\"Version #\" & 'Version Tracking'!C4","v":"Version #10.1"}]

{"sheet":"AEG Import","index":15,"n_rows":8,"n_cols":233,"rows_kept":8,"cut":false,"hidden":true,"merged":[]}
["Measure #","Import?","1st_Yr_Non_Resource_Benefits","Adjusted_Volume","AFUE","AHRI_Ref_number","Air_Leakage","amperage","Annual_Cords_Saved","Annual_Cords_Used","Annual_Gallons_Saved","Annual_Gallons_Used","Annual_Non_Resource_Benefits","Annual_Pounds_Saved","Annual_Pounds_Used","Annual_Therms_Saved","Annual_Therms_Used","Area_Lit","Avg_Wind_Speed","ballast_type_sel","Base_or_Efficiency_Case_sel","basecase_age","basecase_Capacity_or_size","basecase_efficiency","basecase_other","basecase_quantity","basecase_system_rating","basecase_type","basecase_unit_rating","Baseline_equipment_cost","Baseline_Installed_Cost","Baseline_system_age","BEF","Benefit_1_Description_sel","Benefit_1a_Description","Benefit_2_Description","Benefit_2a_Description","benefit_multiplier","Blower_Fan_E_Use","Blower_Fan_motor_control_sel","Boiler_Type_sel","BTU","BTU_Cool","BTU_Heat","Btuh","Building_Conditioned_Area","building_type_sel","Capacity","CEE_Tier_sel","CFM","CO2_Generator","CO2_Pt_Source_or_Meter","Comm_Coincidence","Comm_Coincidence_Factor","Commercial Spillover","Commercial_Free_Driver","Commercial_Free_Ridership","Commercial_Net_to_Gross_Ratio","Commercial_Snap_Back","Commissioned_sel","Control_Type_sel","Cooling_Bonus","COP","CRI","CTRL_Comm_Type_sel","Customer_refID","DeltaTemp","Description","discount_rate","Door_type_sel","Duct_Leakage","Economizer_Type_sel","EER","ef","Efficiency","Elec_Savings_Adj","Elec_Util_cust_Incentive","Eligibility_Status_sel","End_Use_sel","ENERGY_STAR_Compliant_sel","Equip_Orientation_sel","equipment_cost","Exist_Equip_Age","Exist_Equip_Life","Fed_Tax_Credit_Eligible_sel","Fixture_Efficiency","fixture_mounting_sel","Fixture_Size","fixture_style_sel","Flow","fuel_used_2_sel","fuel_used_3_sel","fuel_used_sel","Full_Cost_for_Retrofit","Full_Load_Hours","Full_Load_Hours_Cool","Full_Load_Hours_Heat","Gas_Util_Cust_Incentive","Geothermal_Loop_Type_sel","Green_Certification_sel","Heat_Exchanger_Type_sel","Heating_Penalty","Heating_Type_sel","HERS_rating","HiEff_Blower_Fan_sel","Horse_Power","Hrs_of_Use","HSPF","Hub_Height","Incentive_Per_Unit","Incremental_Installed_Cost","Install_Type_sel","Installed_Cost","Insulation_Location_sel","Insulation_Material_sel","IPLV","IRR","IsElectric","IsTested","kW_Impact","kw_pjm_peak_adjusted","kw_pjm_peak_unadjusted","kW_Summer_Gross","kW_Summer_Net","kw_ton_IPLV","kw_ton_peak","kW_Winter_Gross","kW_Winter_Net","kWh_Gross","kWh_Impact","kWh_Net","kwh_nonsummer_offpeak_adjusted","kwh_nonsummer_offpeak_unadjusted","kwh_nonsummer_peak_adjusted","kwh_nonsummer_peak_unadjusted","kwh_summer_offpeak_adjusted","kwh_summer_offpeak_unadjusted","kwh_summer_peak_adjusted","kwh_summer_peak_unadjusted","Lamp_Length","lamp_type_sel","Line_loss_kW","Line_loss_kWh","Load","LoadFactor","Loadshape_sel","Loan_Interest_Rate","Location","Lumens","Manufacturer","Manufacturer_Non_split_system","Manufacturer_Split_System_Coil","Manufacturer_Split_System_Condenser","Manufacturer_sub_components_1","Manufacturer_sub_components_2","Manufacturer_sub_components_3","MBtuh_Input","MBtuh_Output","Measure_Life","Meets_building_code_sel","MEF","Model","Motor_Enclosure_Type_sel","name","Name_Plate_Power_Rating","Natural_Gas_Savings_Adjustment","Natural_Gas_Savings_mmbtu","New_Baseline_Inst_Cost","nox","NPV","number_lamps","Number_of_Panes","Number_Units","Output_Watts","Phase_sel","Pool_pump_type_sel","pool_size","pool_type_sel","Program_Name","quantity","R_value","rebate_kwh","rebate_ton","rebate_watt","Resi_coincidence","Resi_Coincidence_factor","Residential Spillover","Residential_Freedriver","Residential_Freeridership","Residential_Net_to_Gross_Ratio","Residential_Snap_back","RLA","RLA_Actual","RNC_Tier_sel","RPM","SEER","SENS_Latent_Total","Sensor_Type_sel","Serial_number","SHGC","Solar_AC_kW_Net","sox","SRI","Steady_state_efficiency","Style","Thermal_efficiency","Thickness","Tilt_Angle","Tons","Tons_Controlled","Tune_up_equipment_type_sel","turbine_rating_capacity","U_value","Units_Controlled_by_Control","Unused_Incentive","userid","ventilation_type_sel","Volts","Volume_ft3","Warranty","Water","Water_Consumption","Water_Factor","water_gallons_per_minute_ton","Water_Heating_Type_sel","Water_Storage_Capacity","Wattage","Watts_sqft","Watts_sqft_Saved","Wind_Output_Reduction","Window_Frame_Material_sel","Window_Gas_sel","Window_Type_sel"]
["Building Method",{"$f":"IF(ISBLANK('Input - Building Method'!F22),\"No\",\"Yes\")","v":"No"},null,null,null,null,null,null,null,null,null,null,null,null,null,null,null,null,null,null,null,null,null,null,null,null,null,null,null,null,null,null,null,null,null,null,null,null,null,null,null,null,null,null,null,null,null,null,null,null,null,null,null,null,null,null,null,null,null,null,null,null,null,null,null,{"$f":"IF(B2=\"yes\",A2,\" \")","v":" "},null,null,null,null,null,null,null,null,null,null,{"$f":"'Input - Building Method'!Q22/FX2","v":0},null,null,null,null,null,null,null,null,null,null,null,null,null,null,null,null,null,null,null,null,null,null,null,null,null,null,null,null,null,{"$f":"'Input - Building Method'!E22","v":0},null,null,null,null,null,null,null,null,null,null,null,null,{"$f":"'Input - Building Method'!P11","v":0},null,null,{"$f":"'Input - Building Method'!P11","v":0},null,null,null,null,null,null,{"$f":"'Input - Building Method'!O11","v":0},null,null,null,null,null,null,null,null,null,null,null,null,null,null,null,null,null,null,null,null,null,null,null,null,null,null,null,null,11,null,null,null,null,{"$f":"A2","v":"Building Method"},null,null,null,null,null,null,null,null,null,null,null,null,null,null,null,1,null,null,null,null,null,null,null,null,null,null,null,null,null,null,null,null,null,null,null,null,null,null,null,null,null,null,null,null,null,null,null,null,null,null,null,null,null,null,null,null,null,null,null,null,null,null,{"$f":"'Input - Building Method'!F22","v":0},{"$f":"'Input - Building Method'!I22","v":""},{"$f":"IF('Input - Building Method'!H22=\"\",\"\",'Input - Building Method'!H22-'Input - Building Method'!I22)","v":""}]
["Space Method",{"$f":"IF('Input - Space Method'!F21=0,\"No\",\"Yes\")","v":"No"},null,null,null,null,null,null,null,null,null,null,null,null,null,null,null,null,null,null,null,null,null,null,null,null,null,null,null,null,null,null,null,null,null,null,null,null,null,null,null,null,null,null,null,null,null,null,null,null,null,null,null,null,null,null,null,null,null,null,null,null,null,null,null,{"$f":"IF(B3=\"yes\",A3,\" \")","v":" "},null,null,null,null,null,null,null,null,null,null,{"$f":"'Input - Space Method'!P21/FX3","v":{"$error":"#VALUE!"}},null,null,null,null,null,null,null,null,null,null,null,null,null,null,null,null,null,null,null,null,null,null,null,null,null,null,null,null,null,{"$f":"'Input - Space Method'!E21","v":""},null,null,null,null,null,null,null,null,null,null,null,null,{"$f":"'Input - Space Method'!R11","v":{"$error":"#VALUE!"}},null,null,{"$f":"'Input - Space Method'!S11","v":{"$error":"#VALUE!"}},null,null,null,null,null,null,{"$f":"'Input - Space Method'!R11","v":{"$error":"#VALUE!"}},null,null,null,null,null,null,null,null,null,null,null,null,null,null,null,null,null,null,null,null,null,null,null,null,null,null,null,null,11,null,null,null,null,{"$f":"A3","v":"Space Method"},null,null,null,null,null,null,null,null,null,null,null,null,null,null,null,1,null,null,null,null,null,null,null,null,null,null,null,null,null,null,null,null,null,null,null,null,null,null,null,null,null,null,null,null,null,null,null,null,null,null,null,null,null,null,null,null,null,null,null,null,null,null,{"$f":"'Input - Space Method'!F21","v":0},"",""]
[]
["80A",{"$f":"IF(SUMIF('Input - Lighting Controls'!$D$22:$D$221,A5,'Input - Lighting Controls'!$F$22:$F$221)>0,\"Yes\",\"No\")","v":"No"},null,null,null,null,null,null,null,null,null,null,null,null,null,null,null,null,null,null,null,null,null,null,null,null,null,null,null,null,null,null,null,null,null,null,null,null,null,null,null,null,null,null,null,null,null,null,null,null,null,null,null,null,null,null,null,null,null,null,{"$f":"INDEX(Validation!$P$7:$P$10,MATCH($A5,Validation!$O$7:$O$10,0))","v":"Occupancy Sensor: Wall Switch Replacement"},null,null,null,null," ",null,null,null,null,null,null,null,null,null,null,{"$f":"SUMIF('Input - Lighting Controls'!$D$22:$D$221,$A5,'Input - Lighting Controls'!$O$22:$O$221)/FX5","v":{"$error":"#DIV/0!"}},null,null,null,null,null,null,null,null,null,null,null,null,null,null,null,null,null,null,null,null,null,null,null,null,null,null,null,null,null,{"$f":"SUMIF('Input - Lighting Controls'!$D$22:$D$221,$A5,'Input - Lighting Controls'!$J$22:$J$221)","v":0},null,null,null,null,null,null,null,null,null,null,null,null,{"$f":"DS5","v":{"$error":"#DIV/0!"}},null,null,{"$f":"SUMIF('Input - Lighting Controls'!$D$22:$D$221,$A5,'Input - Lighting Controls'!$N$22:$N$221)/FX5","v":{"$error":"#DIV/0!"}},null,null,null,null,null,null,{"$f":"SUMIF('Input - Lighting Controls'!$D$22:$D$221,$A5,'Input - Lighting Controls'!$M$22:$M$221)/FX5","v":{"$error":"#DIV/0!"}},null,null,null,null,null,null,null,null,null,null,null,null,null,null,null,null,null,null,null,null,null,null,null,null,null,null,null,null,8,null,null,null,null,{"$f":"A5","v":"80A"},null,null,null,null,null,null,null,null,null,null,null,null,null,null,null,{"$f":"SUMIF('Input - Lighting Controls'!$D$22:$D$221,$A5,'Input - Lighting Controls'!$P$22:$P$221)","v":0},null,null,null,null,null,null,null,null,null,null,null,null,null,null,null,null,null,null,null,null,null,null,null,null,null,null,null,null,null,null,null,null,null,null,null,null,null,null,null,null,null,null,null,null,null,null,{"$f":"SUMIF('Input - Lighting Controls'!$D$22:$D$221,$A5,'Input - Lighting Controls'!$Q$22:$Q$221)/FX5","v":{"$error":"#DIV/0!"}}]
["80B",{"$f":"IF(SUMIF('Input - Lighting Controls'!$D$22:$D$221,A6,'Input - Lighting Controls'!$F$22:$F$221)>0,\"Yes\",\"No\")","v":"No"},null,null,null,null,null,null,null,null,null,null,null,null,null,null,null,null,null,null,null,null,null,null,null,null,null,null,null,null,null,null,null,null,null,null,null,null,null,null,null,null,null,null,null,null,null,null,null,null,null,null,null,null,null,null,null,null,null,null,{"$f":"INDEX(Validation!$P$7:$P$10,MATCH($A6,Validation!$O$7:$O$10,0))","v":"Occupancy Sensor: Ceiling / Wall Mount (Remote)"},null,null,null,null," ",null,null,null,null,null,null,null,null,null,null,{"$f":"SUMIF('Input - Lighting Controls'!$D$22:$D$221,$A6,'Input - Lighting Controls'!$O$22:$O$221)/FX6","v":{"$error":"#DIV/0!"}},null,null,null,null,null,null,null,null,null,null,null,null,null,null,null,null,null,null,null,null,null,null,null,null,null,null,null,null,null,{"$f":"SUMIF('Input - Lighting Controls'!$D$22:$D$221,$A6,'Input - Lighting Controls'!$J$22:$J$221)","v":0},null,null,null,null,null,null,null,null,null,null,null,null,{"$f":"DS6","v":{"$error":"#DIV/0!"}},null,null,{"$f":"SUMIF('Input - Lighting Controls'!$D$22:$D$221,$A6,'Input - Lighting Controls'!$N$22:$N$221)/FX6","v":{"$error":"#DIV/0!"}},null,null,null,null,null,null,{"$f":"SUMIF('Input - Lighting Controls'!$D$22:$D$221,$A6,'Input - Lighting Controls'!$M$22:$M$221)/FX6","v":{"$error":"#DIV/0!"}},null,null,null,null,null,null,null,null,null,null,null,null,null,null,null,null,null,null,null,null,null,null,null,null,null,null,null,null,8,null,null,null,null,{"$f":"A6","v":"80B"},null,null,null,null,null,null,null,null,null,null,null,null,null,null,null,{"$f":"SUMIF('Input - Lighting Controls'!$D$22:$D$221,$A6,'Input - Lighting Controls'!$P$22:$P$221)","v":0},null,null,null,null,null,null,null,null,null,null,null,null,null,null,null,null,null,null,null,null,null,null,null,null,null,null,null,null,null,null,null,null,null,null,null,null,null,null,null,null,null,null,null,null,null,null,{"$f":"SUMIF('Input - Lighting Controls'!$D$22:$D$221,$A6,'Input - Lighting Controls'!$Q$22:$Q$221)/FX6","v":{"$error":"#DIV/0!"}}]
["80C",{"$f":"IF(SUMIF('Input - Lighting Controls'!$D$22:$D$221,A7,'Input - Lighting Controls'!$F$22:$F$221)>0,\"Yes\",\"No\")","v":"No"},null,null,null,null,null,null,null,null,null,null,null,null,null,null,null,null,null,null,null,null,null,null,null,null,null,null,null,null,null,null,null,null,null,null,null,null,null,null,null,null,null,null,null,null,null,null,null,null,null,null,null,null,null,null,null,null,null,null,{"$f":"INDEX(Validation!$P$7:$P$10,MATCH($A7,Validation!$O$7:$O$10,0))","v":"Occupancy Sensor: Fixture Mounted (High Bay)"},null,null,null,null," ",null,null,null,null,null,null,null,null,null,null,{"$f":"SUMIF('Input - Lighting Controls'!$D$22:$D$221,$A7,'Input - Lighting Controls'!$O$22:$O$221)/FX7","v":{"$error":"#DIV/0!"}},null,null,null,null,null,null,null,null,null,null,null,null,null,null,null,null,null,null,null,null,null,null,null,null,null,null,null,null,null,{"$f":"SUMIF('Input - Lighting Controls'!$D$22:$D$221,$A7,'Input - Lighting Controls'!$J$22:$J$221)","v":0},null,null,null,null,null,null,null,null,null,null,null,null,{"$f":"DS7","v":{"$error":"#DIV/0!"}},null,null,{"$f":"SUMIF('Input - Lighting Controls'!$D$22:$D$221,$A7,'Input - Lighting Controls'!$N$22:$N$221)/FX7","v":{"$error":"#DIV/0!"}},null,null,null,null,null,null,{"$f":"SUMIF('Input - Lighting Controls'!$D$22:$D$221,$A7,'Input - Lighting Controls'!$M$22:$M$221)/FX7","v":{"$error":"#DIV/0!"}},null,null,null,null,null,null,null,null,null,null,null,null,null,null,null,null,null,null,null,null,null,null,null,null,null,null,null,null,8,null,null,null,null,{"$f":"A7","v":"80C"},null,null,null,null,null,null,null,null,null,null,null,null,null,null,null,{"$f":"SUMIF('Input - Lighting Controls'!$D$22:$D$221,$A7,'Input - Lighting Controls'!$P$22:$P$221)","v":0},null,null,null,null,null,null,null,null,null,null,null,null,null,null,null,null,null,null,null,null,null,null,null,null,null,null,null,null,null,null,null,null,null,null,null,null,null,null,null,null,null,null,null,null,null,null,{"$f":"SUMIF('Input - Lighting Controls'!$D$22:$D$221,$A7,'Input - Lighting Controls'!$Q$22:$Q$221)/FX7","v":{"$error":"#DIV/0!"}}]
["80E",{"$f":"IF(SUMIF('Input - Lighting Controls'!$D$22:$D$221,A8,'Input - Lighting Controls'!$F$22:$F$221)>0,\"Yes\",\"No\")","v":"No"},null,null,null,null,null,null,null,null,null,null,null,null,null,null,null,null,null,null,null,null,null,null,null,null,null,null,null,null,null,null,null,null,null,null,null,null,null,null,null,null,null,null,null,null,null,null,null,null,null,null,null,null,null,null,null,null,null,null,{"$f":"INDEX(Validation!$P$7:$P$10,MATCH($A8,Validation!$O$7:$O$10,0))","v":"Daylight Control/Harvesting (On/Off)"},null,null,null,null," ",null,null,null,null,null,null,null,null,null,null,{"$f":"SUMIF('Input - Lighting Controls'!$D$22:$D$221,$A8,'Input - Lighting Controls'!$O$22:$O$221)/FX8","v":{"$error":"#DIV/0!"}},null,null,null,null,null,null,null,null,null,null,null,null,null,null,null,null,null,null,null,null,null,null,null,null,null,null,null,null,null,{"$f":"SUMIF('Input - Lighting Controls'!$D$22:$D$221,$A8,'Input - Lighting Controls'!$J$22:$J$221)","v":0},null,null,null,null,null,null,null,null,null,null,null,null,{"$f":"DS8","v":{"$error":"#DIV/0!"}},null,null,{"$f":"SUMIF('Input - Lighting Controls'!$D$22:$D$221,$A8,'Input - Lighting Controls'!$N$22:$N$221)/FX8","v":{"$error":"#DIV/0!"}},null,null,null,null,null,null,{"$f":"SUMIF('Input - Lighting Controls'!$D$22:$D$221,$A8,'Input - Lighting Controls'!$M$22:$M$221)/FX8","v":{"$error":"#DIV/0!"}},null,null,null,null,null,null,null,null,null,null,null,null,null,null,null,null,null,null,null,null,null,null,null,null,null,null,null,null,8,null,null,null,null,{"$f":"A8","v":"80E"},null,null,null,null,null,null,null,null,null,null,null,null,null,null,null,{"$f":"SUMIF('Input - Lighting Controls'!$D$22:$D$221,$A8,'Input - Lighting Controls'!$P$22:$P$221)","v":0},null,null,null,null,null,null,null,null,null,null,null,null,null,null,null,null,null,null,null,null,null,null,null,null,null,null,null,null,null,null,null,null,null,null,null,null,null,null,null,null,null,null,null,null,null,null,{"$f":"SUMIF('Input - Lighting Controls'!$D$22:$D$221,$A8,'Input - Lighting Controls'!$Q$22:$Q$221)/FX8","v":{"$error":"#DIV/0!"}}]

{"sheet":"Validation","index":16,"n_rows":63,"n_cols":94,"rows_kept":63,"cut":false,"hidden":true,"merged":[]}
[]
[]
[]
[null,null,null,{"$f":"COUNTA(D6:D14)","v":9},6,5,4,2,8,2,4,2,{"$f":"COUNTA(M6:M9)","v":4},null,null,null,null,null,null,{"$f":"COUNTA(T6:T100)","v":6},{"$f":"COUNTA(U6:U100)","v":2},6,2,12,4,12,4,4,9,8,4,3,5,3,4,3,4,3,4,3,2,22,30,20,30,8,12,6,9,4,6,5,4,2,7,2,9,2,9,4,9,2,7,2,9,1,9,4,9,2,3,2,3,5,11,6,8,4,9,4,4,7,2,7,{"$f":"COUNTA(CG6:CG100)","v":2}]
["Building Type",null,null,"Measure Type","Lamp and Ballast Retrofits","Permanent Delamping","Commodity Fixtures","Advanced Fixtures","Fluorescent High Bay Fixtures","HID","Compact Flourescent","LED Exits","Lighting Controls",null,"Control Parameters by Measure Code",null,null,null,null,"10A Proposed","10A Existing","10B Proposed","10B Existing","10C Proposed","10C Existing","10D Proposed","10D Existing","10E Proposed","10E Existing","10F Proposed","10F Existing","15A Proposed","15A Existing","15B Proposed","15B Existing","15C Proposed","15C Existing","15D Proposed","15D Existing","15E Proposed","15E Existing","20A Proposed","20A Existing","20B Proposed","20B Existing","20C Proposed","20C Existing","20D Proposed","20D Existing","40A Proposed","40A Existing","40B Proposed","40B Existing","60A Proposed","60A Existing","60B Proposed","60B Existing","60C Proposed","60C Existing","60D Proposed","60D Existing","61A Proposed","61A Existing","61B Proposed","61B Existing","61C Proposed","61C Existing","61D Proposed","61D Existing","65A Proposed","65A Existing","65B Proposed","65B Existing","70A Proposed","70A Existing","70B Proposed","70B Existing","70C Proposed","70C Existing","71A Proposed","71A Existing","90A Proposed","90A Existing","90B Proposed","90B Existing",null,"4’ HPT8 Retrofit: 1-2 Lamps","10A Proposed","4’ HPT8 Retrofit: 1-2 Lamps",null,"4’ HPT8 Retrofit: 1-2 Lamps",{"$f":"CM5=CI5","v":true},null,"10A"]
[null,null,null,"Lamp and Ballast Retrofits","10A","15A","20A","40A","60A","65A","70A","90A","80A",null,"Measure Code","Description","Minimum Watts","Assumed % Savings",null,"1F32SSE","1F34SSS","3F32SSE","3F34SSS","1F25EEH","1F34SSS","3F25EEH","3F34SSS","1F25SSE","1F30SEM","1F17SSE","1F20SSS","2F32SSE","2F96HEM","2F32SSE","2F96SEM","2F32SSE","3F34SSS","1F32SSE","2F34SSS","2F17SSE","2F34SSS","1F32SSE","1F34SSS","3F32SSE","3F40SSS","1F25SSE","1F30SEM","1F17SSE","1F20SSS","1F32SSE","2F34SSS","2F32SSE","3F34SSS","3F54HSE","1MH0250S","4F54HSE","1MH0400S","5F54HSW","1MH0400S","12F54HSE","1MH01000S","4F32SHH","1MH0250S","6F32SHH","1MH0400S","8F32SHH","1MH0400S","16F32SHH","1MH01000S","1PS0320P","1MH0400S","1PS0750P","1MH1000S","1C0013S","1I0060","2C0013E","1MH0050S","3C0018E","1I0150","1C0011S","1I0040","1E0002","1I0020","1E0002","1C0009S",null,"4’ HPT8 Retrofit: 3-4 Lamps","10B Proposed","4’ HPT8 Retrofit: 3-4 Lamps",null,"4’ HPT8 Retrofit: 3-4 Lamps",{"$f":"CM6=CI6","v":true},null,"10B"]
[null,null,null,"Permanent Delamping","10B","15B","20B","40B","60B","65B","70B","90B","80B",null,"80A","Occupancy Sensor: Wall Switch Replacement",40,0.25,null,"1F32SHH","2F34SSS","3F32SHH","4F34SSS","1F25EEE","2F34SSS","3F25EEE","4F34SSS","2F25SSE","1F30SES","1F17SSL","2F20SSS","2F32SHH","2F96HES","2F32SHH","2F96SES","2F32SHH","4F34SSS","1F32SHH","3F34SSS","2F17SSH","2F32SSS","1F32SHH","2F34SSS","3F32SHH","4F40SSS","2F25SSE","1F30SES","2F17SSE","2F20SSS","1F32SHL","3F34SSS","2F32SHH","4F34SSS","2F54HSE","1MV0250S","3F54HSE","1MV0400S","6F54HSE","1MV0400S","10F54HSE","1MV1000S","3F32SHH","1MV0250S","4F32SHH","1MV0400S",null,"1MV0400S","12F32SHH","1MV1000S","1PS0320R","1MV0400S","1PS0750R","1MV1000S","1C0018E","1I0075","2C0013S","1MH0070S","3C0026E","1I0200","1C0013S","1I0060","1E0003","1I0040","1E0003","1C0018E",null,"4’ Reduced-Wattage T8 Retrofit: 1-2 Lamps","10C Proposed","4’ Reduced-Wattage T8 Retrofit: 1-2 Lamps",null,"4’ Reduced-Wattage T8 Retrofit: 1-2 Lamps",true,null,"10C"]
[null,null,null,"Commodity Fixtures","10C","15C","20C",null,"60C",null,"70C",null,"80C",null,"80B","Occupancy Sensor: Ceiling / Wall Mount (Remote)",119,0.25,null,"1F32SHL",null,"3F32SHL",null,"1F25EEL","1F32SSS","3F25EEL","3F32SSS","3F25SSE","1F30SSS","2F17SSE","3F20SSS","2F32SHL","2F96VES","2F32SHL","2F59SSE","2F32SHL","3F32SSS","1F32SHL","2F32SSS","2F17SSL",null,"1F32SHL","1F32SSS","3F32SHL","3F32SSS","3F25SSE","1F30SSS","2F17SSL","2F24HSS","1F28SSE","4F34SSS","2F32SHL","3F32SSS",null,"1HPS0250S",null,"1HPS0400S",null,"1HPS0400S","8F54HSE","1HPS01000S",null,"1HPS0250S",null,"1HPS0400S",null,"1HPS0400S","10F32SHH","1HPS01000S",null,"1HPS0400S",null,"1HPS1000S","1C0026E","1I0100","2C0018E","1MH0100S","3C0032E","1I0300","1C0018E","1I0075","1E0005",null,"1E0005",null,null,"4’ Reduced-Wattage T8 Retrofit: 3-4 Lamps","10D Proposed","4’ Reduced-Wattage T8 Retrofit: 3-4 Lamps",null,"4’ Reduced-Wattage T8 Retrofit: 3-4 Lamps",true,null,"10D"]
[null,null,null,"Advanced Fixtures","10D","15D","20D",null,"60D",null,"71A",null,"80E",null,"80C","Occupancy Sensor: Fixture Mounted (High Bay)",40,0.25,null,"2F32SSE",null,"4F32SSE",null,"2F25EEH","2F32SSS","4F25EEH","4F32SSS","4F25SSE","2F30SEE","2F17SSL","4F20SSS",null,"2F96VSS",null,"2F59SSL",null,"4F32SSS",null,"3F32SSS",null,null,"2F32SSE","2F32SSS","4F32SSE","4F32SSS","4F25SSE","2F30SEE","3F17SSE","3F20SSS","1F54HSE","2F32SSS","2F28SSE","4F32SSS",null,"1MH0175S",null,"1MH0360S",null,"1MH0360S","6F54HSE","1MH0750S",null,"1MH0175S",null,"1MH0360S",null,"1MH0360S","8F32SHH","1MH0750S",null,null,null,null,"1C0032E","1MH0050S","2C0026E","1MH0150S","3C0042E","1MH0175S","1C0026E","1I0100","1E0005C",null,"1E0005C",null,null,"3’ T8 Retrofit: 1-4 Lamps","10E Proposed","3’ T8 Retrofit: 1-4 Lamps",null,"3’ T8 Retrofit: 1-4 Lamps",true,null,"10E"]
[null,null,null,"Fluorescent High Bay Fixtures","10E","15E",null,null,"61A",null,null,null,null,null,"80E","Daylight Control/Harvesting (On/Off)",119,0.25,null,"2F32SHH",null,"4F32SHH",null,"2F25EEE",null,"4F25EEE",null,null,"2F30SEM","3F17SSE",null,null,"2F80SSE",null,null,null,null,null,null,null,null,"2F32SHH","2F96SEM","4F32SHH","2F96SEM","1F21SSE","2F30SEM","3F17SSL","3F24HSE",null,"3F32SSS","2F54HSE",null,null,"1MV0175S",null,"PS0300P",null,"PS0300P",null,"1MV0700S",null,"1MV0175S",null,"PS0300P",null,"PS0300P",null,"1MV0700S",null,null,null,null,"1C0042E","1MH0070S","2C0032E","1HPS0050S",null,"1MH0250S",null,null,"1E0008",null,"1E0008",null,null,"2’ T8 Retrofit: 1-4 Lamps","10F Proposed","2’ T8 Retrofit: 1-4 Lamps",null,"2’ T8 Retrofit: 1-4 Lamps",true,null,"10F"]
[null,null,null,"HID","10F",null,null,null,"61B",null,null,null,null,null,null,null,null,null,null,"2F32SHL",null,"4F32SHL",null,"2F25EEL",null,"4F25EEL",null,null,"2F30SES","3F17SSL",null,null,null,null,null,null,null,null,null,null,null,"2F32SHL","2F96SES","4F32SHL","2F96SES","2F21SSE","2F30SES","4F17SSE","4F20SSS",null,"4F32SSS",null,null,null,"1HPS0150S",null,"PS0320P",null,"PS0320P",null,"1MV0400S",null,"1HPS0150S",null,"PS0320P",null,"PS0320P",null,"1MV0400S",null,null,null,null,null,"1MH0100S","2C0042E","1HPS0070S",null,"1HPS0175S",null,null,"1E0015",null,"1E0015",null,null,"New Commodity-Grade Fixture w/ 4' HPT8 or T5/T5HO: 1-2 Lamps","20A Proposed","New Commodity-Grade Fixture w/ 4' HPT8 or T5/T5HO: 1-2 Lamps",null,"New Commodity-Grade Fixture w/ 4' HPT8 or T5/T5HO: 1-2 Lamps",true,null,"20A"]
[null,null,null,"Compact Flourescent",null,null,null,null,"61C",null,null,null,null,null,null,null,null,null,null,null,null,null,null,"1F28EEH",null,"3F28EEH",null,null,"2F30SSS","4F17SSE",null,null,null,null,null,null,null,null,null,null,null,"1F25EEH","1F96SSE","3F25EEH","1F96SSE","1F39HSE","2F30SSS",null,"1I0060",null,null,null,null,null,"1MH0150S",null,"PS0350P",null,"PS0350P",null,"1HPS0600S",null,"1MH0150S",null,"PS0350P",null,"PS0350P",null,"1HPS0600S",null,null,null,null,null,"1MH0150S",null,"1HPS0100S",null,"1HPS0200S",null,null,"1E0105",null,"1E0105",null,null,"New Commodity-Grade Fixture w/ 4’ HPT8 or T5/T5HO: 3-4 Lamps","20B Proposed","New Commodity-Grade Fixture w/ 4’ HPT8 or T5/T5HO: 3-4 Lamps",null,"New Commodity-Grade Fixture w/ 4’ HPT8 or T5/T5HO: 3-4 Lamps",true,null,"20B"]
[null,null,null,"LED Exits",null,null,null,null,"61D",null,null,null,null,null,null,null,null,null,null,null,null,null,null,"1F28EEE",null,"3F28EEE",null,null,"3F30SES","4F17SSL",null,null,null,null,null,null,null,null,null,null,null,"1F25EEE","2F59SSE","3F25EEE","2F59SSE","2F39HSE","3F30SES",null,"1I0075",null,null,null,null,null,null,null,"1HPS0310S",null,"1HPS0310S",null,"1HPS0750S",null,null,null,"1HPS0310S",null,"1HPS0310S",null,"1HPS0750S",null,null,null,null,null,"1HPS0050S",null,"1HPS0150S",null,"1HPS0225S",null,null,null,null,null,null,null,"New Commodity-Grade Fixture w/ 3’ T8 or T5/T5HO: 1-4 Lamps","20C Proposed","New Commodity-Grade Fixture w/ 3’ T8 or T5/T5HO: 1-4 Lamps",null,"New Commodity-Grade Fixture w/ 3’ T8 or T5/T5HO: 1-4 Lamps",true,null,"20C"]
[null,null,null,"Lighting Controls",null,null,null,null,null,null,null,null,null,null,null,null,null,null,null,null,null,null,null,"1F28EEL",null,"3F28EEL",null,null,"3F30SSS",null,null,null,null,null,null,null,null,null,null,null,null,"1F25EEL","2F59SSL","3F25EEL","2F59SSL",null,"3F30SSS",null,"1I0100",null,null,null,null,null,null,null,"1HPS0360S",null,"1HPS0360S",null,"PS0750P",null,null,null,"1HPS0360S",null,"1HPS0360S",null,"PS0750P",null,null,null,null,null,"1HPS0070S",null,null,null,"1HPS0250S",null,null,null,null,null,null,null,"New Commodity-Grade Fixture w/ 2' T8 or T5/T5HO: 1-4 Lamps","20D Proposed","New Commodity-Grade Fixture w/ 2' T8 or T5/T5HO: 1-4 Lamps",null,"New Commodity-Grade Fixture w/ 2' T8 or T5/T5HO: 1-4 Lamps",true,null,"20D"]
[null,null,null,null,null,null,null,null,null,null,null,null,null,null,null,null,null,null,null,null,null,null,null,"2F28EEH",null,"4F28EEH",null,null,null,null,null,null,null,null,null,null,null,null,null,null,null,"2F25EEH","1F59SSE","4F25EEH","1F59SSE",null,"1I0060",null,null,null,null,null,null,null,null,null,null,null,null,null,null,null,null,null,null,null,null,null,null,null,null,null,null,null,"1HPS0100S",null,null,null,null,null,null,null,null,null,null,null,"New High Efficiency Advanced Fixture w/ 4' HPT8 or T5/T5HO: 1 Lamp","40A Proposed","New High Efficiency Advanced Fixture w/ 4' HPT8 or T5/T5HO: 1 Lamp",null,"New High Efficiency Advanced Fixture w/ 4' HPT8 or T5/T5HO: 1 Lamp",true,null,"40A"]
[null,null,null,null,null,null,null,null,null,null,null,null,null,null,null,null,null,null,null,null,null,null,null,"2F28EEE",null,"4F28EEE",null,null,null,null,null,null,null,null,null,null,null,null,null,null,null,"2F25EEE","2F96HEM","4F25EEE","2F96HEM",null,"1I0075",null,null,null,null,null,null,null,null,null,null,null,null,null,null,null,null,null,null,null,null,null,null,null,null,null,null,null,"1HPS0150S",null,null,null,null,null,null,null,null,null,null,null,"New High Efficiency Advanced Fixture w/ 4' HPT8 or T5/T5HO: 2 Lamp","40B Proposed","New High Efficiency Advanced Fixture w/ 4' HPT8 or T5/T5HO: 2 Lamp",null,"New High Efficiency Advanced Fixture w/ 4' HPT8 or T5/T5HO: 2 Lamp",true,null,"40B"]
[null,null,null,"ClgHtgType & ClgHtgTypeData",null,null,null,null,null,null,null,null,null,null,null,null,null,null,null,null,null,null,null,"2F28EEL",null,"4F28EEL",null,null,null,null,null,null,null,null,null,null,null,null,null,null,null,"2F25EEL","2F96HES","4F25EEL","2F96HES",null,"1I0100",null,null,null,null,null,null,null,null,null,null,null,null,null,null,null,null,null,null,null,null,null,null,null,null,null,null,null,null,null,null,null,null,null,null,null,null,null,null,null,"New Fluorescent High Bay Fixture w/ 4’ T5HO: 2-3 Lamps","60A Proposed","New Fluorescent High Bay Fixture w/ 4’ T5HO: 2-3 Lamps",null,"New Fluorescent High Bay Fixture w/ 4’ T5HO: 2-3 Lamps",true,null,"60A"]
[null,null,null,"Cooling / Heating Type","WHFD","WHFE",null,null,null,null,null,null,null,null,null,null,null,null,null,null,null,null,null,null,null,null,null,null,null,null,null,null,null,null,null,null,null,null,null,null,null,"1F28EEH","1F96HES","3F28EEH","1F96HES",null,null,null,null,null,null,null,null,null,null,null,null,null,null,null,null,null,null,null,null,null,null,null,null,null,null,null,null,null,null,null,null,null,null,null,null,null,null,null,null,null,"New Fluorescent High Bay Fixture w/ 4’ T5HO: 3-4 Lamps","60B Proposed","New Fluorescent High Bay Fixture w/ 4’ T5HO: 3-4 Lamps",null,"New Fluorescent High Bay Fixture w/ 4’ T5HO: 3-4 Lamps",true,null,"60B"]
[null,null,null,"No A/C / Gas",1,1,null,null,null,null,null,null,null,null,null,null,null,null,null,null,null,null,null,null,null,null,null,null,null,null,null,null,null,null,null,null,null,null,null,null,null,"1F28EEE","2F96VES","3F28EEE","2F96VES",null,null,null,null,null,null,null,null,null,null,null,null,null,null,null,null,null,null,null,null,null,null,null,null,null,null,null,null,null,null,null,null,null,null,null,null,null,null,null,null,null,"New Fluorescent High Bay Fixture w/ 4’ T5HO: 5-6 Lamps","60C Proposed","New Fluorescent High Bay Fixture w/ 4’ T5HO: 5-6 Lamps",null,"New Fluorescent High Bay Fixture w/ 4’ T5HO: 5-6 Lamps",true,null,"60C"]
[null,null,null,"No A/C / Electric Resistance",1,0.78,null,null,null,null,null,null,null,null,null,null,null,null,null,null,null,null,null,null,null,null,null,null,null,null,null,null,null,null,null,null,null,null,null,null,null,"1F28EEL","2F96VSS","3F28EEL","2F96VSS",null,null,null,null,null,null,null,null,null,null,null,null,null,null,null,null,null,null,null,null,null,null,null,null,null,null,null,null,null,null,null,null,null,null,null,null,null,null,null,null,null,"New Fluorescent High Bay Fixture w/ 4’ T5HO: 6-12 Lamps","60D Proposed","New Fluorescent High Bay Fixture w/ 4’ T5HO: 6-12 Lamps",null,"New Fluorescent High Bay Fixture w/ 4’ T5HO: 6-12 Lamps",true,null,"60D"]
[null,null,null,"No A/C / Unknown",1,0.89,null,null,null,null,null,null,null,null,null,null,null,null,null,null,null,null,null,null,null,null,null,null,null,null,null,null,null,null,null,null,null,null,null,null,null,"2F28EEH","1F96VES","4F28EEH","1F96VES",null,null,null,null,null,null,null,null,null,null,null,null,null,null,null,null,null,null,null,null,null,null,null,null,null,null,null,null,null,null,null,null,null,null,null,null,null,null,null,null,null,"New Fluorescent High Bay Fixture w/ 4’ HPT8: 3-4 Lamps","61A Proposed","New Fluorescent High Bay Fixture w/ 4’ HPT8: 3-4 Lamps",null,"New Fluorescent High Bay Fixture w/ 4’ HPT8: 3-4 Lamps",true,null,"61A"]
[null,null,null,"A/C / Gas",1.2,1.0900000000000001,null,null,null,null,null,null,null,null,null,null,null,null,null,null,null,null,null,null,null,null,null,null,null,null,null,null,null,null,null,null,null,null,null,null,null,"2F28EEE","1F96VSS","4F28EEE","1F96VSS",null,null,null,null,null,null,null,null,null,null,null,null,null,null,null,null,null,null,null,null,null,null,null,null,null,null,null,null,null,null,null,null,null,null,null,null,null,null,null,null,null,"New Fluorescent High Bay Fixture w/ 4’ HPT8: 4-6 Lamps","61B Proposed","New Fluorescent High Bay Fixture w/ 4’ HPT8: 4-6 Lamps",null,"New Fluorescent High Bay Fixture w/ 4’ HPT8: 4-6 Lamps",true,null,"61B"]
[null,null,null,"A/C / Electric Resistance",1.2,0.87,null,null,null,null,null,null,null,null,null,null,null,null,null,null,null,null,null,null,null,null,null,null,null,null,null,null,null,null,null,null,null,null,null,null,null,"2F28EEL","2F80SSE","4F28EEL","2F80SSE",null,null,null,null,null,null,null,null,null,null,null,null,null,null,null,null,null,null,null,null,null,null,null,null,null,null,null,null,null,null,null,null,null,null,null,null,null,null,null,null,null,"New Fluorescent High Bay Fixture w/ 4’ HPT8: 8 Lamps","61C Proposed","New Fluorescent High Bay Fixture w/ 4’ HPT8: 8 Lamps",null,"New Fluorescent High Bay Fixture w/ 4’ HPT8: 8 Lamps",true,null,"61C"]
[null,null,null,"A/C / Heat Pump",1.2,1.02,null,null,null,null,null,null,null,null,null,null,null,null,null,null,null,null,null,null,null,null,null,null,null,null,null,null,null,null,null,null,null,null,null,null,null,"1F28SSE","1F80SSE","3F54HSE","1F80SSE",null,null,null,null,null,null,null,null,null,null,null,null,null,null,null,null,null,null,null,null,null,null,null,null,null,null,null,null,null,null,null,null,null,null,null,null,null,null,null,null,null,"New Fluorescent High Bay Fixture w/ 4’ HPT8: 8-16 Lamps (Double Fixture)","61D Proposed","New Fluorescent High Bay Fixture w/ 4’ HPT8: 8-16 Lamps (Double Fixture)",null,"New Fluorescent High Bay Fixture w/ 4’ HPT8: 8-16 Lamps (Double Fixture)",true,null,"61D"]
[null,null,null,"A/C / Unknown",1.2,0.98,null,null,null,null,null,null,null,null,null,null,null,null,null,null,null,null,null,null,null,null,null,null,null,null,null,null,null,null,null,null,null,null,null,null,null,"2F28SSE","1I0060","4F54HSE","1I0060",null,null,null,null,null,null,null,null,null,null,null,null,null,null,null,null,null,null,null,null,null,null,null,null,null,null,null,null,null,null,null,null,null,null,null,null,null,null,null,null,null,"Pulse Start Metal Halide Retrofit: 320W","65A Proposed","Pulse Start Metal Halide Retrofit: 320W",null,"Pulse Start Metal Halide Retrofit: 320W",true,null,"65A"]
[null,null,null,"Med. Temp. Refrigerated Space",1.25,1.25,null,null,null,null,null,null,null,null,null,null,null,null,null,null,null,null,null,null,null,null,null,null,null,null,null,null,null,null,null,null,null,null,null,null,null,"1F54HSE","1I0075",null,"1I0075",null,null,null,null,null,null,null,null,null,null,null,null,null,null,null,null,null,null,null,null,null,null,null,null,null,null,null,null,null,null,null,null,null,null,null,null,null,null,null,null,null,"Pulse Start Metal Halide Retrofit: 750W","65B Proposed","Pulse Start Metal Halide Retrofit: 750W",null,"Pulse Start Metal Halide Retrofit: 750W",true,null,"65B"]
[null,null,null,"Low Temp. Freezer Space",1.3,1.3,null,null,null,null,null,null,null,null,null,null,null,null,null,null,null,null,null,null,null,null,null,null,null,null,null,null,null,null,null,null,null,null,null,null,null,"2F54HSE","1I0100",null,"1I0100",null,null,null,null,null,null,null,null,null,null,null,null,null,null,null,null,null,null,null,null,null,null,null,null,null,null,null,null,null,null,null,null,null,null,null,null,null,null,null,null,null,"New Hardwired CFL Downlight, Surface, Pendant or Wallpack: 1 Lamp","70A Proposed","New Hardwired CFL Downlight, Surface, Pendant or Wallpack: 1 Lamp",null,"New Hardwired CFL Downlight, Surface, Pendant or Wallpack: 1 Lamp",true,null,"70A"]
[null,null,null,null,null,null,null,null,null,null,null,null,null,null,null,null,null,null,null,null,null,null,null,null,null,null,null,null,null,null,null,null,null,null,null,null,null,null,null,null,null,null,"1MH0050S",null,"1MH0050S",null,null,null,null,null,null,null,null,null,null,null,null,null,null,null,null,null,null,null,null,null,null,null,null,null,null,null,null,null,null,null,null,null,null,null,null,null,null,null,null,null,"New Hardwired CFL Downlight, Surface, Pendant or Wallpack: 2 Lamp","70B Proposed","New Hardwired CFL Downlight, Surface, Pendant or Wallpack: 2 Lamp",null,"New Hardwired CFL Downlight, Surface, Pendant or Wallpack: 2 Lamp",true,null,"70B"]
[null,null,null,null,null,null,null,null,null,null,null,null,null,null,null,null,null,null,null,null,null,null,null,null,null,null,null,null,null,null,null,null,null,null,null,null,null,null,null,null,null,null,"1MH0070S",null,"1MH0070S",null,null,null,null,null,null,null,null,null,null,null,null,null,null,null,null,null,null,null,null,null,null,null,null,null,null,null,null,null,null,null,null,null,null,null,null,null,null,null,null,null,"New Hardwired CFL Downlight, Surface, Pendant or Wallpack: 3 Lamp","70C Proposed","New Hardwired CFL Downlight, Surface, Pendant or Wallpack: 3 Lamp",null,"New Hardwired CFL Downlight, Surface, Pendant or Wallpack: 3 Lamp",true,null,"70C"]
[null,null,null,null,null,null,null,null,null,null,null,null,null,null,null,null,null,null,null,null,null,null,null,null,null,null,null,null,null,null,null,null,null,null,null,null,null,null,null,null,null,null,"1MH0100S",null,"1MH0100S",null,null,null,null,null,null,null,null,null,null,null,null,null,null,null,null,null,null,null,null,null,null,null,null,null,null,null,null,null,null,null,null,null,null,null,null,null,null,null,null,null,"Screw-in CFL","71A Proposed","Screw-in CFL",null,"Screw-in CFL",true,null,"71A"]
[null,null,null,null,null,null,null,null,null,null,null,null,null,null,null,null,null,null,null,null,null,null,null,null,null,null,null,null,null,null,null,null,null,null,null,null,null,null,null,null,null,null,"1MH0150S",null,"1MH0150S",null,null,null,null,null,null,null,null,null,null,null,null,null,null,null,null,null,null,null,null,null,null,null,null,null,null,null,null,null,null,null,null,null,null,null,null,null,null,null,null,null,"4’ T12: 1-2 Lamps","10A Existing","4’ T12: 1-2 Lamps",null,"4’ T12: 1-2 Lamps",null,"10A"]
[null,null,null,null,null,null,null,null,null,null,null,null,null,null,null,null,null,null,null,null,null,null,null,null,null,null,null,null,null,null,null,null,null,null,null,null,null,null,null,null,null,null,"1HPS0050S",null,"1HPS0050S",null,null,null,null,null,null,null,null,null,null,null,null,null,null,null,null,null,null,null,null,null,null,null,null,null,null,null,null,null,null,null,null,null,null,null,null,null,null,null,null,null,"4’ T12: 3-4 Lamps","10B Existing","4’ T12: 3-4 Lamps",null,"4’ T12: 3-4 Lamps",null,"10B"]
[null,null,null,null,null,null,null,null,null,null,null,null,null,null,null,null,null,null,null,null,null,null,null,null,null,null,null,null,null,null,null,null,null,null,null,null,null,null,null,null,null,null,"1HPS0070S",null,"1HPS0070S",null,null,null,null,null,null,null,null,null,null,null,null,null,null,null,null,null,null,null,null,null,null,null,null,null,null,null,null,null,null,null,null,null,null,null,null,null,null,null,null,null,"4’ T12 or Standard T8: 1-2 Lamps","10C Existing","4’ T12 or Standard T8: 1-2 Lamps",null,"4’ T12 or Standard T8: 1-2 Lamps",null,"10C"]
[null,null,null,null,null,null,null,null,null,null,null,null,null,null,null,null,null,null,null,null,null,null,null,null,null,null,null,null,null,null,null,null,null,null,null,null,null,null,null,null,null,null,"1HPS0100S",null,"1HPS0100S",null,null,null,null,null,null,null,null,null,null,null,null,null,null,null,null,null,null,null,null,null,null,null,null,null,null,null,null,null,null,null,null,null,null,null,null,null,null,null,null,null,"4’ T12 or Standard T8: 3-4 Lamps","10D Existing","4’ T12 or Standard T8: 3-4 Lamps",null,"4’ T12 or Standard T8: 3-4 Lamps",null,"10D"]
[null,null,null,null,null,null,null,null,null,null,null,null,null,null,null,null,null,null,null,null,null,null,null,null,null,null,null,null,null,null,null,null,null,null,null,null,null,null,null,null,null,null,"1HPS0150S",null,"1HPS0150S",null,null,null,null,null,null,null,null,null,null,null,null,null,null,null,null,null,null,null,null,null,null,null,null,null,null,null,null,null,null,null,null,null,null,null,null,null,null,null,null,null,"3’ T12: 1-4 Lamps","10E Existing","3’ T12: 1-4 Lamps",null,"3’ T12: 1-4 Lamps",null,"10E"]
[null,null,null,null,null,null,null,null,null,null,null,null,null,null,null,null,null,null,null,null,null,null,null,null,null,null,null,null,null,null,null,null,null,null,null,null,null,null,null,null,null,null,null,null,null,null,null,null,null,null,null,null,null,null,null,null,null,null,null,null,null,null,null,null,null,null,null,null,null,null,null,null,null,null,null,null,null,null,null,null,null,null,null,null,null,null,"2’ T12: 1-4 Lamps","10F Existing","2’ T12: 1-4 Lamps",null,"2’ T12: 1-4 Lamps",null,"10F"]
[null,null,null,null,null,null,null,null,null,null,null,null,null,null,null,null,null,null,null,null,null,null,null,null,null,null,null,null,null,null,null,null,null,null,null,null,null,null,null,null,null,null,null,null,null,null,null,null,null,null,null,null,null,null,null,null,null,null,null,null,null,null,null,null,null,null,null,null,null,null,null,null,null,null,null,null,null,null,null,null,null,null,null,null,null,null,"8’ T12HO/VHO or T8HO: 2 Lamps","15A Existing","8’ T12HO/VHO or T8HO: 2 Lamps",null,"8’ T12HO/VHO or T8HO: 2 Lamps",null,"15A"]
[null,null,null,null,null,null,null,null,null,null,null,null,null,null,null,null,null,null,null,null,null,null,null,null,null,null,null,null,null,null,null,null,null,null,null,null,null,null,null,null,null,null,null,null,null,null,null,null,null,null,null,null,null,null,null,null,null,null,null,null,null,null,null,null,null,null,null,null,null,null,null,null,null,null,null,null,null,null,null,null,null,null,null,null,null,null,"8’ T12 or T8 Slimline: 2 Lamps","15B Existing","8’ T12 or T8 Slimline: 2 Lamps",null,"8’ T12 or T8 Slimline: 2 Lamps",null,"15B"]
[null,null,null,null,null,null,null,null,null,null,null,null,null,null,null,null,null,null,null,null,null,null,null,null,null,null,null,null,null,null,null,null,null,null,null,null,null,null,null,null,null,null,null,null,null,null,null,null,null,null,null,null,null,null,null,null,null,null,null,null,null,null,null,null,null,null,null,null,null,null,null,null,null,null,null,null,null,null,null,null,null,null,null,null,null,null,"4’ T12 or Standard T8: 3-4 Lamps","15C Existing","4’ T12 or Standard T8: 3-4 Lamps",null,"4’ T12 or Standard T8: 3-4 Lamps",null,"15C"]
[null,null,null,null,null,null,null,null,null,null,null,null,null,null,null,null,null,null,null,null,null,null,null,null,null,null,null,null,null,null,null,null,null,null,null,null,null,null,null,null,null,null,null,null,null,null,null,null,null,null,null,null,null,null,null,null,null,null,null,null,null,null,null,null,null,null,null,null,null,null,null,null,null,null,null,null,null,null,null,null,null,null,null,null,null,null,"4’ T12 or Standard T8: 2-3 Lamps","15D Existing","4’ T12 or Standard T8: 2-3 Lamps",null,"4’ T12 or Standard T8: 2-3 Lamps",null,"15D"]
[null,null,null,null,null,null,null,null,null,null,null,null,null,null,null,null,null,null,null,null,null,null,null,null,null,null,null,null,null,null,null,null,null,null,null,null,null,null,null,null,null,null,null,null,null,null,null,null,null,null,null,null,null,null,null,null,null,null,null,null,null,null,null,null,null,null,null,null,null,null,null,null,null,null,null,null,null,null,null,null,null,null,null,null,null,null,"4’ T12 or T8 U-Bend: 2 Lamps","15E Existing","4’ T12 or T8 U-Bend: 2 Lamps",null,"4’ T12 or T8 U-Bend: 2 Lamps",null,"15E"]
[null,null,null,null,null,null,null,null,null,null,null,null,null,null,null,null,null,null,null,null,null,null,null,null,null,null,null,null,null,null,null,null,null,null,null,null,null,null,null,null,null,null,null,null,null,null,null,null,null,null,null,null,null,null,null,null,null,null,null,null,null,null,null,null,null,null,null,null,null,null,null,null,null,null,null,null,null,null,null,null,null,null,null,null,null,null,"T12, Standard T8, Incandescent or Low-Wattage HID (50-150W)","20A Existing","T12, Standard T8, Incandescent or Low-Wattage HID (50-150W)",null,"T12, Standard T8, Incandescent or Low-Wattage HID (50-150W)",null,"20A"]
[null,null,null,null,null,null,null,null,null,null,null,null,null,null,null,null,null,null,null,null,null,null,null,null,null,null,null,null,null,null,null,null,null,null,null,null,null,null,null,null,null,null,null,null,null,null,null,null,null,null,null,null,null,null,null,null,null,null,null,null,null,null,null,null,null,null,null,null,null,null,null,null,null,null,null,null,null,null,null,null,null,null,null,null,null,null,"T12, Standard T8, Incandescent or Low-Wattage HID (50-150W)","20B Existing","T12, Standard T8, Incandescent or Low-Wattage HID (50-150W)",null,"T12, Standard T8, Incandescent or Low-Wattage HID (50-150W)",null,"20B"]
[null,null,null,null,null,null,null,null,null,null,null,null,null,null,null,null,null,null,null,null,null,null,null,null,null,null,null,null,null,null,null,null,null,null,null,null,null,null,null,null,null,null,null,null,null,null,null,null,null,null,null,null,null,null,null,null,null,null,null,null,null,null,null,null,null,null,null,null,null,null,null,null,null,null,null,null,null,null,null,null,null,null,null,null,null,null,"T12, Standard T8 or Incandescent","20C Existing","T12, Standard T8 or Incandescent",null,"T12, Standard T8 or Incandescent",null,"20C"]
[null,null,null,null,null,null,null,null,null,null,null,null,null,null,null,null,null,null,null,null,null,null,null,null,null,null,null,null,null,null,null,null,null,null,null,null,null,null,null,null,null,null,null,null,null,null,null,null,null,null,null,null,null,null,null,null,null,null,null,null,null,null,null,null,null,null,null,null,null,null,null,null,null,null,null,null,null,null,null,null,null,null,null,null,null,null,"T12, Standard T8 or Incandescent","20D Existing","T12, Standard T8 or Incandescent",null,"T12, Standard T8 or Incandescent",null,"20D"]
[null,null,null,null,null,null,null,null,null,null,null,null,null,null,null,null,null,null,null,null,null,null,null,null,null,null,null,null,null,null,null,null,null,null,null,null,null,null,null,null,null,null,null,null,null,null,null,null,null,null,null,null,null,null,null,null,null,null,null,null,null,null,null,null,null,null,null,null,null,null,null,null,null,null,null,null,null,null,null,null,null,null,null,null,null,null,"4' T12 or Standard T8: 2-4 Lamps","40A Existing","4' T12 or Standard T8: 2-4 Lamps",null,"4' T12 or Standard T8: 2-4 Lamps",null,"40A"]
[null,null,null,null,null,null,null,null,null,null,null,null,null,null,null,null,null,null,null,null,null,null,null,null,null,null,null,null,null,null,null,null,null,null,null,null,null,null,null,null,null,null,null,null,null,null,null,null,null,null,null,null,null,null,null,null,null,null,null,null,null,null,null,null,null,null,null,null,null,null,null,null,null,null,null,null,null,null,null,null,null,null,null,null,null,null,"4' T12 or Standard T8: 3-4 Lamps","40B Existing","4' T12 or Standard T8: 3-4 Lamps",null,"4' T12 or Standard T8: 3-4 Lamps",null,"40B"]
[null,null,null,null,null,null,null,null,null,null,null,null,null,null,null,null,null,null,null,null,null,null,null,null,null,null,null,null,null,null,null,null,null,null,null,null,null,null,null,null,null,null,null,null,null,null,null,null,null,null,null,null,null,null,null,null,null,null,null,null,null,null,null,null,null,null,null,null,null,null,null,null,null,null,null,null,null,null,null,null,null,null,null,null,null,null,"150 - 250W HID High Bay","60A Existing","150 - 250W HID High Bay",null,"150 - 250W HID High Bay",null,"60A"]
[null,null,null,null,null,null,null,null,null,null,null,null,null,null,null,null,null,null,null,null,null,null,null,null,null,null,null,null,null,null,null,null,null,null,null,null,null,null,null,null,null,null,null,null,null,null,null,null,null,null,null,null,null,null,null,null,null,null,null,null,null,null,null,null,null,null,null,null,null,null,null,null,null,null,null,null,null,null,null,null,null,null,null,null,null,null,"320 - 400W HID High Bay","60B Existing","320 - 400W HID High Bay",null,"320 - 400W HID High Bay",null,"60B"]
[null,null,null,null,null,null,null,null,null,null,null,null,null,null,null,null,null,null,null,null,null,null,null,null,null,null,null,null,null,null,null,null,null,null,null,null,null,null,null,null,null,null,null,null,null,null,null,null,null,null,null,null,null,null,null,null,null,null,null,null,null,null,null,null,null,null,null,null,null,null,null,null,null,null,null,null,null,null,null,null,null,null,null,null,null,null,"320 - 400W HID High Bay","60C Existing","320 - 400W HID High Bay",null,"320 - 400W HID High Bay",null,"60C"]
[null,null,null,null,null,null,null,null,null,null,null,null,null,null,null,null,null,null,null,null,null,null,null,null,null,null,null,null,null,null,null,null,null,null,null,null,null,null,null,null,null,null,null,null,null,null,null,null,null,null,null,null,null,null,null,null,null,null,null,null,null,null,null,null,null,null,null,null,null,null,null,null,null,null,null,null,null,null,null,null,null,null,null,null,null,null,"750 - 1,000W HID High Bay","60D Existing","750 - 1,000W HID High Bay",null,"750 - 1,000W HID High Bay",null,"60D"]
[null,null,null,null,null,null,null,null,null,null,null,null,null,null,null,null,null,null,null,null,null,null,null,null,null,null,null,null,null,null,null,null,null,null,null,null,null,null,null,null,null,null,null,null,null,null,null,null,null,null,null,null,null,null,null,null,null,null,null,null,null,null,null,null,null,null,null,null,null,null,null,null,null,null,null,null,null,null,null,null,null,null,null,null,null,null,"150 - 250W HID High Bay","61A Existing","150 - 250W HID High Bay",null,"150 - 250W HID High Bay",null,"61A"]
[null,null,null,null,null,null,null,null,null,null,null,null,null,null,null,null,null,null,null,null,null,null,null,null,null,null,null,null,null,null,null,null,null,null,null,null,null,null,null,null,null,null,null,null,null,null,null,null,null,null,null,null,null,null,null,null,null,null,null,null,null,null,null,null,null,null,null,null,null,null,null,null,null,null,null,null,null,null,null,null,null,null,null,null,null,null,"320 - 400W HID High Bay","61B Existing","320 - 400W HID High Bay",null,"320 - 400W HID High Bay",null,"61B"]
[null,null,null,null,null,null,null,null,null,null,null,null,null,null,null,null,null,null,null,null,null,null,null,null,null,null,null,null,null,null,null,null,null,null,null,null,null,null,null,null,null,null,null,null,null,null,null,null,null,null,null,null,null,null,null,null,null,null,null,null,null,null,null,null,null,null,null,null,null,null,null,null,null,null,null,null,null,null,null,null,null,null,null,null,null,null,"320 - 400W HID High Bay","61C Existing","320 - 400W HID High Bay",null,"320 - 400W HID High Bay",null,"61C"]
[null,null,null,null,null,null,null,null,null,null,null,null,null,null,null,null,null,null,null,null,null,null,null,null,null,null,null,null,null,null,null,null,null,null,null,null,null,null,null,null,null,null,null,null,null,null,null,null,null,null,null,null,null,null,null,null,null,null,null,null,null,null,null,null,null,null,null,null,null,null,null,null,null,null,null,null,null,null,null,null,null,null,null,null,null,null,"750 - 1,000W HID High Bay","61D Existing","750 - 1,000W HID High Bay",null,"750 - 1,000W HID High Bay",null,"61D"]
[null,null,null,null,null,null,null,null,null,null,null,null,null,null,null,null,null,null,null,null,null,null,null,null,null,null,null,null,null,null,null,null,null,null,null,null,null,null,null,null,null,null,null,null,null,null,null,null,null,null,null,null,null,null,null,null,null,null,null,null,null,null,null,null,null,null,null,null,null,null,null,null,null,null,null,null,null,null,null,null,null,null,null,null,null,null,"400W HID, Interior or Exterior","65A Existing","400W HID, Interior or Exterior",null,"400W HID, Interior or Exterior",null,"65A"]
[null,null,null,null,null,null,null,null,null,null,null,null,null,null,null,null,null,null,null,null,null,null,null,null,null,null,null,null,null,null,null,null,null,null,null,null,null,null,null,null,null,null,null,null,null,null,null,null,null,null,null,null,null,null,null,null,null,null,null,null,null,null,null,null,null,null,null,null,null,null,null,null,null,null,null,null,null,null,null,null,null,null,null,null,null,null,"1,000W HID, Interior or Exterior","65B Existing","1,000W HID, Interior or Exterior",null,"1,000W HID, Interior or Exterior",null,"65B"]
[null,null,null,null,null,null,null,null,null,null,null,null,null,null,null,null,null,null,null,null,null,null,null,null,null,null,null,null,null,null,null,null,null,null,null,null,null,null,null,null,null,null,null,null,null,null,null,null,null,null,null,null,null,null,null,null,null,null,null,null,null,null,null,null,null,null,null,null,null,null,null,null,null,null,null,null,null,null,null,null,null,null,null,null,null,null,"Incandescent (>60W) or Low-Wattage HID (50-150W)","70A Existing","Incandescent (>60W) or Low-Wattage HID (50-150W)",null,"Incandescent (>60W) or Low-Wattage HID (50-150W)",null,"70A"]
[null,null,null,null,null,null,null,null,null,null,null,null,null,null,null,null,null,null,null,null,null,null,null,null,null,null,null,null,null,null,null,null,null,null,null,null,null,null,null,null,null,null,null,null,null,null,null,null,null,null,null,null,null,null,null,null,null,null,null,null,null,null,null,null,null,null,null,null,null,null,null,null,null,null,null,null,null,null,null,null,null,null,null,null,null,null,"Incandescent (>100W) or Low-Wattage HID (50-150W)","70B Existing","Incandescent (>100W) or Low-Wattage HID (50-150W)",null,"Incandescent (>100W) or Low-Wattage HID (50-150W)",null,"70B"]
[null,null,null,null,null,null,null,null,null,null,null,null,null,null,null,null,null,null,null,null,null,null,null,null,null,null,null,null,null,null,null,null,null,null,null,null,null,null,null,null,null,null,null,null,null,null,null,null,null,null,null,null,null,null,null,null,null,null,null,null,null,null,null,null,null,null,null,null,null,null,null,null,null,null,null,null,null,null,null,null,null,null,null,null,null,null,"High-Wattage Incandescent (>150W) or Medium-Wattage HID (175 - 250W)","70C Existing","High-Wattage Incandescent (>150W) or Medium-Wattage HID (175 - 250W)",null,"High-Wattage Incandescent (>150W) or Medium-Wattage HID (175 - 250W)",null,"70C"]
[null,null,null,null,null,null,null,null,null,null,null,null,null,null,null,null,null,null,null,null,null,null,null,null,null,null,null,null,null,null,null,null,null,null,null,null,null,null,null,null,null,null,null,null,null,null,null,null,null,null,null,null,null,null,null,null,null,null,null,null,null,null,null,null,null,null,null,null,null,null,null,null,null,null,null,null,null,null,null,null,null,null,null,null,null,null,"Incandescent","71A Existing","Incandescent",null,"Incandescent",null,"71A"]
[null,null,null,null,null,null,null,null,null,null,null,null,null,null,null,null,null,null,null,null,null,null,null,null,null,null,null,null,null,null,null,null,null,null,null,null,null,null,null,null,null,null,null,null,null,null,null,null,null,null,null,null,null,null,null,null,null,null,null,null,null,null,null,null,null,null,null,null,null,null,null,null,null,null,null,null,null,null,null,null,null,null,null,null,null,null,null,null,null,null,"Incandescent: 2x20W or Similar",null,"90A"]
[null,null,null,null,null,null,null,null,null,null,null,null,null,null,null,null,null,null,null,null,null,null,null,null,null,null,null,null,null,null,null,null,null,null,null,null,null,null,null,null,null,null,null,null,null,null,null,null,null,null,null,null,null,null,null,null,null,null,null,null,null,null,null,null,null,null,null,null,null,null,null,null,null,null,null,null,null,null,null,null,null,null,null,null,null,null,null,null,null,null,"Fluorescent / CFL: 2x9W or Similar",null,"90B"]

{"sheet":"Version Tracking","index":17,"n_rows":27,"n_cols":5,"rows_kept":27,"cut":false,"hidden":true,"merged":[]}
[]
[]
[]
[null,"Current:",{"$f":"LOOKUP(2,1/(B1:B50001<>\"\"),B1:B50001)","v":10.1}]
[null,"Version","Notes","Date","Updated By"]
[null,"1.0","Initial creation of New Construction lighting tool for SCANA.","2010-11-10","Drew Durkee"]
[null,"1.1","Format changes as instructed by scana","2010-11-29","Drew Durkee"]
[null,"1.2","Made adjustment to AEG tab","2011-05-06","Oneil Morgan"]
[null,"1.3","Adjustments made to Aeg tab to alow savings to be reoprted on a per unit basis in vision.","2011-07-13","Colin Odell"]
[null,"1.4","Added the fixture cap algorithm to pay 30/fixture","2013-07-31","Oneil Morgan"]
[null,"1.5","Changed Control Incentive","2014-06-10","Oneil Morgan"]
[null,2,"New Excel based application form","2015-04-30","Rachael Miller"]
[null,2.1,"Misc edits per Jennifer Mosser","2015-06-23","Bruce Helwig"]
[null,2.2000000000000002,"Updates and clean up","2015-10-15","Joy Zins"]
[null,2.2999999999999998,"Formatted, added tab buttons, adjusted based on Jennifer's feedback","2015-10-20","Rachael Miller"]
[null,2.4,"Additional formatting","2015-10-21","Joy Zins"]
[null,2.5,"Updated macro for the input instructions tab","2015-10-21","Rachael Miller"]
[null,2.6,"Additional formatting and content revisions","2015-10-21","Jennifer Mosser"]
[null,2.7,"Added reference to Orange tabs on Input Instructions tab","2015-10-28","JZ"]
[null,2.8,"Added Waste heat factor algorithm to tool","2016-08-12","Oneil Morgan"]
[null,2.9,"Minor edits","2016-09-14","RC"]
[null,3,"Hid savings information, minor edits","2016-11-29","RC"]
[null,3.1,"Updated Major Renovation, additonal contact, Project tab","2017-01-24","JZ"]
[null,3.2,"Highlighted pre approval req's, add hyphen, add version #'s","2017-01-31","JZ"]
[null,3.3,"Fixed buttons","2017-11-13","RC"]
[null,3.4,"Fixed calcs on Building Type LPD and Space LPD sheets","2018-02-06","RC"]
[null,10.1,"Updated T&Cs Dominion Branding Added 70%DLC language","2020-08-27","JSE"]